Workbook

Sheet Instructions (hidden)
A1: 1
A2: Instructions
A3: This sheet provides basic instructions for using this calculator. Please contact the utility rebate program staff for further help or questions.
A6: Getting Started
B8: After opening the file, enable macros if prompted. This tool uses macros to format the spreadsheets for different scenarios.
A25: Project Info
A27: - | B27: Start with this sheet. Enter in all relevant information for the project. The minimum required fields are State, Utility, County, and Program; these fields have drop-downs. Once these have been filled in, macros will automatically un-hide the next sheets.
A32: - | B32: The "Reset Workbook" button clears all user-input cells and reverts the calculator back to a "fresh" file.
A34: Inventory
A36: Tips:
A37: - | B37: Move from left to right across the Inventory columns, as several drop-downs depend on the values in prior columns.
A38: - | B38: Do not enter values in grayed-out cells. Conditional formatting will gray out unneeded cells as you go, and values left in these cells will cause errors in the calculation. If a cell becomes grayed out and it is not empty, please clear it out.
A41: 1. | B41: Select the Project Type:
B42: a. | C42: Early Retirement - the replacement of fully-functioning equipment
B43: b. | C43: New Construction - installation of equipment where there was not previously equipment
B44: c. | C44: Replace on Burnout - the replacement of broken or not fully-functioning equipment
A45: 2. | B45: Select the Building Type. See the "Building Types" tab for descriptions of each building type.
A46: 3. | B46: (Early Retirement Only) - Input existing equipment information, including equipment type, cooling capacity, year of manufacture, and quantity of units.
B47: a. | C47: Cooling capacity may be entered in Btu/hr or tons. Default units will populate but may be changed via drop-down. Ensure that the correct units are selected in column G. 1 Ton = 12,000 Btu/hr
B48: b. | C48: Heating section type: If applicable to your system, it will change from gray to white. For heat pump systems, this refers to the auxiliary/emergency heating type.
B49: c. | C49: Quantity: the number of units in the project scope with these characteristics.
B50: d. | C50: Manufacture year: choose the year the existing equipment was made. If unknown, select "Unknown". If older than the oldest year, select the oldest year.
A52: 4. | B52: Enter the new equipment information. Some of these columns are specific to certain types of equipment and will not appear until that equipment has been selected.
B53: a. | C53: Cooling and heating capacities may be entered in Btu/hr or tons. Default units will populate but may be changed via drop-down. Ensure that the correct units are selected in columns R and T. 1 Ton = 12,000 Btu/hr
B54: b. | C54: Heating section type: If applicable to your system, it will change from gray to white. For heat pump systems, this refers to the auxiliary/emergency heating type.
C55: - | D55: Elec Res or None: for systems with no heating or electric resistance heating
C56: - | D56: Other: for systems with an alternative heating source (i.e., natural gas)
B57: c. | C57: Chiller baseline path: For chilled water systems, choose either Path A (favoring full-load efficiency) or Path B (favoring part-load efficiency) compliance. If the chiller qualifies for both paths, choose the option which begets the best incentive. The workbook defaults to path A.
B59: d. | C59: Redundant Chiller Systems: If the facility has redundant chillers (n+1) and they are sequenced such that, instead of allowing one chiller to operate at full load during peak cooling, the redundant chillers share the peak load while individually operating at partial loads, select "Yes". Otherwise, select "No".
B61: e. | C61: Enter the full and part load efficiency values for the new equipment. The default efficiency units will auto-populate, but may be changed via drop-down.
C62: - | D62: Efficiencies should be at AHRI standard conditions. For DX systems, these can usually be found on AHRI certificates. For chilled water systems, these should be the IPLV at AHRI 550/590 conditions.
C64: - | D64: "EER" includes values in EER, SEER, IEER, CEER, or BTU/W.
C65: - | D65: "SCOP" is Seasonal Coefficient of Performance (typically only CRAC units).
B66: f. | C66: For heat pumps, enter the high-heating (47F) efficiency and unit format.
B67: g. | C67: Enter the quantity of units to be installed.
A69: Notes:
A70: - | B70: Once the Installed Equipment type, capacity, and efficiency format have been filled out, columns AQ-AU will show the program minimum efficiency values in the chosen units.
A73: - | B73: For Early Retirement projects, the installed (capacity x quantity) cannot exceed 120% of the removed (capacity x equipment). A message will appear if this happens, contact program staff if you encounter this situation.
A75: - | B75: The only equipment type change this workbook supports is air cooled chiller to water cooled chiller. For other equipment type changes, please contact program staff for assistance.

Sheet Project Info
A1: 1 | D1: =IF(OR(D7="",D8="",I7="",I8=""),"Please fill in highlighted cells to continue.","") -> Please fill in highlighted cells to continue. | K1: v21.0
C2: Assessed by:
C3: Project ID:
C4: Project Name:
C5: Project Sponsor:
C7: State: | H7: Utility:
C8: =IFERROR(IF('Project Info'!D7="LA","Parish:","County:"),"") -> County: | H8: Program:
C9: Climate Zone: | D9: =IFERROR(State&" Zone "&SelectedZone,"-") -> -
C10: Contact Name:
C11: Contact Phone: | H11: Contact Email:
C12: Account Number: | I12: Name on Account:
C13: Project Site Address:
C14: City: | J14: ZIP Code:
C16: Incentive Paid to: | I16: $/kWh | J16: $/kW
C17: Project Cost: | H17: Utility Rates: | I17: 0.1 | J17: 0 | O17: Incentive Override: | Q17: $/kWh
C19: Project Decription:

Sheet Inventory (hidden)
A1: 1 | AQ1: ='Project Info'!K1 -> v21.0
A2: Commercial HVAC Calculator | M2: For calculator to work correctly, please make sure all grey-background input cells are blank. | AN2: =AN5 -> NCP kW | AO2: =AO5 -> Peak kW | AP2: kWh | AQ2: Incentive | AR2: Non-Capped Incentive | AS2: Total Cost
B3: Project Name: | C3: =IF('Project Info'!D4="","",'Project Info'!D4) ->  | AN3: =SUM(AN8:AN32) -> 0 | AO3: =SUM(AO8:AO32) -> 0 | AP3: =SUM(AP8:AP32) -> 0 | AQ3: =SUM(AQ8:AQ32) -> 0 | AR3: =SUM(AR8:AR32) -> 0 | AS3: =ProjectCost -> 0 | AT3: =IFERROR(IF(AQ3='Utility Admin'!I2,"Incentive is capped",""),"") ->  | DE3: Program Year for ER calcs: | DF3: 2021
F4: =IF(COUNTIF(BE8:BE32,"CAP")>0,"Greater than 20% decrease in capacity. A capped Removed Equipment tonnage will be used.","") ->  | P4: =IF(BC6>0,"The change in equipment type is not supported by this calculator. Please contact program engineering for further assistance.","") -> 
B5: Project Type | C5: Building Type | D5: Removed Equipment | M5: Installed Equipment | AG5: Baseline Efficiency Overrides | AJ5: Weather Factor Overrides | AN5: NCP kW | AO5: Peak kW | AP5: kWh | AQ5: Incentive | AR5: Non-Capped Incentive | AS5: Estimated Cost | AU5: Minimum Efficiency Required | BA5: macro triggers | BU5: Weather Factors | BX5: =CONCATENATE('Project Info'!D7,"_EFLHZone",EFLH!$C$1) -> 
D6: Manufacturer / Model # | E6: Serial #(s) | F6: Equipment Type | G6: Cooling Capacity | I6: Equipment Detail | J6: Heating Section Type | K6: # of Units | L6: Manuf Year | M6: Manufacturer / Model # | N6: Serial #(s) | O6: AHRI Reference # | P6: Equipment Type | Q6: Cooling Capacity | S6: Heating Capacity | U6: Equipment Detail | V6: Heating Section Type | W6: Chiller Baseline Path | X6: Part of Redundant Chiller System? | Y6: HP of Condenser Water Pump | Z6: HP of Cooling Tower Fan | AA6: Cooling Efficiency | AD6: High-Heating Efficiency | AF6: # of Units | AG6: Cooling Efficiency (kW/ton only) | AI6: Heating Efficiency (COP only) | AJ6: EFLH,c | AK6: EFLH,h | AL6: Summer Peak CF | AM6: NCF | AU6: Full-Load | AV6: Part-Load | AW6: Format | AX6: Heating | AY6: Format | BA6: =MAX(BA8:BA32) -> 0 | BB6: =MAX(BB8:BB32) -> 0 | BC6: =MAX(BC8:BC32) -> 0 | BZ6: Efficiencies (kW/ton) | CL6: Savings | CX6: Savings | DB6: Incentives | DE6: Early retirement calculations
G7: Rating | H7: Units | Q7: Rating | R7: Units | S7: Rating | T7: Units | AA7: Full-Load | AB7: Part-Load | AC7: Format | AD7: Rating | AE7: Format | AG7: Full-Load | AH7: Part-Load | BA7: Heat Pump? | BB7: Chiller? | BC7: Eqpmt Chg? | BD7: All Eligible? | BE7: ER delta cap | BF7: ER ACC to WCC adj | BG7: Eq Type List | BH7: Pre Tons | BI7: Pre kbtuh | BJ7: Pre capacity range | BK7: Year to Use | BL7: Pre lookup without capacity | BM7: Pre lookup with capacity | BN7: Tons to Use | BO7: kbtuh to use | BP7: Heating tons | BQ7: capacity range | BR7: Lookup without capacity | BS7: Lookup with capacity | BT7: New Eq type | BU7: Summer Peak CF | BV7: EFLH Cooling | BW7: EFLH Heating | BX7: NCP factor | BY7: Chiller Adj Factor | BZ7: Pre ER Full | CA7: Pre ER Part | CB7: Pre ER Heat | CC7: Pre ROB Full | CD7: Pre ROB Part | CE7: Pre ROB Heat | CF7: Pre NC Full | CG7: Pre NC Part | CH7: Pre NC Heat | CI7: New Full | CJ7: New Part | CK7: New Heat | CL7: ER kW s | CM7: ER kW NCP | CN7: ER kWh c | CO7: ER kWh h | CP7: ROB kW s | CQ7: ROB kW NCP | CR7: ROB kWh c | CS7: ROB kWh h | CT7: NC kW s | CU7: NC kW NCP | CV7: NC kWh c | CW7: NC kWh h | CX7: Summer Demand Savings (kW) | CY7: NCP Savings | CZ7: Cooling Energy Savings (kWh) | DA7: Heating Energy Savings (kWh) | DB7: $/NCP | DC7: $/kW | DD7: $/kWh | DE7: Equipment Age (yrs) | DF7: RUL | DG7: EUL (yrs) | DH7: YearsST | DI7: NPV kW s FT | DJ7: NPV kW s ST | DK7: NPV NCP kW FT | DL7: NPV NCP kW ST | DM7: NPV kWh c FT | DN7: NPV kWh c ST | DO7: NPV kWh h FT | DP7: NPV kWh h ST | DQ7: NPV kW s Total | DR7: NPV kw NCP Total | DS7: NPV kWh c Total | DT7: NPV kWh h total | DU7: NPV kWEUL | DV7: NPV kWhEUL | DW7: kW s | DX7: kW NCP | DY7: kWh c | DZ7: kWh h | EA7: Current kWh | EB7: Current kW | EC7: New kWh
A8: 1 | H8: =IFERROR(INDEX(DefaultUnits,MATCH(F8,EquipmentTypes,0),1),"") ->  | R8: =IFERROR(INDEX(DefaultUnits,MATCH(P8,EquipmentTypes,0),1),"") ->  | T8: =IF(IFERROR(SEARCH("Heat",P8,1)>0,FALSE),R8,"") ->  | W8: =IF(IFERROR(SEARCH("chiller",P8)>0,FALSE),"A","") ->  | X8: =IF(IFERROR(SEARCH("chiller",P8)>0,FALSE),"No","") ->  | AC8: =IFERROR(INDEX(DefaultUnits,MATCH(P8,EquipmentTypes,0),3),"") ->  | AE8: =IFERROR(IF(BA8=0,"",IF(S8*IF(T8="tons",12000,1)<=65000,"HSPF","COP")),"") ->  | AN8: =IF(BD8="NO","Check Min Eff",IF(BE8="NO","Check Change in Capacity",IF(BC8=1,0,IFERROR(ROUND(CY8,3),"")))) -> 0 | AO8: =IF(BD8="NO","Check Min Eff",IF(BE8="NO","Check Change in Capacity",IF(BC8=1,0,IFERROR(ROUND(CX8,3),"")))) -> 0 | AP8: =IF(BD8="NO","Check Min Eff",IF(BE8="NO","Check Change in Capacity",IF(BC8=1,0,ROUND((CZ8+DA8),0)))) -> 0 | AQ8: =IFERROR(IF($AR$3<'Utility Admin'!$I$2,AR8,'Utility Admin'!$I$2/Inventory!$AR$3*AR8),0) -> 0 | AR8: =IFERROR(AN8*DB8+AO8*DC8+AP8*DD8,0) -> 0 | AS8: =IFERROR(ProjectCost-SUM(AS9:AS32),0) -> 0 | AU8: =IFERROR(IF(OR(AC8="",Q8=""),"",IF(AC8="EER",12/CF8,IF(AC8="SCOP",3.517/CF8,CF8))),"") ->  | AV8: =IFERROR(IF(OR(Q8="",AC8=""),"",IF(AC8="EER",12/CG8,IF(AC8="SCOP",3.517/CG8,CG8))),"") ->  | AW8: =AC8 ->  | AX8: =IF(S8="","",IFERROR(IF(IFERROR(SEARCH("Heat",P8,1)>0,FALSE),IF(AE8="HSPF",12/CH8,IF(AE8="COP",12/3.412/CH8,"")),""),"")) ->  | AY8: =AE8 ->  | BA8: =IF(IFERROR(SEARCH("Heat Pump",P8)>0,FALSE),IF(IFERROR(SEARCH("Room",P8)>0,FALSE),0,1),0) -> 0 | BB8: =IF(OR(P8="Water Cooled Chiller",P8="Air Cooled Chiller"),IF(AND($B8="Early Retirement",$F8="Air Cooled Chiller",$P8="Water Cooled Chiller"),3,IF(TRM="CPS",2,IF(TRM="ARTRM8",1,0))),0) -> 0 | BC8: =IF(AND(B8="Early Retirement",F8<>"",P8<>"",F8<>P8,NOT(AND(F8="Air Cooled Chiller",P8="Water Cooled Chiller"))),1,0) -> 0 | BD8: =IFERROR(IF(OR(AC8="",IF(IFERROR(SEARCH("Heat",P8,1)>0,FALSE),AE8="",FALSE)),"UNITS",IF(AND(CJ8<=CG8,CI8<=CF8,IF(IFERROR(SEARCH("Heat",P8,1)>0,FALSE),CK8<=CH8,TRUE)),"YES","NO")),"---") -> UNITS | BE8: =IF(OR(G8="",K8="",Q8="",AF8=""),"",IF(AND(B8="Early Retirement",BH8*K8*1.2<BN8*AF8),"NO",IF(AND(B8="Early Retirement",BH8*K8*0.8>BN8*AF8),"CAP","YES"))) ->  | BF8: =(Y8*AF8+Z8)*0.746*0.8/0.86 -> 0 | BG8: =IF('Project Info'!$D$7="TX",INDEX(EFLH!$AB$4:$AB$30,MATCH(C8,TX_EFLHSanAntonio[Building Type],0),1),'Project Info'!$D$7&"EquipmentType") -> EquipmentType | BH8: =IF(H8="tons",G8,IF(H8="Btuh",G8/12000,0)) -> 0 | BI8: =IF(BE8="CAP",BO8*1.2,BH8*12000) -> 0 | BJ8: =IF(IFERROR(SEARCH("Terminal",F8,1)>0,FALSE),"",HLOOKUP(BI8,'Equipment Lookups'!$L$4:$AB$46,VLOOKUP(Inventory!BL8,'Equipment Lookups'!$J$5:$K$46,2,FALSE),TRUE)) ->  | BK8: =IF(L8="Unknown",YEAR(TODAY())-INDEX('Equipment Lookups'!$AC$5:$AC$38,MATCH(Inventory!BL8,'Equipment Lookups'!$J$5:$J$38,0)),L8) -> 0 | BL8: =SUBSTITUTE(SUBSTITUTE(CONCATENATE(F8, I8), " ", ""),"/","") ->  | BM8: =SUBSTITUTE(SUBSTITUTE(CONCATENATE(F8,I8,J8,IF(BB8>0,IF(W8="","A",W8),""),BJ8)," ",""),"/","") ->  | BN8: =IF(R8="tons",Q8,IF(R8="Btuh",Q8/12000,0)) -> 0 | BO8: =BN8*12000 -> 0 | BP8: =IF(T8="tons",S8,IF(T8="Btuh",S8/12000,0)) -> 0 | BQ8: =IF(IFERROR(SEARCH("Terminal",P8,1)>0,FALSE),"",HLOOKUP(BO8,'Equipment Lookups'!$L$4:$AB$46,VLOOKUP(Inventory!BR8,'Equipment Lookups'!$J$5:$K$46,2,FALSE),TRUE)) ->  | BR8: =SUBSTITUTE(SUBSTITUTE(CONCATENATE(P8, U8), " ", ""),"/","") ->  | BS8: =SUBSTITUTE(SUBSTITUTE(CONCATENATE(P8, U8,V8,IF(BB8>0,IF(W8="","A",W8),""),BQ8), " ", ""),"/","") ->  | BT8: =INDEX('Equipment Lookups'!$AD$5:$AD$46,MATCH(Inventory!BR8,'Equipment Lookups'!$J$5:$J$46,0)) ->  | BU8: =IFERROR(IF(AL8<>"",AL8,IF(State="TX",INDEX(TX_EFLHSanAntonio[[CFAir Cooled Chiller]:[CFPTRoom]],MATCH(Inventory!C8,TX_EFLHSanAntonio[Building Type],0),MATCH(BT8,EFLH!$N$2:$Q$2,0)),VLOOKUP(C8,INDIRECT($BX$5),4,FALSE))),"-") -> - | BV8: =IFERROR(IF(AJ8<>"",AJ8,IF(State="TX",INDEX(TX_EFLHSanAntonio[[EFLHcAir Cooled Chiller]:[EFLHcPTRoom]],MATCH(Inventory!C8,TX_EFLHSanAntonio[Building Type],0),MATCH(BT8,EFLH!$V$2:$Y$2,0)),VLOOKUP(C8,INDIRECT($BX$5),2,FALSE))),"-") -> - | BW8: =IFERROR(IF(AK8<>"",AK8,IF(State="TX",INDEX(TX_EFLHSanAntonio[[EFLHhDX]:[EFLHhPTRoom]],MATCH(Inventory!C8,TX_EFLHSanAntonio[Building Type],0),MATCH(BT8,EFLH!$Z$2:$AA$2,0)),VLOOKUP(C8,INDIRECT($BX$5),3,FALSE))),"-") -> - | BX8: =IF(AM8<>"",AM8,IF(State="TX",INDEX(TX_EFLHSanAntonio[[NCPAir Cooled Chiller]:[NCPPTRoom]],MATCH(Inventory!C8,TX_EFLHSanAntonio[Building Type],0),MATCH(BT8,EFLH!$R$2:$U$2,0)),0)) -> 0 | BY8: =IF(X8="Yes",0.58,1) -> 1 | BZ8: =IF(IFERROR(SEARCH("Terminal",F8,1)>0,FALSE),INDEX(INDIRECT(BM8),A8,1),INDEX(INDIRECT(BM8),MATCH(IF(BK8<1990,1990,BK8),BaselineRow,0),1)) ->  | CA8: =IF(IFERROR(SEARCH("Terminal",F8,1)>0,FALSE),INDEX(INDIRECT(BM8),A8,1),INDEX(INDIRECT(BM8),MATCH(IF(BK8<1990,1990,BK8),BaselineRow,0),2)) ->  | CB8: =IF(IFERROR(SEARCH("Heat",F8,1)>0,FALSE),IF(IFERROR(SEARCH("Terminal",F8,1)>0,FALSE),INDEX(INDIRECT(BM8),A8,5),INDEX(INDIRECT(BM8),MATCH(IF(BK8<1990,1990,BK8),BaselineRow,0),IF(IFERROR(SEARCH("Unitary",F8,1)>0,FALSE),3,3))),"") ->  | CC8: =IF(AG8<>"",AG8,IF(IFERROR(SEARCH("Terminal",P8,1)>0,FALSE),INDEX(INDIRECT(BS8),A8,MATCH(TRM,PTAC!$AC$9:$AE$9,0)),INDEX(INDIRECT(BS8),MATCH(TRM,BaselineRow,0),1))) ->  | CD8: =_xlfn.SINGLE(IF(AH8<>"",AH8,IF(IFERROR(SEARCH("Terminal",P8,1)>0,FALSE),CC8,INDEX(INDIRECT(BS8),MATCH(TRM,BaselineRow,0),2)))) ->  | CE8: =IF(AI8<>"",12/3.412/AI8,IF(IFERROR(SEARCH("Heat",P8,1)>0,FALSE),IF(IFERROR(SEARCH("Terminal",P8,1)>0,FALSE),INDEX(INDIRECT(BS8),A8,3+MATCH(TRM,PTAC!$AC$9:$AE$9,0)),INDEX(INDIRECT(BS8),MATCH(TRM,BaselineRow,0),3)),"")) ->  | CF8: =IF(AG8<>"",AG8,IF(IFERROR(SEARCH("Terminal",P8,1)>0,FALSE),INDEX(INDIRECT(BS8),A8,MATCH(TRM,PTAC!$AC$9:$AE$9,0)),INDEX(INDIRECT(BS8),MATCH(TRM,BaselineRow,0),1))) ->  | CG8: =_xlfn.SINGLE(IF(AH8<>"",AH8,IF(IFERROR(SEARCH("Terminal",P8,1)>0,FALSE),CF8,INDEX(INDIRECT(BS8),MATCH(TRM,BaselineRow,0),2)))) ->  | CH8: =IF(AI8<>"",12/3.412/AI8,IF(IFERROR(SEARCH("Heat",P8,1)>0,FALSE),IF(IFERROR(SEARCH("Terminal",P8,1)>0,FALSE),INDEX(INDIRECT(BS8),A8,3+MATCH(TRM,PTAC!$AC$9:$AE$9,0)),INDEX(INDIRECT(BS8),MATCH(TRM,BaselineRow,0),3)),"")) ->  | CI8: =IFERROR(IF(AC8="kW/ton",AA8,IF(AC8="SCOP",3.517,12)/AA8),"") ->  | CJ8: =IFERROR(IF(IFERROR(SEARCH("Terminal",P8,1)>0,FALSE),12/AA8,IF(IFERROR(SEARCH("Room",P8,1)>0,FALSE),IF(AC8="SCOP",3.517,12)/AA8,IF(AB8="","",IF(AC8="EER",12/AB8,AB8)))),"") ->  | CK8: =IFERROR(IF(IFERROR(SEARCH("Room",P8,1)>0,FALSE),12/AA8,IF(AE8="HSPF",12/AD8,IF(AE8="COP",12/3.412/AD8,""))),"") ->  | CL8: =MAX(IF(X8="Yes",(K8*BH8*CA8-AF8*BN8*CJ8),(K8*BH8*BZ8-AF8*BN8*CI8))*BU8*BY8-BF8,0) ->  | CM8: =MAX(IF(X8="Yes",(K8*BH8*CA8-AF8*BN8*CJ8),(K8*BH8*BZ8-AF8*BN8*CI8))*BX8*BY8-BF8,0) ->  | CN8: =MAX((K8*BH8*CA8-AF8*BN8*CJ8)*BV8*BY8-BF8*8760,0) ->  | CO8: =MAX(IFERROR((K8*BH8*CB8-AF8*BP8*CK8)*BW8*BY8,0),0) -> 0 | CP8: =AF8*BN8*IF(X8="Yes",(CD8-CJ8),(CC8-CI8))*BU8*BY8 ->  | CQ8: =AF8*BN8*IF(X8="Yes",(CD8-CJ8),(CC8-CI8))*BX8*BY8 ->  | CR8: =AF8*BN8*(CD8-CJ8)*BV8*BY8 ->  | CS8: =AF8*BP8*(CE8-CK8)*BW8*BY8 ->  | CT8: =AF8*BN8*IF(X8="Yes",(CG8-CJ8),(CF8-CI8))*BU8*BY8 ->  | CU8: =AF8*BN8*IF(X8="Yes",(CG8-CJ8),(CF8-CI8))*BX8*BY8 ->  | CV8: =AF8*BN8*(CG8-CJ8)*BV8*BY8 ->  | CW8: =AF8*BP8*(CH8-CK8)*BW8*BY8 ->  | CX8: =IF(AND($AB8="",IFERROR(SEARCH("Room",P8)<0,TRUE),IFERROR(SEARCH("Terminal",P8)<0,TRUE)),0,IFERROR(IF($B8="Early Retirement",DW8,IF($B8="Replace on Burnout",CP8,IF($B8="New Construction",CT8,0))),0)) -> 0 | CY8: =IF(AND($AB8="",IFERROR(SEARCH("Room",P8)<0,TRUE),IFERROR(SEARCH("Terminal",P8)<0,TRUE)),0,IFERROR(IF($B8="Early Retirement",DX8,IF($B8="Replace on Burnout",CQ8,IF($B8="New Construction",CU8,0))),0)) -> 0 | CZ8: =IF($AA8="",0,IFERROR(IF($B8="Early Retirement",DY8,IF($B8="Replace on Burnout",CR8,IF($B8="New Construction",CV8,0))),0)) -> 0 | DA8: =IF($AA8="",0,IFERROR(IF($B8="Early Retirement",DZ8,IF($B8="Replace on Burnout",CS8,IF($B8="New Construction",CW8,0))),0)) -> 0 | DB8: =INDEX('Utility Admin'!$P$2:$AD$2,1,MATCH($P8,'Utility Admin'!$P$3:$AD$3,0)) ->  | DC8: =INDEX('Utility Admin'!AE$2:AS$2,1,MATCH($P8,'Utility Admin'!$P$3:$AD$3,0)) ->  | DD8: =IF(kWhOverride="",INDEX('Utility Admin'!$AT$2:$BH$2,1,MATCH($P8,'Utility Admin'!$P$3:$AD$3,0)),kWhOverride) ->  | DE8: =IF(B8="New Construction","",IF(L8="","",MAX(DF$3-BK8,1,))) ->  | DF8: =INDEX('Equipment Lookups'!$AF$5:$BS$46,MATCH(Inventory!BL8,'Equipment Lookups'!$J$5:$J$46,0),MATCH(Inventory!DE8,'Equipment Lookups'!$AF$4:$BS$4,0)) ->  | DG8: =INDEX('Equipment Lookups'!$AE$5:$AE$46,MATCH(Inventory!BR8,'Equipment Lookups'!$J$5:$J$46,0)) ->  | DH8: =DG8-DF8 ->  | DI8: =ACkW * (1+escalation)/(discount-escalation) * (1 - ((1+escalation)/(1+discount))^DF8) * CL8 ->  | DJ8: =ACkW * (1+escalation)/(discount-escalation) * (1 - ((1+escalation)/(1+discount))^DH8) * (1+escalation)^DF8/(1+discount)^DF8 * CP8 ->  | DK8: =ACkW * (1+escalation)/(discount-escalation) * (1 - ((1+escalation)/(1+discount))^DF8) * CM8 ->  | DL8: =ACkW * (1+escalation)/(discount-escalation) * (1 - ((1+escalation)/(1+discount))^DH8) * (1+escalation)^DF8/(1+discount)^DF8 * CQ8 ->  | DM8: =ACkWh * (1+escalation)/(discount-escalation) * (1 - ((1+escalation)/(1+discount))^DF8) * CN8 ->  | DN8: =ACkWh * (1+escalation)/(discount-escalation) * (1 - ((1+escalation)/(1+discount))^DH8) * (1+escalation)^DF8/(1+discount)^DF8 * CR8 ->  | DO8: =ACkWh * (1+escalation)/(discount-escalation) * (1 - ((1+escalation)/(1+discount))^DF8) * CO8 ->  | DP8: =ACkWh * (1+escalation)/(discount-escalation) * (1 - ((1+escalation)/(1+discount))^DH8) * (1+escalation)^DF8/(1+discount)^DF8 * CS8 ->  | DQ8: =DI8+DJ8 ->  | DR8: =DK8+DL8 ->  | DS8: =DM8+DN8 ->  | DT8: =DO8+DP8 ->  | DU8: =ACkW * (1+escalation)/(discount-escalation) * (1 - ((1+escalation)/(1+discount))^DG8) ->  | DV8: =ACkWh * (1+escalation)/(discount-escalation) * (1 - ((1+escalation)/(1+discount))^DG8) ->  | DW8: =DQ8/DU8 ->  | DX8: =DR8/DU8 ->  | DY8: =DS8/DV8 ->  | DZ8: =DT8/DV8 ->  | EA8: =K8*IFERROR(IF(B8="Early Retirement",CA8,CD8)*BN8*BV8,0) -> 0 | EB8: =K8*IFERROR(BN8*BU8*CC8,0) -> 0 | EC8: =IFERROR(AF8*BN8*BV8*CJ8,0) -> 0
A9: 2 | H9: =IFERROR(INDEX(DefaultUnits,MATCH(F9,EquipmentTypes,0),1),"") ->  | R9: =IFERROR(INDEX(DefaultUnits,MATCH(P9,EquipmentTypes,0),1),"") ->  | AC9: =IFERROR(INDEX(DefaultUnits,MATCH(P9,EquipmentTypes,0),3),"") ->  | AN9: 0 | AO9: 0 | AP9: 0 | AQ9: =IFERROR(IF($AR$3<'Utility Admin'!$I$2,AR9,'Utility Admin'!$I$2/Inventory!$AR$3*AR9),0) -> 0 | AR9: 0 | AS9: =IFERROR(ProjectCost-SUM(AS10:AS33),0) -> 0 | AW9: =AC9 ->  | AY9: =AE9 ->  | BA9: 0 | BB9: 0 | BC9: 0 | BD9: UNITS | BF9: 0 | BG9: =IF('Project Info'!$D$7="TX",INDEX(EFLH!$AB$4:$AB$30,MATCH(C9,TX_EFLHSanAntonio[Building Type],0),1),'Project Info'!$D$7&"EquipmentType") -> EquipmentType | BH9: 0 | BI9: =IF(BE9="CAP",BO9*1.2,BH9*12000) -> 0 | BJ9: =IF(IFERROR(SEARCH("Terminal",F9,1)>0,FALSE),"",HLOOKUP(BI9,'Equipment Lookups'!$L$4:$AB$46,VLOOKUP(Inventory!BL9,'Equipment Lookups'!$J$5:$K$46,2,FALSE),TRUE)) ->  | BK9: =IF(L9="Unknown",YEAR(TODAY())-INDEX('Equipment Lookups'!$AC$5:$AC$38,MATCH(Inventory!BL9,'Equipment Lookups'!$J$5:$J$38,0)),L9) -> 0 | BN9: 0 | BO9: =BN9*12000 -> 0 | BP9: 0 | BQ9: =IF(IFERROR(SEARCH("Terminal",P9,1)>0,FALSE),"",HLOOKUP(BO9,'Equipment Lookups'!$L$4:$AB$46,VLOOKUP(Inventory!BR9,'Equipment Lookups'!$J$5:$K$46,2,FALSE),TRUE)) ->  | BT9: =INDEX('Equipment Lookups'!$AD$5:$AD$46,MATCH(Inventory!BR9,'Equipment Lookups'!$J$5:$J$46,0)) ->  | BU9: =IFERROR(IF(AL9<>"",AL9,IF(State="TX",INDEX(TX_EFLHSanAntonio[[CFAir Cooled Chiller]:[CFPTRoom]],MATCH(Inventory!C9,TX_EFLHSanAntonio[Building Type],0),MATCH(BT9,EFLH!$N$2:$Q$2,0)),VLOOKUP(C9,INDIRECT($BX$5),4,FALSE))),"-") -> - | BV9: =IFERROR(IF(AJ9<>"",AJ9,IF(State="TX",INDEX(TX_EFLHSanAntonio[[EFLHcAir Cooled Chiller]:[EFLHcPTRoom]],MATCH(Inventory!C9,TX_EFLHSanAntonio[Building Type],0),MATCH(BT9,EFLH!$V$2:$Y$2,0)),VLOOKUP(C9,INDIRECT($BX$5),2,FALSE))),"-") -> - | BW9: =IFERROR(IF(AK9<>"",AK9,IF(State="TX",INDEX(TX_EFLHSanAntonio[[EFLHhDX]:[EFLHhPTRoom]],MATCH(Inventory!C9,TX_EFLHSanAntonio[Building Type],0),MATCH(BT9,EFLH!$Z$2:$AA$2,0)),VLOOKUP(C9,INDIRECT($BX$5),3,FALSE))),"-") -> - | BX9: =IF(AM9<>"",AM9,IF(State="TX",INDEX(TX_EFLHSanAntonio[[NCPAir Cooled Chiller]:[NCPPTRoom]],MATCH(Inventory!C9,TX_EFLHSanAntonio[Building Type],0),MATCH(BT9,EFLH!$R$2:$U$2,0)),0)) -> 0 | BY9: 1 | CC9: =IF(AG9<>"",AG9,IF(IFERROR(SEARCH("Terminal",P9,1)>0,FALSE),INDEX(INDIRECT(BS9),A9,MATCH(TRM,PTAC!$AC$9:$AE$9,0)),INDEX(INDIRECT(BS9),MATCH(TRM,BaselineRow,0),1))) ->  | CE9: =IF(AI9<>"",12/3.412/AI9,IF(IFERROR(SEARCH("Heat",P9,1)>0,FALSE),IF(IFERROR(SEARCH("Terminal",P9,1)>0,FALSE),INDEX(INDIRECT(BS9),A9,3+MATCH(TRM,PTAC!$AC$9:$AE$9,0)),INDEX(INDIRECT(BS9),MATCH(TRM,BaselineRow,0),3)),"")) ->  | CF9: =IF(AG9<>"",AG9,IF(IFERROR(SEARCH("Terminal",P9,1)>0,FALSE),INDEX(INDIRECT(BS9),A9,MATCH(TRM,PTAC!$AC$9:$AE$9,0)),INDEX(INDIRECT(BS9),MATCH(TRM,BaselineRow,0),1))) ->  | CH9: =IF(AI9<>"",12/3.412/AI9,IF(IFERROR(SEARCH("Heat",P9,1)>0,FALSE),IF(IFERROR(SEARCH("Terminal",P9,1)>0,FALSE),INDEX(INDIRECT(BS9),A9,3+MATCH(TRM,PTAC!$AC$9:$AE$9,0)),INDEX(INDIRECT(BS9),MATCH(TRM,BaselineRow,0),3)),"")) ->  | CO9: 0 | CX9: 0 | CY9: 0 | CZ9: 0 | DA9: 0 | DB9: =INDEX('Utility Admin'!$P$2:$AD$2,1,MATCH($P9,'Utility Admin'!$P$3:$AD$3,0)) ->  | DC9: =INDEX('Utility Admin'!AE$2:AS$2,1,MATCH($P9,'Utility Admin'!$P$3:$AD$3,0)) ->  | DD9: =IF(kWhOverride="",INDEX('Utility Admin'!$AT$2:$BH$2,1,MATCH($P9,'Utility Admin'!$P$3:$AD$3,0)),kWhOverride) ->  | DF9: =INDEX('Equipment Lookups'!$AF$5:$BS$46,MATCH(Inventory!BL9,'Equipment Lookups'!$J$5:$J$46,0),MATCH(Inventory!DE9,'Equipment Lookups'!$AF$4:$BS$4,0)) ->  | DG9: =INDEX('Equipment Lookups'!$AE$5:$AE$46,MATCH(Inventory!BR9,'Equipment Lookups'!$J$5:$J$46,0)) ->  | DH9: =DG9-DF9 ->  | DX9: =DR9/DU9 ->  | DY9: =DS9/DV9 ->  | DZ9: =DT9/DV9 ->  | EA9: 0 | EB9: 0 | EC9: =IFERROR(AF9*BN9*BV9*CJ9,0) -> 0
A10: 3 | H10: =IFERROR(INDEX(DefaultUnits,MATCH(F10,EquipmentTypes,0),1),"") ->  | R10: =IFERROR(INDEX(DefaultUnits,MATCH(P10,EquipmentTypes,0),1),"") ->  | AC10: =IFERROR(INDEX(DefaultUnits,MATCH(P10,EquipmentTypes,0),3),"") ->  | AN10: 0 | AO10: 0 | AP10: 0 | AQ10: =IFERROR(IF($AR$3<'Utility Admin'!$I$2,AR10,'Utility Admin'!$I$2/Inventory!$AR$3*AR10),0) -> 0 | AR10: 0 | AS10: =IFERROR(ProjectCost-SUM(AS11:AS34),0) -> 0 | BA10: 0 | BB10: 0 | BC10: 0 | BD10: UNITS | BF10: 0 | BG10: =IF('Project Info'!$D$7="TX",INDEX(EFLH!$AB$4:$AB$30,MATCH(C10,TX_EFLHSanAntonio[Building Type],0),1),'Project Info'!$D$7&"EquipmentType") -> EquipmentType | BH10: 0 | BI10: 0 | BJ10: =IF(IFERROR(SEARCH("Terminal",F10,1)>0,FALSE),"",HLOOKUP(BI10,'Equipment Lookups'!$L$4:$AB$46,VLOOKUP(Inventory!BL10,'Equipment Lookups'!$J$5:$K$46,2,FALSE),TRUE)) ->  | BK10: =IF(L10="Unknown",YEAR(TODAY())-INDEX('Equipment Lookups'!$AC$5:$AC$38,MATCH(Inventory!BL10,'Equipment Lookups'!$J$5:$J$38,0)),L10) -> 0 | BN10: 0 | BO10: 0 | BP10: 0 | BQ10: =IF(IFERROR(SEARCH("Terminal",P10,1)>0,FALSE),"",HLOOKUP(BO10,'Equipment Lookups'!$L$4:$AB$46,VLOOKUP(Inventory!BR10,'Equipment Lookups'!$J$5:$K$46,2,FALSE),TRUE)) ->  | BT10: =INDEX('Equipment Lookups'!$AD$5:$AD$46,MATCH(Inventory!BR10,'Equipment Lookups'!$J$5:$J$46,0)) ->  | BU10: =IFERROR(IF(AL10<>"",AL10,IF(State="TX",INDEX(TX_EFLHSanAntonio[[CFAir Cooled Chiller]:[CFPTRoom]],MATCH(Inventory!C10,TX_EFLHSanAntonio[Building Type],0),MATCH(BT10,EFLH!$N$2:$Q$2,0)),VLOOKUP(C10,INDIRECT($BX$5),4,FALSE))),"-") -> - | BV10: =IFERROR(IF(AJ10<>"",AJ10,IF(State="TX",INDEX(TX_EFLHSanAntonio[[EFLHcAir Cooled Chiller]:[EFLHcPTRoom]],MATCH(Inventory!C10,TX_EFLHSanAntonio[Building Type],0),MATCH(BT10,EFLH!$V$2:$Y$2,0)),VLOOKUP(C10,INDIRECT($BX$5),2,FALSE))),"-") -> - | BW10: =IFERROR(IF(AK10<>"",AK10,IF(State="TX",INDEX(TX_EFLHSanAntonio[[EFLHhDX]:[EFLHhPTRoom]],MATCH(Inventory!C10,TX_EFLHSanAntonio[Building Type],0),MATCH(BT10,EFLH!$Z$2:$AA$2,0)),VLOOKUP(C10,INDIRECT($BX$5),3,FALSE))),"-") -> - | BX10: =IF(AM10<>"",AM10,IF(State="TX",INDEX(TX_EFLHSanAntonio[[NCPAir Cooled Chiller]:[NCPPTRoom]],MATCH(Inventory!C10,TX_EFLHSanAntonio[Building Type],0),MATCH(BT10,EFLH!$R$2:$U$2,0)),0)) -> 0 | BY10: 1 | CC10: =IF(AG10<>"",AG10,IF(IFERROR(SEARCH("Terminal",P10,1)>0,FALSE),INDEX(INDIRECT(BS10),A10,MATCH(TRM,PTAC!$AC$9:$AE$9,0)),INDEX(INDIRECT(BS10),MATCH(TRM,BaselineRow,0),1))) ->  | CE10: =IF(AI10<>"",12/3.412/AI10,IF(IFERROR(SEARCH("Heat",P10,1)>0,FALSE),IF(IFERROR(SEARCH("Terminal",P10,1)>0,FALSE),INDEX(INDIRECT(BS10),A10,3+MATCH(TRM,PTAC!$AC$9:$AE$9,0)),INDEX(INDIRECT(BS10),MATCH(TRM,BaselineRow,0),3)),"")) ->  | CF10: =IF(AG10<>"",AG10,IF(IFERROR(SEARCH("Terminal",P10,1)>0,FALSE),INDEX(INDIRECT(BS10),A10,MATCH(TRM,PTAC!$AC$9:$AE$9,0)),INDEX(INDIRECT(BS10),MATCH(TRM,BaselineRow,0),1))) ->  | CH10: =IF(AI10<>"",12/3.412/AI10,IF(IFERROR(SEARCH("Heat",P10,1)>0,FALSE),IF(IFERROR(SEARCH("Terminal",P10,1)>0,FALSE),INDEX(INDIRECT(BS10),A10,3+MATCH(TRM,PTAC!$AC$9:$AE$9,0)),INDEX(INDIRECT(BS10),MATCH(TRM,BaselineRow,0),3)),"")) ->  | CO10: 0 | CX10: 0 | CY10: 0 | CZ10: 0 | DA10: 0 | DB10: =INDEX('Utility Admin'!$P$2:$AD$2,1,MATCH($P10,'Utility Admin'!$P$3:$AD$3,0)) ->  | DC10: =INDEX('Utility Admin'!AE$2:AS$2,1,MATCH($P10,'Utility Admin'!$P$3:$AD$3,0)) ->  | DD10: =IF(kWhOverride="",INDEX('Utility Admin'!$AT$2:$BH$2,1,MATCH($P10,'Utility Admin'!$P$3:$AD$3,0)),kWhOverride) ->  | DF10: =INDEX('Equipment Lookups'!$AF$5:$BS$46,MATCH(Inventory!BL10,'Equipment Lookups'!$J$5:$J$46,0),MATCH(Inventory!DE10,'Equipment Lookups'!$AF$4:$BS$4,0)) ->  | DG10: =INDEX('Equipment Lookups'!$AE$5:$AE$46,MATCH(Inventory!BR10,'Equipment Lookups'!$J$5:$J$46,0)) ->  | EA10: 0 | EB10: 0 | EC10: 0
A11: 4 | H11: =IFERROR(INDEX(DefaultUnits,MATCH(F11,EquipmentTypes,0),1),"") ->  | R11: =IFERROR(INDEX(DefaultUnits,MATCH(P11,EquipmentTypes,0),1),"") ->  | AC11: =IFERROR(INDEX(DefaultUnits,MATCH(P11,EquipmentTypes,0),3),"") ->  | AN11: 0 | AO11: 0 | AP11: 0 | AQ11: =IFERROR(IF($AR$3<'Utility Admin'!$I$2,AR11,'Utility Admin'!$I$2/Inventory!$AR$3*AR11),0) -> 0 | AR11: 0 | AS11: =IFERROR(ProjectCost-SUM(AS12:AS35),0) -> 0 | BA11: 0 | BB11: 0 | BC11: 0 | BD11: UNITS | BF11: 0 | BG11: =IF('Project Info'!$D$7="TX",INDEX(EFLH!$AB$4:$AB$30,MATCH(C11,TX_EFLHSanAntonio[Building Type],0),1),'Project Info'!$D$7&"EquipmentType") -> EquipmentType | BH11: 0 | BI11: 0 | BJ11: =IF(IFERROR(SEARCH("Terminal",F11,1)>0,FALSE),"",HLOOKUP(BI11,'Equipment Lookups'!$L$4:$AB$46,VLOOKUP(Inventory!BL11,'Equipment Lookups'!$J$5:$K$46,2,FALSE),TRUE)) ->  | BK11: =IF(L11="Unknown",YEAR(TODAY())-INDEX('Equipment Lookups'!$AC$5:$AC$38,MATCH(Inventory!BL11,'Equipment Lookups'!$J$5:$J$38,0)),L11) -> 0 | BN11: 0 | BO11: 0 | BP11: 0 | BQ11: =IF(IFERROR(SEARCH("Terminal",P11,1)>0,FALSE),"",HLOOKUP(BO11,'Equipment Lookups'!$L$4:$AB$46,VLOOKUP(Inventory!BR11,'Equipment Lookups'!$J$5:$K$46,2,FALSE),TRUE)) ->  | BT11: =INDEX('Equipment Lookups'!$AD$5:$AD$46,MATCH(Inventory!BR11,'Equipment Lookups'!$J$5:$J$46,0)) ->  | BU11: =IFERROR(IF(AL11<>"",AL11,IF(State="TX",INDEX(TX_EFLHSanAntonio[[CFAir Cooled Chiller]:[CFPTRoom]],MATCH(Inventory!C11,TX_EFLHSanAntonio[Building Type],0),MATCH(BT11,EFLH!$N$2:$Q$2,0)),VLOOKUP(C11,INDIRECT($BX$5),4,FALSE))),"-") -> - | BV11: =IFERROR(IF(AJ11<>"",AJ11,IF(State="TX",INDEX(TX_EFLHSanAntonio[[EFLHcAir Cooled Chiller]:[EFLHcPTRoom]],MATCH(Inventory!C11,TX_EFLHSanAntonio[Building Type],0),MATCH(BT11,EFLH!$V$2:$Y$2,0)),VLOOKUP(C11,INDIRECT($BX$5),2,FALSE))),"-") -> - | BW11: =IFERROR(IF(AK11<>"",AK11,IF(State="TX",INDEX(TX_EFLHSanAntonio[[EFLHhDX]:[EFLHhPTRoom]],MATCH(Inventory!C11,TX_EFLHSanAntonio[Building Type],0),MATCH(BT11,EFLH!$Z$2:$AA$2,0)),VLOOKUP(C11,INDIRECT($BX$5),3,FALSE))),"-") -> - | BX11: =IF(AM11<>"",AM11,IF(State="TX",INDEX(TX_EFLHSanAntonio[[NCPAir Cooled Chiller]:[NCPPTRoom]],MATCH(Inventory!C11,TX_EFLHSanAntonio[Building Type],0),MATCH(BT11,EFLH!$R$2:$U$2,0)),0)) -> 0 | BY11: 1 | CC11: =IF(AG11<>"",AG11,IF(IFERROR(SEARCH("Terminal",P11,1)>0,FALSE),INDEX(INDIRECT(BS11),A11,MATCH(TRM,PTAC!$AC$9:$AE$9,0)),INDEX(INDIRECT(BS11),MATCH(TRM,BaselineRow,0),1))) ->  | CE11: =IF(AI11<>"",12/3.412/AI11,IF(IFERROR(SEARCH("Heat",P11,1)>0,FALSE),IF(IFERROR(SEARCH("Terminal",P11,1)>0,FALSE),INDEX(INDIRECT(BS11),A11,3+MATCH(TRM,PTAC!$AC$9:$AE$9,0)),INDEX(INDIRECT(BS11),MATCH(TRM,BaselineRow,0),3)),"")) ->  | CF11: =IF(AG11<>"",AG11,IF(IFERROR(SEARCH("Terminal",P11,1)>0,FALSE),INDEX(INDIRECT(BS11),A11,MATCH(TRM,PTAC!$AC$9:$AE$9,0)),INDEX(INDIRECT(BS11),MATCH(TRM,BaselineRow,0),1))) ->  | CH11: =IF(AI11<>"",12/3.412/AI11,IF(IFERROR(SEARCH("Heat",P11,1)>0,FALSE),IF(IFERROR(SEARCH("Terminal",P11,1)>0,FALSE),INDEX(INDIRECT(BS11),A11,3+MATCH(TRM,PTAC!$AC$9:$AE$9,0)),INDEX(INDIRECT(BS11),MATCH(TRM,BaselineRow,0),3)),"")) ->  | CO11: 0 | CX11: 0 | CY11: 0 | CZ11: 0 | DA11: 0 | DB11: =INDEX('Utility Admin'!$P$2:$AD$2,1,MATCH($P11,'Utility Admin'!$P$3:$AD$3,0)) ->  | DC11: =INDEX('Utility Admin'!AE$2:AS$2,1,MATCH($P11,'Utility Admin'!$P$3:$AD$3,0)) ->  | DD11: =IF(kWhOverride="",INDEX('Utility Admin'!$AT$2:$BH$2,1,MATCH($P11,'Utility Admin'!$P$3:$AD$3,0)),kWhOverride) ->  | DF11: =INDEX('Equipment Lookups'!$AF$5:$BS$46,MATCH(Inventory!BL11,'Equipment Lookups'!$J$5:$J$46,0),MATCH(Inventory!DE11,'Equipment Lookups'!$AF$4:$BS$4,0)) ->  | DG11: =INDEX('Equipment Lookups'!$AE$5:$AE$46,MATCH(Inventory!BR11,'Equipment Lookups'!$J$5:$J$46,0)) ->  | EA11: 0 | EB11: 0 | EC11: 0
A12: 5 | H12: =IFERROR(INDEX(DefaultUnits,MATCH(F12,EquipmentTypes,0),1),"") ->  | R12: =IFERROR(INDEX(DefaultUnits,MATCH(P12,EquipmentTypes,0),1),"") ->  | AC12: =IFERROR(INDEX(DefaultUnits,MATCH(P12,EquipmentTypes,0),3),"") ->  | AN12: 0 | AO12: 0 | AP12: 0 | AQ12: =IFERROR(IF($AR$3<'Utility Admin'!$I$2,AR12,'Utility Admin'!$I$2/Inventory!$AR$3*AR12),0) -> 0 | AR12: 0 | AS12: =IFERROR(ProjectCost-SUM(AS13:AS36),0) -> 0 | BA12: 0 | BB12: 0 | BC12: 0 | BD12: UNITS | BF12: 0 | BG12: =IF('Project Info'!$D$7="TX",INDEX(EFLH!$AB$4:$AB$30,MATCH(C12,TX_EFLHSanAntonio[Building Type],0),1),'Project Info'!$D$7&"EquipmentType") -> EquipmentType | BH12: 0 | BI12: 0 | BJ12: =IF(IFERROR(SEARCH("Terminal",F12,1)>0,FALSE),"",HLOOKUP(BI12,'Equipment Lookups'!$L$4:$AB$46,VLOOKUP(Inventory!BL12,'Equipment Lookups'!$J$5:$K$46,2,FALSE),TRUE)) ->  | BK12: =IF(L12="Unknown",YEAR(TODAY())-INDEX('Equipment Lookups'!$AC$5:$AC$38,MATCH(Inventory!BL12,'Equipment Lookups'!$J$5:$J$38,0)),L12) -> 0 | BN12: 0 | BO12: 0 | BP12: 0 | BQ12: =IF(IFERROR(SEARCH("Terminal",P12,1)>0,FALSE),"",HLOOKUP(BO12,'Equipment Lookups'!$L$4:$AB$46,VLOOKUP(Inventory!BR12,'Equipment Lookups'!$J$5:$K$46,2,FALSE),TRUE)) ->  | BT12: =INDEX('Equipment Lookups'!$AD$5:$AD$46,MATCH(Inventory!BR12,'Equipment Lookups'!$J$5:$J$46,0)) ->  | BU12: =IFERROR(IF(AL12<>"",AL12,IF(State="TX",INDEX(TX_EFLHSanAntonio[[CFAir Cooled Chiller]:[CFPTRoom]],MATCH(Inventory!C12,TX_EFLHSanAntonio[Building Type],0),MATCH(BT12,EFLH!$N$2:$Q$2,0)),VLOOKUP(C12,INDIRECT($BX$5),4,FALSE))),"-") -> - | BV12: =IFERROR(IF(AJ12<>"",AJ12,IF(State="TX",INDEX(TX_EFLHSanAntonio[[EFLHcAir Cooled Chiller]:[EFLHcPTRoom]],MATCH(Inventory!C12,TX_EFLHSanAntonio[Building Type],0),MATCH(BT12,EFLH!$V$2:$Y$2,0)),VLOOKUP(C12,INDIRECT($BX$5),2,FALSE))),"-") -> - | BW12: =IFERROR(IF(AK12<>"",AK12,IF(State="TX",INDEX(TX_EFLHSanAntonio[[EFLHhDX]:[EFLHhPTRoom]],MATCH(Inventory!C12,TX_EFLHSanAntonio[Building Type],0),MATCH(BT12,EFLH!$Z$2:$AA$2,0)),VLOOKUP(C12,INDIRECT($BX$5),3,FALSE))),"-") -> - | BX12: =IF(AM12<>"",AM12,IF(State="TX",INDEX(TX_EFLHSanAntonio[[NCPAir Cooled Chiller]:[NCPPTRoom]],MATCH(Inventory!C12,TX_EFLHSanAntonio[Building Type],0),MATCH(BT12,EFLH!$R$2:$U$2,0)),0)) -> 0 | BY12: 1 | CC12: =IF(AG12<>"",AG12,IF(IFERROR(SEARCH("Terminal",P12,1)>0,FALSE),INDEX(INDIRECT(BS12),A12,MATCH(TRM,PTAC!$AC$9:$AE$9,0)),INDEX(INDIRECT(BS12),MATCH(TRM,BaselineRow,0),1))) ->  | CE12: =IF(AI12<>"",12/3.412/AI12,IF(IFERROR(SEARCH("Heat",P12,1)>0,FALSE),IF(IFERROR(SEARCH("Terminal",P12,1)>0,FALSE),INDEX(INDIRECT(BS12),A12,3+MATCH(TRM,PTAC!$AC$9:$AE$9,0)),INDEX(INDIRECT(BS12),MATCH(TRM,BaselineRow,0),3)),"")) ->  | CF12: =IF(AG12<>"",AG12,IF(IFERROR(SEARCH("Terminal",P12,1)>0,FALSE),INDEX(INDIRECT(BS12),A12,MATCH(TRM,PTAC!$AC$9:$AE$9,0)),INDEX(INDIRECT(BS12),MATCH(TRM,BaselineRow,0),1))) ->  | CH12: =IF(AI12<>"",12/3.412/AI12,IF(IFERROR(SEARCH("Heat",P12,1)>0,FALSE),IF(IFERROR(SEARCH("Terminal",P12,1)>0,FALSE),INDEX(INDIRECT(BS12),A12,3+MATCH(TRM,PTAC!$AC$9:$AE$9,0)),INDEX(INDIRECT(BS12),MATCH(TRM,BaselineRow,0),3)),"")) ->  | CO12: 0 | CX12: 0 | CY12: 0 | CZ12: 0 | DA12: 0 | DB12: =INDEX('Utility Admin'!$P$2:$AD$2,1,MATCH($P12,'Utility Admin'!$P$3:$AD$3,0)) ->  | DC12: =INDEX('Utility Admin'!AE$2:AS$2,1,MATCH($P12,'Utility Admin'!$P$3:$AD$3,0)) ->  | DD12: =IF(kWhOverride="",INDEX('Utility Admin'!$AT$2:$BH$2,1,MATCH($P12,'Utility Admin'!$P$3:$AD$3,0)),kWhOverride) ->  | DF12: =INDEX('Equipment Lookups'!$AF$5:$BS$46,MATCH(Inventory!BL12,'Equipment Lookups'!$J$5:$J$46,0),MATCH(Inventory!DE12,'Equipment Lookups'!$AF$4:$BS$4,0)) ->  | DG12: =INDEX('Equipment Lookups'!$AE$5:$AE$46,MATCH(Inventory!BR12,'Equipment Lookups'!$J$5:$J$46,0)) ->  | EA12: 0 | EB12: 0 | EC12: 0
A13: 6 | H13: =IFERROR(INDEX(DefaultUnits,MATCH(F13,EquipmentTypes,0),1),"") ->  | R13: =IFERROR(INDEX(DefaultUnits,MATCH(P13,EquipmentTypes,0),1),"") ->  | AC13: =IFERROR(INDEX(DefaultUnits,MATCH(P13,EquipmentTypes,0),3),"") ->  | AN13: 0 | AO13: 0 | AP13: 0 | AQ13: =IFERROR(IF($AR$3<'Utility Admin'!$I$2,AR13,'Utility Admin'!$I$2/Inventory!$AR$3*AR13),0) -> 0 | AR13: 0 | AS13: =IFERROR(ProjectCost-SUM(AS14:AS37),0) -> 0 | BA13: 0 | BB13: 0 | BC13: 0 | BD13: UNITS | BF13: 0 | BG13: =IF('Project Info'!$D$7="TX",INDEX(EFLH!$AB$4:$AB$30,MATCH(C13,TX_EFLHSanAntonio[Building Type],0),1),'Project Info'!$D$7&"EquipmentType") -> EquipmentType | BH13: 0 | BI13: 0 | BJ13: =IF(IFERROR(SEARCH("Terminal",F13,1)>0,FALSE),"",HLOOKUP(BI13,'Equipment Lookups'!$L$4:$AB$46,VLOOKUP(Inventory!BL13,'Equipment Lookups'!$J$5:$K$46,2,FALSE),TRUE)) ->  | BK13: =IF(L13="Unknown",YEAR(TODAY())-INDEX('Equipment Lookups'!$AC$5:$AC$38,MATCH(Inventory!BL13,'Equipment Lookups'!$J$5:$J$38,0)),L13) -> 0 | BN13: 0 | BO13: 0 | BP13: 0 | BQ13: =IF(IFERROR(SEARCH("Terminal",P13,1)>0,FALSE),"",HLOOKUP(BO13,'Equipment Lookups'!$L$4:$AB$46,VLOOKUP(Inventory!BR13,'Equipment Lookups'!$J$5:$K$46,2,FALSE),TRUE)) ->  | BT13: =INDEX('Equipment Lookups'!$AD$5:$AD$46,MATCH(Inventory!BR13,'Equipment Lookups'!$J$5:$J$46,0)) ->  | BU13: =IFERROR(IF(AL13<>"",AL13,IF(State="TX",INDEX(TX_EFLHSanAntonio[[CFAir Cooled Chiller]:[CFPTRoom]],MATCH(Inventory!C13,TX_EFLHSanAntonio[Building Type],0),MATCH(BT13,EFLH!$N$2:$Q$2,0)),VLOOKUP(C13,INDIRECT($BX$5),4,FALSE))),"-") -> - | BV13: =IFERROR(IF(AJ13<>"",AJ13,IF(State="TX",INDEX(TX_EFLHSanAntonio[[EFLHcAir Cooled Chiller]:[EFLHcPTRoom]],MATCH(Inventory!C13,TX_EFLHSanAntonio[Building Type],0),MATCH(BT13,EFLH!$V$2:$Y$2,0)),VLOOKUP(C13,INDIRECT($BX$5),2,FALSE))),"-") -> - | BW13: =IFERROR(IF(AK13<>"",AK13,IF(State="TX",INDEX(TX_EFLHSanAntonio[[EFLHhDX]:[EFLHhPTRoom]],MATCH(Inventory!C13,TX_EFLHSanAntonio[Building Type],0),MATCH(BT13,EFLH!$Z$2:$AA$2,0)),VLOOKUP(C13,INDIRECT($BX$5),3,FALSE))),"-") -> - | BX13: =IF(AM13<>"",AM13,IF(State="TX",INDEX(TX_EFLHSanAntonio[[NCPAir Cooled Chiller]:[NCPPTRoom]],MATCH(Inventory!C13,TX_EFLHSanAntonio[Building Type],0),MATCH(BT13,EFLH!$R$2:$U$2,0)),0)) -> 0 | BY13: 1 | CC13: =IF(AG13<>"",AG13,IF(IFERROR(SEARCH("Terminal",P13,1)>0,FALSE),INDEX(INDIRECT(BS13),A13,MATCH(TRM,PTAC!$AC$9:$AE$9,0)),INDEX(INDIRECT(BS13),MATCH(TRM,BaselineRow,0),1))) ->  | CE13: =IF(AI13<>"",12/3.412/AI13,IF(IFERROR(SEARCH("Heat",P13,1)>0,FALSE),IF(IFERROR(SEARCH("Terminal",P13,1)>0,FALSE),INDEX(INDIRECT(BS13),A13,3+MATCH(TRM,PTAC!$AC$9:$AE$9,0)),INDEX(INDIRECT(BS13),MATCH(TRM,BaselineRow,0),3)),"")) ->  | CF13: =IF(AG13<>"",AG13,IF(IFERROR(SEARCH("Terminal",P13,1)>0,FALSE),INDEX(INDIRECT(BS13),A13,MATCH(TRM,PTAC!$AC$9:$AE$9,0)),INDEX(INDIRECT(BS13),MATCH(TRM,BaselineRow,0),1))) ->  | CH13: =IF(AI13<>"",12/3.412/AI13,IF(IFERROR(SEARCH("Heat",P13,1)>0,FALSE),IF(IFERROR(SEARCH("Terminal",P13,1)>0,FALSE),INDEX(INDIRECT(BS13),A13,3+MATCH(TRM,PTAC!$AC$9:$AE$9,0)),INDEX(INDIRECT(BS13),MATCH(TRM,BaselineRow,0),3)),"")) ->  | CO13: 0 | CX13: 0 | CY13: 0 | CZ13: 0 | DA13: 0 | DB13: =INDEX('Utility Admin'!$P$2:$AD$2,1,MATCH($P13,'Utility Admin'!$P$3:$AD$3,0)) ->  | DC13: =INDEX('Utility Admin'!AE$2:AS$2,1,MATCH($P13,'Utility Admin'!$P$3:$AD$3,0)) ->  | DD13: =IF(kWhOverride="",INDEX('Utility Admin'!$AT$2:$BH$2,1,MATCH($P13,'Utility Admin'!$P$3:$AD$3,0)),kWhOverride) ->  | DF13: =INDEX('Equipment Lookups'!$AF$5:$BS$46,MATCH(Inventory!BL13,'Equipment Lookups'!$J$5:$J$46,0),MATCH(Inventory!DE13,'Equipment Lookups'!$AF$4:$BS$4,0)) ->  | DG13: =INDEX('Equipment Lookups'!$AE$5:$AE$46,MATCH(Inventory!BR13,'Equipment Lookups'!$J$5:$J$46,0)) ->  | EA13: 0 | EB13: 0 | EC13: 0
A14: 7 | H14: =IFERROR(INDEX(DefaultUnits,MATCH(F14,EquipmentTypes,0),1),"") ->  | R14: =IFERROR(INDEX(DefaultUnits,MATCH(P14,EquipmentTypes,0),1),"") ->  | AC14: =IFERROR(INDEX(DefaultUnits,MATCH(P14,EquipmentTypes,0),3),"") ->  | AN14: 0 | AO14: 0 | AP14: 0 | AQ14: =IFERROR(IF($AR$3<'Utility Admin'!$I$2,AR14,'Utility Admin'!$I$2/Inventory!$AR$3*AR14),0) -> 0 | AR14: 0 | AS14: =IFERROR(ProjectCost-SUM(AS15:AS38),0) -> 0 | BA14: 0 | BB14: 0 | BC14: 0 | BD14: UNITS | BF14: 0 | BG14: =IF('Project Info'!$D$7="TX",INDEX(EFLH!$AB$4:$AB$30,MATCH(C14,TX_EFLHSanAntonio[Building Type],0),1),'Project Info'!$D$7&"EquipmentType") -> EquipmentType | BH14: 0 | BI14: 0 | BJ14: =IF(IFERROR(SEARCH("Terminal",F14,1)>0,FALSE),"",HLOOKUP(BI14,'Equipment Lookups'!$L$4:$AB$46,VLOOKUP(Inventory!BL14,'Equipment Lookups'!$J$5:$K$46,2,FALSE),TRUE)) ->  | BK14: =IF(L14="Unknown",YEAR(TODAY())-INDEX('Equipment Lookups'!$AC$5:$AC$38,MATCH(Inventory!BL14,'Equipment Lookups'!$J$5:$J$38,0)),L14) -> 0 | BN14: 0 | BO14: 0 | BP14: 0 | BQ14: =IF(IFERROR(SEARCH("Terminal",P14,1)>0,FALSE),"",HLOOKUP(BO14,'Equipment Lookups'!$L$4:$AB$46,VLOOKUP(Inventory!BR14,'Equipment Lookups'!$J$5:$K$46,2,FALSE),TRUE)) ->  | BT14: =INDEX('Equipment Lookups'!$AD$5:$AD$46,MATCH(Inventory!BR14,'Equipment Lookups'!$J$5:$J$46,0)) ->  | BU14: =IFERROR(IF(AL14<>"",AL14,IF(State="TX",INDEX(TX_EFLHSanAntonio[[CFAir Cooled Chiller]:[CFPTRoom]],MATCH(Inventory!C14,TX_EFLHSanAntonio[Building Type],0),MATCH(BT14,EFLH!$N$2:$Q$2,0)),VLOOKUP(C14,INDIRECT($BX$5),4,FALSE))),"-") -> - | BV14: =IFERROR(IF(AJ14<>"",AJ14,IF(State="TX",INDEX(TX_EFLHSanAntonio[[EFLHcAir Cooled Chiller]:[EFLHcPTRoom]],MATCH(Inventory!C14,TX_EFLHSanAntonio[Building Type],0),MATCH(BT14,EFLH!$V$2:$Y$2,0)),VLOOKUP(C14,INDIRECT($BX$5),2,FALSE))),"-") -> - | BW14: =IFERROR(IF(AK14<>"",AK14,IF(State="TX",INDEX(TX_EFLHSanAntonio[[EFLHhDX]:[EFLHhPTRoom]],MATCH(Inventory!C14,TX_EFLHSanAntonio[Building Type],0),MATCH(BT14,EFLH!$Z$2:$AA$2,0)),VLOOKUP(C14,INDIRECT($BX$5),3,FALSE))),"-") -> - | BX14: =IF(AM14<>"",AM14,IF(State="TX",INDEX(TX_EFLHSanAntonio[[NCPAir Cooled Chiller]:[NCPPTRoom]],MATCH(Inventory!C14,TX_EFLHSanAntonio[Building Type],0),MATCH(BT14,EFLH!$R$2:$U$2,0)),0)) -> 0 | BY14: 1 | CC14: =IF(AG14<>"",AG14,IF(IFERROR(SEARCH("Terminal",P14,1)>0,FALSE),INDEX(INDIRECT(BS14),A14,MATCH(TRM,PTAC!$AC$9:$AE$9,0)),INDEX(INDIRECT(BS14),MATCH(TRM,BaselineRow,0),1))) ->  | CE14: =IF(AI14<>"",12/3.412/AI14,IF(IFERROR(SEARCH("Heat",P14,1)>0,FALSE),IF(IFERROR(SEARCH("Terminal",P14,1)>0,FALSE),INDEX(INDIRECT(BS14),A14,3+MATCH(TRM,PTAC!$AC$9:$AE$9,0)),INDEX(INDIRECT(BS14),MATCH(TRM,BaselineRow,0),3)),"")) ->  | CF14: =IF(AG14<>"",AG14,IF(IFERROR(SEARCH("Terminal",P14,1)>0,FALSE),INDEX(INDIRECT(BS14),A14,MATCH(TRM,PTAC!$AC$9:$AE$9,0)),INDEX(INDIRECT(BS14),MATCH(TRM,BaselineRow,0),1))) ->  | CH14: =IF(AI14<>"",12/3.412/AI14,IF(IFERROR(SEARCH("Heat",P14,1)>0,FALSE),IF(IFERROR(SEARCH("Terminal",P14,1)>0,FALSE),INDEX(INDIRECT(BS14),A14,3+MATCH(TRM,PTAC!$AC$9:$AE$9,0)),INDEX(INDIRECT(BS14),MATCH(TRM,BaselineRow,0),3)),"")) ->  | CO14: 0 | CX14: 0 | CY14: 0 | CZ14: 0 | DA14: 0 | DB14: =INDEX('Utility Admin'!$P$2:$AD$2,1,MATCH($P14,'Utility Admin'!$P$3:$AD$3,0)) ->  | DC14: =INDEX('Utility Admin'!AE$2:AS$2,1,MATCH($P14,'Utility Admin'!$P$3:$AD$3,0)) ->  | DD14: =IF(kWhOverride="",INDEX('Utility Admin'!$AT$2:$BH$2,1,MATCH($P14,'Utility Admin'!$P$3:$AD$3,0)),kWhOverride) ->  | DF14: =INDEX('Equipment Lookups'!$AF$5:$BS$46,MATCH(Inventory!BL14,'Equipment Lookups'!$J$5:$J$46,0),MATCH(Inventory!DE14,'Equipment Lookups'!$AF$4:$BS$4,0)) ->  | DG14: =INDEX('Equipment Lookups'!$AE$5:$AE$46,MATCH(Inventory!BR14,'Equipment Lookups'!$J$5:$J$46,0)) ->  | EA14: 0 | EB14: 0 | EC14: 0
A15: 8 | H15: =IFERROR(INDEX(DefaultUnits,MATCH(F15,EquipmentTypes,0),1),"") ->  | R15: =IFERROR(INDEX(DefaultUnits,MATCH(P15,EquipmentTypes,0),1),"") ->  | AC15: =IFERROR(INDEX(DefaultUnits,MATCH(P15,EquipmentTypes,0),3),"") ->  | AN15: 0 | AO15: 0 | AP15: 0 | AQ15: =IFERROR(IF($AR$3<'Utility Admin'!$I$2,AR15,'Utility Admin'!$I$2/Inventory!$AR$3*AR15),0) -> 0 | AR15: 0 | AS15: =IFERROR(ProjectCost-SUM(AS16:AS39),0) -> 0 | BA15: 0 | BB15: 0 | BC15: 0 | BD15: UNITS | BF15: 0 | BG15: =IF('Project Info'!$D$7="TX",INDEX(EFLH!$AB$4:$AB$30,MATCH(C15,TX_EFLHSanAntonio[Building Type],0),1),'Project Info'!$D$7&"EquipmentType") -> EquipmentType | BH15: 0 | BI15: 0 | BJ15: =IF(IFERROR(SEARCH("Terminal",F15,1)>0,FALSE),"",HLOOKUP(BI15,'Equipment Lookups'!$L$4:$AB$46,VLOOKUP(Inventory!BL15,'Equipment Lookups'!$J$5:$K$46,2,FALSE),TRUE)) ->  | BK15: =IF(L15="Unknown",YEAR(TODAY())-INDEX('Equipment Lookups'!$AC$5:$AC$38,MATCH(Inventory!BL15,'Equipment Lookups'!$J$5:$J$38,0)),L15) -> 0 | BN15: 0 | BO15: 0 | BP15: 0 | BQ15: =IF(IFERROR(SEARCH("Terminal",P15,1)>0,FALSE),"",HLOOKUP(BO15,'Equipment Lookups'!$L$4:$AB$46,VLOOKUP(Inventory!BR15,'Equipment Lookups'!$J$5:$K$46,2,FALSE),TRUE)) ->  | BT15: =INDEX('Equipment Lookups'!$AD$5:$AD$46,MATCH(Inventory!BR15,'Equipment Lookups'!$J$5:$J$46,0)) ->  | BU15: =IFERROR(IF(AL15<>"",AL15,IF(State="TX",INDEX(TX_EFLHSanAntonio[[CFAir Cooled Chiller]:[CFPTRoom]],MATCH(Inventory!C15,TX_EFLHSanAntonio[Building Type],0),MATCH(BT15,EFLH!$N$2:$Q$2,0)),VLOOKUP(C15,INDIRECT($BX$5),4,FALSE))),"-") -> - | BV15: =IFERROR(IF(AJ15<>"",AJ15,IF(State="TX",INDEX(TX_EFLHSanAntonio[[EFLHcAir Cooled Chiller]:[EFLHcPTRoom]],MATCH(Inventory!C15,TX_EFLHSanAntonio[Building Type],0),MATCH(BT15,EFLH!$V$2:$Y$2,0)),VLOOKUP(C15,INDIRECT($BX$5),2,FALSE))),"-") -> - | BW15: =IFERROR(IF(AK15<>"",AK15,IF(State="TX",INDEX(TX_EFLHSanAntonio[[EFLHhDX]:[EFLHhPTRoom]],MATCH(Inventory!C15,TX_EFLHSanAntonio[Building Type],0),MATCH(BT15,EFLH!$Z$2:$AA$2,0)),VLOOKUP(C15,INDIRECT($BX$5),3,FALSE))),"-") -> - | BX15: =IF(AM15<>"",AM15,IF(State="TX",INDEX(TX_EFLHSanAntonio[[NCPAir Cooled Chiller]:[NCPPTRoom]],MATCH(Inventory!C15,TX_EFLHSanAntonio[Building Type],0),MATCH(BT15,EFLH!$R$2:$U$2,0)),0)) -> 0 | BY15: 1 | CC15: =IF(AG15<>"",AG15,IF(IFERROR(SEARCH("Terminal",P15,1)>0,FALSE),INDEX(INDIRECT(BS15),A15,MATCH(TRM,PTAC!$AC$9:$AE$9,0)),INDEX(INDIRECT(BS15),MATCH(TRM,BaselineRow,0),1))) ->  | CE15: =IF(AI15<>"",12/3.412/AI15,IF(IFERROR(SEARCH("Heat",P15,1)>0,FALSE),IF(IFERROR(SEARCH("Terminal",P15,1)>0,FALSE),INDEX(INDIRECT(BS15),A15,3+MATCH(TRM,PTAC!$AC$9:$AE$9,0)),INDEX(INDIRECT(BS15),MATCH(TRM,BaselineRow,0),3)),"")) ->  | CF15: =IF(AG15<>"",AG15,IF(IFERROR(SEARCH("Terminal",P15,1)>0,FALSE),INDEX(INDIRECT(BS15),A15,MATCH(TRM,PTAC!$AC$9:$AE$9,0)),INDEX(INDIRECT(BS15),MATCH(TRM,BaselineRow,0),1))) ->  | CH15: =IF(AI15<>"",12/3.412/AI15,IF(IFERROR(SEARCH("Heat",P15,1)>0,FALSE),IF(IFERROR(SEARCH("Terminal",P15,1)>0,FALSE),INDEX(INDIRECT(BS15),A15,3+MATCH(TRM,PTAC!$AC$9:$AE$9,0)),INDEX(INDIRECT(BS15),MATCH(TRM,BaselineRow,0),3)),"")) ->  | CO15: 0 | CX15: 0 | CY15: 0 | CZ15: 0 | DA15: 0 | DB15: =INDEX('Utility Admin'!$P$2:$AD$2,1,MATCH($P15,'Utility Admin'!$P$3:$AD$3,0)) ->  | DC15: =INDEX('Utility Admin'!AE$2:AS$2,1,MATCH($P15,'Utility Admin'!$P$3:$AD$3,0)) ->  | DD15: =IF(kWhOverride="",INDEX('Utility Admin'!$AT$2:$BH$2,1,MATCH($P15,'Utility Admin'!$P$3:$AD$3,0)),kWhOverride) ->  | DF15: =INDEX('Equipment Lookups'!$AF$5:$BS$46,MATCH(Inventory!BL15,'Equipment Lookups'!$J$5:$J$46,0),MATCH(Inventory!DE15,'Equipment Lookups'!$AF$4:$BS$4,0)) ->  | DG15: =INDEX('Equipment Lookups'!$AE$5:$AE$46,MATCH(Inventory!BR15,'Equipment Lookups'!$J$5:$J$46,0)) ->  | EA15: 0 | EB15: 0 | EC15: 0
A16: 9 | H16: =IFERROR(INDEX(DefaultUnits,MATCH(F16,EquipmentTypes,0),1),"") ->  | R16: =IFERROR(INDEX(DefaultUnits,MATCH(P16,EquipmentTypes,0),1),"") ->  | AC16: =IFERROR(INDEX(DefaultUnits,MATCH(P16,EquipmentTypes,0),3),"") ->  | AN16: 0 | AO16: 0 | AP16: 0 | AQ16: =IFERROR(IF($AR$3<'Utility Admin'!$I$2,AR16,'Utility Admin'!$I$2/Inventory!$AR$3*AR16),0) -> 0 | AR16: 0 | AS16: =IFERROR(ProjectCost-SUM(AS17:AS40),0) -> 0 | BA16: 0 | BB16: 0 | BC16: 0 | BD16: UNITS | BF16: 0 | BG16: =IF('Project Info'!$D$7="TX",INDEX(EFLH!$AB$4:$AB$30,MATCH(C16,TX_EFLHSanAntonio[Building Type],0),1),'Project Info'!$D$7&"EquipmentType") -> EquipmentType | BH16: 0 | BI16: 0 | BJ16: =IF(IFERROR(SEARCH("Terminal",F16,1)>0,FALSE),"",HLOOKUP(BI16,'Equipment Lookups'!$L$4:$AB$46,VLOOKUP(Inventory!BL16,'Equipment Lookups'!$J$5:$K$46,2,FALSE),TRUE)) ->  | BK16: =IF(L16="Unknown",YEAR(TODAY())-INDEX('Equipment Lookups'!$AC$5:$AC$38,MATCH(Inventory!BL16,'Equipment Lookups'!$J$5:$J$38,0)),L16) -> 0 | BN16: 0 | BO16: 0 | BP16: 0 | BQ16: =IF(IFERROR(SEARCH("Terminal",P16,1)>0,FALSE),"",HLOOKUP(BO16,'Equipment Lookups'!$L$4:$AB$46,VLOOKUP(Inventory!BR16,'Equipment Lookups'!$J$5:$K$46,2,FALSE),TRUE)) ->  | BT16: =INDEX('Equipment Lookups'!$AD$5:$AD$46,MATCH(Inventory!BR16,'Equipment Lookups'!$J$5:$J$46,0)) ->  | BU16: =IFERROR(IF(AL16<>"",AL16,IF(State="TX",INDEX(TX_EFLHSanAntonio[[CFAir Cooled Chiller]:[CFPTRoom]],MATCH(Inventory!C16,TX_EFLHSanAntonio[Building Type],0),MATCH(BT16,EFLH!$N$2:$Q$2,0)),VLOOKUP(C16,INDIRECT($BX$5),4,FALSE))),"-") -> - | BV16: =IFERROR(IF(AJ16<>"",AJ16,IF(State="TX",INDEX(TX_EFLHSanAntonio[[EFLHcAir Cooled Chiller]:[EFLHcPTRoom]],MATCH(Inventory!C16,TX_EFLHSanAntonio[Building Type],0),MATCH(BT16,EFLH!$V$2:$Y$2,0)),VLOOKUP(C16,INDIRECT($BX$5),2,FALSE))),"-") -> - | BW16: =IFERROR(IF(AK16<>"",AK16,IF(State="TX",INDEX(TX_EFLHSanAntonio[[EFLHhDX]:[EFLHhPTRoom]],MATCH(Inventory!C16,TX_EFLHSanAntonio[Building Type],0),MATCH(BT16,EFLH!$Z$2:$AA$2,0)),VLOOKUP(C16,INDIRECT($BX$5),3,FALSE))),"-") -> - | BX16: =IF(AM16<>"",AM16,IF(State="TX",INDEX(TX_EFLHSanAntonio[[NCPAir Cooled Chiller]:[NCPPTRoom]],MATCH(Inventory!C16,TX_EFLHSanAntonio[Building Type],0),MATCH(BT16,EFLH!$R$2:$U$2,0)),0)) -> 0 | BY16: 1 | CC16: =IF(AG16<>"",AG16,IF(IFERROR(SEARCH("Terminal",P16,1)>0,FALSE),INDEX(INDIRECT(BS16),A16,MATCH(TRM,PTAC!$AC$9:$AE$9,0)),INDEX(INDIRECT(BS16),MATCH(TRM,BaselineRow,0),1))) ->  | CE16: =IF(AI16<>"",12/3.412/AI16,IF(IFERROR(SEARCH("Heat",P16,1)>0,FALSE),IF(IFERROR(SEARCH("Terminal",P16,1)>0,FALSE),INDEX(INDIRECT(BS16),A16,3+MATCH(TRM,PTAC!$AC$9:$AE$9,0)),INDEX(INDIRECT(BS16),MATCH(TRM,BaselineRow,0),3)),"")) ->  | CF16: =IF(AG16<>"",AG16,IF(IFERROR(SEARCH("Terminal",P16,1)>0,FALSE),INDEX(INDIRECT(BS16),A16,MATCH(TRM,PTAC!$AC$9:$AE$9,0)),INDEX(INDIRECT(BS16),MATCH(TRM,BaselineRow,0),1))) ->  | CH16: =IF(AI16<>"",12/3.412/AI16,IF(IFERROR(SEARCH("Heat",P16,1)>0,FALSE),IF(IFERROR(SEARCH("Terminal",P16,1)>0,FALSE),INDEX(INDIRECT(BS16),A16,3+MATCH(TRM,PTAC!$AC$9:$AE$9,0)),INDEX(INDIRECT(BS16),MATCH(TRM,BaselineRow,0),3)),"")) ->  | CO16: 0 | CX16: 0 | CY16: 0 | CZ16: 0 | DA16: 0 | DB16: =INDEX('Utility Admin'!$P$2:$AD$2,1,MATCH($P16,'Utility Admin'!$P$3:$AD$3,0)) ->  | DC16: =INDEX('Utility Admin'!AE$2:AS$2,1,MATCH($P16,'Utility Admin'!$P$3:$AD$3,0)) ->  | DD16: =IF(kWhOverride="",INDEX('Utility Admin'!$AT$2:$BH$2,1,MATCH($P16,'Utility Admin'!$P$3:$AD$3,0)),kWhOverride) ->  | DF16: =INDEX('Equipment Lookups'!$AF$5:$BS$46,MATCH(Inventory!BL16,'Equipment Lookups'!$J$5:$J$46,0),MATCH(Inventory!DE16,'Equipment Lookups'!$AF$4:$BS$4,0)) ->  | DG16: =INDEX('Equipment Lookups'!$AE$5:$AE$46,MATCH(Inventory!BR16,'Equipment Lookups'!$J$5:$J$46,0)) ->  | EA16: 0 | EB16: 0 | EC16: 0
A17: 10 | H17: =IFERROR(INDEX(DefaultUnits,MATCH(F17,EquipmentTypes,0),1),"") ->  | R17: =IFERROR(INDEX(DefaultUnits,MATCH(P17,EquipmentTypes,0),1),"") ->  | AC17: =IFERROR(INDEX(DefaultUnits,MATCH(P17,EquipmentTypes,0),3),"") ->  | AN17: 0 | AO17: 0 | AP17: 0 | AQ17: =IFERROR(IF($AR$3<'Utility Admin'!$I$2,AR17,'Utility Admin'!$I$2/Inventory!$AR$3*AR17),0) -> 0 | AR17: 0 | AS17: =IFERROR(ProjectCost-SUM(AS18:AS41),0) -> 0 | BA17: 0 | BB17: 0 | BC17: 0 | BD17: UNITS | BF17: 0 | BG17: =IF('Project Info'!$D$7="TX",INDEX(EFLH!$AB$4:$AB$30,MATCH(C17,TX_EFLHSanAntonio[Building Type],0),1),'Project Info'!$D$7&"EquipmentType") -> EquipmentType | BH17: 0 | BI17: 0 | BJ17: =IF(IFERROR(SEARCH("Terminal",F17,1)>0,FALSE),"",HLOOKUP(BI17,'Equipment Lookups'!$L$4:$AB$46,VLOOKUP(Inventory!BL17,'Equipment Lookups'!$J$5:$K$46,2,FALSE),TRUE)) ->  | BK17: =IF(L17="Unknown",YEAR(TODAY())-INDEX('Equipment Lookups'!$AC$5:$AC$38,MATCH(Inventory!BL17,'Equipment Lookups'!$J$5:$J$38,0)),L17) -> 0 | BN17: 0 | BO17: 0 | BP17: 0 | BQ17: =IF(IFERROR(SEARCH("Terminal",P17,1)>0,FALSE),"",HLOOKUP(BO17,'Equipment Lookups'!$L$4:$AB$46,VLOOKUP(Inventory!BR17,'Equipment Lookups'!$J$5:$K$46,2,FALSE),TRUE)) ->  | BT17: =INDEX('Equipment Lookups'!$AD$5:$AD$46,MATCH(Inventory!BR17,'Equipment Lookups'!$J$5:$J$46,0)) ->  | BU17: =IFERROR(IF(AL17<>"",AL17,IF(State="TX",INDEX(TX_EFLHSanAntonio[[CFAir Cooled Chiller]:[CFPTRoom]],MATCH(Inventory!C17,TX_EFLHSanAntonio[Building Type],0),MATCH(BT17,EFLH!$N$2:$Q$2,0)),VLOOKUP(C17,INDIRECT($BX$5),4,FALSE))),"-") -> - | BV17: =IFERROR(IF(AJ17<>"",AJ17,IF(State="TX",INDEX(TX_EFLHSanAntonio[[EFLHcAir Cooled Chiller]:[EFLHcPTRoom]],MATCH(Inventory!C17,TX_EFLHSanAntonio[Building Type],0),MATCH(BT17,EFLH!$V$2:$Y$2,0)),VLOOKUP(C17,INDIRECT($BX$5),2,FALSE))),"-") -> - | BW17: =IFERROR(IF(AK17<>"",AK17,IF(State="TX",INDEX(TX_EFLHSanAntonio[[EFLHhDX]:[EFLHhPTRoom]],MATCH(Inventory!C17,TX_EFLHSanAntonio[Building Type],0),MATCH(BT17,EFLH!$Z$2:$AA$2,0)),VLOOKUP(C17,INDIRECT($BX$5),3,FALSE))),"-") -> - | BX17: =IF(AM17<>"",AM17,IF(State="TX",INDEX(TX_EFLHSanAntonio[[NCPAir Cooled Chiller]:[NCPPTRoom]],MATCH(Inventory!C17,TX_EFLHSanAntonio[Building Type],0),MATCH(BT17,EFLH!$R$2:$U$2,0)),0)) -> 0 | BY17: 1 | CC17: =IF(AG17<>"",AG17,IF(IFERROR(SEARCH("Terminal",P17,1)>0,FALSE),INDEX(INDIRECT(BS17),A17,MATCH(TRM,PTAC!$AC$9:$AE$9,0)),INDEX(INDIRECT(BS17),MATCH(TRM,BaselineRow,0),1))) ->  | CE17: =IF(AI17<>"",12/3.412/AI17,IF(IFERROR(SEARCH("Heat",P17,1)>0,FALSE),IF(IFERROR(SEARCH("Terminal",P17,1)>0,FALSE),INDEX(INDIRECT(BS17),A17,3+MATCH(TRM,PTAC!$AC$9:$AE$9,0)),INDEX(INDIRECT(BS17),MATCH(TRM,BaselineRow,0),3)),"")) ->  | CF17: =IF(AG17<>"",AG17,IF(IFERROR(SEARCH("Terminal",P17,1)>0,FALSE),INDEX(INDIRECT(BS17),A17,MATCH(TRM,PTAC!$AC$9:$AE$9,0)),INDEX(INDIRECT(BS17),MATCH(TRM,BaselineRow,0),1))) ->  | CH17: =IF(AI17<>"",12/3.412/AI17,IF(IFERROR(SEARCH("Heat",P17,1)>0,FALSE),IF(IFERROR(SEARCH("Terminal",P17,1)>0,FALSE),INDEX(INDIRECT(BS17),A17,3+MATCH(TRM,PTAC!$AC$9:$AE$9,0)),INDEX(INDIRECT(BS17),MATCH(TRM,BaselineRow,0),3)),"")) ->  | CO17: 0 | CX17: 0 | CY17: 0 | CZ17: 0 | DA17: 0 | DB17: =INDEX('Utility Admin'!$P$2:$AD$2,1,MATCH($P17,'Utility Admin'!$P$3:$AD$3,0)) ->  | DC17: =INDEX('Utility Admin'!AE$2:AS$2,1,MATCH($P17,'Utility Admin'!$P$3:$AD$3,0)) ->  | DD17: =IF(kWhOverride="",INDEX('Utility Admin'!$AT$2:$BH$2,1,MATCH($P17,'Utility Admin'!$P$3:$AD$3,0)),kWhOverride) ->  | DF17: =INDEX('Equipment Lookups'!$AF$5:$BS$46,MATCH(Inventory!BL17,'Equipment Lookups'!$J$5:$J$46,0),MATCH(Inventory!DE17,'Equipment Lookups'!$AF$4:$BS$4,0)) ->  | DG17: =INDEX('Equipment Lookups'!$AE$5:$AE$46,MATCH(Inventory!BR17,'Equipment Lookups'!$J$5:$J$46,0)) ->  | EA17: 0 | EB17: 0 | EC17: 0
A18: 11 | H18: =IFERROR(INDEX(DefaultUnits,MATCH(F18,EquipmentTypes,0),1),"") ->  | R18: =IFERROR(INDEX(DefaultUnits,MATCH(P18,EquipmentTypes,0),1),"") ->  | AC18: =IFERROR(INDEX(DefaultUnits,MATCH(P18,EquipmentTypes,0),3),"") ->  | AN18: 0 | AO18: 0 | AP18: 0 | AQ18: =IFERROR(IF($AR$3<'Utility Admin'!$I$2,AR18,'Utility Admin'!$I$2/Inventory!$AR$3*AR18),0) -> 0 | AR18: 0 | AS18: =IFERROR(ProjectCost-SUM(AS19:AS42),0) -> 0 | BA18: 0 | BB18: 0 | BC18: 0 | BD18: UNITS | BF18: 0 | BG18: =IF('Project Info'!$D$7="TX",INDEX(EFLH!$AB$4:$AB$30,MATCH(C18,TX_EFLHSanAntonio[Building Type],0),1),'Project Info'!$D$7&"EquipmentType") -> EquipmentType | BH18: 0 | BI18: 0 | BJ18: =IF(IFERROR(SEARCH("Terminal",F18,1)>0,FALSE),"",HLOOKUP(BI18,'Equipment Lookups'!$L$4:$AB$46,VLOOKUP(Inventory!BL18,'Equipment Lookups'!$J$5:$K$46,2,FALSE),TRUE)) ->  | BK18: =IF(L18="Unknown",YEAR(TODAY())-INDEX('Equipment Lookups'!$AC$5:$AC$38,MATCH(Inventory!BL18,'Equipment Lookups'!$J$5:$J$38,0)),L18) -> 0 | BN18: 0 | BO18: 0 | BP18: 0 | BQ18: =IF(IFERROR(SEARCH("Terminal",P18,1)>0,FALSE),"",HLOOKUP(BO18,'Equipment Lookups'!$L$4:$AB$46,VLOOKUP(Inventory!BR18,'Equipment Lookups'!$J$5:$K$46,2,FALSE),TRUE)) ->  | BT18: =INDEX('Equipment Lookups'!$AD$5:$AD$46,MATCH(Inventory!BR18,'Equipment Lookups'!$J$5:$J$46,0)) ->  | BU18: =IFERROR(IF(AL18<>"",AL18,IF(State="TX",INDEX(TX_EFLHSanAntonio[[CFAir Cooled Chiller]:[CFPTRoom]],MATCH(Inventory!C18,TX_EFLHSanAntonio[Building Type],0),MATCH(BT18,EFLH!$N$2:$Q$2,0)),VLOOKUP(C18,INDIRECT($BX$5),4,FALSE))),"-") -> - | BV18: =IFERROR(IF(AJ18<>"",AJ18,IF(State="TX",INDEX(TX_EFLHSanAntonio[[EFLHcAir Cooled Chiller]:[EFLHcPTRoom]],MATCH(Inventory!C18,TX_EFLHSanAntonio[Building Type],0),MATCH(BT18,EFLH!$V$2:$Y$2,0)),VLOOKUP(C18,INDIRECT($BX$5),2,FALSE))),"-") -> - | BW18: =IFERROR(IF(AK18<>"",AK18,IF(State="TX",INDEX(TX_EFLHSanAntonio[[EFLHhDX]:[EFLHhPTRoom]],MATCH(Inventory!C18,TX_EFLHSanAntonio[Building Type],0),MATCH(BT18,EFLH!$Z$2:$AA$2,0)),VLOOKUP(C18,INDIRECT($BX$5),3,FALSE))),"-") -> - | BX18: =IF(AM18<>"",AM18,IF(State="TX",INDEX(TX_EFLHSanAntonio[[NCPAir Cooled Chiller]:[NCPPTRoom]],MATCH(Inventory!C18,TX_EFLHSanAntonio[Building Type],0),MATCH(BT18,EFLH!$R$2:$U$2,0)),0)) -> 0 | BY18: 1 | CC18: =IF(AG18<>"",AG18,IF(IFERROR(SEARCH("Terminal",P18,1)>0,FALSE),INDEX(INDIRECT(BS18),A18,MATCH(TRM,PTAC!$AC$9:$AE$9,0)),INDEX(INDIRECT(BS18),MATCH(TRM,BaselineRow,0),1))) ->  | CE18: =IF(AI18<>"",12/3.412/AI18,IF(IFERROR(SEARCH("Heat",P18,1)>0,FALSE),IF(IFERROR(SEARCH("Terminal",P18,1)>0,FALSE),INDEX(INDIRECT(BS18),A18,3+MATCH(TRM,PTAC!$AC$9:$AE$9,0)),INDEX(INDIRECT(BS18),MATCH(TRM,BaselineRow,0),3)),"")) ->  | CF18: =IF(AG18<>"",AG18,IF(IFERROR(SEARCH("Terminal",P18,1)>0,FALSE),INDEX(INDIRECT(BS18),A18,MATCH(TRM,PTAC!$AC$9:$AE$9,0)),INDEX(INDIRECT(BS18),MATCH(TRM,BaselineRow,0),1))) ->  | CH18: =IF(AI18<>"",12/3.412/AI18,IF(IFERROR(SEARCH("Heat",P18,1)>0,FALSE),IF(IFERROR(SEARCH("Terminal",P18,1)>0,FALSE),INDEX(INDIRECT(BS18),A18,3+MATCH(TRM,PTAC!$AC$9:$AE$9,0)),INDEX(INDIRECT(BS18),MATCH(TRM,BaselineRow,0),3)),"")) ->  | CO18: 0 | CX18: 0 | CY18: 0 | CZ18: 0 | DA18: 0 | DB18: =INDEX('Utility Admin'!$P$2:$AD$2,1,MATCH($P18,'Utility Admin'!$P$3:$AD$3,0)) ->  | DC18: =INDEX('Utility Admin'!AE$2:AS$2,1,MATCH($P18,'Utility Admin'!$P$3:$AD$3,0)) ->  | DD18: =IF(kWhOverride="",INDEX('Utility Admin'!$AT$2:$BH$2,1,MATCH($P18,'Utility Admin'!$P$3:$AD$3,0)),kWhOverride) ->  | DF18: =INDEX('Equipment Lookups'!$AF$5:$BS$46,MATCH(Inventory!BL18,'Equipment Lookups'!$J$5:$J$46,0),MATCH(Inventory!DE18,'Equipment Lookups'!$AF$4:$BS$4,0)) ->  | DG18: =INDEX('Equipment Lookups'!$AE$5:$AE$46,MATCH(Inventory!BR18,'Equipment Lookups'!$J$5:$J$46,0)) ->  | EA18: 0 | EB18: 0 | EC18: 0
A19: 12 | H19: =IFERROR(INDEX(DefaultUnits,MATCH(F19,EquipmentTypes,0),1),"") ->  | R19: =IFERROR(INDEX(DefaultUnits,MATCH(P19,EquipmentTypes,0),1),"") ->  | AC19: =IFERROR(INDEX(DefaultUnits,MATCH(P19,EquipmentTypes,0),3),"") ->  | AN19: 0 | AO19: 0 | AP19: 0 | AQ19: =IFERROR(IF($AR$3<'Utility Admin'!$I$2,AR19,'Utility Admin'!$I$2/Inventory!$AR$3*AR19),0) -> 0 | AR19: 0 | AS19: =IFERROR(ProjectCost-SUM(AS20:AS43),0) -> 0 | BA19: 0 | BB19: 0 | BC19: 0 | BD19: UNITS | BF19: 0 | BG19: =IF('Project Info'!$D$7="TX",INDEX(EFLH!$AB$4:$AB$30,MATCH(C19,TX_EFLHSanAntonio[Building Type],0),1),'Project Info'!$D$7&"EquipmentType") -> EquipmentType | BH19: 0 | BI19: 0 | BJ19: =IF(IFERROR(SEARCH("Terminal",F19,1)>0,FALSE),"",HLOOKUP(BI19,'Equipment Lookups'!$L$4:$AB$46,VLOOKUP(Inventory!BL19,'Equipment Lookups'!$J$5:$K$46,2,FALSE),TRUE)) ->  | BK19: =IF(L19="Unknown",YEAR(TODAY())-INDEX('Equipment Lookups'!$AC$5:$AC$38,MATCH(Inventory!BL19,'Equipment Lookups'!$J$5:$J$38,0)),L19) -> 0 | BN19: 0 | BO19: 0 | BP19: 0 | BQ19: =IF(IFERROR(SEARCH("Terminal",P19,1)>0,FALSE),"",HLOOKUP(BO19,'Equipment Lookups'!$L$4:$AB$46,VLOOKUP(Inventory!BR19,'Equipment Lookups'!$J$5:$K$46,2,FALSE),TRUE)) ->  | BT19: =INDEX('Equipment Lookups'!$AD$5:$AD$46,MATCH(Inventory!BR19,'Equipment Lookups'!$J$5:$J$46,0)) ->  | BU19: =IFERROR(IF(AL19<>"",AL19,IF(State="TX",INDEX(TX_EFLHSanAntonio[[CFAir Cooled Chiller]:[CFPTRoom]],MATCH(Inventory!C19,TX_EFLHSanAntonio[Building Type],0),MATCH(BT19,EFLH!$N$2:$Q$2,0)),VLOOKUP(C19,INDIRECT($BX$5),4,FALSE))),"-") -> - | BV19: =IFERROR(IF(AJ19<>"",AJ19,IF(State="TX",INDEX(TX_EFLHSanAntonio[[EFLHcAir Cooled Chiller]:[EFLHcPTRoom]],MATCH(Inventory!C19,TX_EFLHSanAntonio[Building Type],0),MATCH(BT19,EFLH!$V$2:$Y$2,0)),VLOOKUP(C19,INDIRECT($BX$5),2,FALSE))),"-") -> - | BW19: =IFERROR(IF(AK19<>"",AK19,IF(State="TX",INDEX(TX_EFLHSanAntonio[[EFLHhDX]:[EFLHhPTRoom]],MATCH(Inventory!C19,TX_EFLHSanAntonio[Building Type],0),MATCH(BT19,EFLH!$Z$2:$AA$2,0)),VLOOKUP(C19,INDIRECT($BX$5),3,FALSE))),"-") -> - | BX19: =IF(AM19<>"",AM19,IF(State="TX",INDEX(TX_EFLHSanAntonio[[NCPAir Cooled Chiller]:[NCPPTRoom]],MATCH(Inventory!C19,TX_EFLHSanAntonio[Building Type],0),MATCH(BT19,EFLH!$R$2:$U$2,0)),0)) -> 0 | BY19: 1 | CC19: =IF(AG19<>"",AG19,IF(IFERROR(SEARCH("Terminal",P19,1)>0,FALSE),INDEX(INDIRECT(BS19),A19,MATCH(TRM,PTAC!$AC$9:$AE$9,0)),INDEX(INDIRECT(BS19),MATCH(TRM,BaselineRow,0),1))) ->  | CE19: =IF(AI19<>"",12/3.412/AI19,IF(IFERROR(SEARCH("Heat",P19,1)>0,FALSE),IF(IFERROR(SEARCH("Terminal",P19,1)>0,FALSE),INDEX(INDIRECT(BS19),A19,3+MATCH(TRM,PTAC!$AC$9:$AE$9,0)),INDEX(INDIRECT(BS19),MATCH(TRM,BaselineRow,0),3)),"")) ->  | CF19: =IF(AG19<>"",AG19,IF(IFERROR(SEARCH("Terminal",P19,1)>0,FALSE),INDEX(INDIRECT(BS19),A19,MATCH(TRM,PTAC!$AC$9:$AE$9,0)),INDEX(INDIRECT(BS19),MATCH(TRM,BaselineRow,0),1))) ->  | CH19: =IF(AI19<>"",12/3.412/AI19,IF(IFERROR(SEARCH("Heat",P19,1)>0,FALSE),IF(IFERROR(SEARCH("Terminal",P19,1)>0,FALSE),INDEX(INDIRECT(BS19),A19,3+MATCH(TRM,PTAC!$AC$9:$AE$9,0)),INDEX(INDIRECT(BS19),MATCH(TRM,BaselineRow,0),3)),"")) ->  | CO19: 0 | CX19: 0 | CY19: 0 | CZ19: 0 | DA19: 0 | DB19: =INDEX('Utility Admin'!$P$2:$AD$2,1,MATCH($P19,'Utility Admin'!$P$3:$AD$3,0)) ->  | DC19: =INDEX('Utility Admin'!AE$2:AS$2,1,MATCH($P19,'Utility Admin'!$P$3:$AD$3,0)) ->  | DD19: =IF(kWhOverride="",INDEX('Utility Admin'!$AT$2:$BH$2,1,MATCH($P19,'Utility Admin'!$P$3:$AD$3,0)),kWhOverride) ->  | DF19: =INDEX('Equipment Lookups'!$AF$5:$BS$46,MATCH(Inventory!BL19,'Equipment Lookups'!$J$5:$J$46,0),MATCH(Inventory!DE19,'Equipment Lookups'!$AF$4:$BS$4,0)) ->  | DG19: =INDEX('Equipment Lookups'!$AE$5:$AE$46,MATCH(Inventory!BR19,'Equipment Lookups'!$J$5:$J$46,0)) ->  | EA19: 0 | EB19: 0 | EC19: 0
A20: 13 | H20: =IFERROR(INDEX(DefaultUnits,MATCH(F20,EquipmentTypes,0),1),"") ->  | R20: =IFERROR(INDEX(DefaultUnits,MATCH(P20,EquipmentTypes,0),1),"") ->  | AC20: =IFERROR(INDEX(DefaultUnits,MATCH(P20,EquipmentTypes,0),3),"") ->  | AN20: 0 | AO20: 0 | AP20: 0 | AQ20: =IFERROR(IF($AR$3<'Utility Admin'!$I$2,AR20,'Utility Admin'!$I$2/Inventory!$AR$3*AR20),0) -> 0 | AR20: 0 | AS20: =IFERROR(ProjectCost-SUM(AS21:AS44),0) -> 0 | BA20: 0 | BB20: 0 | BC20: 0 | BD20: UNITS | BF20: 0 | BG20: =IF('Project Info'!$D$7="TX",INDEX(EFLH!$AB$4:$AB$30,MATCH(C20,TX_EFLHSanAntonio[Building Type],0),1),'Project Info'!$D$7&"EquipmentType") -> EquipmentType | BH20: 0 | BI20: 0 | BJ20: =IF(IFERROR(SEARCH("Terminal",F20,1)>0,FALSE),"",HLOOKUP(BI20,'Equipment Lookups'!$L$4:$AB$46,VLOOKUP(Inventory!BL20,'Equipment Lookups'!$J$5:$K$46,2,FALSE),TRUE)) ->  | BK20: =IF(L20="Unknown",YEAR(TODAY())-INDEX('Equipment Lookups'!$AC$5:$AC$38,MATCH(Inventory!BL20,'Equipment Lookups'!$J$5:$J$38,0)),L20) -> 0 | BN20: 0 | BO20: 0 | BP20: 0 | BQ20: =IF(IFERROR(SEARCH("Terminal",P20,1)>0,FALSE),"",HLOOKUP(BO20,'Equipment Lookups'!$L$4:$AB$46,VLOOKUP(Inventory!BR20,'Equipment Lookups'!$J$5:$K$46,2,FALSE),TRUE)) ->  | BT20: =INDEX('Equipment Lookups'!$AD$5:$AD$46,MATCH(Inventory!BR20,'Equipment Lookups'!$J$5:$J$46,0)) ->  | BU20: =IFERROR(IF(AL20<>"",AL20,IF(State="TX",INDEX(TX_EFLHSanAntonio[[CFAir Cooled Chiller]:[CFPTRoom]],MATCH(Inventory!C20,TX_EFLHSanAntonio[Building Type],0),MATCH(BT20,EFLH!$N$2:$Q$2,0)),VLOOKUP(C20,INDIRECT($BX$5),4,FALSE))),"-") -> - | BV20: =IFERROR(IF(AJ20<>"",AJ20,IF(State="TX",INDEX(TX_EFLHSanAntonio[[EFLHcAir Cooled Chiller]:[EFLHcPTRoom]],MATCH(Inventory!C20,TX_EFLHSanAntonio[Building Type],0),MATCH(BT20,EFLH!$V$2:$Y$2,0)),VLOOKUP(C20,INDIRECT($BX$5),2,FALSE))),"-") -> - | BW20: =IFERROR(IF(AK20<>"",AK20,IF(State="TX",INDEX(TX_EFLHSanAntonio[[EFLHhDX]:[EFLHhPTRoom]],MATCH(Inventory!C20,TX_EFLHSanAntonio[Building Type],0),MATCH(BT20,EFLH!$Z$2:$AA$2,0)),VLOOKUP(C20,INDIRECT($BX$5),3,FALSE))),"-") -> - | BX20: =IF(AM20<>"",AM20,IF(State="TX",INDEX(TX_EFLHSanAntonio[[NCPAir Cooled Chiller]:[NCPPTRoom]],MATCH(Inventory!C20,TX_EFLHSanAntonio[Building Type],0),MATCH(BT20,EFLH!$R$2:$U$2,0)),0)) -> 0 | BY20: 1 | CC20: =IF(AG20<>"",AG20,IF(IFERROR(SEARCH("Terminal",P20,1)>0,FALSE),INDEX(INDIRECT(BS20),A20,MATCH(TRM,PTAC!$AC$9:$AE$9,0)),INDEX(INDIRECT(BS20),MATCH(TRM,BaselineRow,0),1))) ->  | CE20: =IF(AI20<>"",12/3.412/AI20,IF(IFERROR(SEARCH("Heat",P20,1)>0,FALSE),IF(IFERROR(SEARCH("Terminal",P20,1)>0,FALSE),INDEX(INDIRECT(BS20),A20,3+MATCH(TRM,PTAC!$AC$9:$AE$9,0)),INDEX(INDIRECT(BS20),MATCH(TRM,BaselineRow,0),3)),"")) ->  | CF20: =IF(AG20<>"",AG20,IF(IFERROR(SEARCH("Terminal",P20,1)>0,FALSE),INDEX(INDIRECT(BS20),A20,MATCH(TRM,PTAC!$AC$9:$AE$9,0)),INDEX(INDIRECT(BS20),MATCH(TRM,BaselineRow,0),1))) ->  | CH20: =IF(AI20<>"",12/3.412/AI20,IF(IFERROR(SEARCH("Heat",P20,1)>0,FALSE),IF(IFERROR(SEARCH("Terminal",P20,1)>0,FALSE),INDEX(INDIRECT(BS20),A20,3+MATCH(TRM,PTAC!$AC$9:$AE$9,0)),INDEX(INDIRECT(BS20),MATCH(TRM,BaselineRow,0),3)),"")) ->  | CO20: 0 | CX20: 0 | CY20: 0 | CZ20: 0 | DA20: 0 | DB20: =INDEX('Utility Admin'!$P$2:$AD$2,1,MATCH($P20,'Utility Admin'!$P$3:$AD$3,0)) ->  | DC20: =INDEX('Utility Admin'!AE$2:AS$2,1,MATCH($P20,'Utility Admin'!$P$3:$AD$3,0)) ->  | DD20: =IF(kWhOverride="",INDEX('Utility Admin'!$AT$2:$BH$2,1,MATCH($P20,'Utility Admin'!$P$3:$AD$3,0)),kWhOverride) ->  | DF20: =INDEX('Equipment Lookups'!$AF$5:$BS$46,MATCH(Inventory!BL20,'Equipment Lookups'!$J$5:$J$46,0),MATCH(Inventory!DE20,'Equipment Lookups'!$AF$4:$BS$4,0)) ->  | DG20: =INDEX('Equipment Lookups'!$AE$5:$AE$46,MATCH(Inventory!BR20,'Equipment Lookups'!$J$5:$J$46,0)) ->  | EA20: 0 | EB20: 0 | EC20: 0
A21: 14 | H21: =IFERROR(INDEX(DefaultUnits,MATCH(F21,EquipmentTypes,0),1),"") ->  | R21: =IFERROR(INDEX(DefaultUnits,MATCH(P21,EquipmentTypes,0),1),"") ->  | AC21: =IFERROR(INDEX(DefaultUnits,MATCH(P21,EquipmentTypes,0),3),"") ->  | AN21: 0 | AO21: 0 | AP21: 0 | AQ21: =IFERROR(IF($AR$3<'Utility Admin'!$I$2,AR21,'Utility Admin'!$I$2/Inventory!$AR$3*AR21),0) -> 0 | AR21: 0 | AS21: =IFERROR(ProjectCost-SUM(AS22:AS45),0) -> 0 | BA21: 0 | BB21: 0 | BC21: 0 | BD21: UNITS | BF21: 0 | BG21: =IF('Project Info'!$D$7="TX",INDEX(EFLH!$AB$4:$AB$30,MATCH(C21,TX_EFLHSanAntonio[Building Type],0),1),'Project Info'!$D$7&"EquipmentType") -> EquipmentType | BH21: 0 | BI21: 0 | BJ21: =IF(IFERROR(SEARCH("Terminal",F21,1)>0,FALSE),"",HLOOKUP(BI21,'Equipment Lookups'!$L$4:$AB$46,VLOOKUP(Inventory!BL21,'Equipment Lookups'!$J$5:$K$46,2,FALSE),TRUE)) ->  | BK21: =IF(L21="Unknown",YEAR(TODAY())-INDEX('Equipment Lookups'!$AC$5:$AC$38,MATCH(Inventory!BL21,'Equipment Lookups'!$J$5:$J$38,0)),L21) -> 0 | BN21: 0 | BO21: 0 | BP21: 0 | BQ21: =IF(IFERROR(SEARCH("Terminal",P21,1)>0,FALSE),"",HLOOKUP(BO21,'Equipment Lookups'!$L$4:$AB$46,VLOOKUP(Inventory!BR21,'Equipment Lookups'!$J$5:$K$46,2,FALSE),TRUE)) ->  | BT21: =INDEX('Equipment Lookups'!$AD$5:$AD$46,MATCH(Inventory!BR21,'Equipment Lookups'!$J$5:$J$46,0)) ->  | BU21: =IFERROR(IF(AL21<>"",AL21,IF(State="TX",INDEX(TX_EFLHSanAntonio[[CFAir Cooled Chiller]:[CFPTRoom]],MATCH(Inventory!C21,TX_EFLHSanAntonio[Building Type],0),MATCH(BT21,EFLH!$N$2:$Q$2,0)),VLOOKUP(C21,INDIRECT($BX$5),4,FALSE))),"-") -> - | BV21: =IFERROR(IF(AJ21<>"",AJ21,IF(State="TX",INDEX(TX_EFLHSanAntonio[[EFLHcAir Cooled Chiller]:[EFLHcPTRoom]],MATCH(Inventory!C21,TX_EFLHSanAntonio[Building Type],0),MATCH(BT21,EFLH!$V$2:$Y$2,0)),VLOOKUP(C21,INDIRECT($BX$5),2,FALSE))),"-") -> - | BW21: =IFERROR(IF(AK21<>"",AK21,IF(State="TX",INDEX(TX_EFLHSanAntonio[[EFLHhDX]:[EFLHhPTRoom]],MATCH(Inventory!C21,TX_EFLHSanAntonio[Building Type],0),MATCH(BT21,EFLH!$Z$2:$AA$2,0)),VLOOKUP(C21,INDIRECT($BX$5),3,FALSE))),"-") -> - | BX21: =IF(AM21<>"",AM21,IF(State="TX",INDEX(TX_EFLHSanAntonio[[NCPAir Cooled Chiller]:[NCPPTRoom]],MATCH(Inventory!C21,TX_EFLHSanAntonio[Building Type],0),MATCH(BT21,EFLH!$R$2:$U$2,0)),0)) -> 0 | BY21: 1 | CC21: =IF(AG21<>"",AG21,IF(IFERROR(SEARCH("Terminal",P21,1)>0,FALSE),INDEX(INDIRECT(BS21),A21,MATCH(TRM,PTAC!$AC$9:$AE$9,0)),INDEX(INDIRECT(BS21),MATCH(TRM,BaselineRow,0),1))) ->  | CE21: =IF(AI21<>"",12/3.412/AI21,IF(IFERROR(SEARCH("Heat",P21,1)>0,FALSE),IF(IFERROR(SEARCH("Terminal",P21,1)>0,FALSE),INDEX(INDIRECT(BS21),A21,3+MATCH(TRM,PTAC!$AC$9:$AE$9,0)),INDEX(INDIRECT(BS21),MATCH(TRM,BaselineRow,0),3)),"")) ->  | CF21: =IF(AG21<>"",AG21,IF(IFERROR(SEARCH("Terminal",P21,1)>0,FALSE),INDEX(INDIRECT(BS21),A21,MATCH(TRM,PTAC!$AC$9:$AE$9,0)),INDEX(INDIRECT(BS21),MATCH(TRM,BaselineRow,0),1))) ->  | CH21: =IF(AI21<>"",12/3.412/AI21,IF(IFERROR(SEARCH("Heat",P21,1)>0,FALSE),IF(IFERROR(SEARCH("Terminal",P21,1)>0,FALSE),INDEX(INDIRECT(BS21),A21,3+MATCH(TRM,PTAC!$AC$9:$AE$9,0)),INDEX(INDIRECT(BS21),MATCH(TRM,BaselineRow,0),3)),"")) ->  | CO21: 0 | CX21: 0 | CY21: 0 | CZ21: 0 | DA21: 0 | DB21: =INDEX('Utility Admin'!$P$2:$AD$2,1,MATCH($P21,'Utility Admin'!$P$3:$AD$3,0)) ->  | DC21: =INDEX('Utility Admin'!AE$2:AS$2,1,MATCH($P21,'Utility Admin'!$P$3:$AD$3,0)) ->  | DD21: =IF(kWhOverride="",INDEX('Utility Admin'!$AT$2:$BH$2,1,MATCH($P21,'Utility Admin'!$P$3:$AD$3,0)),kWhOverride) ->  | DF21: =INDEX('Equipment Lookups'!$AF$5:$BS$46,MATCH(Inventory!BL21,'Equipment Lookups'!$J$5:$J$46,0),MATCH(Inventory!DE21,'Equipment Lookups'!$AF$4:$BS$4,0)) ->  | DG21: =INDEX('Equipment Lookups'!$AE$5:$AE$46,MATCH(Inventory!BR21,'Equipment Lookups'!$J$5:$J$46,0)) ->  | EA21: 0 | EB21: 0 | EC21: 0
A22: 15 | H22: =IFERROR(INDEX(DefaultUnits,MATCH(F22,EquipmentTypes,0),1),"") ->  | R22: =IFERROR(INDEX(DefaultUnits,MATCH(P22,EquipmentTypes,0),1),"") ->  | AC22: =IFERROR(INDEX(DefaultUnits,MATCH(P22,EquipmentTypes,0),3),"") ->  | AN22: 0 | AO22: 0 | AP22: 0 | AQ22: =IFERROR(IF($AR$3<'Utility Admin'!$I$2,AR22,'Utility Admin'!$I$2/Inventory!$AR$3*AR22),0) -> 0 | AR22: 0 | AS22: =IFERROR(ProjectCost-SUM(AS23:AS46),0) -> 0 | BA22: 0 | BB22: 0 | BC22: 0 | BD22: UNITS | BF22: 0 | BG22: =IF('Project Info'!$D$7="TX",INDEX(EFLH!$AB$4:$AB$30,MATCH(C22,TX_EFLHSanAntonio[Building Type],0),1),'Project Info'!$D$7&"EquipmentType") -> EquipmentType | BH22: 0 | BI22: 0 | BJ22: =IF(IFERROR(SEARCH("Terminal",F22,1)>0,FALSE),"",HLOOKUP(BI22,'Equipment Lookups'!$L$4:$AB$46,VLOOKUP(Inventory!BL22,'Equipment Lookups'!$J$5:$K$46,2,FALSE),TRUE)) ->  | BK22: =IF(L22="Unknown",YEAR(TODAY())-INDEX('Equipment Lookups'!$AC$5:$AC$38,MATCH(Inventory!BL22,'Equipment Lookups'!$J$5:$J$38,0)),L22) -> 0 | BN22: 0 | BO22: 0 | BP22: 0 | BQ22: =IF(IFERROR(SEARCH("Terminal",P22,1)>0,FALSE),"",HLOOKUP(BO22,'Equipment Lookups'!$L$4:$AB$46,VLOOKUP(Inventory!BR22,'Equipment Lookups'!$J$5:$K$46,2,FALSE),TRUE)) ->  | BT22: =INDEX('Equipment Lookups'!$AD$5:$AD$46,MATCH(Inventory!BR22,'Equipment Lookups'!$J$5:$J$46,0)) ->  | BU22: =IFERROR(IF(AL22<>"",AL22,IF(State="TX",INDEX(TX_EFLHSanAntonio[[CFAir Cooled Chiller]:[CFPTRoom]],MATCH(Inventory!C22,TX_EFLHSanAntonio[Building Type],0),MATCH(BT22,EFLH!$N$2:$Q$2,0)),VLOOKUP(C22,INDIRECT($BX$5),4,FALSE))),"-") -> - | BV22: =IFERROR(IF(AJ22<>"",AJ22,IF(State="TX",INDEX(TX_EFLHSanAntonio[[EFLHcAir Cooled Chiller]:[EFLHcPTRoom]],MATCH(Inventory!C22,TX_EFLHSanAntonio[Building Type],0),MATCH(BT22,EFLH!$V$2:$Y$2,0)),VLOOKUP(C22,INDIRECT($BX$5),2,FALSE))),"-") -> - | BW22: =IFERROR(IF(AK22<>"",AK22,IF(State="TX",INDEX(TX_EFLHSanAntonio[[EFLHhDX]:[EFLHhPTRoom]],MATCH(Inventory!C22,TX_EFLHSanAntonio[Building Type],0),MATCH(BT22,EFLH!$Z$2:$AA$2,0)),VLOOKUP(C22,INDIRECT($BX$5),3,FALSE))),"-") -> - | BX22: =IF(AM22<>"",AM22,IF(State="TX",INDEX(TX_EFLHSanAntonio[[NCPAir Cooled Chiller]:[NCPPTRoom]],MATCH(Inventory!C22,TX_EFLHSanAntonio[Building Type],0),MATCH(BT22,EFLH!$R$2:$U$2,0)),0)) -> 0 | BY22: 1 | CC22: =IF(AG22<>"",AG22,IF(IFERROR(SEARCH("Terminal",P22,1)>0,FALSE),INDEX(INDIRECT(BS22),A22,MATCH(TRM,PTAC!$AC$9:$AE$9,0)),INDEX(INDIRECT(BS22),MATCH(TRM,BaselineRow,0),1))) ->  | CE22: =IF(AI22<>"",12/3.412/AI22,IF(IFERROR(SEARCH("Heat",P22,1)>0,FALSE),IF(IFERROR(SEARCH("Terminal",P22,1)>0,FALSE),INDEX(INDIRECT(BS22),A22,3+MATCH(TRM,PTAC!$AC$9:$AE$9,0)),INDEX(INDIRECT(BS22),MATCH(TRM,BaselineRow,0),3)),"")) ->  | CF22: =IF(AG22<>"",AG22,IF(IFERROR(SEARCH("Terminal",P22,1)>0,FALSE),INDEX(INDIRECT(BS22),A22,MATCH(TRM,PTAC!$AC$9:$AE$9,0)),INDEX(INDIRECT(BS22),MATCH(TRM,BaselineRow,0),1))) ->  | CH22: =IF(AI22<>"",12/3.412/AI22,IF(IFERROR(SEARCH("Heat",P22,1)>0,FALSE),IF(IFERROR(SEARCH("Terminal",P22,1)>0,FALSE),INDEX(INDIRECT(BS22),A22,3+MATCH(TRM,PTAC!$AC$9:$AE$9,0)),INDEX(INDIRECT(BS22),MATCH(TRM,BaselineRow,0),3)),"")) ->  | CO22: 0 | CX22: 0 | CY22: 0 | CZ22: 0 | DA22: 0 | DB22: =INDEX('Utility Admin'!$P$2:$AD$2,1,MATCH($P22,'Utility Admin'!$P$3:$AD$3,0)) ->  | DC22: =INDEX('Utility Admin'!AE$2:AS$2,1,MATCH($P22,'Utility Admin'!$P$3:$AD$3,0)) ->  | DD22: =IF(kWhOverride="",INDEX('Utility Admin'!$AT$2:$BH$2,1,MATCH($P22,'Utility Admin'!$P$3:$AD$3,0)),kWhOverride) ->  | DF22: =INDEX('Equipment Lookups'!$AF$5:$BS$46,MATCH(Inventory!BL22,'Equipment Lookups'!$J$5:$J$46,0),MATCH(Inventory!DE22,'Equipment Lookups'!$AF$4:$BS$4,0)) ->  | DG22: =INDEX('Equipment Lookups'!$AE$5:$AE$46,MATCH(Inventory!BR22,'Equipment Lookups'!$J$5:$J$46,0)) ->  | EA22: 0 | EB22: 0 | EC22: 0
A23: 16 | H23: =IFERROR(INDEX(DefaultUnits,MATCH(F23,EquipmentTypes,0),1),"") ->  | R23: =IFERROR(INDEX(DefaultUnits,MATCH(P23,EquipmentTypes,0),1),"") ->  | AC23: =IFERROR(INDEX(DefaultUnits,MATCH(P23,EquipmentTypes,0),3),"") ->  | AN23: 0 | AO23: 0 | AP23: 0 | AQ23: =IFERROR(IF($AR$3<'Utility Admin'!$I$2,AR23,'Utility Admin'!$I$2/Inventory!$AR$3*AR23),0) -> 0 | AR23: 0 | AS23: =IFERROR(ProjectCost-SUM(AS24:AS47),0) -> 0 | BA23: 0 | BB23: 0 | BC23: 0 | BD23: UNITS | BF23: 0 | BG23: =IF('Project Info'!$D$7="TX",INDEX(EFLH!$AB$4:$AB$30,MATCH(C23,TX_EFLHSanAntonio[Building Type],0),1),'Project Info'!$D$7&"EquipmentType") -> EquipmentType | BH23: 0 | BI23: 0 | BJ23: =IF(IFERROR(SEARCH("Terminal",F23,1)>0,FALSE),"",HLOOKUP(BI23,'Equipment Lookups'!$L$4:$AB$46,VLOOKUP(Inventory!BL23,'Equipment Lookups'!$J$5:$K$46,2,FALSE),TRUE)) ->  | BK23: =IF(L23="Unknown",YEAR(TODAY())-INDEX('Equipment Lookups'!$AC$5:$AC$38,MATCH(Inventory!BL23,'Equipment Lookups'!$J$5:$J$38,0)),L23) -> 0 | BN23: 0 | BO23: 0 | BP23: 0 | BQ23: =IF(IFERROR(SEARCH("Terminal",P23,1)>0,FALSE),"",HLOOKUP(BO23,'Equipment Lookups'!$L$4:$AB$46,VLOOKUP(Inventory!BR23,'Equipment Lookups'!$J$5:$K$46,2,FALSE),TRUE)) ->  | BT23: =INDEX('Equipment Lookups'!$AD$5:$AD$46,MATCH(Inventory!BR23,'Equipment Lookups'!$J$5:$J$46,0)) ->  | BU23: =IFERROR(IF(AL23<>"",AL23,IF(State="TX",INDEX(TX_EFLHSanAntonio[[CFAir Cooled Chiller]:[CFPTRoom]],MATCH(Inventory!C23,TX_EFLHSanAntonio[Building Type],0),MATCH(BT23,EFLH!$N$2:$Q$2,0)),VLOOKUP(C23,INDIRECT($BX$5),4,FALSE))),"-") -> - | BV23: =IFERROR(IF(AJ23<>"",AJ23,IF(State="TX",INDEX(TX_EFLHSanAntonio[[EFLHcAir Cooled Chiller]:[EFLHcPTRoom]],MATCH(Inventory!C23,TX_EFLHSanAntonio[Building Type],0),MATCH(BT23,EFLH!$V$2:$Y$2,0)),VLOOKUP(C23,INDIRECT($BX$5),2,FALSE))),"-") -> - | BW23: =IFERROR(IF(AK23<>"",AK23,IF(State="TX",INDEX(TX_EFLHSanAntonio[[EFLHhDX]:[EFLHhPTRoom]],MATCH(Inventory!C23,TX_EFLHSanAntonio[Building Type],0),MATCH(BT23,EFLH!$Z$2:$AA$2,0)),VLOOKUP(C23,INDIRECT($BX$5),3,FALSE))),"-") -> - | BX23: =IF(AM23<>"",AM23,IF(State="TX",INDEX(TX_EFLHSanAntonio[[NCPAir Cooled Chiller]:[NCPPTRoom]],MATCH(Inventory!C23,TX_EFLHSanAntonio[Building Type],0),MATCH(BT23,EFLH!$R$2:$U$2,0)),0)) -> 0 | BY23: 1 | CC23: =IF(AG23<>"",AG23,IF(IFERROR(SEARCH("Terminal",P23,1)>0,FALSE),INDEX(INDIRECT(BS23),A23,MATCH(TRM,PTAC!$AC$9:$AE$9,0)),INDEX(INDIRECT(BS23),MATCH(TRM,BaselineRow,0),1))) ->  | CE23: =IF(AI23<>"",12/3.412/AI23,IF(IFERROR(SEARCH("Heat",P23,1)>0,FALSE),IF(IFERROR(SEARCH("Terminal",P23,1)>0,FALSE),INDEX(INDIRECT(BS23),A23,3+MATCH(TRM,PTAC!$AC$9:$AE$9,0)),INDEX(INDIRECT(BS23),MATCH(TRM,BaselineRow,0),3)),"")) ->  | CF23: =IF(AG23<>"",AG23,IF(IFERROR(SEARCH("Terminal",P23,1)>0,FALSE),INDEX(INDIRECT(BS23),A23,MATCH(TRM,PTAC!$AC$9:$AE$9,0)),INDEX(INDIRECT(BS23),MATCH(TRM,BaselineRow,0),1))) ->  | CH23: =IF(AI23<>"",12/3.412/AI23,IF(IFERROR(SEARCH("Heat",P23,1)>0,FALSE),IF(IFERROR(SEARCH("Terminal",P23,1)>0,FALSE),INDEX(INDIRECT(BS23),A23,3+MATCH(TRM,PTAC!$AC$9:$AE$9,0)),INDEX(INDIRECT(BS23),MATCH(TRM,BaselineRow,0),3)),"")) ->  | CO23: 0 | CX23: 0 | CY23: 0 | CZ23: 0 | DA23: 0 | DB23: =INDEX('Utility Admin'!$P$2:$AD$2,1,MATCH($P23,'Utility Admin'!$P$3:$AD$3,0)) ->  | DC23: =INDEX('Utility Admin'!AE$2:AS$2,1,MATCH($P23,'Utility Admin'!$P$3:$AD$3,0)) ->  | DD23: =IF(kWhOverride="",INDEX('Utility Admin'!$AT$2:$BH$2,1,MATCH($P23,'Utility Admin'!$P$3:$AD$3,0)),kWhOverride) ->  | DF23: =INDEX('Equipment Lookups'!$AF$5:$BS$46,MATCH(Inventory!BL23,'Equipment Lookups'!$J$5:$J$46,0),MATCH(Inventory!DE23,'Equipment Lookups'!$AF$4:$BS$4,0)) ->  | DG23: =INDEX('Equipment Lookups'!$AE$5:$AE$46,MATCH(Inventory!BR23,'Equipment Lookups'!$J$5:$J$46,0)) ->  | EA23: 0 | EB23: 0 | EC23: 0
A24: 17 | H24: =IFERROR(INDEX(DefaultUnits,MATCH(F24,EquipmentTypes,0),1),"") ->  | R24: =IFERROR(INDEX(DefaultUnits,MATCH(P24,EquipmentTypes,0),1),"") ->  | AC24: =IFERROR(INDEX(DefaultUnits,MATCH(P24,EquipmentTypes,0),3),"") ->  | AN24: 0 | AO24: 0 | AP24: 0 | AQ24: =IFERROR(IF($AR$3<'Utility Admin'!$I$2,AR24,'Utility Admin'!$I$2/Inventory!$AR$3*AR24),0) -> 0 | AR24: 0 | AS24: =IFERROR(ProjectCost-SUM(AS25:AS48),0) -> 0 | BA24: 0 | BB24: 0 | BC24: 0 | BD24: UNITS | BF24: 0 | BG24: =IF('Project Info'!$D$7="TX",INDEX(EFLH!$AB$4:$AB$30,MATCH(C24,TX_EFLHSanAntonio[Building Type],0),1),'Project Info'!$D$7&"EquipmentType") -> EquipmentType | BH24: 0 | BI24: 0 | BJ24: =IF(IFERROR(SEARCH("Terminal",F24,1)>0,FALSE),"",HLOOKUP(BI24,'Equipment Lookups'!$L$4:$AB$46,VLOOKUP(Inventory!BL24,'Equipment Lookups'!$J$5:$K$46,2,FALSE),TRUE)) ->  | BK24: =IF(L24="Unknown",YEAR(TODAY())-INDEX('Equipment Lookups'!$AC$5:$AC$38,MATCH(Inventory!BL24,'Equipment Lookups'!$J$5:$J$38,0)),L24) -> 0 | BN24: 0 | BO24: 0 | BP24: 0 | BQ24: =IF(IFERROR(SEARCH("Terminal",P24,1)>0,FALSE),"",HLOOKUP(BO24,'Equipment Lookups'!$L$4:$AB$46,VLOOKUP(Inventory!BR24,'Equipment Lookups'!$J$5:$K$46,2,FALSE),TRUE)) ->  | BT24: =INDEX('Equipment Lookups'!$AD$5:$AD$46,MATCH(Inventory!BR24,'Equipment Lookups'!$J$5:$J$46,0)) ->  | BU24: =IFERROR(IF(AL24<>"",AL24,IF(State="TX",INDEX(TX_EFLHSanAntonio[[CFAir Cooled Chiller]:[CFPTRoom]],MATCH(Inventory!C24,TX_EFLHSanAntonio[Building Type],0),MATCH(BT24,EFLH!$N$2:$Q$2,0)),VLOOKUP(C24,INDIRECT($BX$5),4,FALSE))),"-") -> - | BV24: =IFERROR(IF(AJ24<>"",AJ24,IF(State="TX",INDEX(TX_EFLHSanAntonio[[EFLHcAir Cooled Chiller]:[EFLHcPTRoom]],MATCH(Inventory!C24,TX_EFLHSanAntonio[Building Type],0),MATCH(BT24,EFLH!$V$2:$Y$2,0)),VLOOKUP(C24,INDIRECT($BX$5),2,FALSE))),"-") -> - | BW24: =IFERROR(IF(AK24<>"",AK24,IF(State="TX",INDEX(TX_EFLHSanAntonio[[EFLHhDX]:[EFLHhPTRoom]],MATCH(Inventory!C24,TX_EFLHSanAntonio[Building Type],0),MATCH(BT24,EFLH!$Z$2:$AA$2,0)),VLOOKUP(C24,INDIRECT($BX$5),3,FALSE))),"-") -> - | BX24: =IF(AM24<>"",AM24,IF(State="TX",INDEX(TX_EFLHSanAntonio[[NCPAir Cooled Chiller]:[NCPPTRoom]],MATCH(Inventory!C24,TX_EFLHSanAntonio[Building Type],0),MATCH(BT24,EFLH!$R$2:$U$2,0)),0)) -> 0 | BY24: 1 | CC24: =IF(AG24<>"",AG24,IF(IFERROR(SEARCH("Terminal",P24,1)>0,FALSE),INDEX(INDIRECT(BS24),A24,MATCH(TRM,PTAC!$AC$9:$AE$9,0)),INDEX(INDIRECT(BS24),MATCH(TRM,BaselineRow,0),1))) ->  | CE24: =IF(AI24<>"",12/3.412/AI24,IF(IFERROR(SEARCH("Heat",P24,1)>0,FALSE),IF(IFERROR(SEARCH("Terminal",P24,1)>0,FALSE),INDEX(INDIRECT(BS24),A24,3+MATCH(TRM,PTAC!$AC$9:$AE$9,0)),INDEX(INDIRECT(BS24),MATCH(TRM,BaselineRow,0),3)),"")) ->  | CF24: =IF(AG24<>"",AG24,IF(IFERROR(SEARCH("Terminal",P24,1)>0,FALSE),INDEX(INDIRECT(BS24),A24,MATCH(TRM,PTAC!$AC$9:$AE$9,0)),INDEX(INDIRECT(BS24),MATCH(TRM,BaselineRow,0),1))) ->  | CH24: =IF(AI24<>"",12/3.412/AI24,IF(IFERROR(SEARCH("Heat",P24,1)>0,FALSE),IF(IFERROR(SEARCH("Terminal",P24,1)>0,FALSE),INDEX(INDIRECT(BS24),A24,3+MATCH(TRM,PTAC!$AC$9:$AE$9,0)),INDEX(INDIRECT(BS24),MATCH(TRM,BaselineRow,0),3)),"")) ->  | CO24: 0 | CX24: 0 | CY24: 0 | CZ24: 0 | DA24: 0 | DB24: =INDEX('Utility Admin'!$P$2:$AD$2,1,MATCH($P24,'Utility Admin'!$P$3:$AD$3,0)) ->  | DC24: =INDEX('Utility Admin'!AE$2:AS$2,1,MATCH($P24,'Utility Admin'!$P$3:$AD$3,0)) ->  | DD24: =IF(kWhOverride="",INDEX('Utility Admin'!$AT$2:$BH$2,1,MATCH($P24,'Utility Admin'!$P$3:$AD$3,0)),kWhOverride) ->  | DF24: =INDEX('Equipment Lookups'!$AF$5:$BS$46,MATCH(Inventory!BL24,'Equipment Lookups'!$J$5:$J$46,0),MATCH(Inventory!DE24,'Equipment Lookups'!$AF$4:$BS$4,0)) ->  | DG24: =INDEX('Equipment Lookups'!$AE$5:$AE$46,MATCH(Inventory!BR24,'Equipment Lookups'!$J$5:$J$46,0)) ->  | EA24: 0 | EB24: 0 | EC24: 0
A25: 18 | H25: =IFERROR(INDEX(DefaultUnits,MATCH(F25,EquipmentTypes,0),1),"") ->  | R25: =IFERROR(INDEX(DefaultUnits,MATCH(P25,EquipmentTypes,0),1),"") ->  | AC25: =IFERROR(INDEX(DefaultUnits,MATCH(P25,EquipmentTypes,0),3),"") ->  | AN25: 0 | AO25: 0 | AP25: 0 | AQ25: =IFERROR(IF($AR$3<'Utility Admin'!$I$2,AR25,'Utility Admin'!$I$2/Inventory!$AR$3*AR25),0) -> 0 | AR25: 0 | AS25: =IFERROR(ProjectCost-SUM(AS26:AS49),0) -> 0 | BA25: 0 | BB25: 0 | BC25: 0 | BD25: UNITS | BF25: 0 | BG25: =IF('Project Info'!$D$7="TX",INDEX(EFLH!$AB$4:$AB$30,MATCH(C25,TX_EFLHSanAntonio[Building Type],0),1),'Project Info'!$D$7&"EquipmentType") -> EquipmentType | BH25: 0 | BI25: 0 | BJ25: =IF(IFERROR(SEARCH("Terminal",F25,1)>0,FALSE),"",HLOOKUP(BI25,'Equipment Lookups'!$L$4:$AB$46,VLOOKUP(Inventory!BL25,'Equipment Lookups'!$J$5:$K$46,2,FALSE),TRUE)) ->  | BK25: =IF(L25="Unknown",YEAR(TODAY())-INDEX('Equipment Lookups'!$AC$5:$AC$38,MATCH(Inventory!BL25,'Equipment Lookups'!$J$5:$J$38,0)),L25) -> 0 | BN25: 0 | BO25: 0 | BP25: 0 | BQ25: =IF(IFERROR(SEARCH("Terminal",P25,1)>0,FALSE),"",HLOOKUP(BO25,'Equipment Lookups'!$L$4:$AB$46,VLOOKUP(Inventory!BR25,'Equipment Lookups'!$J$5:$K$46,2,FALSE),TRUE)) ->  | BT25: =INDEX('Equipment Lookups'!$AD$5:$AD$46,MATCH(Inventory!BR25,'Equipment Lookups'!$J$5:$J$46,0)) ->  | BU25: =IFERROR(IF(AL25<>"",AL25,IF(State="TX",INDEX(TX_EFLHSanAntonio[[CFAir Cooled Chiller]:[CFPTRoom]],MATCH(Inventory!C25,TX_EFLHSanAntonio[Building Type],0),MATCH(BT25,EFLH!$N$2:$Q$2,0)),VLOOKUP(C25,INDIRECT($BX$5),4,FALSE))),"-") -> - | BV25: =IFERROR(IF(AJ25<>"",AJ25,IF(State="TX",INDEX(TX_EFLHSanAntonio[[EFLHcAir Cooled Chiller]:[EFLHcPTRoom]],MATCH(Inventory!C25,TX_EFLHSanAntonio[Building Type],0),MATCH(BT25,EFLH!$V$2:$Y$2,0)),VLOOKUP(C25,INDIRECT($BX$5),2,FALSE))),"-") -> - | BW25: =IFERROR(IF(AK25<>"",AK25,IF(State="TX",INDEX(TX_EFLHSanAntonio[[EFLHhDX]:[EFLHhPTRoom]],MATCH(Inventory!C25,TX_EFLHSanAntonio[Building Type],0),MATCH(BT25,EFLH!$Z$2:$AA$2,0)),VLOOKUP(C25,INDIRECT($BX$5),3,FALSE))),"-") -> - | BX25: =IF(AM25<>"",AM25,IF(State="TX",INDEX(TX_EFLHSanAntonio[[NCPAir Cooled Chiller]:[NCPPTRoom]],MATCH(Inventory!C25,TX_EFLHSanAntonio[Building Type],0),MATCH(BT25,EFLH!$R$2:$U$2,0)),0)) -> 0 | BY25: 1 | CC25: =IF(AG25<>"",AG25,IF(IFERROR(SEARCH("Terminal",P25,1)>0,FALSE),INDEX(INDIRECT(BS25),A25,MATCH(TRM,PTAC!$AC$9:$AE$9,0)),INDEX(INDIRECT(BS25),MATCH(TRM,BaselineRow,0),1))) ->  | CE25: =IF(AI25<>"",12/3.412/AI25,IF(IFERROR(SEARCH("Heat",P25,1)>0,FALSE),IF(IFERROR(SEARCH("Terminal",P25,1)>0,FALSE),INDEX(INDIRECT(BS25),A25,3+MATCH(TRM,PTAC!$AC$9:$AE$9,0)),INDEX(INDIRECT(BS25),MATCH(TRM,BaselineRow,0),3)),"")) ->  | CF25: =IF(AG25<>"",AG25,IF(IFERROR(SEARCH("Terminal",P25,1)>0,FALSE),INDEX(INDIRECT(BS25),A25,MATCH(TRM,PTAC!$AC$9:$AE$9,0)),INDEX(INDIRECT(BS25),MATCH(TRM,BaselineRow,0),1))) ->  | CH25: =IF(AI25<>"",12/3.412/AI25,IF(IFERROR(SEARCH("Heat",P25,1)>0,FALSE),IF(IFERROR(SEARCH("Terminal",P25,1)>0,FALSE),INDEX(INDIRECT(BS25),A25,3+MATCH(TRM,PTAC!$AC$9:$AE$9,0)),INDEX(INDIRECT(BS25),MATCH(TRM,BaselineRow,0),3)),"")) ->  | CO25: 0 | CX25: 0 | CY25: 0 | CZ25: 0 | DA25: 0 | DB25: =INDEX('Utility Admin'!$P$2:$AD$2,1,MATCH($P25,'Utility Admin'!$P$3:$AD$3,0)) ->  | DC25: =INDEX('Utility Admin'!AE$2:AS$2,1,MATCH($P25,'Utility Admin'!$P$3:$AD$3,0)) ->  | DD25: =IF(kWhOverride="",INDEX('Utility Admin'!$AT$2:$BH$2,1,MATCH($P25,'Utility Admin'!$P$3:$AD$3,0)),kWhOverride) ->  | DF25: =INDEX('Equipment Lookups'!$AF$5:$BS$46,MATCH(Inventory!BL25,'Equipment Lookups'!$J$5:$J$46,0),MATCH(Inventory!DE25,'Equipment Lookups'!$AF$4:$BS$4,0)) ->  | DG25: =INDEX('Equipment Lookups'!$AE$5:$AE$46,MATCH(Inventory!BR25,'Equipment Lookups'!$J$5:$J$46,0)) ->  | EA25: 0 | EB25: 0 | EC25: 0
A26: 19 | H26: =IFERROR(INDEX(DefaultUnits,MATCH(F26,EquipmentTypes,0),1),"") ->  | R26: =IFERROR(INDEX(DefaultUnits,MATCH(P26,EquipmentTypes,0),1),"") ->  | AC26: =IFERROR(INDEX(DefaultUnits,MATCH(P26,EquipmentTypes,0),3),"") ->  | AN26: 0 | AO26: 0 | AP26: 0 | AQ26: =IFERROR(IF($AR$3<'Utility Admin'!$I$2,AR26,'Utility Admin'!$I$2/Inventory!$AR$3*AR26),0) -> 0 | AR26: 0 | AS26: =IFERROR(ProjectCost-SUM(AS27:AS50),0) -> 0 | BA26: 0 | BB26: 0 | BC26: 0 | BD26: UNITS | BF26: 0 | BG26: =IF('Project Info'!$D$7="TX",INDEX(EFLH!$AB$4:$AB$30,MATCH(C26,TX_EFLHSanAntonio[Building Type],0),1),'Project Info'!$D$7&"EquipmentType") -> EquipmentType | BH26: 0 | BI26: 0 | BJ26: =IF(IFERROR(SEARCH("Terminal",F26,1)>0,FALSE),"",HLOOKUP(BI26,'Equipment Lookups'!$L$4:$AB$46,VLOOKUP(Inventory!BL26,'Equipment Lookups'!$J$5:$K$46,2,FALSE),TRUE)) ->  | BK26: =IF(L26="Unknown",YEAR(TODAY())-INDEX('Equipment Lookups'!$AC$5:$AC$38,MATCH(Inventory!BL26,'Equipment Lookups'!$J$5:$J$38,0)),L26) -> 0 | BN26: 0 | BO26: 0 | BP26: 0 | BQ26: =IF(IFERROR(SEARCH("Terminal",P26,1)>0,FALSE),"",HLOOKUP(BO26,'Equipment Lookups'!$L$4:$AB$46,VLOOKUP(Inventory!BR26,'Equipment Lookups'!$J$5:$K$46,2,FALSE),TRUE)) ->  | BT26: =INDEX('Equipment Lookups'!$AD$5:$AD$46,MATCH(Inventory!BR26,'Equipment Lookups'!$J$5:$J$46,0)) ->  | BU26: =IFERROR(IF(AL26<>"",AL26,IF(State="TX",INDEX(TX_EFLHSanAntonio[[CFAir Cooled Chiller]:[CFPTRoom]],MATCH(Inventory!C26,TX_EFLHSanAntonio[Building Type],0),MATCH(BT26,EFLH!$N$2:$Q$2,0)),VLOOKUP(C26,INDIRECT($BX$5),4,FALSE))),"-") -> - | BV26: =IFERROR(IF(AJ26<>"",AJ26,IF(State="TX",INDEX(TX_EFLHSanAntonio[[EFLHcAir Cooled Chiller]:[EFLHcPTRoom]],MATCH(Inventory!C26,TX_EFLHSanAntonio[Building Type],0),MATCH(BT26,EFLH!$V$2:$Y$2,0)),VLOOKUP(C26,INDIRECT($BX$5),2,FALSE))),"-") -> - | BW26: =IFERROR(IF(AK26<>"",AK26,IF(State="TX",INDEX(TX_EFLHSanAntonio[[EFLHhDX]:[EFLHhPTRoom]],MATCH(Inventory!C26,TX_EFLHSanAntonio[Building Type],0),MATCH(BT26,EFLH!$Z$2:$AA$2,0)),VLOOKUP(C26,INDIRECT($BX$5),3,FALSE))),"-") -> - | BX26: =IF(AM26<>"",AM26,IF(State="TX",INDEX(TX_EFLHSanAntonio[[NCPAir Cooled Chiller]:[NCPPTRoom]],MATCH(Inventory!C26,TX_EFLHSanAntonio[Building Type],0),MATCH(BT26,EFLH!$R$2:$U$2,0)),0)) -> 0 | BY26: 1 | CC26: =IF(AG26<>"",AG26,IF(IFERROR(SEARCH("Terminal",P26,1)>0,FALSE),INDEX(INDIRECT(BS26),A26,MATCH(TRM,PTAC!$AC$9:$AE$9,0)),INDEX(INDIRECT(BS26),MATCH(TRM,BaselineRow,0),1))) ->  | CE26: =IF(AI26<>"",12/3.412/AI26,IF(IFERROR(SEARCH("Heat",P26,1)>0,FALSE),IF(IFERROR(SEARCH("Terminal",P26,1)>0,FALSE),INDEX(INDIRECT(BS26),A26,3+MATCH(TRM,PTAC!$AC$9:$AE$9,0)),INDEX(INDIRECT(BS26),MATCH(TRM,BaselineRow,0),3)),"")) ->  | CF26: =IF(AG26<>"",AG26,IF(IFERROR(SEARCH("Terminal",P26,1)>0,FALSE),INDEX(INDIRECT(BS26),A26,MATCH(TRM,PTAC!$AC$9:$AE$9,0)),INDEX(INDIRECT(BS26),MATCH(TRM,BaselineRow,0),1))) ->  | CH26: =IF(AI26<>"",12/3.412/AI26,IF(IFERROR(SEARCH("Heat",P26,1)>0,FALSE),IF(IFERROR(SEARCH("Terminal",P26,1)>0,FALSE),INDEX(INDIRECT(BS26),A26,3+MATCH(TRM,PTAC!$AC$9:$AE$9,0)),INDEX(INDIRECT(BS26),MATCH(TRM,BaselineRow,0),3)),"")) ->  | CO26: 0 | CX26: 0 | CY26: 0 | CZ26: 0 | DA26: 0 | DB26: =INDEX('Utility Admin'!$P$2:$AD$2,1,MATCH($P26,'Utility Admin'!$P$3:$AD$3,0)) ->  | DC26: =INDEX('Utility Admin'!AE$2:AS$2,1,MATCH($P26,'Utility Admin'!$P$3:$AD$3,0)) ->  | DD26: =IF(kWhOverride="",INDEX('Utility Admin'!$AT$2:$BH$2,1,MATCH($P26,'Utility Admin'!$P$3:$AD$3,0)),kWhOverride) ->  | DF26: =INDEX('Equipment Lookups'!$AF$5:$BS$46,MATCH(Inventory!BL26,'Equipment Lookups'!$J$5:$J$46,0),MATCH(Inventory!DE26,'Equipment Lookups'!$AF$4:$BS$4,0)) ->  | DG26: =INDEX('Equipment Lookups'!$AE$5:$AE$46,MATCH(Inventory!BR26,'Equipment Lookups'!$J$5:$J$46,0)) ->  | EA26: 0 | EB26: 0 | EC26: 0
A27: 20 | H27: =IFERROR(INDEX(DefaultUnits,MATCH(F27,EquipmentTypes,0),1),"") ->  | R27: =IFERROR(INDEX(DefaultUnits,MATCH(P27,EquipmentTypes,0),1),"") ->  | AC27: =IFERROR(INDEX(DefaultUnits,MATCH(P27,EquipmentTypes,0),3),"") ->  | AN27: 0 | AO27: 0 | AP27: 0 | AQ27: =IFERROR(IF($AR$3<'Utility Admin'!$I$2,AR27,'Utility Admin'!$I$2/Inventory!$AR$3*AR27),0) -> 0 | AR27: 0 | AS27: =IFERROR(ProjectCost-SUM(AS28:AS51),0) -> 0 | BA27: 0 | BB27: 0 | BC27: 0 | BD27: UNITS | BF27: 0 | BG27: =IF('Project Info'!$D$7="TX",INDEX(EFLH!$AB$4:$AB$30,MATCH(C27,TX_EFLHSanAntonio[Building Type],0),1),'Project Info'!$D$7&"EquipmentType") -> EquipmentType | BH27: 0 | BI27: 0 | BJ27: =IF(IFERROR(SEARCH("Terminal",F27,1)>0,FALSE),"",HLOOKUP(BI27,'Equipment Lookups'!$L$4:$AB$46,VLOOKUP(Inventory!BL27,'Equipment Lookups'!$J$5:$K$46,2,FALSE),TRUE)) ->  | BK27: =IF(L27="Unknown",YEAR(TODAY())-INDEX('Equipment Lookups'!$AC$5:$AC$38,MATCH(Inventory!BL27,'Equipment Lookups'!$J$5:$J$38,0)),L27) -> 0 | BN27: 0 | BO27: 0 | BP27: 0 | BQ27: =IF(IFERROR(SEARCH("Terminal",P27,1)>0,FALSE),"",HLOOKUP(BO27,'Equipment Lookups'!$L$4:$AB$46,VLOOKUP(Inventory!BR27,'Equipment Lookups'!$J$5:$K$46,2,FALSE),TRUE)) ->  | BT27: =INDEX('Equipment Lookups'!$AD$5:$AD$46,MATCH(Inventory!BR27,'Equipment Lookups'!$J$5:$J$46,0)) ->  | BU27: =IFERROR(IF(AL27<>"",AL27,IF(State="TX",INDEX(TX_EFLHSanAntonio[[CFAir Cooled Chiller]:[CFPTRoom]],MATCH(Inventory!C27,TX_EFLHSanAntonio[Building Type],0),MATCH(BT27,EFLH!$N$2:$Q$2,0)),VLOOKUP(C27,INDIRECT($BX$5),4,FALSE))),"-") -> - | BV27: =IFERROR(IF(AJ27<>"",AJ27,IF(State="TX",INDEX(TX_EFLHSanAntonio[[EFLHcAir Cooled Chiller]:[EFLHcPTRoom]],MATCH(Inventory!C27,TX_EFLHSanAntonio[Building Type],0),MATCH(BT27,EFLH!$V$2:$Y$2,0)),VLOOKUP(C27,INDIRECT($BX$5),2,FALSE))),"-") -> - | BW27: =IFERROR(IF(AK27<>"",AK27,IF(State="TX",INDEX(TX_EFLHSanAntonio[[EFLHhDX]:[EFLHhPTRoom]],MATCH(Inventory!C27,TX_EFLHSanAntonio[Building Type],0),MATCH(BT27,EFLH!$Z$2:$AA$2,0)),VLOOKUP(C27,INDIRECT($BX$5),3,FALSE))),"-") -> - | BX27: =IF(AM27<>"",AM27,IF(State="TX",INDEX(TX_EFLHSanAntonio[[NCPAir Cooled Chiller]:[NCPPTRoom]],MATCH(Inventory!C27,TX_EFLHSanAntonio[Building Type],0),MATCH(BT27,EFLH!$R$2:$U$2,0)),0)) -> 0 | BY27: 1 | CC27: =IF(AG27<>"",AG27,IF(IFERROR(SEARCH("Terminal",P27,1)>0,FALSE),INDEX(INDIRECT(BS27),A27,MATCH(TRM,PTAC!$AC$9:$AE$9,0)),INDEX(INDIRECT(BS27),MATCH(TRM,BaselineRow,0),1))) ->  | CE27: =IF(AI27<>"",12/3.412/AI27,IF(IFERROR(SEARCH("Heat",P27,1)>0,FALSE),IF(IFERROR(SEARCH("Terminal",P27,1)>0,FALSE),INDEX(INDIRECT(BS27),A27,3+MATCH(TRM,PTAC!$AC$9:$AE$9,0)),INDEX(INDIRECT(BS27),MATCH(TRM,BaselineRow,0),3)),"")) ->  | CF27: =IF(AG27<>"",AG27,IF(IFERROR(SEARCH("Terminal",P27,1)>0,FALSE),INDEX(INDIRECT(BS27),A27,MATCH(TRM,PTAC!$AC$9:$AE$9,0)),INDEX(INDIRECT(BS27),MATCH(TRM,BaselineRow,0),1))) ->  | CH27: =IF(AI27<>"",12/3.412/AI27,IF(IFERROR(SEARCH("Heat",P27,1)>0,FALSE),IF(IFERROR(SEARCH("Terminal",P27,1)>0,FALSE),INDEX(INDIRECT(BS27),A27,3+MATCH(TRM,PTAC!$AC$9:$AE$9,0)),INDEX(INDIRECT(BS27),MATCH(TRM,BaselineRow,0),3)),"")) ->  | CO27: 0 | CX27: 0 | CY27: 0 | CZ27: 0 | DA27: 0 | DB27: =INDEX('Utility Admin'!$P$2:$AD$2,1,MATCH($P27,'Utility Admin'!$P$3:$AD$3,0)) ->  | DC27: =INDEX('Utility Admin'!AE$2:AS$2,1,MATCH($P27,'Utility Admin'!$P$3:$AD$3,0)) ->  | DD27: =IF(kWhOverride="",INDEX('Utility Admin'!$AT$2:$BH$2,1,MATCH($P27,'Utility Admin'!$P$3:$AD$3,0)),kWhOverride) ->  | DF27: =INDEX('Equipment Lookups'!$AF$5:$BS$46,MATCH(Inventory!BL27,'Equipment Lookups'!$J$5:$J$46,0),MATCH(Inventory!DE27,'Equipment Lookups'!$AF$4:$BS$4,0)) ->  | DG27: =INDEX('Equipment Lookups'!$AE$5:$AE$46,MATCH(Inventory!BR27,'Equipment Lookups'!$J$5:$J$46,0)) ->  | EA27: 0 | EB27: 0 | EC27: 0
A28: 21 | H28: =IFERROR(INDEX(DefaultUnits,MATCH(F28,EquipmentTypes,0),1),"") ->  | R28: =IFERROR(INDEX(DefaultUnits,MATCH(P28,EquipmentTypes,0),1),"") ->  | AC28: =IFERROR(INDEX(DefaultUnits,MATCH(P28,EquipmentTypes,0),3),"") ->  | AN28: 0 | AO28: 0 | AP28: 0 | AQ28: =IFERROR(IF($AR$3<'Utility Admin'!$I$2,AR28,'Utility Admin'!$I$2/Inventory!$AR$3*AR28),0) -> 0 | AR28: 0 | AS28: =IFERROR(ProjectCost-SUM(AS29:AS52),0) -> 0 | BA28: 0 | BB28: 0 | BC28: 0 | BD28: UNITS | BF28: 0 | BG28: =IF('Project Info'!$D$7="TX",INDEX(EFLH!$AB$4:$AB$30,MATCH(C28,TX_EFLHSanAntonio[Building Type],0),1),'Project Info'!$D$7&"EquipmentType") -> EquipmentType | BH28: 0 | BI28: 0 | BJ28: =IF(IFERROR(SEARCH("Terminal",F28,1)>0,FALSE),"",HLOOKUP(BI28,'Equipment Lookups'!$L$4:$AB$46,VLOOKUP(Inventory!BL28,'Equipment Lookups'!$J$5:$K$46,2,FALSE),TRUE)) ->  | BK28: =IF(L28="Unknown",YEAR(TODAY())-INDEX('Equipment Lookups'!$AC$5:$AC$38,MATCH(Inventory!BL28,'Equipment Lookups'!$J$5:$J$38,0)),L28) -> 0 | BN28: 0 | BO28: 0 | BP28: 0 | BQ28: =IF(IFERROR(SEARCH("Terminal",P28,1)>0,FALSE),"",HLOOKUP(BO28,'Equipment Lookups'!$L$4:$AB$46,VLOOKUP(Inventory!BR28,'Equipment Lookups'!$J$5:$K$46,2,FALSE),TRUE)) ->  | BT28: =INDEX('Equipment Lookups'!$AD$5:$AD$46,MATCH(Inventory!BR28,'Equipment Lookups'!$J$5:$J$46,0)) ->  | BU28: =IFERROR(IF(AL28<>"",AL28,IF(State="TX",INDEX(TX_EFLHSanAntonio[[CFAir Cooled Chiller]:[CFPTRoom]],MATCH(Inventory!C28,TX_EFLHSanAntonio[Building Type],0),MATCH(BT28,EFLH!$N$2:$Q$2,0)),VLOOKUP(C28,INDIRECT($BX$5),4,FALSE))),"-") -> - | BV28: =IFERROR(IF(AJ28<>"",AJ28,IF(State="TX",INDEX(TX_EFLHSanAntonio[[EFLHcAir Cooled Chiller]:[EFLHcPTRoom]],MATCH(Inventory!C28,TX_EFLHSanAntonio[Building Type],0),MATCH(BT28,EFLH!$V$2:$Y$2,0)),VLOOKUP(C28,INDIRECT($BX$5),2,FALSE))),"-") -> - | BW28: =IFERROR(IF(AK28<>"",AK28,IF(State="TX",INDEX(TX_EFLHSanAntonio[[EFLHhDX]:[EFLHhPTRoom]],MATCH(Inventory!C28,TX_EFLHSanAntonio[Building Type],0),MATCH(BT28,EFLH!$Z$2:$AA$2,0)),VLOOKUP(C28,INDIRECT($BX$5),3,FALSE))),"-") -> - | BX28: =IF(AM28<>"",AM28,IF(State="TX",INDEX(TX_EFLHSanAntonio[[NCPAir Cooled Chiller]:[NCPPTRoom]],MATCH(Inventory!C28,TX_EFLHSanAntonio[Building Type],0),MATCH(BT28,EFLH!$R$2:$U$2,0)),0)) -> 0 | BY28: 1 | CC28: =IF(AG28<>"",AG28,IF(IFERROR(SEARCH("Terminal",P28,1)>0,FALSE),INDEX(INDIRECT(BS28),A28,MATCH(TRM,PTAC!$AC$9:$AE$9,0)),INDEX(INDIRECT(BS28),MATCH(TRM,BaselineRow,0),1))) ->  | CE28: =IF(AI28<>"",12/3.412/AI28,IF(IFERROR(SEARCH("Heat",P28,1)>0,FALSE),IF(IFERROR(SEARCH("Terminal",P28,1)>0,FALSE),INDEX(INDIRECT(BS28),A28,3+MATCH(TRM,PTAC!$AC$9:$AE$9,0)),INDEX(INDIRECT(BS28),MATCH(TRM,BaselineRow,0),3)),"")) ->  | CF28: =IF(AG28<>"",AG28,IF(IFERROR(SEARCH("Terminal",P28,1)>0,FALSE),INDEX(INDIRECT(BS28),A28,MATCH(TRM,PTAC!$AC$9:$AE$9,0)),INDEX(INDIRECT(BS28),MATCH(TRM,BaselineRow,0),1))) ->  | CH28: =IF(AI28<>"",12/3.412/AI28,IF(IFERROR(SEARCH("Heat",P28,1)>0,FALSE),IF(IFERROR(SEARCH("Terminal",P28,1)>0,FALSE),INDEX(INDIRECT(BS28),A28,3+MATCH(TRM,PTAC!$AC$9:$AE$9,0)),INDEX(INDIRECT(BS28),MATCH(TRM,BaselineRow,0),3)),"")) ->  | CO28: 0 | CX28: 0 | CY28: 0 | CZ28: 0 | DA28: 0 | DB28: =INDEX('Utility Admin'!$P$2:$AD$2,1,MATCH($P28,'Utility Admin'!$P$3:$AD$3,0)) ->  | DC28: =INDEX('Utility Admin'!AE$2:AS$2,1,MATCH($P28,'Utility Admin'!$P$3:$AD$3,0)) ->  | DD28: =IF(kWhOverride="",INDEX('Utility Admin'!$AT$2:$BH$2,1,MATCH($P28,'Utility Admin'!$P$3:$AD$3,0)),kWhOverride) ->  | DF28: =INDEX('Equipment Lookups'!$AF$5:$BS$46,MATCH(Inventory!BL28,'Equipment Lookups'!$J$5:$J$46,0),MATCH(Inventory!DE28,'Equipment Lookups'!$AF$4:$BS$4,0)) ->  | DG28: =INDEX('Equipment Lookups'!$AE$5:$AE$46,MATCH(Inventory!BR28,'Equipment Lookups'!$J$5:$J$46,0)) ->  | EA28: 0 | EB28: 0 | EC28: 0
A29: 22 | H29: =IFERROR(INDEX(DefaultUnits,MATCH(F29,EquipmentTypes,0),1),"") ->  | R29: =IFERROR(INDEX(DefaultUnits,MATCH(P29,EquipmentTypes,0),1),"") ->  | AC29: =IFERROR(INDEX(DefaultUnits,MATCH(P29,EquipmentTypes,0),3),"") ->  | AN29: 0 | AO29: 0 | AP29: 0 | AQ29: =IFERROR(IF($AR$3<'Utility Admin'!$I$2,AR29,'Utility Admin'!$I$2/Inventory!$AR$3*AR29),0) -> 0 | AR29: 0 | AS29: =IFERROR(ProjectCost-SUM(AS30:AS53),0) -> 0 | BA29: 0 | BB29: 0 | BC29: 0 | BD29: UNITS | BF29: 0 | BG29: =IF('Project Info'!$D$7="TX",INDEX(EFLH!$AB$4:$AB$30,MATCH(C29,TX_EFLHSanAntonio[Building Type],0),1),'Project Info'!$D$7&"EquipmentType") -> EquipmentType | BH29: 0 | BI29: 0 | BJ29: =IF(IFERROR(SEARCH("Terminal",F29,1)>0,FALSE),"",HLOOKUP(BI29,'Equipment Lookups'!$L$4:$AB$46,VLOOKUP(Inventory!BL29,'Equipment Lookups'!$J$5:$K$46,2,FALSE),TRUE)) ->  | BK29: =IF(L29="Unknown",YEAR(TODAY())-INDEX('Equipment Lookups'!$AC$5:$AC$38,MATCH(Inventory!BL29,'Equipment Lookups'!$J$5:$J$38,0)),L29) -> 0 | BN29: 0 | BO29: 0 | BP29: 0 | BQ29: =IF(IFERROR(SEARCH("Terminal",P29,1)>0,FALSE),"",HLOOKUP(BO29,'Equipment Lookups'!$L$4:$AB$46,VLOOKUP(Inventory!BR29,'Equipment Lookups'!$J$5:$K$46,2,FALSE),TRUE)) ->  | BT29: =INDEX('Equipment Lookups'!$AD$5:$AD$46,MATCH(Inventory!BR29,'Equipment Lookups'!$J$5:$J$46,0)) ->  | BU29: =IFERROR(IF(AL29<>"",AL29,IF(State="TX",INDEX(TX_EFLHSanAntonio[[CFAir Cooled Chiller]:[CFPTRoom]],MATCH(Inventory!C29,TX_EFLHSanAntonio[Building Type],0),MATCH(BT29,EFLH!$N$2:$Q$2,0)),VLOOKUP(C29,INDIRECT($BX$5),4,FALSE))),"-") -> - | BV29: =IFERROR(IF(AJ29<>"",AJ29,IF(State="TX",INDEX(TX_EFLHSanAntonio[[EFLHcAir Cooled Chiller]:[EFLHcPTRoom]],MATCH(Inventory!C29,TX_EFLHSanAntonio[Building Type],0),MATCH(BT29,EFLH!$V$2:$Y$2,0)),VLOOKUP(C29,INDIRECT($BX$5),2,FALSE))),"-") -> - | BW29: =IFERROR(IF(AK29<>"",AK29,IF(State="TX",INDEX(TX_EFLHSanAntonio[[EFLHhDX]:[EFLHhPTRoom]],MATCH(Inventory!C29,TX_EFLHSanAntonio[Building Type],0),MATCH(BT29,EFLH!$Z$2:$AA$2,0)),VLOOKUP(C29,INDIRECT($BX$5),3,FALSE))),"-") -> - | BX29: =IF(AM29<>"",AM29,IF(State="TX",INDEX(TX_EFLHSanAntonio[[NCPAir Cooled Chiller]:[NCPPTRoom]],MATCH(Inventory!C29,TX_EFLHSanAntonio[Building Type],0),MATCH(BT29,EFLH!$R$2:$U$2,0)),0)) -> 0 | BY29: 1 | CC29: =IF(AG29<>"",AG29,IF(IFERROR(SEARCH("Terminal",P29,1)>0,FALSE),INDEX(INDIRECT(BS29),A29,MATCH(TRM,PTAC!$AC$9:$AE$9,0)),INDEX(INDIRECT(BS29),MATCH(TRM,BaselineRow,0),1))) ->  | CE29: =IF(AI29<>"",12/3.412/AI29,IF(IFERROR(SEARCH("Heat",P29,1)>0,FALSE),IF(IFERROR(SEARCH("Terminal",P29,1)>0,FALSE),INDEX(INDIRECT(BS29),A29,3+MATCH(TRM,PTAC!$AC$9:$AE$9,0)),INDEX(INDIRECT(BS29),MATCH(TRM,BaselineRow,0),3)),"")) ->  | CF29: =IF(AG29<>"",AG29,IF(IFERROR(SEARCH("Terminal",P29,1)>0,FALSE),INDEX(INDIRECT(BS29),A29,MATCH(TRM,PTAC!$AC$9:$AE$9,0)),INDEX(INDIRECT(BS29),MATCH(TRM,BaselineRow,0),1))) ->  | CH29: =IF(AI29<>"",12/3.412/AI29,IF(IFERROR(SEARCH("Heat",P29,1)>0,FALSE),IF(IFERROR(SEARCH("Terminal",P29,1)>0,FALSE),INDEX(INDIRECT(BS29),A29,3+MATCH(TRM,PTAC!$AC$9:$AE$9,0)),INDEX(INDIRECT(BS29),MATCH(TRM,BaselineRow,0),3)),"")) ->  | CO29: 0 | CX29: 0 | CY29: 0 | CZ29: 0 | DA29: 0 | DB29: =INDEX('Utility Admin'!$P$2:$AD$2,1,MATCH($P29,'Utility Admin'!$P$3:$AD$3,0)) ->  | DC29: =INDEX('Utility Admin'!AE$2:AS$2,1,MATCH($P29,'Utility Admin'!$P$3:$AD$3,0)) ->  | DD29: =IF(kWhOverride="",INDEX('Utility Admin'!$AT$2:$BH$2,1,MATCH($P29,'Utility Admin'!$P$3:$AD$3,0)),kWhOverride) ->  | DF29: =INDEX('Equipment Lookups'!$AF$5:$BS$46,MATCH(Inventory!BL29,'Equipment Lookups'!$J$5:$J$46,0),MATCH(Inventory!DE29,'Equipment Lookups'!$AF$4:$BS$4,0)) ->  | DG29: =INDEX('Equipment Lookups'!$AE$5:$AE$46,MATCH(Inventory!BR29,'Equipment Lookups'!$J$5:$J$46,0)) ->  | EA29: 0 | EB29: 0 | EC29: 0
A30: 23 | H30: =IFERROR(INDEX(DefaultUnits,MATCH(F30,EquipmentTypes,0),1),"") ->  | R30: =IFERROR(INDEX(DefaultUnits,MATCH(P30,EquipmentTypes,0),1),"") ->  | AC30: =IFERROR(INDEX(DefaultUnits,MATCH(P30,EquipmentTypes,0),3),"") ->  | AN30: 0 | AO30: 0 | AP30: 0 | AQ30: =IFERROR(IF($AR$3<'Utility Admin'!$I$2,AR30,'Utility Admin'!$I$2/Inventory!$AR$3*AR30),0) -> 0 | AR30: 0 | AS30: =IFERROR(ProjectCost-SUM(AS31:AS54),0) -> 0 | BA30: 0 | BB30: 0 | BC30: 0 | BD30: UNITS | BF30: 0 | BG30: =IF('Project Info'!$D$7="TX",INDEX(EFLH!$AB$4:$AB$30,MATCH(C30,TX_EFLHSanAntonio[Building Type],0),1),'Project Info'!$D$7&"EquipmentType") -> EquipmentType | BH30: 0 | BI30: 0 | BJ30: =IF(IFERROR(SEARCH("Terminal",F30,1)>0,FALSE),"",HLOOKUP(BI30,'Equipment Lookups'!$L$4:$AB$46,VLOOKUP(Inventory!BL30,'Equipment Lookups'!$J$5:$K$46,2,FALSE),TRUE)) ->  | BK30: =IF(L30="Unknown",YEAR(TODAY())-INDEX('Equipment Lookups'!$AC$5:$AC$38,MATCH(Inventory!BL30,'Equipment Lookups'!$J$5:$J$38,0)),L30) -> 0 | BN30: 0 | BO30: 0 | BP30: 0 | BQ30: =IF(IFERROR(SEARCH("Terminal",P30,1)>0,FALSE),"",HLOOKUP(BO30,'Equipment Lookups'!$L$4:$AB$46,VLOOKUP(Inventory!BR30,'Equipment Lookups'!$J$5:$K$46,2,FALSE),TRUE)) ->  | BT30: =INDEX('Equipment Lookups'!$AD$5:$AD$46,MATCH(Inventory!BR30,'Equipment Lookups'!$J$5:$J$46,0)) ->  | BU30: =IFERROR(IF(AL30<>"",AL30,IF(State="TX",INDEX(TX_EFLHSanAntonio[[CFAir Cooled Chiller]:[CFPTRoom]],MATCH(Inventory!C30,TX_EFLHSanAntonio[Building Type],0),MATCH(BT30,EFLH!$N$2:$Q$2,0)),VLOOKUP(C30,INDIRECT($BX$5),4,FALSE))),"-") -> - | BV30: =IFERROR(IF(AJ30<>"",AJ30,IF(State="TX",INDEX(TX_EFLHSanAntonio[[EFLHcAir Cooled Chiller]:[EFLHcPTRoom]],MATCH(Inventory!C30,TX_EFLHSanAntonio[Building Type],0),MATCH(BT30,EFLH!$V$2:$Y$2,0)),VLOOKUP(C30,INDIRECT($BX$5),2,FALSE))),"-") -> - | BW30: =IFERROR(IF(AK30<>"",AK30,IF(State="TX",INDEX(TX_EFLHSanAntonio[[EFLHhDX]:[EFLHhPTRoom]],MATCH(Inventory!C30,TX_EFLHSanAntonio[Building Type],0),MATCH(BT30,EFLH!$Z$2:$AA$2,0)),VLOOKUP(C30,INDIRECT($BX$5),3,FALSE))),"-") -> - | BX30: =IF(AM30<>"",AM30,IF(State="TX",INDEX(TX_EFLHSanAntonio[[NCPAir Cooled Chiller]:[NCPPTRoom]],MATCH(Inventory!C30,TX_EFLHSanAntonio[Building Type],0),MATCH(BT30,EFLH!$R$2:$U$2,0)),0)) -> 0 | BY30: 1 | CC30: =IF(AG30<>"",AG30,IF(IFERROR(SEARCH("Terminal",P30,1)>0,FALSE),INDEX(INDIRECT(BS30),A30,MATCH(TRM,PTAC!$AC$9:$AE$9,0)),INDEX(INDIRECT(BS30),MATCH(TRM,BaselineRow,0),1))) ->  | CE30: =IF(AI30<>"",12/3.412/AI30,IF(IFERROR(SEARCH("Heat",P30,1)>0,FALSE),IF(IFERROR(SEARCH("Terminal",P30,1)>0,FALSE),INDEX(INDIRECT(BS30),A30,3+MATCH(TRM,PTAC!$AC$9:$AE$9,0)),INDEX(INDIRECT(BS30),MATCH(TRM,BaselineRow,0),3)),"")) ->  | CF30: =IF(AG30<>"",AG30,IF(IFERROR(SEARCH("Terminal",P30,1)>0,FALSE),INDEX(INDIRECT(BS30),A30,MATCH(TRM,PTAC!$AC$9:$AE$9,0)),INDEX(INDIRECT(BS30),MATCH(TRM,BaselineRow,0),1))) ->  | CH30: =IF(AI30<>"",12/3.412/AI30,IF(IFERROR(SEARCH("Heat",P30,1)>0,FALSE),IF(IFERROR(SEARCH("Terminal",P30,1)>0,FALSE),INDEX(INDIRECT(BS30),A30,3+MATCH(TRM,PTAC!$AC$9:$AE$9,0)),INDEX(INDIRECT(BS30),MATCH(TRM,BaselineRow,0),3)),"")) ->  | CO30: 0 | CX30: 0 | CY30: 0 | CZ30: 0 | DA30: 0 | DB30: =INDEX('Utility Admin'!$P$2:$AD$2,1,MATCH($P30,'Utility Admin'!$P$3:$AD$3,0)) ->  | DC30: =INDEX('Utility Admin'!AE$2:AS$2,1,MATCH($P30,'Utility Admin'!$P$3:$AD$3,0)) ->  | DD30: =IF(kWhOverride="",INDEX('Utility Admin'!$AT$2:$BH$2,1,MATCH($P30,'Utility Admin'!$P$3:$AD$3,0)),kWhOverride) ->  | DF30: =INDEX('Equipment Lookups'!$AF$5:$BS$46,MATCH(Inventory!BL30,'Equipment Lookups'!$J$5:$J$46,0),MATCH(Inventory!DE30,'Equipment Lookups'!$AF$4:$BS$4,0)) ->  | DG30: =INDEX('Equipment Lookups'!$AE$5:$AE$46,MATCH(Inventory!BR30,'Equipment Lookups'!$J$5:$J$46,0)) ->  | EA30: 0 | EB30: 0 | EC30: 0
A31: 24 | H31: =IFERROR(INDEX(DefaultUnits,MATCH(F31,EquipmentTypes,0),1),"") ->  | R31: =IFERROR(INDEX(DefaultUnits,MATCH(P31,EquipmentTypes,0),1),"") ->  | AC31: =IFERROR(INDEX(DefaultUnits,MATCH(P31,EquipmentTypes,0),3),"") ->  | AN31: 0 | AO31: 0 | AP31: 0 | AQ31: =IFERROR(IF($AR$3<'Utility Admin'!$I$2,AR31,'Utility Admin'!$I$2/Inventory!$AR$3*AR31),0) -> 0 | AR31: 0 | AS31: =IFERROR(ProjectCost-SUM(AS32:AS55),0) -> 0 | BA31: 0 | BB31: 0 | BC31: 0 | BD31: UNITS | BF31: 0 | BG31: =IF('Project Info'!$D$7="TX",INDEX(EFLH!$AB$4:$AB$30,MATCH(C31,TX_EFLHSanAntonio[Building Type],0),1),'Project Info'!$D$7&"EquipmentType") -> EquipmentType | BH31: 0 | BI31: 0 | BJ31: =IF(IFERROR(SEARCH("Terminal",F31,1)>0,FALSE),"",HLOOKUP(BI31,'Equipment Lookups'!$L$4:$AB$46,VLOOKUP(Inventory!BL31,'Equipment Lookups'!$J$5:$K$46,2,FALSE),TRUE)) ->  | BK31: =IF(L31="Unknown",YEAR(TODAY())-INDEX('Equipment Lookups'!$AC$5:$AC$38,MATCH(Inventory!BL31,'Equipment Lookups'!$J$5:$J$38,0)),L31) -> 0 | BN31: 0 | BO31: 0 | BP31: 0 | BQ31: =IF(IFERROR(SEARCH("Terminal",P31,1)>0,FALSE),"",HLOOKUP(BO31,'Equipment Lookups'!$L$4:$AB$46,VLOOKUP(Inventory!BR31,'Equipment Lookups'!$J$5:$K$46,2,FALSE),TRUE)) ->  | BT31: =INDEX('Equipment Lookups'!$AD$5:$AD$46,MATCH(Inventory!BR31,'Equipment Lookups'!$J$5:$J$46,0)) ->  | BU31: =IFERROR(IF(AL31<>"",AL31,IF(State="TX",INDEX(TX_EFLHSanAntonio[[CFAir Cooled Chiller]:[CFPTRoom]],MATCH(Inventory!C31,TX_EFLHSanAntonio[Building Type],0),MATCH(BT31,EFLH!$N$2:$Q$2,0)),VLOOKUP(C31,INDIRECT($BX$5),4,FALSE))),"-") -> - | BV31: =IFERROR(IF(AJ31<>"",AJ31,IF(State="TX",INDEX(TX_EFLHSanAntonio[[EFLHcAir Cooled Chiller]:[EFLHcPTRoom]],MATCH(Inventory!C31,TX_EFLHSanAntonio[Building Type],0),MATCH(BT31,EFLH!$V$2:$Y$2,0)),VLOOKUP(C31,INDIRECT($BX$5),2,FALSE))),"-") -> - | BW31: =IFERROR(IF(AK31<>"",AK31,IF(State="TX",INDEX(TX_EFLHSanAntonio[[EFLHhDX]:[EFLHhPTRoom]],MATCH(Inventory!C31,TX_EFLHSanAntonio[Building Type],0),MATCH(BT31,EFLH!$Z$2:$AA$2,0)),VLOOKUP(C31,INDIRECT($BX$5),3,FALSE))),"-") -> - | BX31: =IF(AM31<>"",AM31,IF(State="TX",INDEX(TX_EFLHSanAntonio[[NCPAir Cooled Chiller]:[NCPPTRoom]],MATCH(Inventory!C31,TX_EFLHSanAntonio[Building Type],0),MATCH(BT31,EFLH!$R$2:$U$2,0)),0)) -> 0 | BY31: 1 | CC31: =IF(AG31<>"",AG31,IF(IFERROR(SEARCH("Terminal",P31,1)>0,FALSE),INDEX(INDIRECT(BS31),A31,MATCH(TRM,PTAC!$AC$9:$AE$9,0)),INDEX(INDIRECT(BS31),MATCH(TRM,BaselineRow,0),1))) ->  | CE31: =IF(AI31<>"",12/3.412/AI31,IF(IFERROR(SEARCH("Heat",P31,1)>0,FALSE),IF(IFERROR(SEARCH("Terminal",P31,1)>0,FALSE),INDEX(INDIRECT(BS31),A31,3+MATCH(TRM,PTAC!$AC$9:$AE$9,0)),INDEX(INDIRECT(BS31),MATCH(TRM,BaselineRow,0),3)),"")) ->  | CF31: =IF(AG31<>"",AG31,IF(IFERROR(SEARCH("Terminal",P31,1)>0,FALSE),INDEX(INDIRECT(BS31),A31,MATCH(TRM,PTAC!$AC$9:$AE$9,0)),INDEX(INDIRECT(BS31),MATCH(TRM,BaselineRow,0),1))) ->  | CH31: =IF(AI31<>"",12/3.412/AI31,IF(IFERROR(SEARCH("Heat",P31,1)>0,FALSE),IF(IFERROR(SEARCH("Terminal",P31,1)>0,FALSE),INDEX(INDIRECT(BS31),A31,3+MATCH(TRM,PTAC!$AC$9:$AE$9,0)),INDEX(INDIRECT(BS31),MATCH(TRM,BaselineRow,0),3)),"")) ->  | CO31: 0 | CX31: 0 | CY31: 0 | CZ31: 0 | DA31: 0 | DB31: =INDEX('Utility Admin'!$P$2:$AD$2,1,MATCH($P31,'Utility Admin'!$P$3:$AD$3,0)) ->  | DC31: =INDEX('Utility Admin'!AE$2:AS$2,1,MATCH($P31,'Utility Admin'!$P$3:$AD$3,0)) ->  | DD31: =IF(kWhOverride="",INDEX('Utility Admin'!$AT$2:$BH$2,1,MATCH($P31,'Utility Admin'!$P$3:$AD$3,0)),kWhOverride) ->  | DF31: =INDEX('Equipment Lookups'!$AF$5:$BS$46,MATCH(Inventory!BL31,'Equipment Lookups'!$J$5:$J$46,0),MATCH(Inventory!DE31,'Equipment Lookups'!$AF$4:$BS$4,0)) ->  | DG31: =INDEX('Equipment Lookups'!$AE$5:$AE$46,MATCH(Inventory!BR31,'Equipment Lookups'!$J$5:$J$46,0)) ->  | EA31: 0 | EB31: 0 | EC31: 0
A32: 25 | H32: =IFERROR(INDEX(DefaultUnits,MATCH(F32,EquipmentTypes,0),1),"") ->  | R32: =IFERROR(INDEX(DefaultUnits,MATCH(P32,EquipmentTypes,0),1),"") ->  | AC32: =IFERROR(INDEX(DefaultUnits,MATCH(P32,EquipmentTypes,0),3),"") ->  | AN32: 0 | AO32: 0 | AP32: 0 | AQ32: =IFERROR(IF($AR$3<'Utility Admin'!$I$2,AR32,'Utility Admin'!$I$2/Inventory!$AR$3*AR32),0) -> 0 | AR32: 0 | AS32: =IFERROR(ProjectCost-SUM(AS33:AS56),0) -> 0 | BA32: 0 | BB32: 0 | BC32: 0 | BD32: UNITS | BF32: 0 | BG32: =IF('Project Info'!$D$7="TX",INDEX(EFLH!$AB$4:$AB$30,MATCH(C32,TX_EFLHSanAntonio[Building Type],0),1),'Project Info'!$D$7&"EquipmentType") -> EquipmentType | BH32: 0 | BI32: 0 | BJ32: =IF(IFERROR(SEARCH("Terminal",F32,1)>0,FALSE),"",HLOOKUP(BI32,'Equipment Lookups'!$L$4:$AB$46,VLOOKUP(Inventory!BL32,'Equipment Lookups'!$J$5:$K$46,2,FALSE),TRUE)) ->  | BK32: =IF(L32="Unknown",YEAR(TODAY())-INDEX('Equipment Lookups'!$AC$5:$AC$38,MATCH(Inventory!BL32,'Equipment Lookups'!$J$5:$J$38,0)),L32) -> 0 | BN32: 0 | BO32: 0 | BP32: 0 | BQ32: =IF(IFERROR(SEARCH("Terminal",P32,1)>0,FALSE),"",HLOOKUP(BO32,'Equipment Lookups'!$L$4:$AB$46,VLOOKUP(Inventory!BR32,'Equipment Lookups'!$J$5:$K$46,2,FALSE),TRUE)) ->  | BT32: =INDEX('Equipment Lookups'!$AD$5:$AD$46,MATCH(Inventory!BR32,'Equipment Lookups'!$J$5:$J$46,0)) ->  | BU32: =IFERROR(IF(AL32<>"",AL32,IF(State="TX",INDEX(TX_EFLHSanAntonio[[CFAir Cooled Chiller]:[CFPTRoom]],MATCH(Inventory!C32,TX_EFLHSanAntonio[Building Type],0),MATCH(BT32,EFLH!$N$2:$Q$2,0)),VLOOKUP(C32,INDIRECT($BX$5),4,FALSE))),"-") -> - | BV32: =IFERROR(IF(AJ32<>"",AJ32,IF(State="TX",INDEX(TX_EFLHSanAntonio[[EFLHcAir Cooled Chiller]:[EFLHcPTRoom]],MATCH(Inventory!C32,TX_EFLHSanAntonio[Building Type],0),MATCH(BT32,EFLH!$V$2:$Y$2,0)),VLOOKUP(C32,INDIRECT($BX$5),2,FALSE))),"-") -> - | BW32: =IFERROR(IF(AK32<>"",AK32,IF(State="TX",INDEX(TX_EFLHSanAntonio[[EFLHhDX]:[EFLHhPTRoom]],MATCH(Inventory!C32,TX_EFLHSanAntonio[Building Type],0),MATCH(BT32,EFLH!$Z$2:$AA$2,0)),VLOOKUP(C32,INDIRECT($BX$5),3,FALSE))),"-") -> - | BX32: =IF(AM32<>"",AM32,IF(State="TX",INDEX(TX_EFLHSanAntonio[[NCPAir Cooled Chiller]:[NCPPTRoom]],MATCH(Inventory!C32,TX_EFLHSanAntonio[Building Type],0),MATCH(BT32,EFLH!$R$2:$U$2,0)),0)) -> 0 | BY32: 1 | CC32: =IF(AG32<>"",AG32,IF(IFERROR(SEARCH("Terminal",P32,1)>0,FALSE),INDEX(INDIRECT(BS32),A32,MATCH(TRM,PTAC!$AC$9:$AE$9,0)),INDEX(INDIRECT(BS32),MATCH(TRM,BaselineRow,0),1))) ->  | CE32: =IF(AI32<>"",12/3.412/AI32,IF(IFERROR(SEARCH("Heat",P32,1)>0,FALSE),IF(IFERROR(SEARCH("Terminal",P32,1)>0,FALSE),INDEX(INDIRECT(BS32),A32,3+MATCH(TRM,PTAC!$AC$9:$AE$9,0)),INDEX(INDIRECT(BS32),MATCH(TRM,BaselineRow,0),3)),"")) ->  | CF32: =IF(AG32<>"",AG32,IF(IFERROR(SEARCH("Terminal",P32,1)>0,FALSE),INDEX(INDIRECT(BS32),A32,MATCH(TRM,PTAC!$AC$9:$AE$9,0)),INDEX(INDIRECT(BS32),MATCH(TRM,BaselineRow,0),1))) ->  | CH32: =IF(AI32<>"",12/3.412/AI32,IF(IFERROR(SEARCH("Heat",P32,1)>0,FALSE),IF(IFERROR(SEARCH("Terminal",P32,1)>0,FALSE),INDEX(INDIRECT(BS32),A32,3+MATCH(TRM,PTAC!$AC$9:$AE$9,0)),INDEX(INDIRECT(BS32),MATCH(TRM,BaselineRow,0),3)),"")) ->  | CO32: 0 | CX32: 0 | CY32: 0 | CZ32: 0 | DA32: 0 | DB32: =INDEX('Utility Admin'!$P$2:$AD$2,1,MATCH($P32,'Utility Admin'!$P$3:$AD$3,0)) ->  | DC32: =INDEX('Utility Admin'!AE$2:AS$2,1,MATCH($P32,'Utility Admin'!$P$3:$AD$3,0)) ->  | DD32: =IF(kWhOverride="",INDEX('Utility Admin'!$AT$2:$BH$2,1,MATCH($P32,'Utility Admin'!$P$3:$AD$3,0)),kWhOverride) ->  | DF32: =INDEX('Equipment Lookups'!$AF$5:$BS$46,MATCH(Inventory!BL32,'Equipment Lookups'!$J$5:$J$46,0),MATCH(Inventory!DE32,'Equipment Lookups'!$AF$4:$BS$4,0)) ->  | DG32: =INDEX('Equipment Lookups'!$AE$5:$AE$46,MATCH(Inventory!BR32,'Equipment Lookups'!$J$5:$J$46,0)) ->  | EA32: 0 | EB32: 0 | EC32: 0
H34: =IFERROR(INDEX(DefaultUnits,MATCH(F34,EquipmentTypes,0),1),"") ->  | R34: =IFERROR(INDEX(DefaultUnits,MATCH(P34,EquipmentTypes,0),1),"") ->  | T34: =IF(IFERROR(SEARCH("Heat",P34,1)>0,FALSE),R34,"") ->  | W34: =IF(IFERROR(SEARCH("chiller",P34)>0,FALSE),"A","") ->  | X34: =IF(IFERROR(SEARCH("chiller",P34)>0,FALSE),"No","") ->  | AC34: =IFERROR(INDEX(DefaultUnits,MATCH(P34,EquipmentTypes,0),3),"") ->  | AE34: =IFERROR(IF(BA34=0,"",IF(S34*IF(T34="tons",12000,1)<=65000,"HSPF","COP")),"") -> 

Sheet Summary (hidden)
A1: 1
B2: Project Name: | C2: =IF('Project Info'!D4="","",'Project Info'!D4) -> 
D4: Total Quantity | E4: Total Non-Coinc kW | F4: Total Peak kW | G4: Total kWh | H4: Total Incentive
D5: =SUM(D10:D15) -> 0 | E5: =SUM(E10:E15) -> 0 | F5: =SUM(F10:F15) -> 0 | G5: =SUM(G10:G15) -> 0 | H5: =SUM(H10:H15) -> 0
C9: EUL | D9: Quantity | E9: Non-Coinc kW | F9: Peak kW | G9: kWh | H9: Incentive
B10: Chiller Air Cooled - Centrifugal | C10: ='Equipment Lookups'!AE5 -> 25 | D10: =IFERROR(SUMIF(Inventory!$BR$8:$BR$32,'Equipment Lookups'!$J5,Inventory!$AF$8:$AF$32),0) -> 0 | E10: =IFERROR(SUMIFS(Inventory!AN$8:AN$32,Inventory!$BR$8:$BR$32,'Equipment Lookups'!$J5,Inventory!AN$8:AN$32,"<>Check*"),0) -> 0 | F10: =IFERROR(SUMIFS(Inventory!AO$8:AO$32,Inventory!$BR$8:$BR$32,'Equipment Lookups'!$J5,Inventory!AO$8:AO$32,"<>Check*"),0) -> 0 | G10: =IFERROR(SUMIFS(Inventory!AP$8:AP$32,Inventory!$BR$8:$BR$32,'Equipment Lookups'!$J5,Inventory!AP$8:AP$32,"<>Check*"),0) -> 0 | H10: =IFERROR(SUMIF(Inventory!$BR$8:$BR$32,'Equipment Lookups'!$J5,Inventory!$AQ$8:$AQ$32),0) -> 0
B11: Chiller Air Cooled - Screw/Scroll/Reciprocating | C11: ='Equipment Lookups'!AE6 -> 20 | D11: =IFERROR(SUMIF(Inventory!$BR$8:$BR$32,'Equipment Lookups'!$J6,Inventory!$AF$8:$AF$32),0) -> 0 | E11: =IFERROR(SUMIFS(Inventory!AN$8:AN$32,Inventory!$BR$8:$BR$32,'Equipment Lookups'!$J6,Inventory!AN$8:AN$32,"<>Check*"),0) -> 0 | F11: =IFERROR(SUMIFS(Inventory!AO$8:AO$32,Inventory!$BR$8:$BR$32,'Equipment Lookups'!$J6,Inventory!AO$8:AO$32,"<>Check*"),0) -> 0 | G11: =IFERROR(SUMIFS(Inventory!AP$8:AP$32,Inventory!$BR$8:$BR$32,'Equipment Lookups'!$J6,Inventory!AP$8:AP$32,"<>Check*"),0) -> 0 | H11: =IFERROR(SUMIF(Inventory!$BR$8:$BR$32,'Equipment Lookups'!$J6,Inventory!$AQ$8:$AQ$32),0) -> 0
B12: Chiller Water Cooled - Centrifugal | C12: ='Equipment Lookups'!AE7 -> 25 | D12: =IFERROR(SUMIF(Inventory!$BR$8:$BR$32,'Equipment Lookups'!$J7,Inventory!$AF$8:$AF$32),0) -> 0 | E12: =IFERROR(SUMIFS(Inventory!AN$8:AN$32,Inventory!$BR$8:$BR$32,'Equipment Lookups'!$J7,Inventory!AN$8:AN$32,"<>Check*"),0) -> 0 | F12: =IFERROR(SUMIFS(Inventory!AO$8:AO$32,Inventory!$BR$8:$BR$32,'Equipment Lookups'!$J7,Inventory!AO$8:AO$32,"<>Check*"),0) -> 0 | G12: =IFERROR(SUMIFS(Inventory!AP$8:AP$32,Inventory!$BR$8:$BR$32,'Equipment Lookups'!$J7,Inventory!AP$8:AP$32,"<>Check*"),0) -> 0 | H12: =IFERROR(SUMIF(Inventory!$BR$8:$BR$32,'Equipment Lookups'!$J7,Inventory!$AQ$8:$AQ$32),0) -> 0
B13: Chiller Water Cooled - Screw/Scroll/Reciprocating | C13: ='Equipment Lookups'!AE8 -> 20 | D13: =IFERROR(SUMIF(Inventory!$BR$8:$BR$32,'Equipment Lookups'!$J8,Inventory!$AF$8:$AF$32),0) -> 0 | E13: =IFERROR(SUMIFS(Inventory!AN$8:AN$32,Inventory!$BR$8:$BR$32,'Equipment Lookups'!$J8,Inventory!AN$8:AN$32,"<>Check*"),0) -> 0 | F13: =IFERROR(SUMIFS(Inventory!AO$8:AO$32,Inventory!$BR$8:$BR$32,'Equipment Lookups'!$J8,Inventory!AO$8:AO$32,"<>Check*"),0) -> 0 | G13: =IFERROR(SUMIFS(Inventory!AP$8:AP$32,Inventory!$BR$8:$BR$32,'Equipment Lookups'!$J8,Inventory!AP$8:AP$32,"<>Check*"),0) -> 0 | H13: =IFERROR(SUMIF(Inventory!$BR$8:$BR$32,'Equipment Lookups'!$J8,Inventory!$AQ$8:$AQ$32),0) -> 0
B14: Air-Cooled AC/HP | C14: ='Equipment Lookups'!AE9 -> 15 | D14: =IFERROR(SUMIFS(Inventory!AF8:AF32,Inventory!BR8:BR32,"*AirConditioner*",Inventory!BR8:BR32,"<>*Room*")+SUMIFS(Inventory!AF8:AF32,Inventory!BR8:BR32,"*HeatPump*",Inventory!BR8:BR32,"<>*Room*"),0) -> 0 | E14: =IFERROR(SUMIFS(Inventory!AN$8:AN$32,Inventory!$BR$8:$BR$32,"*AirConditioner*",Inventory!$BR$8:$BR$32,"<>*Room*",Inventory!AN$8:AN$32,"<>Check*")+SUMIFS(Inventory!AN$8:AN$32,Inventory!$BR$8:$BR$32,"*HeatPump*",Inventory!$BR$8:$BR$32,"<>*Room*",Inventory!AN$8:AN$32,"<>Check*"),0) -> 0 | F14: =IFERROR(SUMIFS(Inventory!AO$8:AO$32,Inventory!$BR$8:$BR$32,"*AirConditioner*",Inventory!$BR$8:$BR$32,"<>*Room*",Inventory!AO$8:AO$32,"<>Check*")+SUMIFS(Inventory!AO$8:AO$32,Inventory!$BR$8:$BR$32,"*HeatPump*",Inventory!$BR$8:$BR$32,"<>*Room*",Inventory!AO$8:AO$32,"<>Check*"),0) -> 0 | G14: =IFERROR(SUMIFS(Inventory!AP$8:AP$32,Inventory!$BR$8:$BR$32,"*AirConditioner*",Inventory!$BR$8:$BR$32,"<>*Room*",Inventory!AP$8:AP$32,"<>Check*")+SUMIFS(Inventory!AP$8:AP$32,Inventory!$BR$8:$BR$32,"*HeatPump*",Inventory!$BR$8:$BR$32,"<>*Room*",Inventory!AP$8:AP$32,"<>Check*"),0) -> 0 | H14: =IFERROR(SUMIFS(Inventory!AQ$8:AQ$32,Inventory!$BR$8:$BR$32,"*AirConditioner*",Inventory!$BR$8:$BR$32,"<>*Room*",Inventory!AQ$8:AQ$32,"<>Check*")+SUMIFS(Inventory!AQ$8:AQ$32,Inventory!$BR$8:$BR$32,"*HeatPump*",Inventory!$BR$8:$BR$32,"<>*Room*",Inventory!AQ$8:AQ$32,"<>Check*"),0) -> 0
B15: Room AC/HP | C15: ='Equipment Lookups'!AE15 -> 9 | D15: =IFERROR(SUMIFS(Inventory!AF8:AF32,Inventory!BR8:BR32,"*AirConditioner*",Inventory!BR8:BR32,"*Room*")+SUMIFS(Inventory!AF8:AF32,Inventory!BR8:BR32,"*HeatPump*",Inventory!BR8:BR32,"*Room*"),0) -> 0 | E15: =IFERROR(SUMIFS(Inventory!AN$8:AN$32,Inventory!$BR$8:$BR$32,"*AirConditioner*",Inventory!$BR$8:$BR$32,"*Room*",Inventory!AN$8:AN$32,"<>Check*")+SUMIFS(Inventory!AN$8:AN$32,Inventory!$BR$8:$BR$32,"*HeatPump*",Inventory!$BR$8:$BR$32,"*Room*",Inventory!AN$8:AN$32,"<>Check*"),0) -> 0 | F15: =IFERROR(SUMIFS(Inventory!AO$8:AO$32,Inventory!$BR$8:$BR$32,"*AirConditioner*",Inventory!$BR$8:$BR$32,"*Room*",Inventory!AO$8:AO$32,"<>Check*")+SUMIFS(Inventory!AO$8:AO$32,Inventory!$BR$8:$BR$32,"*HeatPump*",Inventory!$BR$8:$BR$32,"*Room*",Inventory!AO$8:AO$32,"<>Check*"),0) -> 0 | G15: =IFERROR(SUMIFS(Inventory!AP$8:AP$32,Inventory!$BR$8:$BR$32,"*AirConditioner*",Inventory!$BR$8:$BR$32,"*Room*",Inventory!AP$8:AP$32,"<>Check*")+SUMIFS(Inventory!AP$8:AP$32,Inventory!$BR$8:$BR$32,"*HeatPump*",Inventory!$BR$8:$BR$32,"*Room*",Inventory!AP$8:AP$32,"<>Check*"),0) -> 0 | H15: =IFERROR(SUMIFS(Inventory!AQ$8:AQ$32,Inventory!$BR$8:$BR$32,"*AirConditioner*",Inventory!$BR$8:$BR$32,"*Room*",Inventory!AQ$8:AQ$32,"<>Check*")+SUMIFS(Inventory!AQ$8:AQ$32,Inventory!$BR$8:$BR$32,"*HeatPump*",Inventory!$BR$8:$BR$32,"*Room*",Inventory!AQ$8:AQ$32,"<>Check*"),0) -> 0
B18: Version: | C18: ='Project Info'!K1 -> v21.0

Sheet Report (hidden)
A1: 1
B2: Energy Efficiency Assessment
B3: ='Project Info'!I7&" - "&'Project Info'!I8 -> -
B5: =IF('Project Info'!$D$4="","Prepared for: [Company Name]",CONCATENATE("Prepared for: ",'Project Info'!$D$4)) -> Prepared for: [Company Name]
B6: =IF('Project Info'!$D$10="","Contact Name:",CONCATENATE("Contact Name: ",'Project Info'!$D$10)) -> Contact Name:
B7: =IF('Project Info'!$D$11="","Contact Phone:",CONCATENATE("Contact Phone: ",'Project Info'!$D$11)) -> Contact Phone:
B8: =IF('Project Info'!$I$11="","Contact Email:",CONCATENATE("Contact Email: ",'Project Info'!$I$11)) -> Contact Email:
B10: Est. Project Cost | C10: ='Project Info'!$D$17 -> 0 | E10: Est. Annual Energy Savings | F10: =($B$26*$F$36)+($B$27*$F$37) -> 0
B11: Est. Utility Incentive Rate/kWh | C11: =IFERROR(Inventory!AR3/Inventory!AP3,0) -> 0 | E11: Simple Payback (years) | F11: =MAX(0,IF(ISERROR($C$38/$F$38),0,$C$38/$F$38)) -> 0
B12: Est. Utility Incentive* | C12: =Inventory!$AQ$3 -> 0 | E12: Total # of Units | F12: =SUM(Inventory!AF8:AF32) -> 0
B13: =IF('Utility Admin'!$G$2<>999999,"*Incentive may be capped at $"&'Utility Admin'!$G$2&" per project or "&'Utility Admin'!$H$2*100&"% of project cost","*Incentive may be capped at "&'Utility Admin'!$H$2*100&"% of project cost") -> 
B14: The undersigned person hereby represents that he/she has received L.O.I. & Project Application and is authorized to commit the Customer to participate in the Program.
B16: Incentive to be Paid to: | D16: =IF('Project Info'!D16="","",'Project Info'!D16) -> 
B19: Authorized Signature | E19: Printed Name | F19: Date
B21: CLEAResult makes no warranties, whether expressed or implied, nor assumes any legal liability or responsibility for the accuracy, completeness, or usefulness of the contents of this Energy Efficiency Assessment. These calculations are based on the rates displayed below. These calculations are not exact and should only be used to formulate a decision on whether or not to pursue an HVAC retrofit.
B23: =TODAY() -> 2021-01-08
B25: Rate:
B26: ='Project Info'!J17 -> 0 | C26: $/kW
B27: ='Project Info'!$I$17 -> 0.1 | C27: $/kWh
B29: Building Type:
B30: =IF(Inventory!C8="","",Inventory!C8) -> 
B32: Project Description:
B33: =IF('Project Info'!D19="","",'Project Info'!D19) -> 
B35: Estimated Project Cost | E35: Energy Savings
B36: Est. Project Cost | C36: ='Project Info'!$D$17 -> 0 | E36: Est. kW Savings | F36: =Inventory!$AO$3 -> 0
B37: Est. Utility Incentive | C37: =Inventory!$AQ$3 -> 0 | E37: Est. kWh Savings | F37: =Inventory!$AP$3 -> 0
B38: Est. Project Cost after Incentive | C38: =$C$36-$C$37 -> 0 | E38: Est. Annual Energy Savings | F38: =($B$26*$F$36)+($B$27*$F$37) -> 0
B40: Payback & Return on Investment | E40: Cost of Waiting
B41: Simple Payback (years) | C41: =MAX(0,IF(ISERROR($C$38/$F$38),0,$C$38/$F$38)) -> 0 | E41: Monthly | F41: =$F$42/12 -> 0
B42: Return on Investment | C42: =IF(ISERROR(1/$C$41),0,1/$C$41) -> 0 | E42: Annually | F42: =$F$38 -> 0
B44: CLEAResult makes this tool available to participants in our Energy Efficiency programs. CLEAResult makes no warranties, whether expressed or implied, nor assumes any legal liability or responsibility for the accuracy, completeness, or usefulness of the contents of this Energy Efficiency Assessment. These calculations are based on the rates displayed above. These calculations are not exact and should only be used to formulate a decision on whether or not to pursue an HVAC retrofit.
H47: Existing | J47: Post-Retrofit | L47: Existing | M47: =($H$49*$B$26)+($I$49*$B$27) -> 0
H48: kW | I48: kWh | J48: kW | K48: kWh | L48: Retrofit | M48: =($J$49*$B$26)+($K$49*$B$27) -> 0
H49: =IFERROR(SUM(Inventory!EB8:EB32),0) -> 0 | I49: =IFERROR(SUM(Inventory!EA8:EA32),0) -> 0 | J49: =$H$49-$F$36 -> 0 | K49: =$I$49-$F$37 -> 0 | L49: Cost of Waiting | M49: =$M$47-$M$48 -> 0
L51: Y-Axis | M51: X-Axis
L52: ANNUAL COST OF WAITING! | M52: =$M$49 -> 0
L53: Annual Cost after Retrofit | M53: =$M$48 -> 0
L54: Annual Cost before Retrofit | M54: =$M$47 -> 0
C72: Totals: | F72: Totals:
B73: Est. Demand Reduction (kW) : | C73: =$F$36 -> 0 | E73: Est. Total Year 1 Cash Flow : | F73: =$J$79 -> 0
B74: Est. Energy Reduction (kWh) : | C74: =$F$37 -> 0 | E74: Est. Total Year 5 Cash Flow : | F74: =$J$80 -> 0
B75: Est. Annual $ Savings : | C75: =$F$38 -> 0 | E75: Est. Total Year 10 Cash Flow : | F75: =$J$81 -> 0
B76: Est. Project Cost : | C76: =$C$36 -> 0 | E76: Est. Total Year 15 Cash Flow : | F76: =$J$82 -> 0
B77: Est. Program Incentive : | C77: =$C$37 -> 0
H79: Year 1 | I79: =$F$38 -> 0 | J79: =$I79-$C$38 -> 0
H80: Year 5 | I80: =$I$79*5 -> 0 | J80: =$I80-$C$38 -> 0
H81: Year 10 | I81: =$I$79*10 -> 0 | J81: =$I81-$C$38 -> 0
H82: Year 15 | I82: =$I$79*15 -> 0 | J82: =$I82-$C$38 -> 0
B105: Annual Carbon Impact
B106: Your energy efficiency opportunity's estimated energy savings is roughly equivalent to the annual carbon dioxide emissions reduction of:
H107: CO2 Equivalency Type | K107: kWh | L107: CO2 (Tons) | M107: Equivalency
H108: Acres of Forest | K108: =$F$37 -> 0 | L108: =$K108*0.00068956 -> 0 | M108: =$L108/1.22 -> 0
H109: Recyc Tons of Waste | K109: =$F$37 -> 0 | L109: =$K109*0.00068956 -> 0 | M109: =$L109/2.67 -> 0
H110: Passenger Vehicles | K110: =$F$37 -> 0 | L110: =$K110*0.00068956 -> 0 | M110: =$L110/4.8 -> 0
H111: Homes Worth of Elec | K111: =$F$37 -> 0 | L111: =$K111*0.00068956 -> 0 | M111: =$L111/6.68 -> 0
H112: Tanker Trucks of Gas | K112: =$F$37 -> 0 | L112: =$K112*0.00068956 -> 0 | M112: =$L112/75.82 -> 0
B124: NOTES

Sheet Inspection Form (hidden)
A1: 1 | C1: HVAC INSPECTION FORM | M1: Project: | N1: =IF('Project Info'!D4="","",'Project Info'!D4) ->  | T1: Pre Inspection
C2: Post Inspection | T2: Post Inspection
C3: Project Type | D3: Building Type | E3: Removed Equipment | M3: Installed Equipment
E4: Make / Model # | F4: Equipment Type | G4: Cooling Capacity | I4: Equipment Detail | J4: Heating Section Type | K4: # of Units | L4: Manuf Year | M4: Make / Model # | N4: Serial # | O4: Equipment Type | P4: Cooling Capacity | R4: Equipment Detail | S4: Heating Section Type | T4: # of Units | U4: Part of Redundant Chiller System? | V4: HP of Condenser Water Pump | W4: HP of Cooling Tower Fan
G5: Units | H5: Rating | P5: Units | Q5: Rating
B6: 1 | C6: =IF(Inventory!B8="","",Inventory!B8) ->  | D6: =IF(Inventory!C8="","",Inventory!C8) ->  | E6: =IF(Inventory!D8="","",Inventory!D8) ->  | F6: =IF(Inventory!F8="","",Inventory!F8) ->  | G6: =IF(Inventory!H8="","",Inventory!H8) ->  | H6: =IF(Inventory!G8="","",Inventory!G8) ->  | I6: =IF(Inventory!I8="","",Inventory!I8) ->  | J6: =IF(Inventory!J8="","",Inventory!J8) ->  | K6: =IF(Inventory!K8="","",Inventory!K8) ->  | L6: =IF(Inventory!L8="","",Inventory!L8) ->  | M6: =IF(Inventory!M8="","",Inventory!M8) ->  | N6: =IF(Inventory!N8="","",Inventory!N8) ->  | O6: =IF(Inventory!P8="","",Inventory!P8) ->  | P6: =IF(Inventory!R8="","",Inventory!R8) ->  | Q6: =IF(Inventory!Q8="","",Inventory!Q8) ->  | R6: =IF(Inventory!U8="","",Inventory!U8) ->  | S6: =IF(Inventory!V8="","",Inventory!V8) ->  | T6: =IF(Inventory!AF8="","",Inventory!AF8) ->  | U6: =IF(Inventory!X8="","",Inventory!X8) ->  | V6: =IF(Inventory!Y8="","",Inventory!Y8) ->  | W6: =IF(Inventory!Z8="","",Inventory!Z8) ->  | X6: =IFERROR(SEARCH("Chiller",O6),0) -> 0
B7: 2 | C7: =IF(Inventory!B9="","",Inventory!B9) ->  | D7: =IF(Inventory!C9="","",Inventory!C9) ->  | E7: =IF(Inventory!D9="","",Inventory!D9) ->  | F7: =IF(Inventory!F9="","",Inventory!F9) ->  | G7: =IF(Inventory!H9="","",Inventory!H9) ->  | H7: =IF(Inventory!G9="","",Inventory!G9) ->  | I7: =IF(Inventory!I9="","",Inventory!I9) ->  | J7: =IF(Inventory!J9="","",Inventory!J9) ->  | K7: =IF(Inventory!K9="","",Inventory!K9) ->  | L7: =IF(Inventory!L9="","",Inventory!L9) ->  | M7: =IF(Inventory!M9="","",Inventory!M9) ->  | N7: =IF(Inventory!N9="","",Inventory!N9) ->  | O7: =IF(Inventory!P9="","",Inventory!P9) ->  | P7: =IF(Inventory!R9="","",Inventory!R9) ->  | Q7: =IF(Inventory!Q9="","",Inventory!Q9) ->  | R7: =IF(Inventory!U9="","",Inventory!U9) ->  | S7: =IF(Inventory!V9="","",Inventory!V9) ->  | T7: =IF(Inventory!AF9="","",Inventory!AF9) ->  | U7: =IF(Inventory!X9="","",Inventory!X9) ->  | V7: =IF(Inventory!Y9="","",Inventory!Y9) ->  | W7: =IF(Inventory!Z9="","",Inventory!Z9) ->  | X7: =IFERROR(SEARCH("Chiller",O7),0) -> 0
B8: 3 | C8: =IF(Inventory!B10="","",Inventory!B10) ->  | D8: =IF(Inventory!C10="","",Inventory!C10) ->  | E8: =IF(Inventory!D10="","",Inventory!D10) ->  | F8: =IF(Inventory!F10="","",Inventory!F10) ->  | G8: =IF(Inventory!H10="","",Inventory!H10) ->  | H8: =IF(Inventory!G10="","",Inventory!G10) ->  | I8: =IF(Inventory!I10="","",Inventory!I10) ->  | J8: =IF(Inventory!J10="","",Inventory!J10) ->  | K8: =IF(Inventory!K10="","",Inventory!K10) ->  | L8: =IF(Inventory!L10="","",Inventory!L10) ->  | M8: =IF(Inventory!M10="","",Inventory!M10) ->  | N8: =IF(Inventory!N10="","",Inventory!N10) ->  | O8: =IF(Inventory!P10="","",Inventory!P10) ->  | P8: =IF(Inventory!R10="","",Inventory!R10) ->  | Q8: =IF(Inventory!Q10="","",Inventory!Q10) ->  | R8: =IF(Inventory!U10="","",Inventory!U10) ->  | S8: =IF(Inventory!V10="","",Inventory!V10) ->  | T8: =IF(Inventory!AF10="","",Inventory!AF10) ->  | U8: =IF(Inventory!X10="","",Inventory!X10) ->  | V8: =IF(Inventory!Y10="","",Inventory!Y10) ->  | W8: =IF(Inventory!Z10="","",Inventory!Z10) ->  | X8: 0
B9: 4 | C9: =IF(Inventory!B11="","",Inventory!B11) ->  | D9: =IF(Inventory!C11="","",Inventory!C11) ->  | E9: =IF(Inventory!D11="","",Inventory!D11) ->  | F9: =IF(Inventory!F11="","",Inventory!F11) ->  | G9: =IF(Inventory!H11="","",Inventory!H11) ->  | H9: =IF(Inventory!G11="","",Inventory!G11) ->  | I9: =IF(Inventory!I11="","",Inventory!I11) ->  | J9: =IF(Inventory!J11="","",Inventory!J11) ->  | K9: =IF(Inventory!K11="","",Inventory!K11) ->  | L9: =IF(Inventory!L11="","",Inventory!L11) ->  | M9: =IF(Inventory!M11="","",Inventory!M11) ->  | N9: =IF(Inventory!N11="","",Inventory!N11) ->  | O9: =IF(Inventory!P11="","",Inventory!P11) ->  | P9: =IF(Inventory!R11="","",Inventory!R11) ->  | Q9: =IF(Inventory!Q11="","",Inventory!Q11) ->  | R9: =IF(Inventory!U11="","",Inventory!U11) ->  | S9: =IF(Inventory!V11="","",Inventory!V11) ->  | T9: =IF(Inventory!AF11="","",Inventory!AF11) ->  | U9: =IF(Inventory!X11="","",Inventory!X11) ->  | V9: =IF(Inventory!Y11="","",Inventory!Y11) ->  | W9: =IF(Inventory!Z11="","",Inventory!Z11) ->  | X9: 0
B10: 5 | C10: =IF(Inventory!B12="","",Inventory!B12) ->  | D10: =IF(Inventory!C12="","",Inventory!C12) ->  | E10: =IF(Inventory!D12="","",Inventory!D12) ->  | F10: =IF(Inventory!F12="","",Inventory!F12) ->  | G10: =IF(Inventory!H12="","",Inventory!H12) ->  | H10: =IF(Inventory!G12="","",Inventory!G12) ->  | I10: =IF(Inventory!I12="","",Inventory!I12) ->  | J10: =IF(Inventory!J12="","",Inventory!J12) ->  | K10: =IF(Inventory!K12="","",Inventory!K12) ->  | L10: =IF(Inventory!L12="","",Inventory!L12) ->  | M10: =IF(Inventory!M12="","",Inventory!M12) ->  | N10: =IF(Inventory!N12="","",Inventory!N12) ->  | O10: =IF(Inventory!P12="","",Inventory!P12) ->  | P10: =IF(Inventory!R12="","",Inventory!R12) ->  | Q10: =IF(Inventory!Q12="","",Inventory!Q12) ->  | R10: =IF(Inventory!U12="","",Inventory!U12) ->  | S10: =IF(Inventory!V12="","",Inventory!V12) ->  | T10: =IF(Inventory!AF12="","",Inventory!AF12) ->  | U10: =IF(Inventory!X12="","",Inventory!X12) ->  | V10: =IF(Inventory!Y12="","",Inventory!Y12) ->  | W10: =IF(Inventory!Z12="","",Inventory!Z12) ->  | X10: 0
B11: 6 | C11: =IF(Inventory!B13="","",Inventory!B13) ->  | D11: =IF(Inventory!C13="","",Inventory!C13) ->  | E11: =IF(Inventory!D13="","",Inventory!D13) ->  | F11: =IF(Inventory!F13="","",Inventory!F13) ->  | G11: =IF(Inventory!H13="","",Inventory!H13) ->  | H11: =IF(Inventory!G13="","",Inventory!G13) ->  | I11: =IF(Inventory!I13="","",Inventory!I13) ->  | J11: =IF(Inventory!J13="","",Inventory!J13) ->  | K11: =IF(Inventory!K13="","",Inventory!K13) ->  | L11: =IF(Inventory!L13="","",Inventory!L13) ->  | M11: =IF(Inventory!M13="","",Inventory!M13) ->  | N11: =IF(Inventory!N13="","",Inventory!N13) ->  | O11: =IF(Inventory!P13="","",Inventory!P13) ->  | P11: =IF(Inventory!R13="","",Inventory!R13) ->  | Q11: =IF(Inventory!Q13="","",Inventory!Q13) ->  | R11: =IF(Inventory!U13="","",Inventory!U13) ->  | S11: =IF(Inventory!V13="","",Inventory!V13) ->  | T11: =IF(Inventory!AF13="","",Inventory!AF13) ->  | U11: =IF(Inventory!X13="","",Inventory!X13) ->  | V11: =IF(Inventory!Y13="","",Inventory!Y13) ->  | W11: =IF(Inventory!Z13="","",Inventory!Z13) ->  | X11: 0
B12: 7 | C12: =IF(Inventory!B14="","",Inventory!B14) ->  | D12: =IF(Inventory!C14="","",Inventory!C14) ->  | E12: =IF(Inventory!D14="","",Inventory!D14) ->  | F12: =IF(Inventory!F14="","",Inventory!F14) ->  | G12: =IF(Inventory!H14="","",Inventory!H14) ->  | H12: =IF(Inventory!G14="","",Inventory!G14) ->  | I12: =IF(Inventory!I14="","",Inventory!I14) ->  | J12: =IF(Inventory!J14="","",Inventory!J14) ->  | K12: =IF(Inventory!K14="","",Inventory!K14) ->  | L12: =IF(Inventory!L14="","",Inventory!L14) ->  | M12: =IF(Inventory!M14="","",Inventory!M14) ->  | N12: =IF(Inventory!N14="","",Inventory!N14) ->  | O12: =IF(Inventory!P14="","",Inventory!P14) ->  | P12: =IF(Inventory!R14="","",Inventory!R14) ->  | Q12: =IF(Inventory!Q14="","",Inventory!Q14) ->  | R12: =IF(Inventory!U14="","",Inventory!U14) ->  | S12: =IF(Inventory!V14="","",Inventory!V14) ->  | T12: =IF(Inventory!AF14="","",Inventory!AF14) ->  | U12: =IF(Inventory!X14="","",Inventory!X14) ->  | V12: =IF(Inventory!Y14="","",Inventory!Y14) ->  | W12: =IF(Inventory!Z14="","",Inventory!Z14) ->  | X12: 0
B13: 8 | C13: =IF(Inventory!B15="","",Inventory!B15) ->  | D13: =IF(Inventory!C15="","",Inventory!C15) ->  | E13: =IF(Inventory!D15="","",Inventory!D15) ->  | F13: =IF(Inventory!F15="","",Inventory!F15) ->  | G13: =IF(Inventory!H15="","",Inventory!H15) ->  | H13: =IF(Inventory!G15="","",Inventory!G15) ->  | I13: =IF(Inventory!I15="","",Inventory!I15) ->  | J13: =IF(Inventory!J15="","",Inventory!J15) ->  | K13: =IF(Inventory!K15="","",Inventory!K15) ->  | L13: =IF(Inventory!L15="","",Inventory!L15) ->  | M13: =IF(Inventory!M15="","",Inventory!M15) ->  | N13: =IF(Inventory!N15="","",Inventory!N15) ->  | O13: =IF(Inventory!P15="","",Inventory!P15) ->  | P13: =IF(Inventory!R15="","",Inventory!R15) ->  | Q13: =IF(Inventory!Q15="","",Inventory!Q15) ->  | R13: =IF(Inventory!U15="","",Inventory!U15) ->  | S13: =IF(Inventory!V15="","",Inventory!V15) ->  | T13: =IF(Inventory!AF15="","",Inventory!AF15) ->  | U13: =IF(Inventory!X15="","",Inventory!X15) ->  | V13: =IF(Inventory!Y15="","",Inventory!Y15) ->  | W13: =IF(Inventory!Z15="","",Inventory!Z15) ->  | X13: 0
B14: 9 | C14: =IF(Inventory!B16="","",Inventory!B16) ->  | D14: =IF(Inventory!C16="","",Inventory!C16) ->  | E14: =IF(Inventory!D16="","",Inventory!D16) ->  | F14: =IF(Inventory!F16="","",Inventory!F16) ->  | G14: =IF(Inventory!H16="","",Inventory!H16) ->  | H14: =IF(Inventory!G16="","",Inventory!G16) ->  | I14: =IF(Inventory!I16="","",Inventory!I16) ->  | J14: =IF(Inventory!J16="","",Inventory!J16) ->  | K14: =IF(Inventory!K16="","",Inventory!K16) ->  | L14: =IF(Inventory!L16="","",Inventory!L16) ->  | M14: =IF(Inventory!M16="","",Inventory!M16) ->  | N14: =IF(Inventory!N16="","",Inventory!N16) ->  | O14: =IF(Inventory!P16="","",Inventory!P16) ->  | P14: =IF(Inventory!R16="","",Inventory!R16) ->  | Q14: =IF(Inventory!Q16="","",Inventory!Q16) ->  | R14: =IF(Inventory!U16="","",Inventory!U16) ->  | S14: =IF(Inventory!V16="","",Inventory!V16) ->  | T14: =IF(Inventory!AF16="","",Inventory!AF16) ->  | U14: =IF(Inventory!X16="","",Inventory!X16) ->  | V14: =IF(Inventory!Y16="","",Inventory!Y16) ->  | W14: =IF(Inventory!Z16="","",Inventory!Z16) ->  | X14: 0
B15: 10 | C15: =IF(Inventory!B17="","",Inventory!B17) ->  | D15: =IF(Inventory!C17="","",Inventory!C17) ->  | E15: =IF(Inventory!D17="","",Inventory!D17) ->  | F15: =IF(Inventory!F17="","",Inventory!F17) ->  | G15: =IF(Inventory!H17="","",Inventory!H17) ->  | H15: =IF(Inventory!G17="","",Inventory!G17) ->  | I15: =IF(Inventory!I17="","",Inventory!I17) ->  | J15: =IF(Inventory!J17="","",Inventory!J17) ->  | K15: =IF(Inventory!K17="","",Inventory!K17) ->  | L15: =IF(Inventory!L17="","",Inventory!L17) ->  | M15: =IF(Inventory!M17="","",Inventory!M17) ->  | N15: =IF(Inventory!N17="","",Inventory!N17) ->  | O15: =IF(Inventory!P17="","",Inventory!P17) ->  | P15: =IF(Inventory!R17="","",Inventory!R17) ->  | Q15: =IF(Inventory!Q17="","",Inventory!Q17) ->  | R15: =IF(Inventory!U17="","",Inventory!U17) ->  | S15: =IF(Inventory!V17="","",Inventory!V17) ->  | T15: =IF(Inventory!AF17="","",Inventory!AF17) ->  | U15: =IF(Inventory!X17="","",Inventory!X17) ->  | V15: =IF(Inventory!Y17="","",Inventory!Y17) ->  | W15: =IF(Inventory!Z17="","",Inventory!Z17) ->  | X15: 0
B16: 11 | C16: =IF(Inventory!B18="","",Inventory!B18) ->  | D16: =IF(Inventory!C18="","",Inventory!C18) ->  | E16: =IF(Inventory!D18="","",Inventory!D18) ->  | F16: =IF(Inventory!F18="","",Inventory!F18) ->  | G16: =IF(Inventory!H18="","",Inventory!H18) ->  | H16: =IF(Inventory!G18="","",Inventory!G18) ->  | I16: =IF(Inventory!I18="","",Inventory!I18) ->  | J16: =IF(Inventory!J18="","",Inventory!J18) ->  | K16: =IF(Inventory!K18="","",Inventory!K18) ->  | L16: =IF(Inventory!L18="","",Inventory!L18) ->  | M16: =IF(Inventory!M18="","",Inventory!M18) ->  | N16: =IF(Inventory!N18="","",Inventory!N18) ->  | O16: =IF(Inventory!P18="","",Inventory!P18) ->  | P16: =IF(Inventory!R18="","",Inventory!R18) ->  | Q16: =IF(Inventory!Q18="","",Inventory!Q18) ->  | R16: =IF(Inventory!U18="","",Inventory!U18) ->  | S16: =IF(Inventory!V18="","",Inventory!V18) ->  | T16: =IF(Inventory!AF18="","",Inventory!AF18) ->  | U16: =IF(Inventory!X18="","",Inventory!X18) ->  | V16: =IF(Inventory!Y18="","",Inventory!Y18) ->  | W16: =IF(Inventory!Z18="","",Inventory!Z18) ->  | X16: 0
B17: 12 | C17: =IF(Inventory!B19="","",Inventory!B19) ->  | D17: =IF(Inventory!C19="","",Inventory!C19) ->  | E17: =IF(Inventory!D19="","",Inventory!D19) ->  | F17: =IF(Inventory!F19="","",Inventory!F19) ->  | G17: =IF(Inventory!H19="","",Inventory!H19) ->  | H17: =IF(Inventory!G19="","",Inventory!G19) ->  | I17: =IF(Inventory!I19="","",Inventory!I19) ->  | J17: =IF(Inventory!J19="","",Inventory!J19) ->  | K17: =IF(Inventory!K19="","",Inventory!K19) ->  | L17: =IF(Inventory!L19="","",Inventory!L19) ->  | M17: =IF(Inventory!M19="","",Inventory!M19) ->  | N17: =IF(Inventory!N19="","",Inventory!N19) ->  | O17: =IF(Inventory!P19="","",Inventory!P19) ->  | P17: =IF(Inventory!R19="","",Inventory!R19) ->  | Q17: =IF(Inventory!Q19="","",Inventory!Q19) ->  | R17: =IF(Inventory!U19="","",Inventory!U19) ->  | S17: =IF(Inventory!V19="","",Inventory!V19) ->  | T17: =IF(Inventory!AF19="","",Inventory!AF19) ->  | U17: =IF(Inventory!X19="","",Inventory!X19) ->  | V17: =IF(Inventory!Y19="","",Inventory!Y19) ->  | W17: =IF(Inventory!Z19="","",Inventory!Z19) ->  | X17: 0
B18: 13 | C18: =IF(Inventory!B20="","",Inventory!B20) ->  | D18: =IF(Inventory!C20="","",Inventory!C20) ->  | E18: =IF(Inventory!D20="","",Inventory!D20) ->  | F18: =IF(Inventory!F20="","",Inventory!F20) ->  | G18: =IF(Inventory!H20="","",Inventory!H20) ->  | H18: =IF(Inventory!G20="","",Inventory!G20) ->  | I18: =IF(Inventory!I20="","",Inventory!I20) ->  | J18: =IF(Inventory!J20="","",Inventory!J20) ->  | K18: =IF(Inventory!K20="","",Inventory!K20) ->  | L18: =IF(Inventory!L20="","",Inventory!L20) ->  | M18: =IF(Inventory!M20="","",Inventory!M20) ->  | N18: =IF(Inventory!N20="","",Inventory!N20) ->  | O18: =IF(Inventory!P20="","",Inventory!P20) ->  | P18: =IF(Inventory!R20="","",Inventory!R20) ->  | Q18: =IF(Inventory!Q20="","",Inventory!Q20) ->  | R18: =IF(Inventory!U20="","",Inventory!U20) ->  | S18: =IF(Inventory!V20="","",Inventory!V20) ->  | T18: =IF(Inventory!AF20="","",Inventory!AF20) ->  | U18: =IF(Inventory!X20="","",Inventory!X20) ->  | V18: =IF(Inventory!Y20="","",Inventory!Y20) ->  | W18: =IF(Inventory!Z20="","",Inventory!Z20) ->  | X18: 0
B19: 14 | C19: =IF(Inventory!B21="","",Inventory!B21) ->  | D19: =IF(Inventory!C21="","",Inventory!C21) ->  | E19: =IF(Inventory!D21="","",Inventory!D21) ->  | F19: =IF(Inventory!F21="","",Inventory!F21) ->  | G19: =IF(Inventory!H21="","",Inventory!H21) ->  | H19: =IF(Inventory!G21="","",Inventory!G21) ->  | I19: =IF(Inventory!I21="","",Inventory!I21) ->  | J19: =IF(Inventory!J21="","",Inventory!J21) ->  | K19: =IF(Inventory!K21="","",Inventory!K21) ->  | L19: =IF(Inventory!L21="","",Inventory!L21) ->  | M19: =IF(Inventory!M21="","",Inventory!M21) ->  | N19: =IF(Inventory!N21="","",Inventory!N21) ->  | O19: =IF(Inventory!P21="","",Inventory!P21) ->  | P19: =IF(Inventory!R21="","",Inventory!R21) ->  | Q19: =IF(Inventory!Q21="","",Inventory!Q21) ->  | R19: =IF(Inventory!U21="","",Inventory!U21) ->  | S19: =IF(Inventory!V21="","",Inventory!V21) ->  | T19: =IF(Inventory!AF21="","",Inventory!AF21) ->  | U19: =IF(Inventory!X21="","",Inventory!X21) ->  | V19: =IF(Inventory!Y21="","",Inventory!Y21) ->  | W19: =IF(Inventory!Z21="","",Inventory!Z21) ->  | X19: 0
B20: 15 | C20: =IF(Inventory!B22="","",Inventory!B22) ->  | D20: =IF(Inventory!C22="","",Inventory!C22) ->  | E20: =IF(Inventory!D22="","",Inventory!D22) ->  | F20: =IF(Inventory!F22="","",Inventory!F22) ->  | G20: =IF(Inventory!H22="","",Inventory!H22) ->  | H20: =IF(Inventory!G22="","",Inventory!G22) ->  | I20: =IF(Inventory!I22="","",Inventory!I22) ->  | J20: =IF(Inventory!J22="","",Inventory!J22) ->  | K20: =IF(Inventory!K22="","",Inventory!K22) ->  | L20: =IF(Inventory!L22="","",Inventory!L22) ->  | M20: =IF(Inventory!M22="","",Inventory!M22) ->  | N20: =IF(Inventory!N22="","",Inventory!N22) ->  | O20: =IF(Inventory!P22="","",Inventory!P22) ->  | P20: =IF(Inventory!R22="","",Inventory!R22) ->  | Q20: =IF(Inventory!Q22="","",Inventory!Q22) ->  | R20: =IF(Inventory!U22="","",Inventory!U22) ->  | S20: =IF(Inventory!V22="","",Inventory!V22) ->  | T20: =IF(Inventory!AF22="","",Inventory!AF22) ->  | U20: =IF(Inventory!X22="","",Inventory!X22) ->  | V20: =IF(Inventory!Y22="","",Inventory!Y22) ->  | W20: =IF(Inventory!Z22="","",Inventory!Z22) ->  | X20: 0
B21: 16 | C21: =IF(Inventory!B23="","",Inventory!B23) ->  | D21: =IF(Inventory!C23="","",Inventory!C23) ->  | E21: =IF(Inventory!D23="","",Inventory!D23) ->  | F21: =IF(Inventory!F23="","",Inventory!F23) ->  | G21: =IF(Inventory!H23="","",Inventory!H23) ->  | H21: =IF(Inventory!G23="","",Inventory!G23) ->  | I21: =IF(Inventory!I23="","",Inventory!I23) ->  | J21: =IF(Inventory!J23="","",Inventory!J23) ->  | K21: =IF(Inventory!K23="","",Inventory!K23) ->  | L21: =IF(Inventory!L23="","",Inventory!L23) ->  | M21: =IF(Inventory!M23="","",Inventory!M23) ->  | N21: =IF(Inventory!N23="","",Inventory!N23) ->  | O21: =IF(Inventory!P23="","",Inventory!P23) ->  | P21: =IF(Inventory!R23="","",Inventory!R23) ->  | Q21: =IF(Inventory!Q23="","",Inventory!Q23) ->  | R21: =IF(Inventory!U23="","",Inventory!U23) ->  | S21: =IF(Inventory!V23="","",Inventory!V23) ->  | T21: =IF(Inventory!AF23="","",Inventory!AF23) ->  | U21: =IF(Inventory!X23="","",Inventory!X23) ->  | V21: =IF(Inventory!Y23="","",Inventory!Y23) ->  | W21: =IF(Inventory!Z23="","",Inventory!Z23) ->  | X21: 0
B22: 17 | C22: =IF(Inventory!B24="","",Inventory!B24) ->  | D22: =IF(Inventory!C24="","",Inventory!C24) ->  | E22: =IF(Inventory!D24="","",Inventory!D24) ->  | F22: =IF(Inventory!F24="","",Inventory!F24) ->  | G22: =IF(Inventory!H24="","",Inventory!H24) ->  | H22: =IF(Inventory!G24="","",Inventory!G24) ->  | I22: =IF(Inventory!I24="","",Inventory!I24) ->  | J22: =IF(Inventory!J24="","",Inventory!J24) ->  | K22: =IF(Inventory!K24="","",Inventory!K24) ->  | L22: =IF(Inventory!L24="","",Inventory!L24) ->  | M22: =IF(Inventory!M24="","",Inventory!M24) ->  | N22: =IF(Inventory!N24="","",Inventory!N24) ->  | O22: =IF(Inventory!P24="","",Inventory!P24) ->  | P22: =IF(Inventory!R24="","",Inventory!R24) ->  | Q22: =IF(Inventory!Q24="","",Inventory!Q24) ->  | R22: =IF(Inventory!U24="","",Inventory!U24) ->  | S22: =IF(Inventory!V24="","",Inventory!V24) ->  | T22: =IF(Inventory!AF24="","",Inventory!AF24) ->  | U22: =IF(Inventory!X24="","",Inventory!X24) ->  | V22: =IF(Inventory!Y24="","",Inventory!Y24) ->  | W22: =IF(Inventory!Z24="","",Inventory!Z24) ->  | X22: 0
B23: 18 | C23: =IF(Inventory!B25="","",Inventory!B25) ->  | D23: =IF(Inventory!C25="","",Inventory!C25) ->  | E23: =IF(Inventory!D25="","",Inventory!D25) ->  | F23: =IF(Inventory!F25="","",Inventory!F25) ->  | G23: =IF(Inventory!H25="","",Inventory!H25) ->  | H23: =IF(Inventory!G25="","",Inventory!G25) ->  | I23: =IF(Inventory!I25="","",Inventory!I25) ->  | J23: =IF(Inventory!J25="","",Inventory!J25) ->  | K23: =IF(Inventory!K25="","",Inventory!K25) ->  | L23: =IF(Inventory!L25="","",Inventory!L25) ->  | M23: =IF(Inventory!M25="","",Inventory!M25) ->  | N23: =IF(Inventory!N25="","",Inventory!N25) ->  | O23: =IF(Inventory!P25="","",Inventory!P25) ->  | P23: =IF(Inventory!R25="","",Inventory!R25) ->  | Q23: =IF(Inventory!Q25="","",Inventory!Q25) ->  | R23: =IF(Inventory!U25="","",Inventory!U25) ->  | S23: =IF(Inventory!V25="","",Inventory!V25) ->  | T23: =IF(Inventory!AF25="","",Inventory!AF25) ->  | U23: =IF(Inventory!X25="","",Inventory!X25) ->  | V23: =IF(Inventory!Y25="","",Inventory!Y25) ->  | W23: =IF(Inventory!Z25="","",Inventory!Z25) ->  | X23: 0
B24: 19 | C24: =IF(Inventory!B26="","",Inventory!B26) ->  | D24: =IF(Inventory!C26="","",Inventory!C26) ->  | E24: =IF(Inventory!D26="","",Inventory!D26) ->  | F24: =IF(Inventory!F26="","",Inventory!F26) ->  | G24: =IF(Inventory!H26="","",Inventory!H26) ->  | H24: =IF(Inventory!G26="","",Inventory!G26) ->  | I24: =IF(Inventory!I26="","",Inventory!I26) ->  | J24: =IF(Inventory!J26="","",Inventory!J26) ->  | K24: =IF(Inventory!K26="","",Inventory!K26) ->  | L24: =IF(Inventory!L26="","",Inventory!L26) ->  | M24: =IF(Inventory!M26="","",Inventory!M26) ->  | N24: =IF(Inventory!N26="","",Inventory!N26) ->  | O24: =IF(Inventory!P26="","",Inventory!P26) ->  | P24: =IF(Inventory!R26="","",Inventory!R26) ->  | Q24: =IF(Inventory!Q26="","",Inventory!Q26) ->  | R24: =IF(Inventory!U26="","",Inventory!U26) ->  | S24: =IF(Inventory!V26="","",Inventory!V26) ->  | T24: =IF(Inventory!AF26="","",Inventory!AF26) ->  | U24: =IF(Inventory!X26="","",Inventory!X26) ->  | V24: =IF(Inventory!Y26="","",Inventory!Y26) ->  | W24: =IF(Inventory!Z26="","",Inventory!Z26) ->  | X24: 0
B25: 20 | C25: =IF(Inventory!B27="","",Inventory!B27) ->  | D25: =IF(Inventory!C27="","",Inventory!C27) ->  | E25: =IF(Inventory!D27="","",Inventory!D27) ->  | F25: =IF(Inventory!F27="","",Inventory!F27) ->  | G25: =IF(Inventory!H27="","",Inventory!H27) ->  | H25: =IF(Inventory!G27="","",Inventory!G27) ->  | I25: =IF(Inventory!I27="","",Inventory!I27) ->  | J25: =IF(Inventory!J27="","",Inventory!J27) ->  | K25: =IF(Inventory!K27="","",Inventory!K27) ->  | L25: =IF(Inventory!L27="","",Inventory!L27) ->  | M25: =IF(Inventory!M27="","",Inventory!M27) ->  | N25: =IF(Inventory!N27="","",Inventory!N27) ->  | O25: =IF(Inventory!P27="","",Inventory!P27) ->  | P25: =IF(Inventory!R27="","",Inventory!R27) ->  | Q25: =IF(Inventory!Q27="","",Inventory!Q27) ->  | R25: =IF(Inventory!U27="","",Inventory!U27) ->  | S25: =IF(Inventory!V27="","",Inventory!V27) ->  | T25: =IF(Inventory!AF27="","",Inventory!AF27) ->  | U25: =IF(Inventory!X27="","",Inventory!X27) ->  | V25: =IF(Inventory!Y27="","",Inventory!Y27) ->  | W25: =IF(Inventory!Z27="","",Inventory!Z27) ->  | X25: 0
B26: 21 | C26: =IF(Inventory!B28="","",Inventory!B28) ->  | D26: =IF(Inventory!C28="","",Inventory!C28) ->  | E26: =IF(Inventory!D28="","",Inventory!D28) ->  | F26: =IF(Inventory!F28="","",Inventory!F28) ->  | G26: =IF(Inventory!H28="","",Inventory!H28) ->  | H26: =IF(Inventory!G28="","",Inventory!G28) ->  | I26: =IF(Inventory!I28="","",Inventory!I28) ->  | J26: =IF(Inventory!J28="","",Inventory!J28) ->  | K26: =IF(Inventory!K28="","",Inventory!K28) ->  | L26: =IF(Inventory!L28="","",Inventory!L28) ->  | M26: =IF(Inventory!M28="","",Inventory!M28) ->  | N26: =IF(Inventory!N28="","",Inventory!N28) ->  | O26: =IF(Inventory!P28="","",Inventory!P28) ->  | P26: =IF(Inventory!R28="","",Inventory!R28) ->  | Q26: =IF(Inventory!Q28="","",Inventory!Q28) ->  | R26: =IF(Inventory!U28="","",Inventory!U28) ->  | S26: =IF(Inventory!V28="","",Inventory!V28) ->  | T26: =IF(Inventory!AF28="","",Inventory!AF28) ->  | U26: =IF(Inventory!X28="","",Inventory!X28) ->  | V26: =IF(Inventory!Y28="","",Inventory!Y28) ->  | W26: =IF(Inventory!Z28="","",Inventory!Z28) ->  | X26: 0
B27: 22 | C27: =IF(Inventory!B29="","",Inventory!B29) ->  | D27: =IF(Inventory!C29="","",Inventory!C29) ->  | E27: =IF(Inventory!D29="","",Inventory!D29) ->  | F27: =IF(Inventory!F29="","",Inventory!F29) ->  | G27: =IF(Inventory!H29="","",Inventory!H29) ->  | H27: =IF(Inventory!G29="","",Inventory!G29) ->  | I27: =IF(Inventory!I29="","",Inventory!I29) ->  | J27: =IF(Inventory!J29="","",Inventory!J29) ->  | K27: =IF(Inventory!K29="","",Inventory!K29) ->  | L27: =IF(Inventory!L29="","",Inventory!L29) ->  | M27: =IF(Inventory!M29="","",Inventory!M29) ->  | N27: =IF(Inventory!N29="","",Inventory!N29) ->  | O27: =IF(Inventory!P29="","",Inventory!P29) ->  | P27: =IF(Inventory!R29="","",Inventory!R29) ->  | Q27: =IF(Inventory!Q29="","",Inventory!Q29) ->  | R27: =IF(Inventory!U29="","",Inventory!U29) ->  | S27: =IF(Inventory!V29="","",Inventory!V29) ->  | T27: =IF(Inventory!AF29="","",Inventory!AF29) ->  | U27: =IF(Inventory!X29="","",Inventory!X29) ->  | V27: =IF(Inventory!Y29="","",Inventory!Y29) ->  | W27: =IF(Inventory!Z29="","",Inventory!Z29) ->  | X27: 0
B28: 23 | C28: =IF(Inventory!B30="","",Inventory!B30) ->  | D28: =IF(Inventory!C30="","",Inventory!C30) ->  | E28: =IF(Inventory!D30="","",Inventory!D30) ->  | F28: =IF(Inventory!F30="","",Inventory!F30) ->  | G28: =IF(Inventory!H30="","",Inventory!H30) ->  | H28: =IF(Inventory!G30="","",Inventory!G30) ->  | I28: =IF(Inventory!I30="","",Inventory!I30) ->  | J28: =IF(Inventory!J30="","",Inventory!J30) ->  | K28: =IF(Inventory!K30="","",Inventory!K30) ->  | L28: =IF(Inventory!L30="","",Inventory!L30) ->  | M28: =IF(Inventory!M30="","",Inventory!M30) ->  | N28: =IF(Inventory!N30="","",Inventory!N30) ->  | O28: =IF(Inventory!P30="","",Inventory!P30) ->  | P28: =IF(Inventory!R30="","",Inventory!R30) ->  | Q28: =IF(Inventory!Q30="","",Inventory!Q30) ->  | R28: =IF(Inventory!U30="","",Inventory!U30) ->  | S28: =IF(Inventory!V30="","",Inventory!V30) ->  | T28: =IF(Inventory!AF30="","",Inventory!AF30) ->  | U28: =IF(Inventory!X30="","",Inventory!X30) ->  | V28: =IF(Inventory!Y30="","",Inventory!Y30) ->  | W28: =IF(Inventory!Z30="","",Inventory!Z30) ->  | X28: 0
B29: 24 | C29: =IF(Inventory!B31="","",Inventory!B31) ->  | D29: =IF(Inventory!C31="","",Inventory!C31) ->  | E29: =IF(Inventory!D31="","",Inventory!D31) ->  | F29: =IF(Inventory!F31="","",Inventory!F31) ->  | G29: =IF(Inventory!H31="","",Inventory!H31) ->  | H29: =IF(Inventory!G31="","",Inventory!G31) ->  | I29: =IF(Inventory!I31="","",Inventory!I31) ->  | J29: =IF(Inventory!J31="","",Inventory!J31) ->  | K29: =IF(Inventory!K31="","",Inventory!K31) ->  | L29: =IF(Inventory!L31="","",Inventory!L31) ->  | M29: =IF(Inventory!M31="","",Inventory!M31) ->  | N29: =IF(Inventory!N31="","",Inventory!N31) ->  | O29: =IF(Inventory!P31="","",Inventory!P31) ->  | P29: =IF(Inventory!R31="","",Inventory!R31) ->  | Q29: =IF(Inventory!Q31="","",Inventory!Q31) ->  | R29: =IF(Inventory!U31="","",Inventory!U31) ->  | S29: =IF(Inventory!V31="","",Inventory!V31) ->  | T29: =IF(Inventory!AF31="","",Inventory!AF31) ->  | U29: =IF(Inventory!X31="","",Inventory!X31) ->  | V29: =IF(Inventory!Y31="","",Inventory!Y31) ->  | W29: =IF(Inventory!Z31="","",Inventory!Z31) ->  | X29: 0
B30: 25 | C30: =IF(Inventory!B32="","",Inventory!B32) ->  | D30: =IF(Inventory!C32="","",Inventory!C32) ->  | E30: =IF(Inventory!D32="","",Inventory!D32) ->  | F30: =IF(Inventory!F32="","",Inventory!F32) ->  | G30: =IF(Inventory!H32="","",Inventory!H32) ->  | H30: =IF(Inventory!G32="","",Inventory!G32) ->  | I30: =IF(Inventory!I32="","",Inventory!I32) ->  | J30: =IF(Inventory!J32="","",Inventory!J32) ->  | K30: =IF(Inventory!K32="","",Inventory!K32) ->  | L30: =IF(Inventory!L32="","",Inventory!L32) ->  | M30: =IF(Inventory!M32="","",Inventory!M32) ->  | N30: =IF(Inventory!N32="","",Inventory!N32) ->  | O30: =IF(Inventory!P32="","",Inventory!P32) ->  | P30: =IF(Inventory!R32="","",Inventory!R32) ->  | Q30: =IF(Inventory!Q32="","",Inventory!Q32) ->  | R30: =IF(Inventory!U32="","",Inventory!U32) ->  | S30: =IF(Inventory!V32="","",Inventory!V32) ->  | T30: =IF(Inventory!AF32="","",Inventory!AF32) ->  | U30: =IF(Inventory!X32="","",Inventory!X32) ->  | V30: =IF(Inventory!Y32="","",Inventory!Y32) ->  | W30: =IF(Inventory!Z32="","",Inventory!Z32) ->  | X30: 0
W31: =SUM(X6:X30) -> 0

Sheet Building Types (hidden)
A1: 1 | B1: Building Type | C1: Principal Building Activity | D1: Definition | E1: Detailed Business Type Examples | F1: Average Floor Area (ft2) | G1: Average # of Floors | H1: Cooling EFLH - DX Systems | I1: Cooling EFLH - Air-Cooled Chillers | J1: Cooling EFLH - Water-Cooled Chillers
B2: Education | C2: College | D2: Buildings used for academic or technical classroom instruction, such as elementary, middle, or high schools, and classroom buildings on college or university campuses. Buildings on education campuses for which the main use is not classroom are included in the category relating to their use. For example, administration buildings are part of "Office," dormitories are "Lodging," and libraries are "Public Assembly." | E2: 1) College or University | F2: Not specified | G2: Not specified | H2: 2101 | I2: 2173 | J2: 3894
E3: 2) Career or Vocational Training
E4: 3) Adult Education
C5: Primary School | E5: 1) Elementary or Middle School | F5: 73960 | G5: 1 | H5: 1633 | I5: 915 | J5: 1716
E6: 2) Preschool or Daycare
C7: Secondary School | E7: 1) High School | F7: 210887 | G7: 2 | H7: 1429 | I7: 1477 | J7: 2647
E8: 2) Religious Education
B10: Food Sales | C10: Convenience | D10: Buildings used for retail or wholesale of food. | E10: 1) Gas Station with a Convenience Store | F10: Not specified | G10: 1 | H10: 2307 | I10: - | J10: -
C11: Supermarket | E11: 2) Convenience Store | F11: 45000 | G11: 1 | H11: 829 | I11: - | J11: -
B12: Food Service | C12: Full-Service Restaurant | D12: Buildings used for preparation and sale of food and beverages for consumption. | E12: 1) Restaurant or Cafeteria | F12: 5500 | G12: 1 | H12: 2249 | I12: - | J12: -
C13: 24-Hr Full Service | H13: 2548 | I13: - | J13: -
C14: Quick-Service Restaurant | E14: 1) Fast Food | F14: 2500 | G14: 1 | H14: 1996 | I14: - | J14: -
C15: 24-Hr Quick Service | H15: 2311 | I15: - | J15: -
B16: Healthcare | C16: Hospital | D16: Buildings used as diagnostic and treatment facilities for inpatient care. | E16: 1) Hospital | F16: 241351 | G16: 5 | H16: 3534 | I16: 3115 | J16: 4015
E17: 2) Inpatient Rehabilitation
C18: Outpatient Healthcare | D18: Buildings used as diagnostic and treatment facilities for outpatient care. Medical offices are included here if they use any type of diagnostic medical equipment (if they do not, they are categorized as an office building). | E18: 1) Medical Office | F18: 40946 | G18: 3 | H18: 2925 | I18: - | J18: -
E19: 2) Clinic or Outpatient Health Care
E20: 3) Veterinarian
B21: Large Multifamily | C21: Midrise Apartment | D21: Buildings containing multifamily dwelling units, having multiple stories, and equipped with elevators. | E21: No sub-categories collected. | F21: 33740 | G21: 4 | H21: 2429 | I21: 1378 | J21: 2528
B22: Lodging | C22: Large Hotel | D22: Buildings used to offer multiple accommodations for short-term or long-term residents, including skilled nursing and other residential care buildings. | E22: 1) Motel or Inn | F22: 122120 | G22: 6 | H22: 2600 | I22: 2595 | J22: 3180
E23: 2) Hotel
E24: 3) Dormitory, Fraternity, or Sorority
C25: Nursing Home | E25: 4) Retirement Home, Nursing Home, Assisted Living, or other Residential Care | F25: Not specified | G25: Not specified | H25: 2467 | I25: 1400 | J25: 2568
C26: Small Hotel/Motel | E26: 5) Convent or Monastery | F26: 43200 | G26: 4 | H26: 2421 | I26: - | J26: -
B27: Mercantile | C27: Stand-Alone Retail | D27: Buildings used for the sale and display of goods other than food. | E27: 1) Retail Store | F27: 24962 | G27: 1 | H27: 1554 | I27: 1184 | J27: 1652
E28: 2) Beer, Wine, or Liquor Store
E29: 3) Rental Center
E30: 4) Dealership or Showroom for Vehicles or Boats
E31: 5) Studio or Gallery
C32: Strip Mall | D32: Shopping malls comprised of multiple connected establishments. | E32: 1) Strip Shopping Center | F32: 22500 | G32: 1 | H32: 1467 | I32: - | J32: -
E33: 2) Enclosed Malls
B34: Office | C34: Large Office | D34: Buildings used for general office space, professional office, or administrative offices. Medical offices are included here if they do not use any type of diagnostic medical equipment (if they do, they are categorized as an outpatient health care building). | E34: 1) Administrative or Professional Office | F34: 498588 | G34: 12 | H34: 2866 | I34: 2009 | J34: 2401
E35: 2) Government Office
E36: 3) Mixed-Use Office
E37: 4) Bank or Other Financial Institution
E38: 5) Medical Office
E39: 6) Sales Office
E40: 7) Contractor’s Office (e.g. Construction, Plumbing, HVAC)
E41: 8) Non-Profit or Social Services
E42: 9) Research and Development
E43: 10) City Hall or City Center
C44: Medium Office | E44: 11) Religious Office | F44: 53628 | G44: 3 | H44: 1523 | I44: 2009 | J44: 2401
C45: Small Office | E45: 12) Call Center | F45: 5500 | G45: 1 | H45: 1598 | I45: - | J45: -
B46: Public Assembly | C46: Public Assembly | D46: Buildings in which people gather for social or recreational activities, whether in private or non-private meeting halls. | E46: 1) Social or Meeting (e.g. Community Center, Lodge, Meeting Hall, Convention Center, Senior Center) | F46: Not specified | G46: Not specified | H46: 2196 | I46: 1231 | J46: 2307
E47: 2) Recreation (e.g. Gymnasium, Health Club, Bowling Alley, Ice Rink, Field House, Indoor Racquet Sports)
E48: 3) Entertainment or Culture (e.g. Museum, Theater, Cinema, Sports Arena, Casino, Night Club)
E49: 4) Library
E50: 5) Funeral Home
E51: 6) Student Activities Center
E52: 7) Armory
E53: 8) Exhibition Hall
E54: 9) Broadcasting Studio
E55: 10) Transportation Terminal
B56: Religious Worship | C56: Religious Worship | D56: Buildings in which people gather for religious activities, (such as chapels, churches, mosques, synagogues, and temples). | E56: No sub-categories collected. | F56: Not specified | G56: Not specified | H56: 602 | I56: 713 | J56: 994
B57: Other | C57: Other | D57: For building types not explicitly listed | E57: Values used for Other are the most conservative values from the explicitly listed building types | F57: Not specified | G57: Not specified | H57: 602 | I57: 713 | J57: 994
B58: Service | C58: Service | D58: Buildings in which some type of service is provided, other than food service or retail sales of goods. | E58: 1) Vehicle Service or Vehicle Repair Shop | F58: Not specified | G58: Not specified | H58: 1742 | I58: - | J58: -
E59: 2) Vehicle Storage/Maintenance
E60: 3) Repair Shop
E61: 4) Dry Cleaner or Laundromat
E62: 5) Post Office or Postal Center
E63: 6) Car Wash
E64: 7) Gas Station with no Convenience Store
E65: 8) Photo Processing Shop
E66: 9) Beauty Parlor or Barber Shop
E67: 10) Tanning Salon
E68: 11) Copy Center or Printing Shop
E69: 12) Kennel
B70: Warehouse | C70: Warehouse | D70: Buildings used to store goods, manufactured products, merchandise, raw materials, or personal belongings (such as self-storage). | E70: 1) Refrigerated Warehouse | F70: 52045 | G70: 1 | H70: 718 | I70: - | J70: -
E71: 2) Non-refrigerated warehouse
E72: 3) Distribution or Shipping Center

Sheet Unitary (hidden)
D1: UnitaryAirConditioner | H1: UnitaryAirConditioner | L1: UnitaryAirConditioner | P1: UnitaryAirConditioner | T1: UnitaryAirConditioner | X1: UnitaryAirConditioner | AB1: UnitaryAirConditioner | AF1: UnitaryAirConditioner | AJ1: UnitaryAirConditioner | AN1: UnitaryAirConditioner | AT1: UnitaryHeatPump | AZ1: =$AT$1 -> UnitaryHeatPump | BF1: =$AT$1 -> UnitaryHeatPump | BL1: =$AT$1 -> UnitaryHeatPump | BR1: =$AT$1 -> UnitaryHeatPump | BX1: =$AT$1 -> UnitaryHeatPump | CD1: =$AT$1 -> UnitaryHeatPump | CJ1: =$AT$1 -> UnitaryHeatPump | CP1: =$AT$1 -> UnitaryHeatPump | CV1: =$AT$1 -> UnitaryHeatPump
D2: Split | H2: Packaged | L2: ElecResorNone | P2: Other | T2: ElecResorNone | X2: Other | AB2: ElecResorNone | AF2: Other | AJ2: ElecResorNone | AN2: Other | AT2: Split | AZ2: Packaged | BF2: ElecResorNone | BL2: Other | BR2: ElecResorNone | BX2: Other | CD2: ElecResorNone | CJ2: Other | CP2: ElecResorNone | CV2: Other
D3: Lessthan65kbtuh | H3: Lessthan65kbtuh | L3: 65to135kbtuh | P3: 65to135kbtuh | T3: 135to240kbtuh | X3: 135to240kbtuh | AB3: 240to760kbtuh | AF3: 240to760kbtuh | AJ3: Greaterthan760kbtuh | AN3: Greaterthan760kbtuh | AT3: Lessthan65kbtuh | AZ3: Lessthan65kbtuh | BF3: 65to135kbtuh | BL3: 65to135kbtuh | BR3: 135to240kbtuh | BX3: 135to240kbtuh | CD3: 240to760kbtuh | CJ3: 240to760kbtuh | CP3: Greaterthan760kbtuh | CV3: Greaterthan760kbtuh
D4: =D1&D2&D3 -> UnitaryAirConditionerSplitLessthan65kbtuh | H4: =H1&H2&H3 -> UnitaryAirConditionerPackagedLessthan65kbtuh | L4: =L1&L2&L3 -> UnitaryAirConditionerElecResorNone65to135kbtuh | P4: =P1&P2&P3 -> UnitaryAirConditionerOther65to135kbtuh | T4: =T1&T2&T3 -> UnitaryAirConditionerElecResorNone135to240kbtuh | X4: =X1&X2&X3 -> UnitaryAirConditionerOther135to240kbtuh | AB4: =AB1&AB2&AB3 -> UnitaryAirConditionerElecResorNone240to760kbtuh | AF4: =AF1&AF2&AF3 -> UnitaryAirConditionerOther240to760kbtuh | AJ4: =AJ1&AJ2&AJ3 -> UnitaryAirConditionerElecResorNoneGreaterthan760kbtuh | AN4: =AN1&AN2&AN3 -> UnitaryAirConditionerOtherGreaterthan760kbtuh | AT4: =AT1&AT2&AT3 -> UnitaryHeatPumpSplitLessthan65kbtuh | AZ4: =AZ1&AZ2&AZ3 -> UnitaryHeatPumpPackagedLessthan65kbtuh | BF4: =BF1&BF2&BF3 -> UnitaryHeatPumpElecResorNone65to135kbtuh | BL4: =BL1&BL2&BL3 -> UnitaryHeatPumpOther65to135kbtuh | BR4: =BR1&BR2&BR3 -> UnitaryHeatPumpElecResorNone135to240kbtuh | BX4: =BX1&BX2&BX3 -> UnitaryHeatPumpOther135to240kbtuh | CD4: =CD1&CD2&CD3 -> UnitaryHeatPumpElecResorNone240to760kbtuh | CJ4: =CJ1&CJ2&CJ3 -> UnitaryHeatPumpOther240to760kbtuh | CP4: =CP1&CP2&CP3 -> UnitaryHeatPumpElecResorNoneGreaterthan760kbtuh | CV4: =CV1&CV2&CV3 -> UnitaryHeatPumpOtherGreaterthan760kbtuh
A5: BaselineRow | C5: Manuf. Year | D5: EER | E5: SEER | F5: Full Load | G5: Part Load | H5: EER | I5: SEER | J5: Full Load | K5: Part Load | L5: EER | M5: IEER | N5: Full Load | O5: Part Load | P5: EER | Q5: IEERadj | R5: Full Load | S5: Part Load | T5: EER | U5: IEERadj | V5: Full Load | W5: Part Load | X5: EER | Y5: IEERadj | Z5: Full Load | AA5: Part Load | AB5: EER | AC5: IEERadj | AD5: Full Load | AE5: Part Load | AF5: EER | AG5: IEERadj | AH5: Full Load | AI5: Part Load | AJ5: EER | AK5: IEERadj | AL5: Full Load | AM5: Part Load | AN5: EER | AO5: IEERadj | AP5: Full Load | AQ5: Part Load | AR5: Applicable Standard | AT5: EER | AU5: SEERadj | AV5: HSPF | AW5: Full Load | AX5: Part Load | AY5: Heating | AZ5: EER | BA5: SEERadj | BB5: HSPF | BC5: Full Load | BD5: Part Load | BE5: Heating | BF5: EER | BG5: IEER | BH5: COP | BI5: Full Load | BJ5: Part Load | BK5: Heating | BL5: EER | BM5: IEERadj | BN5: COP | BO5: Full Load | BP5: Part Load | BQ5: Heating | BR5: EER | BS5: IEERadj | BT5: COP | BU5: Full Load | BV5: Part Load | BW5: Heating | BX5: EER | BY5: IEERadj | BZ5: COP | CA5: Full Load | CB5: Part Load | CC5: Heating | CD5: EER | CE5: IEERadj | CF5: COP | CG5: Full Load | CH5: Part Load | CI5: Heating | CJ5: EER | CK5: IEERadj | CL5: COP | CM5: Full Load | CN5: Part Load | CO5: Heating | CP5: EER | CQ5: IEERadj | CR5: COP | CS5: Full Load | CT5: Part Load | CU5: Heating | CV5: EER | CW5: IEERadj | CX5: COP | CY5: Full Load | CZ5: Part Load | DA5: Heating | DB5: Applicable Standard
A6: 1990 | C6: 1990 | D6: 9.2 | E6: 10 | F6: =12/D6 -> 1.304347826 | G6: =12/E6 -> 1.2 | H6: 9 | I6: 9.7 | J6: =12/H6 -> 1.333333333 | K6: =12/I6 -> 1.237113402 | L6: 8.9 | M6: 9.1 | N6: =12/L6 -> 1.348314607 | O6: =12/M6 -> 1.318681319 | P6: =L6 -> 8.9 | Q6: =M6 -> 9.1 | R6: =12/P6 -> 1.348314607 | S6: =12/Q6 -> 1.318681319 | T6: 8 | U6: 8.2 | V6: =12/T6 -> 1.5 | W6: =12/U6 -> 1.463414634 | X6: =T6 -> 8 | Y6: =U6 -> 8.2 | Z6: =12/X6 -> 1.5 | AA6: =12/Y6 -> 1.463414634 | AB6: 8 | AC6: 8.1 | AD6: =12/AB6 -> 1.5 | AE6: =12/AC6 -> 1.481481481 | AF6: =AB6 -> 8 | AG6: =AC6 -> 8.1 | AH6: =12/AF6 -> 1.5 | AI6: =12/AG6 -> 1.481481481 | AJ6: 7.8 | AK6: 7.9 | AL6: =12/AJ6 -> 1.538461538 | AM6: =12/AK6 -> 1.518987342 | AN6: =AJ6 -> 7.8 | AO6: =AK6 -> 7.9 | AP6: =12/AN6 -> 1.538461538 | AQ6: =12/AO6 -> 1.518987342 | AR6: ASHRAE 90.1--1989 | AT6: 9.2 | AU6: 10 | AV6: 6.8 | AW6: =12/AT6 -> 1.304347826 | AX6: =12/AU6 -> 1.2 | AY6: =12/AV6 -> 1.764705882 | AZ6: 9 | BA6: 9.7 | BB6: 6.6 | BC6: =12/AZ6 -> 1.333333333 | BD6: =12/BA6 -> 1.237113402 | BE6: =12/BB6 -> 1.818181818 | BF6: 8.9 | BG6: 9.1 | BH6: 3 | BI6: =12/BF6 -> 1.348314607 | BJ6: =12/BG6 -> 1.318681319 | BK6: =12/3.412/BH6 -> 1.172332943 | BL6: =BF6 -> 8.9 | BM6: =BG6 -> 9.1 | BN6: =BH6 -> 3 | BO6: =12/BL6 -> 1.348314607 | BP6: =12/BM6 -> 1.318681319 | BQ6: =12/3.412/BN6 -> 1.172332943 | BR6: 8 | BS6: 8.1 | BT6: 3 | BU6: =12/BR6 -> 1.5 | BV6: =12/BS6 -> 1.481481481 | BW6: =12/3.412/BT6 -> 1.172332943 | BX6: =BR6 -> 8 | BY6: =BS6 -> 8.1 | BZ6: =BT6 -> 3 | CA6: =12/BX6 -> 1.5 | CB6: =12/BY6 -> 1.481481481 | CC6: =12/3.412/BZ6 -> 1.172332943 | CD6: 8 | CE6: 8.1 | CF6: 3 | CG6: =12/CD6 -> 1.5 | CH6: =12/CE6 -> 1.481481481 | CI6: =12/3.412/CF6 -> 1.172332943 | CJ6: =CD6 -> 8 | CK6: =CE6 -> 8.1 | CL6: =CF6 -> 3 | CM6: =12/CJ6 -> 1.5 | CN6: =12/CK6 -> 1.481481481 | CO6: =12/3.412/CL6 -> 1.172332943 | CP6: 7.8 | CQ6: 7.9 | CR6: 3 | CS6: =12/CP6 -> 1.538461538 | CT6: =12/CQ6 -> 1.518987342 | CU6: =12/3.412/CR6 -> 1.172332943 | CV6: =CP6 -> 7.8 | CW6: =CQ6 -> 7.9 | CX6: =CR6 -> 3 | CY6: =12/CV6 -> 1.538461538 | CZ6: =12/CW6 -> 1.518987342 | DA6: =12/3.412/CX6 -> 1.172332943 | DB6: ASHRAE 90.1--1989
A7: 1991 | C7: 1991 | D7: 9.2 | E7: 10 | F7: 1.304347826 | G7: 1.2 | H7: 9 | I7: 9.7 | J7: 1.333333333 | K7: 1.237113402 | L7: 8.9 | M7: 9.1 | N7: 1.348314607 | O7: 1.318681319 | P7: =L7 -> 8.9 | Q7: =M7 -> 9.1 | R7: 1.348314607 | S7: 1.318681319 | T7: 8 | U7: 8.2 | V7: 1.5 | W7: 1.463414634 | X7: =T7 -> 8 | Y7: =U7 -> 8.2 | Z7: 1.5 | AA7: 1.463414634 | AB7: 8 | AC7: 8.1 | AD7: 1.5 | AE7: 1.481481481 | AF7: =AB7 -> 8 | AG7: =AC7 -> 8.1 | AH7: 1.5 | AI7: 1.481481481 | AJ7: 7.8 | AK7: 7.9 | AL7: 1.538461538 | AM7: 1.518987342 | AN7: =AJ7 -> 7.8 | AO7: =AK7 -> 7.9 | AP7: 1.538461538 | AQ7: 1.518987342 | AR7: ASHRAE 90.1--1989 | AT7: 9.2 | AU7: 10 | AV7: 6.8 | AW7: =12/AT7 -> 1.304347826 | AX7: =12/AU7 -> 1.2 | AY7: =12/AV7 -> 1.764705882 | AZ7: 9 | BA7: 9.7 | BB7: 6.6 | BC7: =12/AZ7 -> 1.333333333 | BD7: =12/BA7 -> 1.237113402 | BE7: =12/BB7 -> 1.818181818 | BF7: 8.9 | BG7: 9.1 | BH7: 3 | BI7: =12/BF7 -> 1.348314607 | BJ7: =12/BG7 -> 1.318681319 | BK7: 1.172332943 | BL7: =BF7 -> 8.9 | BM7: =BG7 -> 9.1 | BN7: =BH7 -> 3 | BO7: =12/BL7 -> 1.348314607 | BP7: =12/BM7 -> 1.318681319 | BQ7: 1.172332943 | BR7: 8 | BS7: 8.1 | BT7: 3 | BU7: =12/BR7 -> 1.5 | BV7: =12/BS7 -> 1.481481481 | BW7: 1.172332943 | BX7: =BR7 -> 8 | BY7: =BS7 -> 8.1 | BZ7: =BT7 -> 3 | CA7: =12/BX7 -> 1.5 | CB7: =12/BY7 -> 1.481481481 | CC7: 1.172332943 | CD7: 8 | CE7: 8.1 | CF7: 3 | CG7: =12/CD7 -> 1.5 | CH7: =12/CE7 -> 1.481481481 | CI7: 1.172332943 | CJ7: =CD7 -> 8 | CK7: =CE7 -> 8.1 | CL7: =CF7 -> 3 | CM7: =12/CJ7 -> 1.5 | CN7: =12/CK7 -> 1.481481481 | CO7: 1.172332943 | CP7: 7.8 | CQ7: 7.9 | CR7: 3 | CS7: =12/CP7 -> 1.538461538 | CT7: =12/CQ7 -> 1.518987342 | CU7: 1.172332943 | CV7: =CP7 -> 7.8 | CW7: =CQ7 -> 7.9 | CX7: =CR7 -> 3 | CY7: =12/CV7 -> 1.538461538 | CZ7: =12/CW7 -> 1.518987342 | DA7: 1.172332943 | DB7: ASHRAE 90.1--1989
A8: 1992 | C8: 1992 | D8: 9.2 | E8: 10 | F8: 1.304347826 | G8: 1.2 | H8: 9 | I8: 9.7 | J8: 1.333333333 | K8: 1.237113402 | L8: 8.9 | M8: 9.1 | N8: 1.348314607 | O8: 1.318681319 | P8: 8.9 | Q8: 9.1 | R8: 1.348314607 | S8: 1.318681319 | T8: 8.3 | U8: 8.5 | V8: 1.445783133 | W8: 1.411764706 | X8: 8.3 | Y8: 8.5 | Z8: 1.445783133 | AA8: 1.411764706 | AB8: 8.3 | AC8: 8.4 | AD8: 1.445783133 | AE8: 1.428571429 | AF8: 8.3 | AG8: 8.4 | AH8: 1.445783133 | AI8: 1.428571429 | AJ8: 8 | AK8: 8.1 | AL8: 1.5 | AM8: 1.481481481 | AN8: 8 | AO8: 8.1 | AP8: 1.5 | AQ8: 1.481481481 | AR8: ASHRAE 90.1--1989 (as of Jan. 1, 1992) | AT8: 9.2 | AU8: 10 | AV8: 6.8 | AW8: 1.304347826 | AX8: 1.2 | AY8: 1.764705882 | AZ8: 9 | BA8: 9.7 | BB8: 6.6 | BC8: 1.333333333 | BD8: 1.237113402 | BE8: 1.818181818 | BF8: 8.9 | BG8: 9.1 | BH8: 3 | BI8: 1.348314607 | BJ8: 1.318681319 | BK8: 1.172332943 | BL8: 8.9 | BM8: 9.1 | BN8: 3 | BO8: 1.348314607 | BP8: 1.318681319 | BQ8: 1.172332943 | BR8: 8.3 | BS8: 8.4 | BT8: 2.9 | BU8: 1.445783133 | BV8: 1.428571429 | BW8: 1.212758216 | BX8: 8.3 | BY8: 8.4 | BZ8: 2.9 | CA8: 1.445783133 | CB8: 1.428571429 | CC8: 1.212758216 | CD8: 8.3 | CE8: 8.4 | CF8: 2.9 | CG8: 1.445783133 | CH8: 1.428571429 | CI8: 1.212758216 | CJ8: 8.3 | CK8: 8.4 | CL8: 2.9 | CM8: 1.445783133 | CN8: 1.428571429 | CO8: 1.212758216 | CP8: 8.5 | CQ8: 8.6 | CR8: 2.9 | CS8: 1.411764706 | CT8: 1.395348837 | CU8: 1.212758216 | CV8: 8.5 | CW8: 8.6 | CX8: 2.9 | CY8: 1.411764706 | CZ8: 1.395348837 | DA8: 1.212758216 | DB8: ASHRAE 90.1--1989 (as of Jan. 1, 1992)
A9: 1993 | C9: 1993 | D9: 9.2 | E9: 10 | F9: 1.304347826 | G9: 1.2 | H9: 9 | I9: 9.7 | J9: 1.333333333 | K9: 1.237113402 | L9: 8.9 | M9: 9.1 | N9: 1.348314607 | O9: 1.318681319 | P9: 8.9 | Q9: 9.1 | R9: 1.348314607 | S9: 1.318681319 | T9: 8.3 | U9: 8.5 | V9: 1.445783133 | W9: 1.411764706 | X9: 8.3 | Y9: 8.5 | Z9: 1.445783133 | AA9: 1.411764706 | AB9: 8.3 | AC9: 8.4 | AD9: 1.445783133 | AE9: 1.428571429 | AF9: 8.3 | AG9: 8.4 | AH9: 1.445783133 | AI9: 1.428571429 | AJ9: 8 | AK9: 8.1 | AL9: 1.5 | AM9: 1.481481481 | AN9: 8 | AO9: 8.1 | AP9: 1.5 | AQ9: 1.481481481 | AR9: ASHRAE 90.1--1989 (as of Jan. 1, 1992) | AT9: 9.2 | AU9: 10 | AV9: 6.8 | AW9: 1.304347826 | AX9: 1.2 | AY9: 1.764705882 | AZ9: 9 | BA9: 9.7 | BB9: 6.6 | BC9: 1.333333333 | BD9: 1.237113402 | BE9: 1.818181818 | BF9: 8.9 | BG9: 9.1 | BH9: 3 | BI9: 1.348314607 | BJ9: 1.318681319 | BK9: 1.172332943 | BL9: 8.9 | BM9: 9.1 | BN9: 3 | BO9: 1.348314607 | BP9: 1.318681319 | BQ9: 1.172332943 | BR9: 8.3 | BS9: 8.4 | BT9: 2.9 | BU9: 1.445783133 | BV9: 1.428571429 | BW9: 1.212758216 | BX9: 8.3 | BY9: 8.4 | BZ9: 2.9 | CA9: 1.445783133 | CB9: 1.428571429 | CC9: 1.212758216 | CD9: 8.3 | CE9: 8.4 | CF9: 2.9 | CG9: 1.445783133 | CH9: 1.428571429 | CI9: 1.212758216 | CJ9: 8.3 | CK9: 8.4 | CL9: 2.9 | CM9: 1.445783133 | CN9: 1.428571429 | CO9: 1.212758216 | CP9: 8.5 | CQ9: 8.6 | CR9: 2.9 | CS9: 1.411764706 | CT9: 1.395348837 | CU9: 1.212758216 | CV9: 8.5 | CW9: 8.6 | CX9: 2.9 | CY9: 1.411764706 | CZ9: 1.395348837 | DA9: 1.212758216 | DB9: ASHRAE 90.1--1989 (as of Jan. 1, 1992)
A10: 1994 | C10: 1994 | D10: 9.2 | E10: 10 | F10: 1.304347826 | G10: 1.2 | H10: 9 | I10: 9.7 | J10: 1.333333333 | K10: 1.237113402 | L10: 8.9 | M10: 9.1 | N10: 1.348314607 | O10: 1.318681319 | P10: 8.9 | Q10: 9.1 | R10: 1.348314607 | S10: 1.318681319 | T10: 8.3 | U10: 8.5 | V10: 1.445783133 | W10: 1.411764706 | X10: 8.3 | Y10: 8.5 | Z10: 1.445783133 | AA10: 1.411764706 | AB10: 8.3 | AC10: 8.4 | AD10: 1.445783133 | AE10: 1.428571429 | AF10: 8.3 | AG10: 8.4 | AH10: 1.445783133 | AI10: 1.428571429 | AJ10: 8 | AK10: 8.1 | AL10: 1.5 | AM10: 1.481481481 | AN10: 8 | AO10: 8.1 | AP10: 1.5 | AQ10: 1.481481481 | AR10: ASHRAE 90.1--1989 (as of Jan. 1, 1992) | AT10: 9.2 | AU10: 10 | AV10: 6.8 | AW10: 1.304347826 | AX10: 1.2 | AY10: 1.764705882 | AZ10: 9 | BA10: 9.7 | BB10: 6.6 | BC10: 1.333333333 | BD10: 1.237113402 | BE10: 1.818181818 | BF10: 8.9 | BG10: 9.1 | BH10: 3 | BI10: 1.348314607 | BJ10: 1.318681319 | BK10: 1.172332943 | BL10: 8.9 | BM10: 9.1 | BN10: 3 | BO10: 1.348314607 | BP10: 1.318681319 | BQ10: 1.172332943 | BR10: 8.3 | BS10: 8.4 | BT10: 2.9 | BU10: 1.445783133 | BV10: 1.428571429 | BW10: 1.212758216 | BX10: 8.3 | BY10: 8.4 | BZ10: 2.9 | CA10: 1.445783133 | CB10: 1.428571429 | CC10: 1.212758216 | CD10: 8.3 | CE10: 8.4 | CF10: 2.9 | CG10: 1.445783133 | CH10: 1.428571429 | CI10: 1.212758216 | CJ10: 8.3 | CK10: 8.4 | CL10: 2.9 | CM10: 1.445783133 | CN10: 1.428571429 | CO10: 1.212758216 | CP10: 8.5 | CQ10: 8.6 | CR10: 2.9 | CS10: 1.411764706 | CT10: 1.395348837 | CU10: 1.212758216 | CV10: 8.5 | CW10: 8.6 | CX10: 2.9 | CY10: 1.411764706 | CZ10: 1.395348837 | DA10: 1.212758216 | DB10: ASHRAE 90.1--1989 (as of Jan. 1, 1992)
A11: 1995 | C11: 1995 | D11: 9.2 | E11: 10 | F11: 1.304347826 | G11: 1.2 | H11: 9 | I11: 9.7 | J11: 1.333333333 | K11: 1.237113402 | L11: 8.9 | M11: 9.1 | N11: 1.348314607 | O11: 1.318681319 | P11: 8.9 | Q11: 9.1 | R11: 1.348314607 | S11: 1.318681319 | T11: 8.3 | U11: 8.5 | V11: 1.445783133 | W11: 1.411764706 | X11: 8.3 | Y11: 8.5 | Z11: 1.445783133 | AA11: 1.411764706 | AB11: 8.3 | AC11: 8.4 | AD11: 1.445783133 | AE11: 1.428571429 | AF11: 8.3 | AG11: 8.4 | AH11: 1.445783133 | AI11: 1.428571429 | AJ11: 8 | AK11: 8.1 | AL11: 1.5 | AM11: 1.481481481 | AN11: 8 | AO11: 8.1 | AP11: 1.5 | AQ11: 1.481481481 | AR11: ASHRAE 90.1--1989 (as of Jan. 1, 1992) | AT11: 9.2 | AU11: 10 | AV11: 6.8 | AW11: 1.304347826 | AX11: 1.2 | AY11: 1.764705882 | AZ11: 9 | BA11: 9.7 | BB11: 6.6 | BC11: 1.333333333 | BD11: 1.237113402 | BE11: 1.818181818 | BF11: 8.9 | BG11: 9.1 | BH11: 3 | BI11: 1.348314607 | BJ11: 1.318681319 | BK11: 1.172332943 | BL11: 8.9 | BM11: 9.1 | BN11: 3 | BO11: 1.348314607 | BP11: 1.318681319 | BQ11: 1.172332943 | BR11: 8.3 | BS11: 8.4 | BT11: 2.9 | BU11: 1.445783133 | BV11: 1.428571429 | BW11: 1.212758216 | BX11: 8.3 | BY11: 8.4 | BZ11: 2.9 | CA11: 1.445783133 | CB11: 1.428571429 | CC11: 1.212758216 | CD11: 8.3 | CE11: 8.4 | CF11: 2.9 | CG11: 1.445783133 | CH11: 1.428571429 | CI11: 1.212758216 | CJ11: 8.3 | CK11: 8.4 | CL11: 2.9 | CM11: 1.445783133 | CN11: 1.428571429 | CO11: 1.212758216 | CP11: 8.5 | CQ11: 8.6 | CR11: 2.9 | CS11: 1.411764706 | CT11: 1.395348837 | CU11: 1.212758216 | CV11: 8.5 | CW11: 8.6 | CX11: 2.9 | CY11: 1.411764706 | CZ11: 1.395348837 | DA11: 1.212758216 | DB11: ASHRAE 90.1--1989 (as of Jan. 1, 1992)
A12: 1996 | C12: 1996 | D12: 9.2 | E12: 10 | F12: 1.304347826 | G12: 1.2 | H12: 9 | I12: 9.7 | J12: 1.333333333 | K12: 1.237113402 | L12: 8.9 | M12: 9.1 | N12: 1.348314607 | O12: 1.318681319 | P12: 8.9 | Q12: 9.1 | R12: 1.348314607 | S12: 1.318681319 | T12: 8.3 | U12: 8.5 | V12: 1.445783133 | W12: 1.411764706 | X12: 8.3 | Y12: 8.5 | Z12: 1.445783133 | AA12: 1.411764706 | AB12: 8.3 | AC12: 8.4 | AD12: 1.445783133 | AE12: 1.428571429 | AF12: 8.3 | AG12: 8.4 | AH12: 1.445783133 | AI12: 1.428571429 | AJ12: 8 | AK12: 8.1 | AL12: 1.5 | AM12: 1.481481481 | AN12: 8 | AO12: 8.1 | AP12: 1.5 | AQ12: 1.481481481 | AR12: ASHRAE 90.1--1989 (as of Jan. 1, 1992) | AT12: 9.2 | AU12: 10 | AV12: 6.8 | AW12: 1.304347826 | AX12: 1.2 | AY12: 1.764705882 | AZ12: 9 | BA12: 9.7 | BB12: 6.6 | BC12: 1.333333333 | BD12: 1.237113402 | BE12: 1.818181818 | BF12: 8.9 | BG12: 9.1 | BH12: 3 | BI12: 1.348314607 | BJ12: 1.318681319 | BK12: 1.172332943 | BL12: 8.9 | BM12: 9.1 | BN12: 3 | BO12: 1.348314607 | BP12: 1.318681319 | BQ12: 1.172332943 | BR12: 8.3 | BS12: 8.4 | BT12: 2.9 | BU12: 1.445783133 | BV12: 1.428571429 | BW12: 1.212758216 | BX12: 8.3 | BY12: 8.4 | BZ12: 2.9 | CA12: 1.445783133 | CB12: 1.428571429 | CC12: 1.212758216 | CD12: 8.3 | CE12: 8.4 | CF12: 2.9 | CG12: 1.445783133 | CH12: 1.428571429 | CI12: 1.212758216 | CJ12: 8.3 | CK12: 8.4 | CL12: 2.9 | CM12: 1.445783133 | CN12: 1.428571429 | CO12: 1.212758216 | CP12: 8.5 | CQ12: 8.6 | CR12: 2.9 | CS12: 1.411764706 | CT12: 1.395348837 | CU12: 1.212758216 | CV12: 8.5 | CW12: 8.6 | CX12: 2.9 | CY12: 1.411764706 | CZ12: 1.395348837 | DA12: 1.212758216 | DB12: ASHRAE 90.1--1989 (as of Jan. 1, 1992)
A13: 1997 | C13: 1997 | D13: 9.2 | E13: 10 | F13: 1.304347826 | G13: 1.2 | H13: 9 | I13: 9.7 | J13: 1.333333333 | K13: 1.237113402 | L13: 8.9 | M13: 9.1 | N13: 1.348314607 | O13: 1.318681319 | P13: 8.9 | Q13: 9.1 | R13: 1.348314607 | S13: 1.318681319 | T13: 8.3 | U13: 8.5 | V13: 1.445783133 | W13: 1.411764706 | X13: 8.3 | Y13: 8.5 | Z13: 1.445783133 | AA13: 1.411764706 | AB13: 8.3 | AC13: 8.4 | AD13: 1.445783133 | AE13: 1.428571429 | AF13: 8.3 | AG13: 8.4 | AH13: 1.445783133 | AI13: 1.428571429 | AJ13: 8 | AK13: 8.1 | AL13: 1.5 | AM13: 1.481481481 | AN13: 8 | AO13: 8.1 | AP13: 1.5 | AQ13: 1.481481481 | AR13: ASHRAE 90.1--1989 (as of Jan. 1, 1992) | AT13: 9.2 | AU13: 10 | AV13: 6.8 | AW13: 1.304347826 | AX13: 1.2 | AY13: 1.764705882 | AZ13: 9 | BA13: 9.7 | BB13: 6.6 | BC13: 1.333333333 | BD13: 1.237113402 | BE13: 1.818181818 | BF13: 8.9 | BG13: 9.1 | BH13: 3 | BI13: 1.348314607 | BJ13: 1.318681319 | BK13: 1.172332943 | BL13: 8.9 | BM13: 9.1 | BN13: 3 | BO13: 1.348314607 | BP13: 1.318681319 | BQ13: 1.172332943 | BR13: 8.3 | BS13: 8.4 | BT13: 2.9 | BU13: 1.445783133 | BV13: 1.428571429 | BW13: 1.212758216 | BX13: 8.3 | BY13: 8.4 | BZ13: 2.9 | CA13: 1.445783133 | CB13: 1.428571429 | CC13: 1.212758216 | CD13: 8.3 | CE13: 8.4 | CF13: 2.9 | CG13: 1.445783133 | CH13: 1.428571429 | CI13: 1.212758216 | CJ13: 8.3 | CK13: 8.4 | CL13: 2.9 | CM13: 1.445783133 | CN13: 1.428571429 | CO13: 1.212758216 | CP13: 8.5 | CQ13: 8.6 | CR13: 2.9 | CS13: 1.411764706 | CT13: 1.395348837 | CU13: 1.212758216 | CV13: 8.5 | CW13: 8.6 | CX13: 2.9 | CY13: 1.411764706 | CZ13: 1.395348837 | DA13: 1.212758216 | DB13: ASHRAE 90.1--1989 (as of Jan. 1, 1992)
A14: 1998 | C14: 1998 | D14: 9.2 | E14: 10 | F14: 1.304347826 | G14: 1.2 | H14: 9 | I14: 9.7 | J14: 1.333333333 | K14: 1.237113402 | L14: 8.9 | M14: 9.1 | N14: 1.348314607 | O14: 1.318681319 | P14: 8.9 | Q14: 9.1 | R14: 1.348314607 | S14: 1.318681319 | T14: 8.3 | U14: 8.5 | V14: 1.445783133 | W14: 1.411764706 | X14: 8.3 | Y14: 8.5 | Z14: 1.445783133 | AA14: 1.411764706 | AB14: 8.3 | AC14: 8.4 | AD14: 1.445783133 | AE14: 1.428571429 | AF14: 8.3 | AG14: 8.4 | AH14: 1.445783133 | AI14: 1.428571429 | AJ14: 8 | AK14: 8.1 | AL14: 1.5 | AM14: 1.481481481 | AN14: 8 | AO14: 8.1 | AP14: 1.5 | AQ14: 1.481481481 | AR14: ASHRAE 90.1--1989 (as of Jan. 1, 1992) | AT14: 9.2 | AU14: 10 | AV14: 6.8 | AW14: 1.304347826 | AX14: 1.2 | AY14: 1.764705882 | AZ14: 9 | BA14: 9.7 | BB14: 6.6 | BC14: 1.333333333 | BD14: 1.237113402 | BE14: 1.818181818 | BF14: 8.9 | BG14: 9.1 | BH14: 3 | BI14: 1.348314607 | BJ14: 1.318681319 | BK14: 1.172332943 | BL14: 8.9 | BM14: 9.1 | BN14: 3 | BO14: 1.348314607 | BP14: 1.318681319 | BQ14: 1.172332943 | BR14: 8.3 | BS14: 8.4 | BT14: 2.9 | BU14: 1.445783133 | BV14: 1.428571429 | BW14: 1.212758216 | BX14: 8.3 | BY14: 8.4 | BZ14: 2.9 | CA14: 1.445783133 | CB14: 1.428571429 | CC14: 1.212758216 | CD14: 8.3 | CE14: 8.4 | CF14: 2.9 | CG14: 1.445783133 | CH14: 1.428571429 | CI14: 1.212758216 | CJ14: 8.3 | CK14: 8.4 | CL14: 2.9 | CM14: 1.445783133 | CN14: 1.428571429 | CO14: 1.212758216 | CP14: 8.5 | CQ14: 8.6 | CR14: 2.9 | CS14: 1.411764706 | CT14: 1.395348837 | CU14: 1.212758216 | CV14: 8.5 | CW14: 8.6 | CX14: 2.9 | CY14: 1.411764706 | CZ14: 1.395348837 | DA14: 1.212758216 | DB14: ASHRAE 90.1--1989 (as of Jan. 1, 1992)
A15: 1999 | C15: 1999 | D15: 9.2 | E15: 10 | F15: 1.304347826 | G15: 1.2 | H15: 9 | I15: 9.7 | J15: 1.333333333 | K15: 1.237113402 | L15: 8.9 | M15: 9.1 | N15: 1.348314607 | O15: 1.318681319 | P15: 8.9 | Q15: 9.1 | R15: 1.348314607 | S15: 1.318681319 | T15: 8.3 | U15: 8.5 | V15: 1.445783133 | W15: 1.411764706 | X15: 8.3 | Y15: 8.5 | Z15: 1.445783133 | AA15: 1.411764706 | AB15: 8.3 | AC15: 8.4 | AD15: 1.445783133 | AE15: 1.428571429 | AF15: 8.3 | AG15: 8.4 | AH15: 1.445783133 | AI15: 1.428571429 | AJ15: 8 | AK15: 8.1 | AL15: 1.5 | AM15: 1.481481481 | AN15: 8 | AO15: 8.1 | AP15: 1.5 | AQ15: 1.481481481 | AR15: ASHRAE 90.1--1999 | AT15: 9.2 | AU15: 10 | AV15: 6.8 | AW15: 1.304347826 | AX15: 1.2 | AY15: 1.764705882 | AZ15: 9 | BA15: 9.7 | BB15: 6.6 | BC15: 1.333333333 | BD15: 1.237113402 | BE15: 1.818181818 | BF15: 8.9 | BG15: 9.1 | BH15: 3 | BI15: 1.348314607 | BJ15: 1.318681319 | BK15: 1.172332943 | BL15: 8.9 | BM15: 9.1 | BN15: 3 | BO15: 1.348314607 | BP15: 1.318681319 | BQ15: 1.172332943 | BR15: 8.3 | BS15: 8.4 | BT15: 2.9 | BU15: 1.445783133 | BV15: 1.428571429 | BW15: 1.212758216 | BX15: 8.3 | BY15: 8.4 | BZ15: 2.9 | CA15: 1.445783133 | CB15: 1.428571429 | CC15: 1.212758216 | CD15: 8.3 | CE15: 8.4 | CF15: 2.9 | CG15: 1.445783133 | CH15: 1.428571429 | CI15: 1.212758216 | CJ15: 8.3 | CK15: 8.4 | CL15: 2.9 | CM15: 1.445783133 | CN15: 1.428571429 | CO15: 1.212758216 | CP15: 8.5 | CQ15: 8.6 | CR15: 2.9 | CS15: 1.411764706 | CT15: 1.395348837 | CU15: 1.212758216 | CV15: 8.5 | CW15: 8.6 | CX15: 2.9 | CY15: 1.411764706 | CZ15: 1.395348837 | DA15: 1.212758216 | DB15: ASHRAE 90.1--1999
A16: 2000 | C16: 2000 | D16: 9.2 | E16: 10 | F16: 1.304347826 | G16: 1.2 | H16: 9 | I16: 9.7 | J16: 1.333333333 | K16: 1.237113402 | L16: 8.9 | M16: 9.1 | N16: 1.348314607 | O16: 1.318681319 | P16: 8.9 | Q16: 9.1 | R16: 1.348314607 | S16: 1.318681319 | T16: 8.3 | U16: 8.5 | V16: 1.445783133 | W16: 1.411764706 | X16: 8.3 | Y16: 8.5 | Z16: 1.445783133 | AA16: 1.411764706 | AB16: 8.3 | AC16: 8.4 | AD16: 1.445783133 | AE16: 1.428571429 | AF16: 8.3 | AG16: 8.4 | AH16: 1.445783133 | AI16: 1.428571429 | AJ16: 8 | AK16: 8.1 | AL16: 1.5 | AM16: 1.481481481 | AN16: 8 | AO16: 8.1 | AP16: 1.5 | AQ16: 1.481481481 | AR16: ASHRAE 90.1--1999 | AT16: 9.2 | AU16: 10 | AV16: 6.8 | AW16: 1.304347826 | AX16: 1.2 | AY16: 1.764705882 | AZ16: 9 | BA16: 9.7 | BB16: 6.6 | BC16: 1.333333333 | BD16: 1.237113402 | BE16: 1.818181818 | BF16: 8.9 | BG16: 9.1 | BH16: 3 | BI16: 1.348314607 | BJ16: 1.318681319 | BK16: 1.172332943 | BL16: 8.9 | BM16: 9.1 | BN16: 3 | BO16: 1.348314607 | BP16: 1.318681319 | BQ16: 1.172332943 | BR16: 8.3 | BS16: 8.4 | BT16: 2.9 | BU16: 1.445783133 | BV16: 1.428571429 | BW16: 1.212758216 | BX16: 8.3 | BY16: 8.4 | BZ16: 2.9 | CA16: 1.445783133 | CB16: 1.428571429 | CC16: 1.212758216 | CD16: 8.3 | CE16: 8.4 | CF16: 2.9 | CG16: 1.445783133 | CH16: 1.428571429 | CI16: 1.212758216 | CJ16: 8.3 | CK16: 8.4 | CL16: 2.9 | CM16: 1.445783133 | CN16: 1.428571429 | CO16: 1.212758216 | CP16: 8.5 | CQ16: 8.6 | CR16: 2.9 | CS16: 1.411764706 | CT16: 1.395348837 | CU16: 1.212758216 | CV16: 8.5 | CW16: 8.6 | CX16: 2.9 | CY16: 1.411764706 | CZ16: 1.395348837 | DA16: 1.212758216 | DB16: ASHRAE 90.1--1999
A17: 2001 | C17: 2001 | D17: 9.2 | E17: 10 | F17: 1.304347826 | G17: 1.2 | H17: 9 | I17: 9.7 | J17: 1.333333333 | K17: 1.237113402 | L17: 8.9 | M17: 9.1 | N17: 1.348314607 | O17: 1.318681319 | P17: 8.9 | Q17: 9.1 | R17: 1.348314607 | S17: 1.318681319 | T17: 8.3 | U17: 8.5 | V17: 1.445783133 | W17: 1.411764706 | X17: 8.3 | Y17: 8.5 | Z17: 1.445783133 | AA17: 1.411764706 | AB17: 8.3 | AC17: 8.4 | AD17: 1.445783133 | AE17: 1.428571429 | AF17: 8.3 | AG17: 8.4 | AH17: 1.445783133 | AI17: 1.428571429 | AJ17: 8 | AK17: 8.1 | AL17: 1.5 | AM17: 1.481481481 | AN17: 8 | AO17: 8.1 | AP17: 1.5 | AQ17: 1.481481481 | AR17: ASHRAE 90.1--1999 | AT17: 9.2 | AU17: 10 | AV17: 6.8 | AW17: 1.304347826 | AX17: 1.2 | AY17: 1.764705882 | AZ17: 9 | BA17: 9.7 | BB17: 6.6 | BC17: 1.333333333 | BD17: 1.237113402 | BE17: 1.818181818 | BF17: 8.9 | BG17: 9.1 | BH17: 3.2 | BI17: 1.348314607 | BJ17: 1.318681319 | BK17: 1.099062134 | BL17: 8.9 | BM17: 9.1 | BN17: 3.2 | BO17: 1.348314607 | BP17: 1.318681319 | BQ17: 1.099062134 | BR17: 8.3 | BS17: 8.4 | BT17: 3.1 | BU17: 1.445783133 | BV17: 1.428571429 | BW17: 1.134515751 | BX17: 8.3 | BY17: 8.4 | BZ17: 3.1 | CA17: 1.445783133 | CB17: 1.428571429 | CC17: 1.134515751 | CD17: 8.3 | CE17: 8.4 | CF17: 3.1 | CG17: 1.445783133 | CH17: 1.428571429 | CI17: 1.134515751 | CJ17: 8.3 | CK17: 8.4 | CL17: 3.1 | CM17: 1.445783133 | CN17: 1.428571429 | CO17: 1.134515751 | CP17: 8.5 | CQ17: 8.6 | CR17: 3.1 | CS17: 1.411764706 | CT17: 1.395348837 | CU17: 1.134515751 | CV17: 8.5 | CW17: 8.6 | CX17: 3.1 | CY17: 1.411764706 | CZ17: 1.395348837 | DA17: 1.134515751 | DB17: ASHRAE 90.1--1999
A18: 2002 | C18: 2002 | D18: 9.2 | E18: 10 | F18: 1.304347826 | G18: 1.2 | H18: 9 | I18: 9.7 | J18: 1.333333333 | K18: 1.237113402 | L18: 10.1 | M18: 10.3 | N18: 1.188118812 | O18: 1.165048544 | P18: 10.1 | Q18: 10.3 | R18: 1.188118812 | S18: 1.165048544 | T18: 9.5 | U18: 9.7 | V18: 1.263157895 | W18: 1.237113402 | X18: 9.5 | Y18: 9.7 | Z18: 1.263157895 | AA18: 1.237113402 | AB18: 9.3 | AC18: 9.4 | AD18: 1.290322581 | AE18: 1.276595745 | AF18: 9.3 | AG18: 9.4 | AH18: 1.290322581 | AI18: 1.276595745 | AJ18: 9 | AK18: 9.1 | AL18: 1.333333333 | AM18: 1.318681319 | AN18: 9 | AO18: 9.1 | AP18: 1.333333333 | AQ18: 1.318681319 | AR18: ASHRAE 90.1--1999 (as of 10/29/2001) | AT18: 9.2 | AU18: 10 | AV18: 6.8 | AW18: 1.304347826 | AX18: 1.2 | AY18: 1.764705882 | AZ18: 9 | BA18: 9.7 | BB18: 6.6 | BC18: 1.333333333 | BD18: 1.237113402 | BE18: 1.818181818 | BF18: 9.9 | BG18: 10.1 | BH18: 3.2 | BI18: 1.212121212 | BJ18: 1.188118812 | BK18: 1.099062134 | BL18: 9.9 | BM18: 10.1 | BN18: 3.2 | BO18: 1.212121212 | BP18: 1.188118812 | BQ18: 1.099062134 | BR18: 9.1 | BS18: 9.2 | BT18: 3.1 | BU18: 1.318681319 | BV18: 1.304347826 | BW18: 1.134515751 | BX18: 9.1 | BY18: 9.2 | BZ18: 3.1 | CA18: 1.318681319 | CB18: 1.304347826 | CC18: 1.134515751 | CD18: 8.8 | CE18: 8.9 | CF18: 3.1 | CG18: 1.363636364 | CH18: 1.348314607 | CI18: 1.134515751 | CJ18: 8.8 | CK18: 8.9 | CL18: 3.1 | CM18: 1.363636364 | CN18: 1.348314607 | CO18: 1.134515751 | CP18: 8.8 | CQ18: 8.9 | CR18: 3.1 | CS18: 1.363636364 | CT18: 1.348314607 | CU18: 1.134515751 | CV18: 8.8 | CW18: 8.9 | CX18: 3.1 | CY18: 1.363636364 | CZ18: 1.348314607 | DA18: 1.134515751 | DB18: ASHRAE 90.1--1999 (as of 10/29/2001)
A19: 2003 | C19: 2003 | D19: 9.2 | E19: 10 | F19: 1.304347826 | G19: 1.2 | H19: 9 | I19: 9.7 | J19: 1.333333333 | K19: 1.237113402 | L19: 10.1 | M19: 10.3 | N19: 1.188118812 | O19: 1.165048544 | P19: 10.1 | Q19: 10.3 | R19: 1.188118812 | S19: 1.165048544 | T19: 9.5 | U19: 9.7 | V19: 1.263157895 | W19: 1.237113402 | X19: 9.5 | Y19: 9.7 | Z19: 1.263157895 | AA19: 1.237113402 | AB19: 9.3 | AC19: 9.4 | AD19: 1.290322581 | AE19: 1.276595745 | AF19: 9.3 | AG19: 9.4 | AH19: 1.290322581 | AI19: 1.276595745 | AJ19: 9 | AK19: 9.1 | AL19: 1.333333333 | AM19: 1.318681319 | AN19: 9 | AO19: 9.1 | AP19: 1.333333333 | AQ19: 1.318681319 | AR19: ASHRAE 90.1--1999 (as of 10/29/2001) | AT19: 9.2 | AU19: 10 | AV19: 6.8 | AW19: 1.304347826 | AX19: 1.2 | AY19: 1.764705882 | AZ19: 9 | BA19: 9.7 | BB19: 6.6 | BC19: 1.333333333 | BD19: 1.237113402 | BE19: 1.818181818 | BF19: 9.9 | BG19: 10.1 | BH19: 3.2 | BI19: 1.212121212 | BJ19: 1.188118812 | BK19: 1.099062134 | BL19: 9.9 | BM19: 10.1 | BN19: 3.2 | BO19: 1.212121212 | BP19: 1.188118812 | BQ19: 1.099062134 | BR19: 9.1 | BS19: 9.2 | BT19: 3.1 | BU19: 1.318681319 | BV19: 1.304347826 | BW19: 1.134515751 | BX19: 9.1 | BY19: 9.2 | BZ19: 3.1 | CA19: 1.318681319 | CB19: 1.304347826 | CC19: 1.134515751 | CD19: 8.8 | CE19: 8.9 | CF19: 3.1 | CG19: 1.363636364 | CH19: 1.348314607 | CI19: 1.134515751 | CJ19: 8.8 | CK19: 8.9 | CL19: 3.1 | CM19: 1.363636364 | CN19: 1.348314607 | CO19: 1.134515751 | CP19: 8.8 | CQ19: 8.9 | CR19: 3.1 | CS19: 1.363636364 | CT19: 1.348314607 | CU19: 1.134515751 | CV19: 8.8 | CW19: 8.9 | CX19: 3.1 | CY19: 1.363636364 | CZ19: 1.348314607 | DA19: 1.134515751 | DB19: ASHRAE 90.1--1999 (as of 10/29/2001)
A20: 2004 | C20: 2004 | D20: 9.2 | E20: 10 | F20: 1.304347826 | G20: 1.2 | H20: 9 | I20: 9.7 | J20: 1.333333333 | K20: 1.237113402 | L20: 10.1 | M20: 10.3 | N20: 1.188118812 | O20: 1.165048544 | P20: 10.1 | Q20: 10.3 | R20: 1.188118812 | S20: 1.165048544 | T20: 9.5 | U20: 9.7 | V20: 1.263157895 | W20: 1.237113402 | X20: 9.5 | Y20: 9.7 | Z20: 1.263157895 | AA20: 1.237113402 | AB20: 9.3 | AC20: 9.4 | AD20: 1.290322581 | AE20: 1.276595745 | AF20: 9.3 | AG20: 9.4 | AH20: 1.290322581 | AI20: 1.276595745 | AJ20: 9 | AK20: 9.1 | AL20: 1.333333333 | AM20: 1.318681319 | AN20: 9 | AO20: 9.1 | AP20: 1.333333333 | AQ20: 1.318681319 | AR20: ASHRAE 90.1--2004 | AT20: 9.2 | AU20: 10 | AV20: 6.8 | AW20: 1.304347826 | AX20: 1.2 | AY20: 1.764705882 | AZ20: 9 | BA20: 9.7 | BB20: 6.6 | BC20: 1.333333333 | BD20: 1.237113402 | BE20: 1.818181818 | BF20: 9.9 | BG20: 10.1 | BH20: 3.2 | BI20: 1.212121212 | BJ20: 1.188118812 | BK20: 1.099062134 | BL20: 9.9 | BM20: 10.1 | BN20: 3.2 | BO20: 1.212121212 | BP20: 1.188118812 | BQ20: 1.099062134 | BR20: 9.1 | BS20: 9.2 | BT20: 3.1 | BU20: 1.318681319 | BV20: 1.304347826 | BW20: 1.134515751 | BX20: 9.1 | BY20: 9.2 | BZ20: 3.1 | CA20: 1.318681319 | CB20: 1.304347826 | CC20: 1.134515751 | CD20: 8.8 | CE20: 8.9 | CF20: 3.1 | CG20: 1.363636364 | CH20: 1.348314607 | CI20: 1.134515751 | CJ20: 8.8 | CK20: 8.9 | CL20: 3.1 | CM20: 1.363636364 | CN20: 1.348314607 | CO20: 1.134515751 | CP20: 8.8 | CQ20: 8.9 | CR20: 3.1 | CS20: 1.363636364 | CT20: 1.348314607 | CU20: 1.134515751 | CV20: 8.8 | CW20: 8.9 | CX20: 3.1 | CY20: 1.363636364 | CZ20: 1.348314607 | DA20: 1.134515751 | DB20: ASHRAE 90.1--2004
A21: 2005 | C21: 2005 | D21: 9.2 | E21: 10 | F21: 1.304347826 | G21: 1.2 | H21: 9 | I21: 9.7 | J21: 1.333333333 | K21: 1.237113402 | L21: 10.1 | M21: 10.3 | N21: 1.188118812 | O21: 1.165048544 | P21: 10.1 | Q21: 10.3 | R21: 1.188118812 | S21: 1.165048544 | T21: 9.5 | U21: 9.7 | V21: 1.263157895 | W21: 1.237113402 | X21: 9.5 | Y21: 9.7 | Z21: 1.263157895 | AA21: 1.237113402 | AB21: 9.3 | AC21: 9.4 | AD21: 1.290322581 | AE21: 1.276595745 | AF21: 9.3 | AG21: 9.4 | AH21: 1.290322581 | AI21: 1.276595745 | AJ21: 9 | AK21: 9.1 | AL21: 1.333333333 | AM21: 1.318681319 | AN21: 9 | AO21: 9.1 | AP21: 1.333333333 | AQ21: 1.318681319 | AR21: ASHRAE 90.1--2004 | AT21: 9.2 | AU21: 10 | AV21: 6.8 | AW21: 1.304347826 | AX21: 1.2 | AY21: 1.764705882 | AZ21: 9 | BA21: 9.7 | BB21: 6.6 | BC21: 1.333333333 | BD21: 1.237113402 | BE21: 1.818181818 | BF21: 9.9 | BG21: 10.1 | BH21: 3.2 | BI21: 1.212121212 | BJ21: 1.188118812 | BK21: 1.099062134 | BL21: 9.9 | BM21: 10.1 | BN21: 3.2 | BO21: 1.212121212 | BP21: 1.188118812 | BQ21: 1.099062134 | BR21: 9.1 | BS21: 9.2 | BT21: 3.1 | BU21: 1.318681319 | BV21: 1.304347826 | BW21: 1.134515751 | BX21: 9.1 | BY21: 9.2 | BZ21: 3.1 | CA21: 1.318681319 | CB21: 1.304347826 | CC21: 1.134515751 | CD21: 8.8 | CE21: 8.9 | CF21: 3.1 | CG21: 1.363636364 | CH21: 1.348314607 | CI21: 1.134515751 | CJ21: 8.8 | CK21: 8.9 | CL21: 3.1 | CM21: 1.363636364 | CN21: 1.348314607 | CO21: 1.134515751 | CP21: 8.8 | CQ21: 8.9 | CR21: 3.1 | CS21: 1.363636364 | CT21: 1.348314607 | CU21: 1.134515751 | CV21: 8.8 | CW21: 8.9 | CX21: 3.1 | CY21: 1.363636364 | CZ21: 1.348314607 | DA21: 1.134515751 | DB21: ASHRAE 90.1--2004
A22: 2006 | C22: 2006 | D22: 11.2 | E22: 13 | F22: 1.071428571 | G22: 0.9230769231 | H22: 11.2 | I22: 13 | J22: 1.071428571 | K22: 0.9230769231 | L22: 10.1 | M22: 10.3 | N22: 1.188118812 | O22: 1.165048544 | P22: 10.1 | Q22: 10.3 | R22: 1.188118812 | S22: 1.165048544 | T22: 9.5 | U22: 9.7 | V22: 1.263157895 | W22: 1.237113402 | X22: 9.5 | Y22: 9.7 | Z22: 1.263157895 | AA22: 1.237113402 | AB22: 9.3 | AC22: 9.4 | AD22: 1.290322581 | AE22: 1.276595745 | AF22: 9.3 | AG22: 9.4 | AH22: 1.290322581 | AI22: 1.276595745 | AJ22: 9 | AK22: 9.1 | AL22: 1.333333333 | AM22: 1.318681319 | AN22: 9 | AO22: 9.1 | AP22: 1.333333333 | AQ22: 1.318681319 | AR22: Federal Standard/ASHRAE 90.1-2004 (as of 1/23/2006)b | AT22: 11.2 | AU22: 13 | AV22: 7.7 | AW22: 1.071428571 | AX22: 0.9230769231 | AY22: 1.558441558 | AZ22: 11.2 | BA22: 13 | BB22: 7.7 | BC22: 1.071428571 | BD22: 0.9230769231 | BE22: 1.558441558 | BF22: 9.9 | BG22: 10.1 | BH22: 3.2 | BI22: 1.212121212 | BJ22: 1.188118812 | BK22: 1.099062134 | BL22: 9.9 | BM22: 10.1 | BN22: 3.2 | BO22: 1.212121212 | BP22: 1.188118812 | BQ22: 1.099062134 | BR22: 9.1 | BS22: 9.2 | BT22: 3.1 | BU22: 1.318681319 | BV22: 1.304347826 | BW22: 1.134515751 | BX22: 9.1 | BY22: 9.2 | BZ22: 3.1 | CA22: 1.318681319 | CB22: 1.304347826 | CC22: 1.134515751 | CD22: 8.8 | CE22: 8.9 | CF22: 3.1 | CG22: 1.363636364 | CH22: 1.348314607 | CI22: 1.134515751 | CJ22: 8.8 | CK22: 8.9 | CL22: 3.1 | CM22: 1.363636364 | CN22: 1.348314607 | CO22: 1.134515751 | CP22: 8.8 | CQ22: 8.9 | CR22: 3.1 | CS22: 1.363636364 | CT22: 1.348314607 | CU22: 1.134515751 | CV22: 8.8 | CW22: 8.9 | CX22: 3.1 | CY22: 1.363636364 | CZ22: 1.348314607 | DA22: 1.134515751 | DB22: Federal Standard/ASHRAE 90.1--2004 (as of 1/23/2006)b
A23: 2007 | C23: 2007 | D23: 11.2 | E23: 13 | F23: 1.071428571 | G23: 0.9230769231 | H23: 11.2 | I23: 13 | J23: 1.071428571 | K23: 0.9230769231 | L23: 10.1 | M23: 10.3 | N23: 1.188118812 | O23: 1.165048544 | P23: 10.1 | Q23: 10.3 | R23: 1.188118812 | S23: 1.165048544 | T23: 9.5 | U23: 9.7 | V23: 1.263157895 | W23: 1.237113402 | X23: 9.5 | Y23: 9.7 | Z23: 1.263157895 | AA23: 1.237113402 | AB23: 9.3 | AC23: 9.4 | AD23: 1.290322581 | AE23: 1.276595745 | AF23: 9.3 | AG23: 9.4 | AH23: 1.290322581 | AI23: 1.276595745 | AJ23: 9 | AK23: 9.1 | AL23: 1.333333333 | AM23: 1.318681319 | AN23: 9 | AO23: 9.1 | AP23: 1.333333333 | AQ23: 1.318681319 | AR23: Federal Standard/ASHRAE 90.1-2004 (as of 1/23/2006)b | AT23: 11.2 | AU23: 13 | AV23: 7.7 | AW23: 1.071428571 | AX23: 0.9230769231 | AY23: 1.558441558 | AZ23: 11.2 | BA23: 13 | BB23: 7.7 | BC23: 1.071428571 | BD23: 0.9230769231 | BE23: 1.558441558 | BF23: 9.9 | BG23: 10.1 | BH23: 3.2 | BI23: 1.212121212 | BJ23: 1.188118812 | BK23: 1.099062134 | BL23: 9.9 | BM23: 10.1 | BN23: 3.2 | BO23: 1.212121212 | BP23: 1.188118812 | BQ23: 1.099062134 | BR23: 9.1 | BS23: 9.2 | BT23: 3.1 | BU23: 1.318681319 | BV23: 1.304347826 | BW23: 1.134515751 | BX23: 9.1 | BY23: 9.2 | BZ23: 3.1 | CA23: 1.318681319 | CB23: 1.304347826 | CC23: 1.134515751 | CD23: 8.8 | CE23: 8.9 | CF23: 3.1 | CG23: 1.363636364 | CH23: 1.348314607 | CI23: 1.134515751 | CJ23: 8.8 | CK23: 8.9 | CL23: 3.1 | CM23: 1.363636364 | CN23: 1.348314607 | CO23: 1.134515751 | CP23: 8.8 | CQ23: 8.9 | CR23: 3.1 | CS23: 1.363636364 | CT23: 1.348314607 | CU23: 1.134515751 | CV23: 8.8 | CW23: 8.9 | CX23: 3.1 | CY23: 1.363636364 | CZ23: 1.348314607 | DA23: 1.134515751 | DB23: Federal Standard/ASHRAE 90.1-2007 (as of 1/23/2006)b
A24: 2008 | C24: 2008 | D24: 11.2 | E24: 13 | F24: 1.071428571 | G24: 0.9230769231 | H24: 11.2 | I24: 13 | J24: 1.071428571 | K24: 0.9230769231 | L24: 10.1 | M24: 10.3 | N24: 1.188118812 | O24: 1.165048544 | P24: 10.1 | Q24: 10.3 | R24: 1.188118812 | S24: 1.165048544 | T24: 9.5 | U24: 9.7 | V24: 1.263157895 | W24: 1.237113402 | X24: 9.5 | Y24: 9.7 | Z24: 1.263157895 | AA24: 1.237113402 | AB24: 9.3 | AC24: 9.4 | AD24: 1.290322581 | AE24: 1.276595745 | AF24: 9.3 | AG24: 9.4 | AH24: 1.290322581 | AI24: 1.276595745 | AJ24: 9 | AK24: 9.1 | AL24: 1.333333333 | AM24: 1.318681319 | AN24: 9 | AO24: 9.1 | AP24: 1.333333333 | AQ24: 1.318681319 | AR24: Federal Standard/ASHRAE 90.1-2004 (as of 1/23/2006)b | AT24: 11.2 | AU24: 13 | AV24: 7.7 | AW24: 1.071428571 | AX24: 0.9230769231 | AY24: 1.558441558 | AZ24: 11.2 | BA24: 13 | BB24: 7.7 | BC24: 1.071428571 | BD24: 0.9230769231 | BE24: 1.558441558 | BF24: 9.9 | BG24: 10.1 | BH24: 3.2 | BI24: 1.212121212 | BJ24: 1.188118812 | BK24: 1.099062134 | BL24: 9.9 | BM24: 10.1 | BN24: 3.2 | BO24: 1.212121212 | BP24: 1.188118812 | BQ24: 1.099062134 | BR24: 9.1 | BS24: 9.2 | BT24: 3.1 | BU24: 1.318681319 | BV24: 1.304347826 | BW24: 1.134515751 | BX24: 9.1 | BY24: 9.2 | BZ24: 3.1 | CA24: 1.318681319 | CB24: 1.304347826 | CC24: 1.134515751 | CD24: 8.8 | CE24: 8.9 | CF24: 3.1 | CG24: 1.363636364 | CH24: 1.348314607 | CI24: 1.134515751 | CJ24: 8.8 | CK24: 8.9 | CL24: 3.1 | CM24: 1.363636364 | CN24: 1.348314607 | CO24: 1.134515751 | CP24: 8.8 | CQ24: 8.9 | CR24: 3.1 | CS24: 1.363636364 | CT24: 1.348314607 | CU24: 1.134515751 | CV24: 8.8 | CW24: 8.9 | CX24: 3.1 | CY24: 1.363636364 | CZ24: 1.348314607 | DA24: 1.134515751 | DB24: Federal Standard/ASHRAE 90.1-2007 (as of 1/23/2006)b
A25: 2009 | C25: 2009 | D25: 11.2 | E25: 13 | F25: 1.071428571 | G25: 0.9230769231 | H25: 11.2 | I25: 13 | J25: 1.071428571 | K25: 0.9230769231 | L25: 10.1 | M25: 10.3 | N25: 1.188118812 | O25: 1.165048544 | P25: 10.1 | Q25: 10.3 | R25: 1.188118812 | S25: 1.165048544 | T25: 9.5 | U25: 9.7 | V25: 1.263157895 | W25: 1.237113402 | X25: 9.5 | Y25: 9.7 | Z25: 1.263157895 | AA25: 1.237113402 | AB25: 9.3 | AC25: 9.4 | AD25: 1.290322581 | AE25: 1.276595745 | AF25: 9.3 | AG25: 9.4 | AH25: 1.290322581 | AI25: 1.276595745 | AJ25: 9 | AK25: 9.1 | AL25: 1.333333333 | AM25: 1.318681319 | AN25: 9 | AO25: 9.1 | AP25: 1.333333333 | AQ25: 1.318681319 | AR25: Federal Standard/ASHRAE 90.1-2004 (as of 1/23/2006)b | AT25: 11.2 | AU25: 13 | AV25: 7.7 | AW25: 1.071428571 | AX25: 0.9230769231 | AY25: 1.558441558 | AZ25: 11.2 | BA25: 13 | BB25: 7.7 | BC25: 1.071428571 | BD25: 0.9230769231 | BE25: 1.558441558 | BF25: 9.9 | BG25: 10.1 | BH25: 3.2 | BI25: 1.212121212 | BJ25: 1.188118812 | BK25: 1.099062134 | BL25: 9.9 | BM25: 10.1 | BN25: 3.2 | BO25: 1.212121212 | BP25: 1.188118812 | BQ25: 1.099062134 | BR25: 9.1 | BS25: 9.2 | BT25: 3.1 | BU25: 1.318681319 | BV25: 1.304347826 | BW25: 1.134515751 | BX25: 9.1 | BY25: 9.2 | BZ25: 3.1 | CA25: 1.318681319 | CB25: 1.304347826 | CC25: 1.134515751 | CD25: 8.8 | CE25: 8.9 | CF25: 3.1 | CG25: 1.363636364 | CH25: 1.348314607 | CI25: 1.134515751 | CJ25: 8.8 | CK25: 8.9 | CL25: 3.1 | CM25: 1.363636364 | CN25: 1.348314607 | CO25: 1.134515751 | CP25: 8.8 | CQ25: 8.9 | CR25: 3.1 | CS25: 1.363636364 | CT25: 1.348314607 | CU25: 1.134515751 | CV25: 8.8 | CW25: 8.9 | CX25: 3.1 | CY25: 1.363636364 | CZ25: 1.348314607 | DA25: 1.134515751 | DB25: Federal Standard/ASHRAE 90.1-2007 (as of 1/23/2006)b
A26: 2010 | C26: 2010 | D26: 11.2 | E26: 13 | F26: 1.071428571 | G26: 0.9230769231 | H26: 11.2 | I26: 13 | J26: 1.071428571 | K26: 0.9230769231 | L26: 11 | M26: 11.2 | N26: 1.090909091 | O26: 1.071428571 | P26: 11 | Q26: 11.2 | R26: 1.090909091 | S26: 1.071428571 | T26: 10.8 | U26: 11 | V26: 1.111111111 | W26: 1.090909091 | X26: 10.8 | Y26: 11 | Z26: 1.111111111 | AA26: 1.090909091 | AB26: 9.8 | AC26: 9.9 | AD26: 1.224489796 | AE26: 1.212121212 | AF26: 9.8 | AG26: 9.9 | AH26: 1.224489796 | AI26: 1.212121212 | AJ26: 9.5 | AK26: 9.6 | AL26: 1.263157895 | AM26: 1.25 | AN26: 9.5 | AO26: 9.6 | AP26: 1.263157895 | AQ26: 1.25 | AR26: Federal Standard/ASHRAE 90.1-2007 (as of 1/1/2010)b | AT26: 11.2 | AU26: 13 | AV26: 7.7 | AW26: 1.071428571 | AX26: 0.9230769231 | AY26: 1.558441558 | AZ26: 11.2 | BA26: 13 | BB26: 7.7 | BC26: 1.071428571 | BD26: 0.9230769231 | BE26: 1.558441558 | BF26: 10.8 | BG26: 11 | BH26: 3.3 | BI26: 1.111111111 | BJ26: 1.090909091 | BK26: 1.065757221 | BL26: 10.8 | BM26: 11 | BN26: 3.3 | BO26: 1.111111111 | BP26: 1.090909091 | BQ26: 1.065757221 | BR26: 10.4 | BS26: 10.5 | BT26: 3.2 | BU26: 1.153846154 | BV26: 1.142857143 | BW26: 1.099062134 | BX26: 10.4 | BY26: 10.5 | BZ26: 3.2 | CA26: 1.153846154 | CB26: 1.142857143 | CC26: 1.099062134 | CD26: 9.3 | CE26: 9.4 | CF26: 3.2 | CG26: 1.290322581 | CH26: 1.276595745 | CI26: 1.099062134 | CJ26: 9.3 | CK26: 9.4 | CL26: 3.2 | CM26: 1.290322581 | CN26: 1.276595745 | CO26: 1.099062134 | CP26: 9.3 | CQ26: 9.4 | CR26: 3.2 | CS26: 1.290322581 | CT26: 1.276595745 | CU26: 1.099062134 | CV26: 9.3 | CW26: 9.4 | CX26: 3.2 | CY26: 1.290322581 | CZ26: 1.276595745 | DA26: 1.099062134 | DB26: Federal Standard/ASHRAE 90.1-2007 (as of 1/1/2010)b
A27: 2011 | C27: 2011 | D27: 11.2 | E27: 13 | F27: 1.071428571 | G27: 0.9230769231 | H27: 11.2 | I27: 13 | J27: 1.071428571 | K27: 0.9230769231 | L27: 11 | M27: 11.2 | N27: 1.090909091 | O27: 1.071428571 | P27: 11 | Q27: 11.2 | R27: 1.090909091 | S27: 1.071428571 | T27: 10.8 | U27: 11 | V27: 1.111111111 | W27: 1.090909091 | X27: 10.8 | Y27: 11 | Z27: 1.111111111 | AA27: 1.090909091 | AB27: 9.8 | AC27: 9.9 | AD27: 1.224489796 | AE27: 1.212121212 | AF27: 9.8 | AG27: 9.9 | AH27: 1.224489796 | AI27: 1.212121212 | AJ27: 9.5 | AK27: 9.6 | AL27: 1.263157895 | AM27: 1.25 | AN27: 9.5 | AO27: 9.6 | AP27: 1.263157895 | AQ27: 1.25 | AR27: Federal Standard/ASHRAE 90.1-2007 (as of 1/1/2010)b | AT27: 11.2 | AU27: 13 | AV27: 7.7 | AW27: 1.071428571 | AX27: 0.9230769231 | AY27: 1.558441558 | AZ27: 11.2 | BA27: 13 | BB27: 7.7 | BC27: 1.071428571 | BD27: 0.9230769231 | BE27: 1.558441558 | BF27: 10.8 | BG27: 11 | BH27: 3.3 | BI27: 1.111111111 | BJ27: 1.090909091 | BK27: 1.065757221 | BL27: 10.8 | BM27: 11 | BN27: 3.3 | BO27: 1.111111111 | BP27: 1.090909091 | BQ27: 1.065757221 | BR27: 10.4 | BS27: 10.5 | BT27: 3.2 | BU27: 1.153846154 | BV27: 1.142857143 | BW27: 1.099062134 | BX27: 10.4 | BY27: 10.5 | BZ27: 3.2 | CA27: 1.153846154 | CB27: 1.142857143 | CC27: 1.099062134 | CD27: 9.3 | CE27: 9.4 | CF27: 3.2 | CG27: 1.290322581 | CH27: 1.276595745 | CI27: 1.099062134 | CJ27: 9.3 | CK27: 9.4 | CL27: 3.2 | CM27: 1.290322581 | CN27: 1.276595745 | CO27: 1.099062134 | CP27: 9.3 | CQ27: 9.4 | CR27: 3.2 | CS27: 1.290322581 | CT27: 1.276595745 | CU27: 1.099062134 | CV27: 9.3 | CW27: 9.4 | CX27: 3.2 | CY27: 1.290322581 | CZ27: 1.276595745 | DA27: 1.099062134 | DB27: Federal Standard/ASHRAE 90.1-2007 (as of 1/1/2010)b
A28: 2012 | C28: 2012 | D28: 11.2 | E28: 13 | F28: 1.071428571 | G28: 0.9230769231 | H28: 11.2 | I28: 13 | J28: 1.071428571 | K28: 0.9230769231 | L28: 11 | M28: 11.2 | N28: 1.090909091 | O28: 1.071428571 | P28: 11 | Q28: 11.2 | R28: 1.090909091 | S28: 1.071428571 | T28: 10.8 | U28: 11 | V28: 1.111111111 | W28: 1.090909091 | X28: 10.8 | Y28: 11 | Z28: 1.111111111 | AA28: 1.090909091 | AB28: 9.8 | AC28: 9.9 | AD28: 1.224489796 | AE28: 1.212121212 | AF28: 9.8 | AG28: 9.9 | AH28: 1.224489796 | AI28: 1.212121212 | AJ28: 9.5 | AK28: 9.6 | AL28: 1.263157895 | AM28: 1.25 | AN28: 9.5 | AO28: 9.6 | AP28: 1.263157895 | AQ28: 1.25 | AR28: Federal Standard/ASHRAE 90.1-2007 (as of 1/1/2010)b | AT28: 11.2 | AU28: 13 | AV28: 7.7 | AW28: 1.071428571 | AX28: 0.9230769231 | AY28: 1.558441558 | AZ28: 11.2 | BA28: 13 | BB28: 7.7 | BC28: 1.071428571 | BD28: 0.9230769231 | BE28: 1.558441558 | BF28: 10.8 | BG28: 11 | BH28: 3.3 | BI28: 1.111111111 | BJ28: 1.090909091 | BK28: 1.065757221 | BL28: 10.8 | BM28: 11 | BN28: 3.3 | BO28: 1.111111111 | BP28: 1.090909091 | BQ28: 1.065757221 | BR28: 10.4 | BS28: 10.5 | BT28: 3.2 | BU28: 1.153846154 | BV28: 1.142857143 | BW28: 1.099062134 | BX28: 10.4 | BY28: 10.5 | BZ28: 3.2 | CA28: 1.153846154 | CB28: 1.142857143 | CC28: 1.099062134 | CD28: 9.3 | CE28: 9.4 | CF28: 3.2 | CG28: 1.290322581 | CH28: 1.276595745 | CI28: 1.099062134 | CJ28: 9.3 | CK28: 9.4 | CL28: 3.2 | CM28: 1.290322581 | CN28: 1.276595745 | CO28: 1.099062134 | CP28: 9.3 | CQ28: 9.4 | CR28: 3.2 | CS28: 1.290322581 | CT28: 1.276595745 | CU28: 1.099062134 | CV28: 9.3 | CW28: 9.4 | CX28: 3.2 | CY28: 1.290322581 | CZ28: 1.276595745 | DA28: 1.099062134 | DB28: Federal Standard/ASHRAE 90.1-2007 (as of 1/1/2010)b
A29: 2013 | C29: 2013 | D29: 11.2 | E29: 13 | F29: =12/D29 -> 1.071428571 | G29: =12/E29 -> 0.9230769231 | H29: 11.2 | I29: 13 | J29: =12/H29 -> 1.071428571 | K29: =12/I29 -> 0.9230769231 | L29: 11 | M29: 11.2 | N29: =12/L29 -> 1.090909091 | O29: =12/M29 -> 1.071428571 | P29: 11 | Q29: 11.2 | R29: =12/P29 -> 1.090909091 | S29: =12/Q29 -> 1.071428571 | T29: 10.8 | U29: 11 | V29: =12/T29 -> 1.111111111 | W29: =12/U29 -> 1.090909091 | X29: 10.8 | Y29: 11 | Z29: =12/X29 -> 1.111111111 | AA29: =12/Y29 -> 1.090909091 | AB29: 9.8 | AC29: 9.9 | AD29: =12/AB29 -> 1.224489796 | AE29: =12/AC29 -> 1.212121212 | AF29: 9.8 | AG29: 9.9 | AH29: =12/AF29 -> 1.224489796 | AI29: =12/AG29 -> 1.212121212 | AJ29: 9.5 | AK29: 9.6 | AL29: =12/AJ29 -> 1.263157895 | AM29: =12/AK29 -> 1.25 | AN29: 9.5 | AO29: 9.6 | AP29: =12/AN29 -> 1.263157895 | AQ29: =12/AO29 -> 1.25 | AT29: 11.2 | AU29: 13 | AV29: 7.7 | AW29: =12/AT29 -> 1.071428571 | AX29: =12/AU29 -> 0.9230769231 | AY29: =12/AV29 -> 1.558441558 | AZ29: 11.2 | BA29: 13 | BB29: 7.7 | BC29: =12/AZ29 -> 1.071428571 | BD29: =12/BA29 -> 0.9230769231 | BE29: =12/BB29 -> 1.558441558 | BF29: 10.8 | BG29: 11 | BH29: 3.3 | BI29: =12/BF29 -> 1.111111111 | BJ29: =12/BG29 -> 1.090909091 | BK29: =12/3.412/BH29 -> 1.065757221 | BL29: 10.8 | BM29: 11 | BN29: 3.3 | BO29: =12/BL29 -> 1.111111111 | BP29: =12/BM29 -> 1.090909091 | BQ29: =12/3.412/BN29 -> 1.065757221 | BR29: 10.4 | BS29: 10.5 | BT29: 3.2 | BU29: =12/BR29 -> 1.153846154 | BV29: =12/BS29 -> 1.142857143 | BW29: =12/3.412/BT29 -> 1.099062134 | BX29: 10.4 | BY29: 10.5 | BZ29: 3.2 | CA29: =12/BX29 -> 1.153846154 | CB29: =12/BY29 -> 1.142857143 | CC29: =12/3.412/BZ29 -> 1.099062134 | CD29: 9.3 | CE29: 9.4 | CF29: 3.2 | CG29: =12/CD29 -> 1.290322581 | CH29: =12/CE29 -> 1.276595745 | CI29: =12/3.412/CF29 -> 1.099062134 | CJ29: 9.3 | CK29: 9.4 | CL29: 3.2 | CM29: =12/CJ29 -> 1.290322581 | CN29: =12/CK29 -> 1.276595745 | CO29: =12/3.412/CL29 -> 1.099062134 | CP29: 9.3 | CQ29: 9.4 | CR29: 3.2 | CS29: =12/CP29 -> 1.290322581 | CT29: =12/CQ29 -> 1.276595745 | CU29: =12/3.412/CR29 -> 1.099062134 | CV29: 9.3 | CW29: 9.4 | CX29: 3.2 | CY29: =12/CV29 -> 1.290322581 | CZ29: =12/CW29 -> 1.276595745 | DA29: =12/3.412/CX29 -> 1.099062134
A30: 2014 | C30: 2014 | D30: 11.2 | E30: 13 | F30: 1.071428571 | G30: 0.9230769231 | H30: 11.2 | I30: 13 | J30: 1.071428571 | K30: 0.9230769231 | L30: 11 | M30: 11.2 | N30: 1.090909091 | O30: 1.071428571 | P30: 11 | Q30: 11.2 | R30: 1.090909091 | S30: 1.071428571 | T30: 10.8 | U30: 11 | V30: 1.111111111 | W30: 1.090909091 | X30: 10.8 | Y30: 11 | Z30: 1.111111111 | AA30: 1.090909091 | AB30: 9.8 | AC30: 9.9 | AD30: 1.224489796 | AE30: 1.212121212 | AF30: 9.8 | AG30: 9.9 | AH30: 1.224489796 | AI30: 1.212121212 | AJ30: 9.5 | AK30: 9.6 | AL30: 1.263157895 | AM30: 1.25 | AN30: 9.5 | AO30: 9.6 | AP30: 1.263157895 | AQ30: 1.25 | AT30: 11.2 | AU30: 13 | AV30: 7.7 | AW30: 1.071428571 | AX30: 0.9230769231 | AY30: 1.558441558 | AZ30: 11.2 | BA30: 13 | BB30: 7.7 | BC30: 1.071428571 | BD30: 0.9230769231 | BE30: 1.558441558 | BF30: 10.8 | BG30: 11 | BH30: 3.3 | BI30: 1.111111111 | BJ30: 1.090909091 | BK30: 1.065757221 | BL30: 10.8 | BM30: 11 | BN30: 3.3 | BO30: 1.111111111 | BP30: 1.090909091 | BQ30: 1.065757221 | BR30: 10.4 | BS30: 10.5 | BT30: 3.2 | BU30: 1.153846154 | BV30: 1.142857143 | BW30: 1.099062134 | BX30: 10.4 | BY30: 10.5 | BZ30: 3.2 | CA30: 1.153846154 | CB30: 1.142857143 | CC30: 1.099062134 | CD30: 9.3 | CE30: 9.4 | CF30: 3.2 | CG30: 1.290322581 | CH30: 1.276595745 | CI30: 1.099062134 | CJ30: 9.3 | CK30: 9.4 | CL30: 3.2 | CM30: 1.290322581 | CN30: 1.276595745 | CO30: 1.099062134 | CP30: 9.3 | CQ30: 9.4 | CR30: 3.2 | CS30: 1.290322581 | CT30: 1.276595745 | CU30: 1.099062134 | CV30: 9.3 | CW30: 9.4 | CX30: 3.2 | CY30: 1.290322581 | CZ30: 1.276595745 | DA30: 1.099062134
A31: 2015 | C31: 2015 | D31: 11.2 | E31: 13 | F31: 1.071428571 | G31: 0.9230769231 | H31: 11.2 | I31: 13 | J31: 1.071428571 | K31: 0.9230769231 | L31: 11 | M31: 11.2 | N31: 1.090909091 | O31: 1.071428571 | P31: 11 | Q31: 11.2 | R31: 1.090909091 | S31: 1.071428571 | T31: 10.8 | U31: 11 | V31: 1.111111111 | W31: 1.090909091 | X31: 10.8 | Y31: 11 | Z31: 1.111111111 | AA31: 1.090909091 | AB31: 9.8 | AC31: 9.9 | AD31: 1.224489796 | AE31: 1.212121212 | AF31: 9.8 | AG31: 9.9 | AH31: 1.224489796 | AI31: 1.212121212 | AJ31: 9.5 | AK31: 9.6 | AL31: 1.263157895 | AM31: 1.25 | AN31: 9.5 | AO31: 9.6 | AP31: 1.263157895 | AQ31: 1.25 | AT31: 11.8 | AU31: 13 | AV31: 7.7 | AW31: 1.016949153 | AX31: 0.9230769231 | AY31: 1.558441558 | AZ31: 11.2 | BA31: 13 | BB31: 7.7 | BC31: 1.071428571 | BD31: 0.9230769231 | BE31: 1.558441558 | BF31: 10.8 | BG31: 11 | BH31: 3.3 | BI31: 1.111111111 | BJ31: 1.090909091 | BK31: 1.065757221 | BL31: 10.8 | BM31: 11 | BN31: 3.3 | BO31: 1.111111111 | BP31: 1.090909091 | BQ31: 1.065757221 | BR31: 10.4 | BS31: 10.5 | BT31: 3.2 | BU31: 1.153846154 | BV31: 1.142857143 | BW31: 1.099062134 | BX31: 10.4 | BY31: 10.5 | BZ31: 3.2 | CA31: 1.153846154 | CB31: 1.142857143 | CC31: 1.099062134 | CD31: 9.3 | CE31: 9.4 | CF31: 3.2 | CG31: 1.290322581 | CH31: 1.276595745 | CI31: 1.099062134 | CJ31: 9.3 | CK31: 9.4 | CL31: 3.2 | CM31: 1.290322581 | CN31: 1.276595745 | CO31: 1.099062134 | CP31: 9.3 | CQ31: 9.4 | CR31: 3.2 | CS31: 1.290322581 | CT31: 1.276595745 | CU31: 1.099062134 | CV31: 9.3 | CW31: 9.4 | CX31: 3.2 | CY31: 1.290322581 | CZ31: 1.276595745 | DA31: 1.099062134
A32: 2016 | C32: 2016 | D32: 11.2 | E32: 13 | F32: 1.071428571 | G32: 0.9230769231 | H32: 11.8 | I32: 14 | J32: 1.016949153 | K32: 0.8571428571 | L32: 11 | M32: 12.6 | N32: 1.090909091 | O32: 0.9523809524 | P32: 11 | Q32: 12.6 | R32: 1.090909091 | S32: 0.9523809524 | T32: 10.8 | U32: 12.2 | V32: 1.111111111 | W32: 0.9836065574 | X32: 10.8 | Y32: 12.2 | Z32: 1.111111111 | AA32: 0.9836065574 | AB32: 9.8 | AC32: 11.4 | AD32: 1.224489796 | AE32: 1.052631579 | AF32: 9.8 | AG32: 11.4 | AH32: 1.224489796 | AI32: 1.052631579 | AJ32: 9.5 | AK32: 11 | AL32: 1.263157895 | AM32: 1.090909091 | AN32: 9.5 | AO32: 11 | AP32: 1.263157895 | AQ32: 1.090909091 | AT32: 11.8 | AU32: 14 | AV32: 7.7 | AW32: 1.016949153 | AX32: 0.8571428571 | AY32: 1.558441558 | AZ32: 11.8 | BA32: 13 | BB32: 7.7 | BC32: 1.016949153 | BD32: 0.9230769231 | BE32: 1.558441558 | BF32: 11 | BG32: 12 | BH32: 3.3 | BI32: 1.090909091 | BJ32: 1 | BK32: 1.065757221 | BL32: 11 | BM32: 12 | BN32: 3.3 | BO32: 1.090909091 | BP32: 1 | BQ32: 1.065757221 | BR32: 10.6 | BS32: 11.6 | BT32: 3.2 | BU32: 1.132075472 | BV32: 1.034482759 | BW32: 1.099062134 | BX32: 10.6 | BY32: 11.6 | BZ32: 3.2 | CA32: 1.132075472 | CB32: 1.034482759 | CC32: 1.099062134 | CD32: 9.5 | CE32: 10.6 | CF32: 3.2 | CG32: 1.263157895 | CH32: 1.132075472 | CI32: 1.099062134 | CJ32: 9.5 | CK32: 10.6 | CL32: 3.2 | CM32: 1.263157895 | CN32: 1.132075472 | CO32: 1.099062134 | CP32: 9.5 | CQ32: 10.6 | CR32: 3.2 | CS32: 1.263157895 | CT32: 1.132075472 | CU32: 1.099062134 | CV32: 9.5 | CW32: 10.6 | CX32: 3.2 | CY32: 1.263157895 | CZ32: 1.132075472 | DA32: 1.099062134
A33: 2017 | C33: 2017 | D33: 11.2 | E33: 13 | F33: 1.071428571 | G33: 0.9230769231 | H33: 11.8 | I33: 14 | J33: 1.016949153 | K33: 0.8571428571 | L33: 11 | M33: 12.6 | N33: 1.090909091 | O33: 0.9523809524 | P33: 11 | Q33: 12.6 | R33: 1.090909091 | S33: 0.9523809524 | T33: 10.8 | U33: 12.2 | V33: 1.111111111 | W33: 0.9836065574 | X33: 10.8 | Y33: 12.2 | Z33: 1.111111111 | AA33: 0.9836065574 | AB33: 9.8 | AC33: 11.4 | AD33: 1.224489796 | AE33: 1.052631579 | AF33: 9.8 | AG33: 11.4 | AH33: 1.224489796 | AI33: 1.052631579 | AJ33: 9.5 | AK33: 11 | AL33: 1.263157895 | AM33: 1.090909091 | AN33: 9.5 | AO33: 11 | AP33: 1.263157895 | AQ33: 1.090909091 | AT33: 11.8 | AU33: 14 | AV33: 7.7 | AW33: 1.016949153 | AX33: 0.8571428571 | AY33: 1.558441558 | AZ33: 11.8 | BA33: 13 | BB33: 7.7 | BC33: 1.016949153 | BD33: 0.9230769231 | BE33: 1.558441558 | BF33: 11 | BG33: 12 | BH33: 3.3 | BI33: 1.090909091 | BJ33: 1 | BK33: 1.065757221 | BL33: 11 | BM33: 12 | BN33: 3.3 | BO33: 1.090909091 | BP33: 1 | BQ33: 1.065757221 | BR33: 10.6 | BS33: 11.6 | BT33: 3.2 | BU33: 1.132075472 | BV33: 1.034482759 | BW33: 1.099062134 | BX33: 10.6 | BY33: 11.6 | BZ33: 3.2 | CA33: 1.132075472 | CB33: 1.034482759 | CC33: 1.099062134 | CD33: 9.5 | CE33: 10.6 | CF33: 3.2 | CG33: 1.263157895 | CH33: 1.132075472 | CI33: 1.099062134 | CJ33: 9.5 | CK33: 10.6 | CL33: 3.2 | CM33: 1.263157895 | CN33: 1.132075472 | CO33: 1.099062134 | CP33: 9.5 | CQ33: 10.6 | CR33: 3.2 | CS33: 1.263157895 | CT33: 1.132075472 | CU33: 1.099062134 | CV33: 9.5 | CW33: 10.6 | CX33: 3.2 | CY33: 1.263157895 | CZ33: 1.132075472 | DA33: 1.099062134
A34: 2018 | C34: 2018 | D34: 11.2 | E34: 13 | F34: 1.071428571 | G34: 0.9230769231 | H34: 11.8 | I34: 14 | J34: 1.016949153 | K34: 0.8571428571 | L34: 11 | M34: 12.6 | N34: 1.090909091 | O34: 0.9523809524 | P34: 11 | Q34: 12.6 | R34: 1.090909091 | S34: 0.9523809524 | T34: 10.8 | U34: 12.2 | V34: 1.111111111 | W34: 0.9836065574 | X34: 10.8 | Y34: 12.2 | Z34: 1.111111111 | AA34: 0.9836065574 | AB34: 9.8 | AC34: 11.4 | AD34: 1.224489796 | AE34: 1.052631579 | AF34: 9.8 | AG34: 11.4 | AH34: 1.224489796 | AI34: 1.052631579 | AJ34: 9.5 | AK34: 11 | AL34: 1.263157895 | AM34: 1.090909091 | AN34: 9.5 | AO34: 11 | AP34: 1.263157895 | AQ34: 1.090909091 | AT34: 11.8 | AU34: 14 | AV34: 8.2 | AW34: 1.016949153 | AX34: 0.8571428571 | AY34: 1.463414634 | AZ34: 11.8 | BA34: 14 | BB34: 8 | BC34: 1.016949153 | BD34: 0.8571428571 | BE34: 1.5 | BF34: 11 | BG34: 12 | BH34: 3.3 | BI34: 1.090909091 | BJ34: 1 | BK34: 1.065757221 | BL34: 11 | BM34: 12 | BN34: 3.3 | BO34: 1.090909091 | BP34: 1 | BQ34: 1.065757221 | BR34: 10.6 | BS34: 11.6 | BT34: 3.2 | BU34: 1.132075472 | BV34: 1.034482759 | BW34: 1.099062134 | BX34: 10.6 | BY34: 11.6 | BZ34: 3.2 | CA34: 1.132075472 | CB34: 1.034482759 | CC34: 1.099062134 | CD34: 9.5 | CE34: 10.6 | CF34: 3.2 | CG34: 1.263157895 | CH34: 1.132075472 | CI34: 1.099062134 | CJ34: 9.5 | CK34: 10.6 | CL34: 3.2 | CM34: 1.263157895 | CN34: 1.132075472 | CO34: 1.099062134 | CP34: 9.5 | CQ34: 10.6 | CR34: 3.2 | CS34: 1.263157895 | CT34: 1.132075472 | CU34: 1.099062134 | CV34: 9.5 | CW34: 10.6 | CX34: 3.2 | CY34: 1.263157895 | CZ34: 1.132075472 | DA34: 1.099062134
A35: ARTRM8 | C35: ARTRM8 | D35: 11.2 | E35: 14 | F35: =12/D35 -> 1.071428571 | G35: 0.8571428571 | H35: 11.8 | I35: 14 | J35: =12/H35 -> 1.016949153 | K35: =12/I35 -> 0.8571428571 | L35: 11.2 | M35: 12.8 | N35: =12/L35 -> 1.071428571 | O35: =12/M35 -> 0.9375 | P35: 11 | Q35: 12.8 | R35: 1.090909091 | S35: 0.9375 | T35: 11 | U35: 12.4 | V35: 1.090909091 | W35: 0.9677419355 | X35: 10.8 | Y35: 12.2 | Z35: 1.111111111 | AA35: 0.9836065574 | AB35: 10 | AC35: 11.6 | AD35: 1.2 | AE35: 1.034482759 | AF35: 9.8 | AG35: 11.4 | AH35: 1.224489796 | AI35: 1.052631579 | AJ35: 9.7 | AK35: 11.2 | AL35: 1.237113402 | AM35: 1.071428571 | AN35: 9.5 | AO35: 11 | AP35: 1.263157895 | AQ35: 1.090909091 | AT35: 11.8 | AU35: 14 | AV35: 8.2 | AW35: 1.016949153 | AX35: 0.8571428571 | AY35: 1.463414634 | AZ35: 11.8 | BA35: 14 | BB35: 8 | BC35: 1.016949153 | BD35: 0.8571428571 | BE35: 1.5 | BF35: 11 | BG35: 12 | BH35: 3.3 | BI35: 1.090909091 | BJ35: 1 | BK35: 1.065757221 | BL35: 10.8 | BM35: 11.8 | BN35: 3.3 | BO35: 1.111111111 | BP35: 1.016949153 | BQ35: 1.065757221 | BR35: 10.6 | BS35: 11.6 | BT35: 3.2 | BU35: 1.132075472 | BV35: 1.034482759 | BW35: 1.099062134 | BX35: 10.4 | BY35: 11.4 | BZ35: 3.2 | CA35: 1.153846154 | CB35: 1.052631579 | CC35: 1.099062134 | CD35: 9.5 | CE35: 10.6 | CF35: 3.2 | CG35: 1.263157895 | CH35: 1.132075472 | CI35: 1.099062134 | CJ35: 9.3 | CK35: 9.4 | CL35: 3.2 | CM35: 1.290322581 | CN35: 1.276595745 | CO35: 1.099062134 | CP35: 9.5 | CQ35: 10.6 | CR35: 3.2 | CS35: =12/CP35 -> 1.263157895 | CT35: =12/CQ35 -> 1.132075472 | CU35: =12/3.412/CR35 -> 1.099062134 | CV35: 9.3 | CW35: 9.4 | CX35: 3.2 | CY35: =12/CV35 -> 1.290322581 | CZ35: =12/CW35 -> 1.276595745 | DA35: =12/3.412/CX35 -> 1.099062134
A36: CPS | C36: CPS | D36: 11.2 | E36: 13 | F36: 1.071428571 | G36: 0.9230769231 | H36: 11.8 | I36: 14 | J36: 1.016949153 | K36: 0.8571428571 | L36: 11.2 | M36: 12.8 | N36: 1.071428571 | O36: 0.9375 | P36: 11 | Q36: 12.6 | R36: 1.090909091 | S36: 0.9523809524 | T36: 11 | U36: 12.4 | V36: 1.090909091 | W36: 0.9677419355 | X36: 10.8 | Y36: 12.2 | Z36: 1.111111111 | AA36: 0.9836065574 | AB36: 10 | AC36: 11.6 | AD36: 1.2 | AE36: 1.034482759 | AF36: 9.8 | AG36: 11.4 | AH36: 1.224489796 | AI36: 1.052631579 | AJ36: 9.7 | AK36: 11.2 | AL36: 1.237113402 | AM36: 1.071428571 | AN36: 9.5 | AO36: 11 | AP36: 1.263157895 | AQ36: 1.090909091 | AR36: CEE Tier 2f | AT36: 11.8 | AU36: 14 | AV36: 8.2 | AW36: 1.016949153 | AX36: 0.8571428571 | AY36: 1.463414634 | AZ36: 11.8 | BA36: 14 | BB36: 8 | BC36: 1.016949153 | BD36: 0.8571428571 | BE36: 1.5 | BF36: 11 | BG36: 12 | BH36: 3.3 | BI36: 1.090909091 | BJ36: 1 | BK36: 1.065757221 | BL36: 10.8 | BM36: 11.8 | BN36: 3.3 | BO36: 1.111111111 | BP36: 1.016949153 | BQ36: 1.065757221 | BR36: 10.6 | BS36: 11.6 | BT36: 3.2 | BU36: 1.132075472 | BV36: 1.034482759 | BW36: 1.099062134 | BX36: 10.4 | BY36: 11.4 | BZ36: 3.2 | CA36: 1.153846154 | CB36: 1.052631579 | CC36: 1.099062134 | CD36: 9.5 | CE36: 10.6 | CF36: 3.2 | CG36: 1.263157895 | CH36: 1.132075472 | CI36: 1.099062134 | CJ36: 9.3 | CK36: 9.4 | CL36: 3.2 | CM36: 1.290322581 | CN36: 1.276595745 | CO36: 1.099062134 | CP36: 9.5 | CQ36: 10.6 | CR36: 3.2 | CS36: 1.263157895 | CT36: 1.132075472 | CU36: 1.099062134 | CV36: 9.3 | CW36: 9.4 | CX36: 3.2 | CY36: 1.290322581 | CZ36: 1.276595745 | DA36: 1.099062134 | DB36: Federal Standard/ASHRAE 90.1-2007 (as of 1/1/2010)

Sheet VRF (hidden)
B1: VRFAirConditioner | F1: VRFAirConditioner | J1: VRFAirConditioner | N1: VRFAirConditioner | S1: VRFHeatPump | Y1: VRFHeatPump | AE1: VRFHeatPump | AK1: VRFHeatPump | AQ1: VRFHeatPump | AW1: VRFHeatPump | BC1: VRFHeatPump
T2: Both with and without heat recovery | Y2: Without Heat Recovery | AE2: With Heat Recovery | AK2: Without Heat Recovery | AQ2: With Heat Recovery | AW2: Without Heat Recovery | BC2: With Heat Recovery
B4: Lessthan65kbtuh | F4: 65to135kbtuh | J4: 135to240kbtuh | N4: Greaterthan240kbtuh | S4: Lessthan65kbtuh | Y4: 65to135kbtuh | AE4: 65to135kbtuh | AK4: 135to240kbtuh | AQ4: 135to240kbtuh | AW4: Greaterthan240kbtuh | BC4: Greaterthan240kbtuh
B5: =B1&B2&B3&B4 -> VRFAirConditionerLessthan65kbtuh | F5: =F1&F2&F3&F4 -> VRFAirConditioner65to135kbtuh | J5: =J1&J2&J3&J4 -> VRFAirConditioner135to240kbtuh | N5: =N1&N2&N3&N4 -> VRFAirConditionerGreaterthan240kbtuh | S5: =S1&S2&S3&S4 -> VRFHeatPumpLessthan65kbtuh | Y5: =Y1&Y2&Y3&Y4 -> VRFHeatPumpWithout Heat Recovery65to135kbtuh | AE5: =AE1&AE2&AE3&AE4 -> VRFHeatPumpWith Heat Recovery65to135kbtuh | AK5: =AK1&AK2&AK3&AK4 -> VRFHeatPumpWithout Heat Recovery135to240kbtuh | AQ5: =AQ1&AQ2&AQ3&AQ4 -> VRFHeatPumpWith Heat Recovery135to240kbtuh | AW5: =AW1&AW2&AW3&AW4 -> VRFHeatPumpWithout Heat RecoveryGreaterthan240kbtuh | BC5: =BC1&BC2&BC3&BC4 -> VRFHeatPumpWith Heat RecoveryGreaterthan240kbtuh
A6: Manuf. Year | B6: EER | C6: SEERadj | D6: Full Load | E6: Part Load | F6: EER | G6: IEERadj | H6: Full Load | I6: Part Load | J6: EER | K6: IEERadj | L6: Full Load | M6: Part Load | N6: EER | O6: IEERadj | P6: Full Load | Q6: Part Load | S6: EER | T6: SEERadj | U6: HSPF | V6: Full Load | W6: Part Load | X6: Heating | Y6: EER | Z6: IEERadj | AA6: COP | AB6: Full Load | AC6: Part Load | AD6: Heating | AE6: EER | AF6: IEERadj | AG6: COP | AH6: Full Load | AI6: Part Load | AJ6: Heating | AK6: EER | AL6: IEERadj | AM6: COP | AN6: Full Load | AO6: Part Load | AP6: Heating | AQ6: EER | AR6: IEERadj | AS6: COP | AT6: Full Load | AU6: Part Load | AV6: Heating | AW6: EER | AX6: IEERadj | AY6: COP | AZ6: Full Load | BA6: Part Load | BB6: Heating | BC6: EER | BD6: IEERadj | BE6: COP | BF6: Full Load | BG6: Part Load | BH6: Heating | BI6: Applicable Standard
A7: 1990 | D7: =D$37 -> 1.016949153 | E7: 0.8571428571 | H7: =H$37 -> 1.071428571 | I7: 0.9160305344 | L7: =L$37 -> 1.090909091 | M7: 0.9302325581 | P7: =P$37 -> 1.2 | Q7: 1.034482759 | V7: =V8 -> 1.016949153 | W7: =W8 -> 0.8571428571 | X7: =X8 -> 1.463414634 | AB7: =AB8 -> 1.090909091 | AC7: =AC8 -> 0.9302325581 | AD7: =AD8 -> 1.065757221 | AH7: =AH8 -> 1.111111111 | AI7: =AI8 -> 0.9448818898 | AJ7: =AJ8 -> 1.065757221 | AN7: =AN8 -> 1.132075472 | AO7: =AO8 -> 0.9756097561 | AP7: =AP8 -> 1.099062134 | AT7: =AT8 -> 1.153846154 | AU7: =AU8 -> 0.9917355372 | AV7: =AV8 -> 1.099062134 | AZ7: =AZ8 -> 1.263157895 | BA7: =BA8 -> 1.090909091 | BB7: =BB8 -> 1.099062134 | BF7: =BF8 -> 1.290322581 | BG7: =BG8 -> 1.111111111 | BH7: =BH8 -> 1.099062134
A8: 1991 | D8: 1.016949153 | E8: 0.8571428571 | H8: 1.071428571 | I8: 0.9160305344 | L8: 1.090909091 | M8: 0.9302325581 | P8: 1.2 | Q8: 1.034482759 | V8: 1.016949153 | W8: 0.8571428571 | X8: 1.463414634 | AB8: 1.090909091 | AC8: 0.9302325581 | AD8: 1.065757221 | AH8: 1.111111111 | AI8: 0.9448818898 | AJ8: 1.065757221 | AN8: 1.132075472 | AO8: 0.9756097561 | AP8: 1.099062134 | AT8: 1.153846154 | AU8: 0.9917355372 | AV8: 1.099062134 | AZ8: 1.263157895 | BA8: 1.090909091 | BB8: 1.099062134 | BF8: 1.290322581 | BG8: 1.111111111 | BH8: 1.099062134
A9: 1992 | D9: 1.016949153 | E9: 0.8571428571 | H9: 1.071428571 | I9: 0.9160305344 | L9: 1.090909091 | M9: 0.9302325581 | P9: 1.2 | Q9: 1.034482759 | V9: 1.016949153 | W9: 0.8571428571 | X9: 1.463414634 | AB9: 1.090909091 | AC9: 0.9302325581 | AD9: 1.065757221 | AH9: 1.111111111 | AI9: 0.9448818898 | AJ9: 1.065757221 | AN9: 1.132075472 | AO9: 0.9756097561 | AP9: 1.099062134 | AT9: 1.153846154 | AU9: 0.9917355372 | AV9: 1.099062134 | AZ9: 1.263157895 | BA9: 1.090909091 | BB9: 1.099062134 | BF9: 1.290322581 | BG9: 1.111111111 | BH9: 1.099062134
A10: 1993 | D10: 1.016949153 | E10: 0.8571428571 | H10: 1.071428571 | I10: 0.9160305344 | L10: 1.090909091 | M10: 0.9302325581 | P10: 1.2 | Q10: 1.034482759 | V10: 1.016949153 | W10: 0.8571428571 | X10: 1.463414634 | AB10: 1.090909091 | AC10: 0.9302325581 | AD10: 1.065757221 | AH10: 1.111111111 | AI10: 0.9448818898 | AJ10: 1.065757221 | AN10: 1.132075472 | AO10: 0.9756097561 | AP10: 1.099062134 | AT10: 1.153846154 | AU10: 0.9917355372 | AV10: 1.099062134 | AZ10: 1.263157895 | BA10: 1.090909091 | BB10: 1.099062134 | BF10: 1.290322581 | BG10: 1.111111111 | BH10: 1.099062134
A11: 1994 | D11: 1.016949153 | E11: 0.8571428571 | H11: 1.071428571 | I11: 0.9160305344 | L11: 1.090909091 | M11: 0.9302325581 | P11: 1.2 | Q11: 1.034482759 | V11: 1.016949153 | W11: 0.8571428571 | X11: 1.463414634 | AB11: 1.090909091 | AC11: 0.9302325581 | AD11: 1.065757221 | AH11: 1.111111111 | AI11: 0.9448818898 | AJ11: 1.065757221 | AN11: 1.132075472 | AO11: 0.9756097561 | AP11: 1.099062134 | AT11: 1.153846154 | AU11: 0.9917355372 | AV11: 1.099062134 | AZ11: 1.263157895 | BA11: 1.090909091 | BB11: 1.099062134 | BF11: 1.290322581 | BG11: 1.111111111 | BH11: 1.099062134
A12: 1995 | D12: 1.016949153 | E12: 0.8571428571 | H12: 1.071428571 | I12: 0.9160305344 | L12: 1.090909091 | M12: 0.9302325581 | P12: 1.2 | Q12: 1.034482759 | V12: 1.016949153 | W12: 0.8571428571 | X12: 1.463414634 | AB12: 1.090909091 | AC12: 0.9302325581 | AD12: 1.065757221 | AH12: 1.111111111 | AI12: 0.9448818898 | AJ12: 1.065757221 | AN12: 1.132075472 | AO12: 0.9756097561 | AP12: 1.099062134 | AT12: 1.153846154 | AU12: 0.9917355372 | AV12: 1.099062134 | AZ12: 1.263157895 | BA12: 1.090909091 | BB12: 1.099062134 | BF12: 1.290322581 | BG12: 1.111111111 | BH12: 1.099062134
A13: 1996 | D13: 1.016949153 | E13: 0.8571428571 | H13: 1.071428571 | I13: 0.9160305344 | L13: 1.090909091 | M13: 0.9302325581 | P13: 1.2 | Q13: 1.034482759 | V13: 1.016949153 | W13: 0.8571428571 | X13: 1.463414634 | AB13: 1.090909091 | AC13: 0.9302325581 | AD13: 1.065757221 | AH13: 1.111111111 | AI13: 0.9448818898 | AJ13: 1.065757221 | AN13: 1.132075472 | AO13: 0.9756097561 | AP13: 1.099062134 | AT13: 1.153846154 | AU13: 0.9917355372 | AV13: 1.099062134 | AZ13: 1.263157895 | BA13: 1.090909091 | BB13: 1.099062134 | BF13: 1.290322581 | BG13: 1.111111111 | BH13: 1.099062134
A14: 1997 | D14: 1.016949153 | E14: 0.8571428571 | H14: 1.071428571 | I14: 0.9160305344 | L14: 1.090909091 | M14: 0.9302325581 | P14: 1.2 | Q14: 1.034482759 | V14: 1.016949153 | W14: 0.8571428571 | X14: 1.463414634 | AB14: 1.090909091 | AC14: 0.9302325581 | AD14: 1.065757221 | AH14: 1.111111111 | AI14: 0.9448818898 | AJ14: 1.065757221 | AN14: 1.132075472 | AO14: 0.9756097561 | AP14: 1.099062134 | AT14: 1.153846154 | AU14: 0.9917355372 | AV14: 1.099062134 | AZ14: 1.263157895 | BA14: 1.090909091 | BB14: 1.099062134 | BF14: 1.290322581 | BG14: 1.111111111 | BH14: 1.099062134
A15: 1998 | D15: 1.016949153 | E15: 0.8571428571 | H15: 1.071428571 | I15: 0.9160305344 | L15: 1.090909091 | M15: 0.9302325581 | P15: 1.2 | Q15: 1.034482759 | V15: 1.016949153 | W15: 0.8571428571 | X15: 1.463414634 | AB15: 1.090909091 | AC15: 0.9302325581 | AD15: 1.065757221 | AH15: 1.111111111 | AI15: 0.9448818898 | AJ15: 1.065757221 | AN15: 1.132075472 | AO15: 0.9756097561 | AP15: 1.099062134 | AT15: 1.153846154 | AU15: 0.9917355372 | AV15: 1.099062134 | AZ15: 1.263157895 | BA15: 1.090909091 | BB15: 1.099062134 | BF15: 1.290322581 | BG15: 1.111111111 | BH15: 1.099062134
A16: 1999 | D16: 1.016949153 | E16: 0.8571428571 | H16: 1.071428571 | I16: 0.9160305344 | L16: 1.090909091 | M16: 0.9302325581 | P16: 1.2 | Q16: 1.034482759 | V16: 1.016949153 | W16: 0.8571428571 | X16: 1.463414634 | AB16: 1.090909091 | AC16: 0.9302325581 | AD16: 1.065757221 | AH16: 1.111111111 | AI16: 0.9448818898 | AJ16: 1.065757221 | AN16: 1.132075472 | AO16: 0.9756097561 | AP16: 1.099062134 | AT16: 1.153846154 | AU16: 0.9917355372 | AV16: 1.099062134 | AZ16: 1.263157895 | BA16: 1.090909091 | BB16: 1.099062134 | BF16: 1.290322581 | BG16: 1.111111111 | BH16: 1.099062134
A17: 2000 | D17: 1.016949153 | E17: 0.8571428571 | H17: 1.071428571 | I17: 0.9160305344 | L17: 1.090909091 | M17: 0.9302325581 | P17: 1.2 | Q17: 1.034482759 | V17: 1.016949153 | W17: 0.8571428571 | X17: 1.463414634 | AB17: 1.090909091 | AC17: 0.9302325581 | AD17: 1.065757221 | AH17: 1.111111111 | AI17: 0.9448818898 | AJ17: 1.065757221 | AN17: 1.132075472 | AO17: 0.9756097561 | AP17: 1.099062134 | AT17: 1.153846154 | AU17: 0.9917355372 | AV17: 1.099062134 | AZ17: 1.263157895 | BA17: 1.090909091 | BB17: 1.099062134 | BF17: 1.290322581 | BG17: 1.111111111 | BH17: 1.099062134
A18: 2001 | D18: 1.016949153 | E18: 0.8571428571 | H18: 1.071428571 | I18: 0.9160305344 | L18: 1.090909091 | M18: 0.9302325581 | P18: 1.2 | Q18: 1.034482759 | V18: 1.016949153 | W18: 0.8571428571 | X18: 1.463414634 | AB18: 1.090909091 | AC18: 0.9302325581 | AD18: 1.065757221 | AH18: 1.111111111 | AI18: 0.9448818898 | AJ18: 1.065757221 | AN18: 1.132075472 | AO18: 0.9756097561 | AP18: 1.099062134 | AT18: 1.153846154 | AU18: 0.9917355372 | AV18: 1.099062134 | AZ18: 1.263157895 | BA18: 1.090909091 | BB18: 1.099062134 | BF18: 1.290322581 | BG18: 1.111111111 | BH18: 1.099062134
A19: 2002 | D19: 1.016949153 | E19: 0.8571428571 | H19: 1.071428571 | I19: 0.9160305344 | L19: 1.090909091 | M19: 0.9302325581 | P19: 1.2 | Q19: 1.034482759 | V19: 1.016949153 | W19: 0.8571428571 | X19: 1.463414634 | AB19: 1.090909091 | AC19: 0.9302325581 | AD19: 1.065757221 | AH19: 1.111111111 | AI19: 0.9448818898 | AJ19: 1.065757221 | AN19: 1.132075472 | AO19: 0.9756097561 | AP19: 1.099062134 | AT19: 1.153846154 | AU19: 0.9917355372 | AV19: 1.099062134 | AZ19: 1.263157895 | BA19: 1.090909091 | BB19: 1.099062134 | BF19: 1.290322581 | BG19: 1.111111111 | BH19: 1.099062134
A20: 2003 | D20: 1.016949153 | E20: 0.8571428571 | H20: 1.071428571 | I20: 0.9160305344 | L20: 1.090909091 | M20: 0.9302325581 | P20: 1.2 | Q20: 1.034482759 | V20: 1.016949153 | W20: 0.8571428571 | X20: 1.463414634 | AB20: 1.090909091 | AC20: 0.9302325581 | AD20: 1.065757221 | AH20: 1.111111111 | AI20: 0.9448818898 | AJ20: 1.065757221 | AN20: 1.132075472 | AO20: 0.9756097561 | AP20: 1.099062134 | AT20: 1.153846154 | AU20: 0.9917355372 | AV20: 1.099062134 | AZ20: 1.263157895 | BA20: 1.090909091 | BB20: 1.099062134 | BF20: 1.290322581 | BG20: 1.111111111 | BH20: 1.099062134
A21: 2004 | D21: 1.016949153 | E21: 0.8571428571 | H21: 1.071428571 | I21: 0.9160305344 | L21: 1.090909091 | M21: 0.9302325581 | P21: 1.2 | Q21: 1.034482759 | V21: 1.016949153 | W21: 0.8571428571 | X21: 1.463414634 | AB21: 1.090909091 | AC21: 0.9302325581 | AD21: 1.065757221 | AH21: 1.111111111 | AI21: 0.9448818898 | AJ21: 1.065757221 | AN21: 1.132075472 | AO21: 0.9756097561 | AP21: 1.099062134 | AT21: 1.153846154 | AU21: 0.9917355372 | AV21: 1.099062134 | AZ21: 1.263157895 | BA21: 1.090909091 | BB21: 1.099062134 | BF21: 1.290322581 | BG21: 1.111111111 | BH21: 1.099062134
A22: 2005 | D22: 1.016949153 | E22: 0.8571428571 | H22: 1.071428571 | I22: 0.9160305344 | L22: 1.090909091 | M22: 0.9302325581 | P22: 1.2 | Q22: 1.034482759 | V22: 1.016949153 | W22: 0.8571428571 | X22: 1.463414634 | AB22: 1.090909091 | AC22: 0.9302325581 | AD22: 1.065757221 | AH22: 1.111111111 | AI22: 0.9448818898 | AJ22: 1.065757221 | AN22: 1.132075472 | AO22: 0.9756097561 | AP22: 1.099062134 | AT22: 1.153846154 | AU22: 0.9917355372 | AV22: 1.099062134 | AZ22: 1.263157895 | BA22: 1.090909091 | BB22: 1.099062134 | BF22: 1.290322581 | BG22: 1.111111111 | BH22: 1.099062134
A23: 2006 | D23: 1.016949153 | E23: 0.8571428571 | H23: 1.071428571 | I23: 0.9160305344 | L23: 1.090909091 | M23: 0.9302325581 | P23: 1.2 | Q23: 1.034482759 | V23: 1.016949153 | W23: 0.8571428571 | X23: 1.463414634 | AB23: 1.090909091 | AC23: 0.9302325581 | AD23: 1.065757221 | AH23: 1.111111111 | AI23: 0.9448818898 | AJ23: 1.065757221 | AN23: 1.132075472 | AO23: 0.9756097561 | AP23: 1.099062134 | AT23: 1.153846154 | AU23: 0.9917355372 | AV23: 1.099062134 | AZ23: 1.263157895 | BA23: 1.090909091 | BB23: 1.099062134 | BF23: 1.290322581 | BG23: 1.111111111 | BH23: 1.099062134
A24: 2007 | D24: 1.016949153 | E24: 0.8571428571 | H24: 1.071428571 | I24: 0.9160305344 | L24: 1.090909091 | M24: 0.9302325581 | P24: 1.2 | Q24: 1.034482759 | V24: 1.016949153 | W24: 0.8571428571 | X24: 1.463414634 | AB24: 1.090909091 | AC24: 0.9302325581 | AD24: 1.065757221 | AH24: 1.111111111 | AI24: 0.9448818898 | AJ24: 1.065757221 | AN24: 1.132075472 | AO24: 0.9756097561 | AP24: 1.099062134 | AT24: 1.153846154 | AU24: 0.9917355372 | AV24: 1.099062134 | AZ24: 1.263157895 | BA24: 1.090909091 | BB24: 1.099062134 | BF24: 1.290322581 | BG24: 1.111111111 | BH24: 1.099062134
A25: 2008 | D25: 1.016949153 | E25: 0.8571428571 | H25: 1.071428571 | I25: 0.9160305344 | L25: 1.090909091 | M25: 0.9302325581 | P25: 1.2 | Q25: 1.034482759 | V25: 1.016949153 | W25: 0.8571428571 | X25: 1.463414634 | AB25: 1.090909091 | AC25: 0.9302325581 | AD25: 1.065757221 | AH25: 1.111111111 | AI25: 0.9448818898 | AJ25: 1.065757221 | AN25: 1.132075472 | AO25: 0.9756097561 | AP25: 1.099062134 | AT25: 1.153846154 | AU25: 0.9917355372 | AV25: 1.099062134 | AZ25: 1.263157895 | BA25: 1.090909091 | BB25: 1.099062134 | BF25: 1.290322581 | BG25: 1.111111111 | BH25: 1.099062134
A26: 2009 | D26: 1.016949153 | E26: 0.8571428571 | H26: 1.071428571 | I26: 0.9160305344 | L26: 1.090909091 | M26: 0.9302325581 | P26: 1.2 | Q26: 1.034482759 | V26: 1.016949153 | W26: 0.8571428571 | X26: 1.463414634 | AB26: 1.090909091 | AC26: 0.9302325581 | AD26: 1.065757221 | AH26: 1.111111111 | AI26: 0.9448818898 | AJ26: 1.065757221 | AN26: 1.132075472 | AO26: 0.9756097561 | AP26: 1.099062134 | AT26: 1.153846154 | AU26: 0.9917355372 | AV26: 1.099062134 | AZ26: 1.263157895 | BA26: 1.090909091 | BB26: 1.099062134 | BF26: 1.290322581 | BG26: 1.111111111 | BH26: 1.099062134
A27: 2010 | D27: 1.016949153 | E27: 0.8571428571 | H27: 1.071428571 | I27: 0.9160305344 | L27: 1.090909091 | M27: 0.9302325581 | P27: 1.2 | Q27: 1.034482759 | V27: 1.016949153 | W27: 0.8571428571 | X27: 1.463414634 | AB27: 1.090909091 | AC27: 0.9302325581 | AD27: 1.065757221 | AH27: 1.111111111 | AI27: 0.9448818898 | AJ27: 1.065757221 | AN27: 1.132075472 | AO27: 0.9756097561 | AP27: 1.099062134 | AT27: 1.153846154 | AU27: 0.9917355372 | AV27: 1.099062134 | AZ27: 1.263157895 | BA27: 1.090909091 | BB27: 1.099062134 | BF27: 1.290322581 | BG27: 1.111111111 | BH27: 1.099062134
A28: 2011 | D28: 1.016949153 | E28: 0.8571428571 | H28: 1.071428571 | I28: 0.9160305344 | L28: 1.090909091 | M28: 0.9302325581 | P28: 1.2 | Q28: 1.034482759 | V28: 1.016949153 | W28: 0.8571428571 | X28: 1.463414634 | AB28: 1.090909091 | AC28: 0.9302325581 | AD28: 1.065757221 | AH28: 1.111111111 | AI28: 0.9448818898 | AJ28: 1.065757221 | AN28: 1.132075472 | AO28: 0.9756097561 | AP28: 1.099062134 | AT28: 1.153846154 | AU28: 0.9917355372 | AV28: 1.099062134 | AZ28: 1.263157895 | BA28: 1.090909091 | BB28: 1.099062134 | BF28: 1.290322581 | BG28: 1.111111111 | BH28: 1.099062134
A29: 2012 | D29: 1.016949153 | E29: 0.8571428571 | H29: 1.071428571 | I29: 0.9160305344 | L29: 1.090909091 | M29: 0.9302325581 | P29: 1.2 | Q29: 1.034482759 | V29: 1.016949153 | W29: 0.8571428571 | X29: 1.463414634 | AB29: 1.090909091 | AC29: 0.9302325581 | AD29: 1.065757221 | AH29: 1.111111111 | AI29: 0.9448818898 | AJ29: 1.065757221 | AN29: 1.132075472 | AO29: 0.9756097561 | AP29: 1.099062134 | AT29: 1.153846154 | AU29: 0.9917355372 | AV29: 1.099062134 | AZ29: 1.263157895 | BA29: 1.090909091 | BB29: 1.099062134 | BF29: 1.290322581 | BG29: 1.111111111 | BH29: 1.099062134
A30: 2013 | D30: 1.016949153 | E30: 0.8571428571 | H30: 1.071428571 | I30: 0.9160305344 | L30: 1.090909091 | M30: 0.9302325581 | P30: 1.2 | Q30: 1.034482759 | V30: 1.016949153 | W30: 0.8571428571 | X30: 1.463414634 | AB30: 1.090909091 | AC30: 0.9302325581 | AD30: 1.065757221 | AH30: 1.111111111 | AI30: 0.9448818898 | AJ30: 1.065757221 | AN30: 1.132075472 | AO30: 0.9756097561 | AP30: 1.099062134 | AT30: 1.153846154 | AU30: 0.9917355372 | AV30: 1.099062134 | AZ30: 1.263157895 | BA30: 1.090909091 | BB30: 1.099062134 | BF30: 1.290322581 | BG30: 1.111111111 | BH30: 1.099062134
A31: 2014 | D31: 1.016949153 | E31: 0.8571428571 | H31: 1.071428571 | I31: 0.9160305344 | L31: 1.090909091 | M31: 0.9302325581 | P31: 1.2 | Q31: 1.034482759 | V31: 1.016949153 | W31: 0.8571428571 | X31: 1.463414634 | AB31: 1.090909091 | AC31: 0.9302325581 | AD31: 1.065757221 | AH31: 1.111111111 | AI31: 0.9448818898 | AJ31: 1.065757221 | AN31: 1.132075472 | AO31: 0.9756097561 | AP31: 1.099062134 | AT31: 1.153846154 | AU31: 0.9917355372 | AV31: 1.099062134 | AZ31: 1.263157895 | BA31: 1.090909091 | BB31: 1.099062134 | BF31: 1.290322581 | BG31: 1.111111111 | BH31: 1.099062134
A32: 2015 | D32: 1.016949153 | E32: 0.8571428571 | H32: 1.071428571 | I32: 0.9160305344 | L32: 1.090909091 | M32: 0.9302325581 | P32: 1.2 | Q32: 1.034482759 | V32: 1.016949153 | W32: 0.8571428571 | X32: 1.463414634 | AB32: 1.090909091 | AC32: 0.9302325581 | AD32: 1.065757221 | AH32: 1.111111111 | AI32: 0.9448818898 | AJ32: 1.065757221 | AN32: 1.132075472 | AO32: 0.9756097561 | AP32: 1.099062134 | AT32: 1.153846154 | AU32: 0.9917355372 | AV32: 1.099062134 | AZ32: 1.263157895 | BA32: 1.090909091 | BB32: 1.099062134 | BF32: 1.290322581 | BG32: 1.111111111 | BH32: 1.099062134
A33: 2016 | D33: 1.016949153 | E33: 0.8571428571 | H33: 1.071428571 | I33: 0.9160305344 | L33: 1.090909091 | M33: 0.9302325581 | P33: 1.2 | Q33: 1.034482759 | V33: 1.016949153 | W33: 0.8571428571 | X33: 1.463414634 | AB33: 1.090909091 | AC33: 0.9302325581 | AD33: 1.065757221 | AH33: 1.111111111 | AI33: 0.9448818898 | AJ33: 1.065757221 | AN33: 1.132075472 | AO33: 0.9756097561 | AP33: 1.099062134 | AT33: 1.153846154 | AU33: 0.9917355372 | AV33: 1.099062134 | AZ33: 1.263157895 | BA33: 1.090909091 | BB33: 1.099062134 | BF33: 1.290322581 | BG33: 1.111111111 | BH33: 1.099062134
A34: 2017 | D34: 1.016949153 | E34: 0.8571428571 | H34: 1.071428571 | I34: 0.9160305344 | L34: 1.090909091 | M34: 0.9302325581 | P34: 1.2 | Q34: 1.034482759 | V34: 1.016949153 | W34: 0.8571428571 | X34: 1.463414634 | AB34: 1.090909091 | AC34: 0.9302325581 | AD34: 1.065757221 | AH34: 1.111111111 | AI34: 0.9448818898 | AJ34: 1.065757221 | AN34: 1.132075472 | AO34: 0.9756097561 | AP34: 1.099062134 | AT34: 1.153846154 | AU34: 0.9917355372 | AV34: 1.099062134 | AZ34: 1.263157895 | BA34: 1.090909091 | BB34: 1.099062134 | BF34: 1.290322581 | BG34: 1.111111111 | BH34: 1.099062134
A35: 2018 | D35: =D$37 -> 1.016949153 | E35: =E$37 -> 0.8571428571 | H35: =H$37 -> 1.071428571 | I35: =I$37 -> 0.9160305344 | L35: =L$37 -> 1.090909091 | M35: =M$37 -> 0.9302325581 | P35: =P$37 -> 1.2 | Q35: =Q$37 -> 1.034482759 | V35: =V36 -> 1.016949153 | W35: =W36 -> 0.8571428571 | X35: 1.463414634 | AB35: =AB36 -> 1.090909091 | AC35: =AC36 -> 0.9302325581 | AD35: 1.065757221 | AH35: =AH36 -> 1.111111111 | AI35: =AI36 -> 0.9448818898 | AJ35: 1.065757221 | AN35: =AN36 -> 1.132075472 | AO35: =AO36 -> 0.9756097561 | AP35: 1.099062134 | AT35: =AT36 -> 1.153846154 | AU35: =AU36 -> 0.9917355372 | AV35: 1.099062134 | AZ35: =AZ36 -> 1.263157895 | BA35: =BA36 -> 1.090909091 | BB35: 1.099062134 | BF35: =BF36 -> 1.290322581 | BG35: =BG36 -> 1.111111111 | BH35: 1.099062134
A36: ARTRM8 | B36: 11.8 | C36: 14 | D36: =12/B36 -> 1.016949153 | E36: =12/C36 -> 0.8571428571 | F36: 11.2 | G36: 13.1 | H36: =12/F36 -> 1.071428571 | I36: =12/G36 -> 0.9160305344 | J36: 11 | K36: 12.9 | L36: =12/J36 -> 1.090909091 | M36: =12/K36 -> 0.9302325581 | N36: 10 | O36: 11.6 | P36: =12/N36 -> 1.2 | Q36: =12/O36 -> 1.034482759 | S36: 11.8 | T36: 14 | U36: 8.2 | V36: =12/S36 -> 1.016949153 | W36: =12/T36 -> 0.8571428571 | X36: =12/U36 -> 1.463414634 | Y36: 11 | Z36: 12.9 | AA36: 3.3 | AB36: =12/Y36 -> 1.090909091 | AC36: =12/Z36 -> 0.9302325581 | AD36: =12/3.412/AA36 -> 1.065757221 | AE36: 10.8 | AF36: 12.7 | AG36: 3.3 | AH36: =12/AE36 -> 1.111111111 | AI36: =12/AF36 -> 0.9448818898 | AJ36: =12/3.412/AG36 -> 1.065757221 | AK36: 10.6 | AL36: 12.3 | AM36: 3.2 | AN36: =12/AK36 -> 1.132075472 | AO36: =12/AL36 -> 0.9756097561 | AP36: =12/3.412/AM36 -> 1.099062134 | AQ36: 10.4 | AR36: 12.1 | AS36: 3.2 | AT36: =12/AQ36 -> 1.153846154 | AU36: =12/AR36 -> 0.9917355372 | AV36: =12/3.412/AS36 -> 1.099062134 | AW36: 9.5 | AX36: 11 | AY36: 3.2 | AZ36: =12/AW36 -> 1.263157895 | BA36: =12/AX36 -> 1.090909091 | BB36: =12/3.412/AY36 -> 1.099062134 | BC36: 9.3 | BD36: 10.8 | BE36: 3.2 | BF36: =12/BC36 -> 1.290322581 | BG36: =12/BD36 -> 1.111111111 | BH36: =12/3.412/BE36 -> 1.099062134
A37: CPS | B37: 11.8 | C37: 14 | D37: =12/B37 -> 1.016949153 | E37: =12/C37 -> 0.8571428571 | F37: 11.2 | G37: 13.1 | H37: =12/F37 -> 1.071428571 | I37: =12/G37 -> 0.9160305344 | J37: 11 | K37: 12.9 | L37: =12/J37 -> 1.090909091 | M37: =12/K37 -> 0.9302325581 | N37: 10 | O37: 11.6 | P37: =12/N37 -> 1.2 | Q37: =12/O37 -> 1.034482759 | S37: 11.8 | T37: 14 | U37: 8.2 | V37: =12/S37 -> 1.016949153 | W37: =12/T37 -> 0.8571428571 | X37: 1.463414634 | Y37: 11 | Z37: 12.9 | AA37: 3.3 | AB37: =12/Y37 -> 1.090909091 | AC37: =12/Z37 -> 0.9302325581 | AD37: =12/3.412/AA37 -> 1.065757221 | AE37: 10.8 | AF37: 12.7 | AG37: 3.3 | AH37: =12/AE37 -> 1.111111111 | AI37: =12/AF37 -> 0.9448818898 | AJ37: =12/3.412/AG37 -> 1.065757221 | AK37: 10.6 | AL37: 12.3 | AM37: 3.2 | AN37: =12/AK37 -> 1.132075472 | AO37: =12/AL37 -> 0.9756097561 | AP37: =12/3.412/AM37 -> 1.099062134 | AQ37: 10.4 | AR37: 12.1 | AS37: 3.2 | AT37: =12/AQ37 -> 1.153846154 | AU37: =12/AR37 -> 0.9917355372 | AV37: =12/3.412/AS37 -> 1.099062134 | AW37: 9.5 | AX37: 11 | AY37: 3.2 | AZ37: =12/AW37 -> 1.263157895 | BA37: =12/AX37 -> 1.090909091 | BB37: =12/3.412/AY37 -> 1.099062134 | BC37: 9.3 | BD37: 10.8 | BE37: 3.2 | BF37: =12/BC37 -> 1.290322581 | BG37: =12/BD37 -> 1.111111111 | BH37: =12/3.412/BE37 -> 1.099062134

Sheet Chiller (hidden)
B1: AirCooledChiller | F1: AirCooledChiller | J1: AirCooledChiller | N1: AirCooledChiller | R1: AirCooledChiller | V1: AirCooledChiller | Z1: AirCooledChiller | AD1: AirCooledChiller | AH1: WaterCooledChiller | AJ1: WaterCooledChiller | AL1: WaterCooledChiller | AN1: WaterCooledChiller | AP1: WaterCooledChiller | AR1: WaterCooledChiller | AT1: WaterCooledChiller | AV1: WaterCooledChiller | AX1: WaterCooledChiller | AZ1: WaterCooledChiller | BB1: WaterCooledChiller | BD1: WaterCooledChiller | BF1: WaterCooledChiller | BH1: WaterCooledChiller | BJ1: WaterCooledChiller | BL1: WaterCooledChiller | BN1: WaterCooledChiller | BP1: WaterCooledChiller | BR1: WaterCooledChiller | BT1: WaterCooledChiller
B2: Centrifugal | F2: Centrifugal | J2: Centrifugal | N2: Centrifugal | R2: ScrewScrollReciprocating | V2: ScrewScrollReciprocating | Z2: ScrewScrollReciprocating | AD2: ScrewScrollReciprocating | AH2: ScrewScrollReciprocating | AJ2: ScrewScrollReciprocating | AL2: ScrewScrollReciprocating | AN2: ScrewScrollReciprocating | AP2: ScrewScrollReciprocating | AR2: ScrewScrollReciprocating | AT2: ScrewScrollReciprocating | AV2: ScrewScrollReciprocating | AX2: ScrewScrollReciprocating | AZ2: ScrewScrollReciprocating | BB2: Centrifugal | BD2: Centrifugal | BF2: Centrifugal | BH2: Centrifugal | BJ2: Centrifugal | BL2: Centrifugal | BN2: Centrifugal | BP2: Centrifugal | BR2: Centrifugal | BT2: Centrifugal
B3: A | F3: B | J3: A | N3: B | R3: A | V3: B | Z3: A | AD3: B | AH3: A | AJ3: B | AL3: A | AN3: B | AP3: A | AR3: B | AT3: A | AV3: B | AX3: A | AZ3: B | BB3: A | BD3: B | BF3: A | BH3: B | BJ3: A | BL3: B | BN3: A | BP3: B | BR3: A | BT3: B
B4: Lessthan150tons | F4: Lessthan150tons | J4: Greaterthan150tons | N4: Greaterthan150tons | R4: Lessthan150tons | V4: Lessthan150tons | Z4: Greaterthan150tons | AD4: Greaterthan150tons | AH4: Lessthan75tons | AJ4: Lessthan75tons | AL4: 75to150tons | AN4: 75to150tons | AP4: 150to300tons | AR4: 150to300tons | AT4: 300to600tons | AV4: 300to600tons | AX4: Greaterthan600tons | AZ4: Greaterthan600tons | BB4: Lessthan150tons | BD4: Lessthan150tons | BF4: 150to300tons | BH4: 150to300tons | BJ4: 300to400tons | BL4: 300to400tons | BN4: 400to600tons | BP4: 400to600tons | BR4: Greaterthan600tons | BT4: Greaterthan600tons
B5: =B1&B2&B3&B4 -> AirCooledChillerCentrifugalALessthan150tons | F5: =F1&F2&F3&F4 -> AirCooledChillerCentrifugalBLessthan150tons | J5: =J1&J2&J3&J4 -> AirCooledChillerCentrifugalAGreaterthan150tons | N5: =N1&N2&N3&N4 -> AirCooledChillerCentrifugalBGreaterthan150tons | R5: =R1&R2&R3&R4 -> AirCooledChillerScrewScrollReciprocatingALessthan150tons | V5: =V1&V2&V3&V4 -> AirCooledChillerScrewScrollReciprocatingBLessthan150tons | Z5: =Z1&Z2&Z3&Z4 -> AirCooledChillerScrewScrollReciprocatingAGreaterthan150tons | AD5: =AD1&AD2&AD3&AD4 -> AirCooledChillerScrewScrollReciprocatingBGreaterthan150tons | AH5: =AH1&AH2&AH3&AH4 -> WaterCooledChillerScrewScrollReciprocatingALessthan75tons | AJ5: =AJ1&AJ2&AJ3&AJ4 -> WaterCooledChillerScrewScrollReciprocatingBLessthan75tons | AL5: =AL1&AL2&AL3&AL4 -> WaterCooledChillerScrewScrollReciprocatingA75to150tons | AN5: =AN1&AN2&AN3&AN4 -> WaterCooledChillerScrewScrollReciprocatingB75to150tons | AP5: =AP1&AP2&AP3&AP4 -> WaterCooledChillerScrewScrollReciprocatingA150to300tons | AR5: =AR1&AR2&AR3&AR4 -> WaterCooledChillerScrewScrollReciprocatingB150to300tons | AT5: =AT1&AT2&AT3&AT4 -> WaterCooledChillerScrewScrollReciprocatingA300to600tons | AV5: =AV1&AV2&AV3&AV4 -> WaterCooledChillerScrewScrollReciprocatingB300to600tons | AX5: =AX1&AX2&AX3&AX4 -> WaterCooledChillerScrewScrollReciprocatingAGreaterthan600tons | AZ5: =AZ1&AZ2&AZ3&AZ4 -> WaterCooledChillerScrewScrollReciprocatingBGreaterthan600tons | BB5: =BB1&BB2&BB3&BB4 -> WaterCooledChillerCentrifugalALessthan150tons | BD5: =BD1&BD2&BD3&BD4 -> WaterCooledChillerCentrifugalBLessthan150tons | BF5: =BF1&BF2&BF3&BF4 -> WaterCooledChillerCentrifugalA150to300tons | BH5: =BH1&BH2&BH3&BH4 -> WaterCooledChillerCentrifugalB150to300tons | BJ5: =BJ1&BJ2&BJ3&BJ4 -> WaterCooledChillerCentrifugalA300to400tons | BL5: =BL1&BL2&BL3&BL4 -> WaterCooledChillerCentrifugalB300to400tons | BN5: =BN1&BN2&BN3&BN4 -> WaterCooledChillerCentrifugalA400to600tons | BP5: =BP1&BP2&BP3&BP4 -> WaterCooledChillerCentrifugalB400to600tons | BR5: =BR1&BR2&BR3&BR4 -> WaterCooledChillerCentrifugalAGreaterthan600tons | BT5: =BT1&BT2&BT3&BT4 -> WaterCooledChillerCentrifugalBGreaterthan600tons
B6: Full | C6: IPLV | D6: Full | E6: Part | F6: Full | G6: IPLV | H6: Full | I6: Part | J6: Full | K6: IPLV | L6: Full | M6: Part | N6: Full | O6: IPLV | P6: Full | Q6: Part | R6: Full | S6: IPLV | T6: Full | U6: Part | V6: Full | W6: IPLV | X6: Full | Y6: Part | Z6: Full | AA6: IPLV | AB6: Full | AC6: Part | AD6: Full | AE6: IPLV | AF6: Full | AG6: Part | AH6: Full | AI6: Part | AJ6: Full | AK6: Part | AL6: Full | AM6: Part | AN6: Full | AO6: Part | AP6: Full | AQ6: Part | AR6: Full | AS6: Part | AT6: Full | AU6: Part | AV6: Full | AW6: Part | AX6: Full | AY6: Part | AZ6: Full | BA6: Part | BB6: Full | BC6: Part | BD6: Full | BE6: Part | BF6: Full | BG6: Part | BH6: Full | BI6: Part | BJ6: Full | BK6: Part | BL6: Full | BM6: Part | BN6: Full | BO6: Part | BP6: Full | BQ6: Part | BR6: Full | BS6: Part | BT6: Full | BU6: Part
A7: 1972 - 1990 | B7: 9.212 | C7: 9.554 | D7: =12/B7 -> 1.302648719 | E7: =12/C7 -> 1.256018422 | F7: 9.212 | G7: 9.554 | H7: =12/F7 -> 1.302648719 | I7: =12/G7 -> 1.256018422 | J7: 8.53 | K7: 8.53 | L7: =12/J7 -> 1.406799531 | M7: =12/K7 -> 1.406799531 | N7: 8.53 | O7: 8.53 | P7: =12/N7 -> 1.406799531 | Q7: =12/O7 -> 1.406799531 | R7: 9.212 | S7: 9.554 | T7: =12/R7 -> 1.302648719 | U7: =12/S7 -> 1.256018422 | V7: 9.212 | W7: 9.554 | X7: =12/V7 -> 1.302648719 | Y7: =12/W7 -> 1.256018422 | Z7: 8.53 | AA7: 8.53 | AB7: =12/Z7 -> 1.406799531 | AC7: =12/AA7 -> 1.406799531 | AD7: 8.53 | AE7: 8.53 | AF7: =12/AD7 -> 1.406799531 | AG7: =12/AE7 -> 1.406799531 | AH7: 0.925 | AI7: 0.902 | AJ7: 0.925 | AK7: 0.902 | AL7: 0.925 | AM7: 0.902 | AN7: 0.925 | AO7: 0.902 | AP7: 0.837 | AQ7: 0.781 | AR7: 0.837 | AS7: 0.781 | AT7: 0.748 | AU7: 0.733 | AV7: 0.748 | AW7: 0.733 | AX7: 0.748 | AY7: 0.733 | AZ7: 0.748 | BA7: 0.733 | BB7: 0.925 | BC7: 0.902 | BD7: 0.925 | BE7: 0.902 | BF7: 0.837 | BG7: 0.781 | BH7: 0.837 | BI7: 0.781 | BJ7: 0.748 | BK7: 0.733 | BL7: 0.748 | BM7: 0.733 | BN7: 0.748 | BO7: 0.733 | BP7: 0.748 | BQ7: 0.733 | BR7: 0.748 | BS7: 0.733 | BT7: 0.748 | BU7: 0.733 | BV7: ASHRAE 90.1--1989
A8: 1991 | B8: 9.212 | C8: 9.554 | D8: 1.302648719 | E8: 1.256018422 | F8: 9.212 | G8: 9.554 | H8: 1.302648719 | I8: 1.256018422 | J8: 8.53 | K8: 8.53 | L8: 1.406799531 | M8: 1.406799531 | N8: 8.53 | O8: 8.53 | P8: 1.406799531 | Q8: 1.406799531 | R8: 9.212 | S8: 9.554 | T8: 1.302648719 | U8: 1.256018422 | V8: 9.212 | W8: 9.554 | X8: 1.302648719 | Y8: 1.256018422 | Z8: 8.53 | AA8: 8.53 | AB8: 1.406799531 | AC8: 1.406799531 | AD8: 8.53 | AE8: 8.53 | AF8: 1.406799531 | AG8: 1.406799531 | AH8: 0.925 | AI8: 0.902 | AJ8: 0.925 | AK8: 0.902 | AL8: 0.925 | AM8: 0.902 | AN8: 0.925 | AO8: 0.902 | AP8: 0.837 | AQ8: 0.781 | AR8: 0.837 | AS8: 0.781 | AT8: 0.748 | AU8: 0.733 | AV8: 0.748 | AW8: 0.733 | AX8: 0.748 | AY8: 0.733 | AZ8: 0.748 | BA8: 0.733 | BB8: 0.925 | BC8: 0.902 | BD8: 0.925 | BE8: 0.902 | BF8: 0.837 | BG8: 0.781 | BH8: 0.837 | BI8: 0.781 | BJ8: 0.748 | BK8: 0.733 | BL8: 0.748 | BM8: 0.733 | BN8: 0.748 | BO8: 0.733 | BP8: 0.748 | BQ8: 0.733 | BR8: 0.748 | BS8: 0.733 | BT8: 0.748 | BU8: 0.733 | BV8: ASHRAE 90.1--1989
A9: 1992 | B9: 9.212 | C9: 9.554 | D9: 1.302648719 | E9: 1.256018422 | F9: 9.212 | G9: 9.554 | H9: 1.302648719 | I9: 1.256018422 | J9: 8.53 | K9: 8.53 | L9: 1.406799531 | M9: 1.406799531 | N9: 8.53 | O9: 8.53 | P9: 1.406799531 | Q9: 1.406799531 | R9: 9.212 | S9: 9.554 | T9: 1.302648719 | U9: 1.256018422 | V9: 9.212 | W9: 9.554 | X9: 1.302648719 | Y9: 1.256018422 | Z9: 8.53 | AA9: 8.53 | AB9: 1.406799531 | AC9: 1.406799531 | AD9: 8.53 | AE9: 8.53 | AF9: 1.406799531 | AG9: 1.406799531 | AH9: 0.925 | AI9: 0.902 | AJ9: 0.925 | AK9: 0.902 | AL9: 0.925 | AM9: 0.902 | AN9: 0.925 | AO9: 0.902 | AP9: 0.837 | AQ9: 0.781 | AR9: 0.837 | AS9: 0.781 | AT9: 0.748 | AU9: 0.733 | AV9: 0.748 | AW9: 0.733 | AX9: 0.748 | AY9: 0.733 | AZ9: 0.748 | BA9: 0.733 | BB9: 0.925 | BC9: 0.902 | BD9: 0.925 | BE9: 0.902 | BF9: 0.837 | BG9: 0.781 | BH9: 0.837 | BI9: 0.781 | BJ9: 0.748 | BK9: 0.733 | BL9: 0.748 | BM9: 0.733 | BN9: 0.748 | BO9: 0.733 | BP9: 0.748 | BQ9: 0.733 | BR9: 0.748 | BS9: 0.733 | BT9: 0.748 | BU9: 0.733 | BV9: ASHRAE 90.1--1989 (as of Jan. 1, 1992)
A10: 1993 | B10: 9.212 | C10: 9.554 | D10: 1.302648719 | E10: 1.256018422 | F10: 9.212 | G10: 9.554 | H10: 1.302648719 | I10: 1.256018422 | J10: 8.53 | K10: 8.53 | L10: 1.406799531 | M10: 1.406799531 | N10: 8.53 | O10: 8.53 | P10: 1.406799531 | Q10: 1.406799531 | R10: 9.212 | S10: 9.554 | T10: 1.302648719 | U10: 1.256018422 | V10: 9.212 | W10: 9.554 | X10: 1.302648719 | Y10: 1.256018422 | Z10: 8.53 | AA10: 8.53 | AB10: 1.406799531 | AC10: 1.406799531 | AD10: 8.53 | AE10: 8.53 | AF10: 1.406799531 | AG10: 1.406799531 | AH10: 0.925 | AI10: 0.902 | AJ10: 0.925 | AK10: 0.902 | AL10: 0.925 | AM10: 0.902 | AN10: 0.925 | AO10: 0.902 | AP10: 0.837 | AQ10: 0.781 | AR10: 0.837 | AS10: 0.781 | AT10: 0.748 | AU10: 0.733 | AV10: 0.748 | AW10: 0.733 | AX10: 0.748 | AY10: 0.733 | AZ10: 0.748 | BA10: 0.733 | BB10: 0.925 | BC10: 0.902 | BD10: 0.925 | BE10: 0.902 | BF10: 0.837 | BG10: 0.781 | BH10: 0.837 | BI10: 0.781 | BJ10: 0.748 | BK10: 0.733 | BL10: 0.748 | BM10: 0.733 | BN10: 0.748 | BO10: 0.733 | BP10: 0.748 | BQ10: 0.733 | BR10: 0.748 | BS10: 0.733 | BT10: 0.748 | BU10: 0.733 | BV10: ASHRAE 90.1--1989 (as of Jan. 1, 1992)
A11: 1994 | B11: 9.212 | C11: 9.554 | D11: 1.302648719 | E11: 1.256018422 | F11: 9.212 | G11: 9.554 | H11: 1.302648719 | I11: 1.256018422 | J11: 8.53 | K11: 8.53 | L11: 1.406799531 | M11: 1.406799531 | N11: 8.53 | O11: 8.53 | P11: 1.406799531 | Q11: 1.406799531 | R11: 9.212 | S11: 9.554 | T11: 1.302648719 | U11: 1.256018422 | V11: 9.212 | W11: 9.554 | X11: 1.302648719 | Y11: 1.256018422 | Z11: 8.53 | AA11: 8.53 | AB11: 1.406799531 | AC11: 1.406799531 | AD11: 8.53 | AE11: 8.53 | AF11: 1.406799531 | AG11: 1.406799531 | AH11: 0.925 | AI11: 0.902 | AJ11: 0.925 | AK11: 0.902 | AL11: 0.925 | AM11: 0.902 | AN11: 0.925 | AO11: 0.902 | AP11: 0.837 | AQ11: 0.781 | AR11: 0.837 | AS11: 0.781 | AT11: 0.748 | AU11: 0.733 | AV11: 0.748 | AW11: 0.733 | AX11: 0.748 | AY11: 0.733 | AZ11: 0.748 | BA11: 0.733 | BB11: 0.925 | BC11: 0.902 | BD11: 0.925 | BE11: 0.902 | BF11: 0.837 | BG11: 0.781 | BH11: 0.837 | BI11: 0.781 | BJ11: 0.748 | BK11: 0.733 | BL11: 0.748 | BM11: 0.733 | BN11: 0.748 | BO11: 0.733 | BP11: 0.748 | BQ11: 0.733 | BR11: 0.748 | BS11: 0.733 | BT11: 0.748 | BU11: 0.733 | BV11: ASHRAE 90.1--1989 (as of Jan. 1, 1992)
A12: 1995 | B12: 9.212 | C12: 9.554 | D12: 1.302648719 | E12: 1.256018422 | F12: 9.212 | G12: 9.554 | H12: 1.302648719 | I12: 1.256018422 | J12: 8.53 | K12: 8.53 | L12: 1.406799531 | M12: 1.406799531 | N12: 8.53 | O12: 8.53 | P12: 1.406799531 | Q12: 1.406799531 | R12: 9.212 | S12: 9.554 | T12: 1.302648719 | U12: 1.256018422 | V12: 9.212 | W12: 9.554 | X12: 1.302648719 | Y12: 1.256018422 | Z12: 8.53 | AA12: 8.53 | AB12: 1.406799531 | AC12: 1.406799531 | AD12: 8.53 | AE12: 8.53 | AF12: 1.406799531 | AG12: 1.406799531 | AH12: 0.925 | AI12: 0.902 | AJ12: 0.925 | AK12: 0.902 | AL12: 0.925 | AM12: 0.902 | AN12: 0.925 | AO12: 0.902 | AP12: 0.837 | AQ12: 0.781 | AR12: 0.837 | AS12: 0.781 | AT12: 0.748 | AU12: 0.733 | AV12: 0.748 | AW12: 0.733 | AX12: 0.748 | AY12: 0.733 | AZ12: 0.748 | BA12: 0.733 | BB12: 0.925 | BC12: 0.902 | BD12: 0.925 | BE12: 0.902 | BF12: 0.837 | BG12: 0.781 | BH12: 0.837 | BI12: 0.781 | BJ12: 0.748 | BK12: 0.733 | BL12: 0.748 | BM12: 0.733 | BN12: 0.748 | BO12: 0.733 | BP12: 0.748 | BQ12: 0.733 | BR12: 0.748 | BS12: 0.733 | BT12: 0.748 | BU12: 0.733 | BV12: ASHRAE 90.1--1989 (as of Jan. 1, 1992)
A13: 1996 | B13: 9.212 | C13: 9.554 | D13: 1.302648719 | E13: 1.256018422 | F13: 9.212 | G13: 9.554 | H13: 1.302648719 | I13: 1.256018422 | J13: 8.53 | K13: 8.53 | L13: 1.406799531 | M13: 1.406799531 | N13: 8.53 | O13: 8.53 | P13: 1.406799531 | Q13: 1.406799531 | R13: 9.212 | S13: 9.554 | T13: 1.302648719 | U13: 1.256018422 | V13: 9.212 | W13: 9.554 | X13: 1.302648719 | Y13: 1.256018422 | Z13: 8.53 | AA13: 8.53 | AB13: 1.406799531 | AC13: 1.406799531 | AD13: 8.53 | AE13: 8.53 | AF13: 1.406799531 | AG13: 1.406799531 | AH13: 0.925 | AI13: 0.902 | AJ13: 0.925 | AK13: 0.902 | AL13: 0.925 | AM13: 0.902 | AN13: 0.925 | AO13: 0.902 | AP13: 0.837 | AQ13: 0.781 | AR13: 0.837 | AS13: 0.781 | AT13: 0.748 | AU13: 0.733 | AV13: 0.748 | AW13: 0.733 | AX13: 0.748 | AY13: 0.733 | AZ13: 0.748 | BA13: 0.733 | BB13: 0.925 | BC13: 0.902 | BD13: 0.925 | BE13: 0.902 | BF13: 0.837 | BG13: 0.781 | BH13: 0.837 | BI13: 0.781 | BJ13: 0.748 | BK13: 0.733 | BL13: 0.748 | BM13: 0.733 | BN13: 0.748 | BO13: 0.733 | BP13: 0.748 | BQ13: 0.733 | BR13: 0.748 | BS13: 0.733 | BT13: 0.748 | BU13: 0.733 | BV13: ASHRAE 90.1--1989 (as of Jan. 1, 1992)
A14: 1997 | B14: 9.212 | C14: 9.554 | D14: 1.302648719 | E14: 1.256018422 | F14: 9.212 | G14: 9.554 | H14: 1.302648719 | I14: 1.256018422 | J14: 8.53 | K14: 8.53 | L14: 1.406799531 | M14: 1.406799531 | N14: 8.53 | O14: 8.53 | P14: 1.406799531 | Q14: 1.406799531 | R14: 9.212 | S14: 9.554 | T14: 1.302648719 | U14: 1.256018422 | V14: 9.212 | W14: 9.554 | X14: 1.302648719 | Y14: 1.256018422 | Z14: 8.53 | AA14: 8.53 | AB14: 1.406799531 | AC14: 1.406799531 | AD14: 8.53 | AE14: 8.53 | AF14: 1.406799531 | AG14: 1.406799531 | AH14: 0.925 | AI14: 0.902 | AJ14: 0.925 | AK14: 0.902 | AL14: 0.925 | AM14: 0.902 | AN14: 0.925 | AO14: 0.902 | AP14: 0.837 | AQ14: 0.781 | AR14: 0.837 | AS14: 0.781 | AT14: 0.748 | AU14: 0.733 | AV14: 0.748 | AW14: 0.733 | AX14: 0.748 | AY14: 0.733 | AZ14: 0.748 | BA14: 0.733 | BB14: 0.925 | BC14: 0.902 | BD14: 0.925 | BE14: 0.902 | BF14: 0.837 | BG14: 0.781 | BH14: 0.837 | BI14: 0.781 | BJ14: 0.748 | BK14: 0.733 | BL14: 0.748 | BM14: 0.733 | BN14: 0.748 | BO14: 0.733 | BP14: 0.748 | BQ14: 0.733 | BR14: 0.748 | BS14: 0.733 | BT14: 0.748 | BU14: 0.733 | BV14: ASHRAE 90.1--1989 (as of Jan. 1, 1992)
A15: 1998 | B15: 9.212 | C15: 9.554 | D15: 1.302648719 | E15: 1.256018422 | F15: 9.212 | G15: 9.554 | H15: 1.302648719 | I15: 1.256018422 | J15: 8.53 | K15: 8.53 | L15: 1.406799531 | M15: 1.406799531 | N15: 8.53 | O15: 8.53 | P15: 1.406799531 | Q15: 1.406799531 | R15: 9.212 | S15: 9.554 | T15: 1.302648719 | U15: 1.256018422 | V15: 9.212 | W15: 9.554 | X15: 1.302648719 | Y15: 1.256018422 | Z15: 8.53 | AA15: 8.53 | AB15: 1.406799531 | AC15: 1.406799531 | AD15: 8.53 | AE15: 8.53 | AF15: 1.406799531 | AG15: 1.406799531 | AH15: 0.925 | AI15: 0.902 | AJ15: 0.925 | AK15: 0.902 | AL15: 0.925 | AM15: 0.902 | AN15: 0.925 | AO15: 0.902 | AP15: 0.837 | AQ15: 0.781 | AR15: 0.837 | AS15: 0.781 | AT15: 0.748 | AU15: 0.733 | AV15: 0.748 | AW15: 0.733 | AX15: 0.748 | AY15: 0.733 | AZ15: 0.748 | BA15: 0.733 | BB15: 0.925 | BC15: 0.902 | BD15: 0.925 | BE15: 0.902 | BF15: 0.837 | BG15: 0.781 | BH15: 0.837 | BI15: 0.781 | BJ15: 0.748 | BK15: 0.733 | BL15: 0.748 | BM15: 0.733 | BN15: 0.748 | BO15: 0.733 | BP15: 0.748 | BQ15: 0.733 | BR15: 0.748 | BS15: 0.733 | BT15: 0.748 | BU15: 0.733 | BV15: ASHRAE 90.1--1989 (as of Jan. 1, 1992)
A16: 1999 | B16: 9.212 | C16: 9.554 | D16: 1.302648719 | E16: 1.256018422 | F16: 9.212 | G16: 9.554 | H16: 1.302648719 | I16: 1.256018422 | J16: 8.53 | K16: 8.53 | L16: 1.406799531 | M16: 1.406799531 | N16: 8.53 | O16: 8.53 | P16: 1.406799531 | Q16: 1.406799531 | R16: 9.212 | S16: 9.554 | T16: 1.302648719 | U16: 1.256018422 | V16: 9.212 | W16: 9.554 | X16: 1.302648719 | Y16: 1.256018422 | Z16: 8.53 | AA16: 8.53 | AB16: 1.406799531 | AC16: 1.406799531 | AD16: 8.53 | AE16: 8.53 | AF16: 1.406799531 | AG16: 1.406799531 | AH16: 0.925 | AI16: 0.902 | AJ16: 0.925 | AK16: 0.902 | AL16: 0.925 | AM16: 0.902 | AN16: 0.925 | AO16: 0.902 | AP16: 0.837 | AQ16: 0.781 | AR16: 0.837 | AS16: 0.781 | AT16: 0.748 | AU16: 0.733 | AV16: 0.748 | AW16: 0.733 | AX16: 0.748 | AY16: 0.733 | AZ16: 0.748 | BA16: 0.733 | BB16: 0.925 | BC16: 0.902 | BD16: 0.925 | BE16: 0.902 | BF16: 0.837 | BG16: 0.781 | BH16: 0.837 | BI16: 0.781 | BJ16: 0.748 | BK16: 0.733 | BL16: 0.748 | BM16: 0.733 | BN16: 0.748 | BO16: 0.733 | BP16: 0.748 | BQ16: 0.733 | BR16: 0.748 | BS16: 0.733 | BT16: 0.748 | BU16: 0.733 | BV16: ASHRAE 90.1--1999
A17: 2000 | B17: 9.212 | C17: 9.554 | D17: 1.302648719 | E17: 1.256018422 | F17: 9.212 | G17: 9.554 | H17: 1.302648719 | I17: 1.256018422 | J17: 8.53 | K17: 8.53 | L17: 1.406799531 | M17: 1.406799531 | N17: 8.53 | O17: 8.53 | P17: 1.406799531 | Q17: 1.406799531 | R17: 9.212 | S17: 9.554 | T17: 1.302648719 | U17: 1.256018422 | V17: 9.212 | W17: 9.554 | X17: 1.302648719 | Y17: 1.256018422 | Z17: 8.53 | AA17: 8.53 | AB17: 1.406799531 | AC17: 1.406799531 | AD17: 8.53 | AE17: 8.53 | AF17: 1.406799531 | AG17: 1.406799531 | AH17: 0.925 | AI17: 0.902 | AJ17: 0.925 | AK17: 0.902 | AL17: 0.925 | AM17: 0.902 | AN17: 0.925 | AO17: 0.902 | AP17: 0.837 | AQ17: 0.781 | AR17: 0.837 | AS17: 0.781 | AT17: 0.748 | AU17: 0.733 | AV17: 0.748 | AW17: 0.733 | AX17: 0.748 | AY17: 0.733 | AZ17: 0.748 | BA17: 0.733 | BB17: 0.925 | BC17: 0.902 | BD17: 0.925 | BE17: 0.902 | BF17: 0.837 | BG17: 0.781 | BH17: 0.837 | BI17: 0.781 | BJ17: 0.748 | BK17: 0.733 | BL17: 0.748 | BM17: 0.733 | BN17: 0.748 | BO17: 0.733 | BP17: 0.748 | BQ17: 0.733 | BR17: 0.748 | BS17: 0.733 | BT17: 0.748 | BU17: 0.733 | BV17: ASHRAE 90.1--1999
A18: 2001 | B18: 9.212 | C18: 9.554 | D18: 1.302648719 | E18: 1.256018422 | F18: 9.212 | G18: 9.554 | H18: 1.302648719 | I18: 1.256018422 | J18: 8.53 | K18: 8.53 | L18: 1.406799531 | M18: 1.406799531 | N18: 8.53 | O18: 8.53 | P18: 1.406799531 | Q18: 1.406799531 | R18: 9.212 | S18: 9.554 | T18: 1.302648719 | U18: 1.256018422 | V18: 9.212 | W18: 9.554 | X18: 1.302648719 | Y18: 1.256018422 | Z18: 8.53 | AA18: 8.53 | AB18: 1.406799531 | AC18: 1.406799531 | AD18: 8.53 | AE18: 8.53 | AF18: 1.406799531 | AG18: 1.406799531 | AH18: 0.925 | AI18: 0.902 | AJ18: 0.925 | AK18: 0.902 | AL18: 0.925 | AM18: 0.902 | AN18: 0.925 | AO18: 0.902 | AP18: 0.837 | AQ18: 0.781 | AR18: 0.837 | AS18: 0.781 | AT18: 0.748 | AU18: 0.733 | AV18: 0.748 | AW18: 0.733 | AX18: 0.748 | AY18: 0.733 | AZ18: 0.748 | BA18: 0.733 | BB18: 0.925 | BC18: 0.902 | BD18: 0.925 | BE18: 0.902 | BF18: 0.837 | BG18: 0.781 | BH18: 0.837 | BI18: 0.781 | BJ18: 0.748 | BK18: 0.733 | BL18: 0.748 | BM18: 0.733 | BN18: 0.748 | BO18: 0.733 | BP18: 0.748 | BQ18: 0.733 | BR18: 0.748 | BS18: 0.733 | BT18: 0.748 | BU18: 0.733 | BV18: ASHRAE 90.1--1999
A19: 2002 | B19: 9.562 | C19: 10.416 | D19: 1.25496758 | E19: 1.152073733 | F19: 9.562 | G19: 10.416 | H19: 1.25496758 | I19: 1.152073733 | J19: 9.562 | K19: 10.416 | L19: 1.25496758 | M19: 1.152073733 | N19: 9.562 | O19: 10.416 | P19: 1.25496758 | Q19: 1.152073733 | R19: 9.562 | S19: 10.416 | T19: 1.25496758 | U19: 1.152073733 | V19: 9.562 | W19: 10.416 | X19: 1.25496758 | Y19: 1.152073733 | Z19: 9.562 | AA19: 10.416 | AB19: 1.25496758 | AC19: 1.152073733 | AD19: 9.562 | AE19: 10.416 | AF19: 1.25496758 | AG19: 1.152073733 | AH19: 0.79 | AI19: 0.676 | AJ19: 0.79 | AK19: 0.676 | AL19: 0.79 | AM19: 0.676 | AN19: 0.79 | AO19: 0.676 | AP19: 0.718 | AQ19: 0.628 | AR19: 0.718 | AS19: 0.628 | AT19: 0.639 | AU19: 0.572 | AV19: 0.639 | AW19: 0.572 | AX19: 0.639 | AY19: 0.572 | AZ19: 0.639 | BA19: 0.572 | BB19: 0.703 | BC19: 0.67 | BD19: 0.703 | BE19: 0.67 | BF19: 0.634 | BG19: 0.596 | BH19: 0.634 | BI19: 0.596 | BJ19: 0.576 | BK19: 0.549 | BL19: 0.576 | BM19: 0.549 | BN19: 0.576 | BO19: 0.549 | BP19: 0.576 | BQ19: 0.549 | BR19: 0.576 | BS19: 0.549 | BT19: 0.576 | BU19: 0.549 | BV19: ASHRAE 90.1--1999 (as of 10/29/2001)
A20: 2003 | B20: 9.562 | C20: 10.416 | D20: 1.25496758 | E20: 1.152073733 | F20: 9.562 | G20: 10.416 | H20: 1.25496758 | I20: 1.152073733 | J20: 9.562 | K20: 10.416 | L20: 1.25496758 | M20: 1.152073733 | N20: 9.562 | O20: 10.416 | P20: 1.25496758 | Q20: 1.152073733 | R20: 9.562 | S20: 10.416 | T20: 1.25496758 | U20: 1.152073733 | V20: 9.562 | W20: 10.416 | X20: 1.25496758 | Y20: 1.152073733 | Z20: 9.562 | AA20: 10.416 | AB20: 1.25496758 | AC20: 1.152073733 | AD20: 9.562 | AE20: 10.416 | AF20: 1.25496758 | AG20: 1.152073733 | AH20: 0.79 | AI20: 0.676 | AJ20: 0.79 | AK20: 0.676 | AL20: 0.79 | AM20: 0.676 | AN20: 0.79 | AO20: 0.676 | AP20: 0.718 | AQ20: 0.628 | AR20: 0.718 | AS20: 0.628 | AT20: 0.639 | AU20: 0.572 | AV20: 0.639 | AW20: 0.572 | AX20: 0.639 | AY20: 0.572 | AZ20: 0.639 | BA20: 0.572 | BB20: 0.703 | BC20: 0.67 | BD20: 0.703 | BE20: 0.67 | BF20: 0.634 | BG20: 0.596 | BH20: 0.634 | BI20: 0.596 | BJ20: 0.576 | BK20: 0.549 | BL20: 0.576 | BM20: 0.549 | BN20: 0.576 | BO20: 0.549 | BP20: 0.576 | BQ20: 0.549 | BR20: 0.576 | BS20: 0.549 | BT20: 0.576 | BU20: 0.549 | BV20: ASHRAE 90.1--1999 (as of 10/29/2001)
A21: 2004 | B21: 9.562 | C21: 10.416 | D21: 1.25496758 | E21: 1.152073733 | F21: 9.562 | G21: 10.416 | H21: 1.25496758 | I21: 1.152073733 | J21: 9.562 | K21: 10.416 | L21: 1.25496758 | M21: 1.152073733 | N21: 9.562 | O21: 10.416 | P21: 1.25496758 | Q21: 1.152073733 | R21: 9.562 | S21: 10.416 | T21: 1.25496758 | U21: 1.152073733 | V21: 9.562 | W21: 10.416 | X21: 1.25496758 | Y21: 1.152073733 | Z21: 9.562 | AA21: 10.416 | AB21: 1.25496758 | AC21: 1.152073733 | AD21: 9.562 | AE21: 10.416 | AF21: 1.25496758 | AG21: 1.152073733 | AH21: 0.79 | AI21: 0.676 | AJ21: 0.79 | AK21: 0.676 | AL21: 0.79 | AM21: 0.676 | AN21: 0.79 | AO21: 0.676 | AP21: 0.718 | AQ21: 0.628 | AR21: 0.718 | AS21: 0.628 | AT21: 0.639 | AU21: 0.572 | AV21: 0.639 | AW21: 0.572 | AX21: 0.639 | AY21: 0.572 | AZ21: 0.639 | BA21: 0.572 | BB21: 0.703 | BC21: 0.67 | BD21: 0.703 | BE21: 0.67 | BF21: 0.634 | BG21: 0.596 | BH21: 0.634 | BI21: 0.596 | BJ21: 0.576 | BK21: 0.549 | BL21: 0.576 | BM21: 0.549 | BN21: 0.576 | BO21: 0.549 | BP21: 0.576 | BQ21: 0.549 | BR21: 0.576 | BS21: 0.549 | BT21: 0.576 | BU21: 0.549 | BV21: ASHRAE 90.1--2004
A22: 2005 | B22: 9.562 | C22: 10.416 | D22: 1.25496758 | E22: 1.152073733 | F22: 9.562 | G22: 10.416 | H22: 1.25496758 | I22: 1.152073733 | J22: 9.562 | K22: 10.416 | L22: 1.25496758 | M22: 1.152073733 | N22: 9.562 | O22: 10.416 | P22: 1.25496758 | Q22: 1.152073733 | R22: 9.562 | S22: 10.416 | T22: 1.25496758 | U22: 1.152073733 | V22: 9.562 | W22: 10.416 | X22: 1.25496758 | Y22: 1.152073733 | Z22: 9.562 | AA22: 10.416 | AB22: 1.25496758 | AC22: 1.152073733 | AD22: 9.562 | AE22: 10.416 | AF22: 1.25496758 | AG22: 1.152073733 | AH22: 0.79 | AI22: 0.676 | AJ22: 0.79 | AK22: 0.676 | AL22: 0.79 | AM22: 0.676 | AN22: 0.79 | AO22: 0.676 | AP22: 0.718 | AQ22: 0.628 | AR22: 0.718 | AS22: 0.628 | AT22: 0.639 | AU22: 0.572 | AV22: 0.639 | AW22: 0.572 | AX22: 0.639 | AY22: 0.572 | AZ22: 0.639 | BA22: 0.572 | BB22: 0.703 | BC22: 0.67 | BD22: 0.703 | BE22: 0.67 | BF22: 0.634 | BG22: 0.596 | BH22: 0.634 | BI22: 0.596 | BJ22: 0.576 | BK22: 0.549 | BL22: 0.576 | BM22: 0.549 | BN22: 0.576 | BO22: 0.549 | BP22: 0.576 | BQ22: 0.549 | BR22: 0.576 | BS22: 0.549 | BT22: 0.576 | BU22: 0.549 | BV22: ASHRAE 90.1--2004
A23: 2006 | B23: 9.562 | C23: 10.416 | D23: 1.25496758 | E23: 1.152073733 | F23: 9.562 | G23: 10.416 | H23: 1.25496758 | I23: 1.152073733 | J23: 9.562 | K23: 10.416 | L23: 1.25496758 | M23: 1.152073733 | N23: 9.562 | O23: 10.416 | P23: 1.25496758 | Q23: 1.152073733 | R23: 9.562 | S23: 10.416 | T23: 1.25496758 | U23: 1.152073733 | V23: 9.562 | W23: 10.416 | X23: 1.25496758 | Y23: 1.152073733 | Z23: 9.562 | AA23: 10.416 | AB23: 1.25496758 | AC23: 1.152073733 | AD23: 9.562 | AE23: 10.416 | AF23: 1.25496758 | AG23: 1.152073733 | AH23: 0.79 | AI23: 0.676 | AJ23: 0.79 | AK23: 0.676 | AL23: 0.79 | AM23: 0.676 | AN23: 0.79 | AO23: 0.676 | AP23: 0.718 | AQ23: 0.628 | AR23: 0.718 | AS23: 0.628 | AT23: 0.639 | AU23: 0.572 | AV23: 0.639 | AW23: 0.572 | AX23: 0.639 | AY23: 0.572 | AZ23: 0.639 | BA23: 0.572 | BB23: 0.703 | BC23: 0.67 | BD23: 0.703 | BE23: 0.67 | BF23: 0.634 | BG23: 0.596 | BH23: 0.634 | BI23: 0.596 | BJ23: 0.576 | BK23: 0.549 | BL23: 0.576 | BM23: 0.549 | BN23: 0.576 | BO23: 0.549 | BP23: 0.576 | BQ23: 0.549 | BR23: 0.576 | BS23: 0.549 | BT23: 0.576 | BU23: 0.549 | BV23: Federal Standard/ASHRAE 90.1--2004
A24: 2007 | B24: 9.562 | C24: 10.416 | D24: 1.25496758 | E24: 1.152073733 | F24: 9.562 | G24: 10.416 | H24: 1.25496758 | I24: 1.152073733 | J24: 9.562 | K24: 10.416 | L24: 1.25496758 | M24: 1.152073733 | N24: 9.562 | O24: 10.416 | P24: 1.25496758 | Q24: 1.152073733 | R24: 9.562 | S24: 10.416 | T24: 1.25496758 | U24: 1.152073733 | V24: 9.562 | W24: 10.416 | X24: 1.25496758 | Y24: 1.152073733 | Z24: 9.562 | AA24: 10.416 | AB24: 1.25496758 | AC24: 1.152073733 | AD24: 9.562 | AE24: 10.416 | AF24: 1.25496758 | AG24: 1.152073733 | AH24: 0.79 | AI24: 0.676 | AJ24: 0.79 | AK24: 0.676 | AL24: 0.79 | AM24: 0.676 | AN24: 0.79 | AO24: 0.676 | AP24: 0.718 | AQ24: 0.628 | AR24: 0.718 | AS24: 0.628 | AT24: 0.639 | AU24: 0.572 | AV24: 0.639 | AW24: 0.572 | AX24: 0.639 | AY24: 0.572 | AZ24: 0.639 | BA24: 0.572 | BB24: 0.703 | BC24: 0.67 | BD24: 0.703 | BE24: 0.67 | BF24: 0.634 | BG24: 0.596 | BH24: 0.634 | BI24: 0.596 | BJ24: 0.576 | BK24: 0.549 | BL24: 0.576 | BM24: 0.549 | BN24: 0.576 | BO24: 0.549 | BP24: 0.576 | BQ24: 0.549 | BR24: 0.576 | BS24: 0.549 | BT24: 0.576 | BU24: 0.549 | BV24: Federal Standard/ASHRAE 90.1-2007
A25: 2008 | B25: 9.562 | C25: 10.416 | D25: 1.25496758 | E25: 1.152073733 | F25: 9.562 | G25: 10.416 | H25: 1.25496758 | I25: 1.152073733 | J25: 9.562 | K25: 10.416 | L25: 1.25496758 | M25: 1.152073733 | N25: 9.562 | O25: 10.416 | P25: 1.25496758 | Q25: 1.152073733 | R25: 9.562 | S25: 10.416 | T25: 1.25496758 | U25: 1.152073733 | V25: 9.562 | W25: 10.416 | X25: 1.25496758 | Y25: 1.152073733 | Z25: 9.562 | AA25: 10.416 | AB25: 1.25496758 | AC25: 1.152073733 | AD25: 9.562 | AE25: 10.416 | AF25: 1.25496758 | AG25: 1.152073733 | AH25: 0.79 | AI25: 0.676 | AJ25: 0.79 | AK25: 0.676 | AL25: 0.79 | AM25: 0.676 | AN25: 0.79 | AO25: 0.676 | AP25: 0.718 | AQ25: 0.628 | AR25: 0.718 | AS25: 0.628 | AT25: 0.639 | AU25: 0.572 | AV25: 0.639 | AW25: 0.572 | AX25: 0.639 | AY25: 0.572 | AZ25: 0.639 | BA25: 0.572 | BB25: 0.703 | BC25: 0.67 | BD25: 0.703 | BE25: 0.67 | BF25: 0.634 | BG25: 0.596 | BH25: 0.634 | BI25: 0.596 | BJ25: 0.576 | BK25: 0.549 | BL25: 0.576 | BM25: 0.549 | BN25: 0.576 | BO25: 0.549 | BP25: 0.576 | BQ25: 0.549 | BR25: 0.576 | BS25: 0.549 | BT25: 0.576 | BU25: 0.549 | BV25: Federal Standard/ASHRAE 90.1-2007
A26: 2009 | B26: 9.562 | C26: 10.416 | D26: 1.25496758 | E26: 1.152073733 | F26: 9.562 | G26: 10.416 | H26: 1.25496758 | I26: 1.152073733 | J26: 9.562 | K26: 10.416 | L26: 1.25496758 | M26: 1.152073733 | N26: 9.562 | O26: 10.416 | P26: 1.25496758 | Q26: 1.152073733 | R26: 9.562 | S26: 10.416 | T26: 1.25496758 | U26: 1.152073733 | V26: 9.562 | W26: 10.416 | X26: 1.25496758 | Y26: 1.152073733 | Z26: 9.562 | AA26: 10.416 | AB26: 1.25496758 | AC26: 1.152073733 | AD26: 9.562 | AE26: 10.416 | AF26: 1.25496758 | AG26: 1.152073733 | AH26: 0.79 | AI26: 0.676 | AJ26: 0.79 | AK26: 0.676 | AL26: 0.79 | AM26: 0.676 | AN26: 0.79 | AO26: 0.676 | AP26: 0.718 | AQ26: 0.628 | AR26: 0.718 | AS26: 0.628 | AT26: 0.639 | AU26: 0.572 | AV26: 0.639 | AW26: 0.572 | AX26: 0.639 | AY26: 0.572 | AZ26: 0.639 | BA26: 0.572 | BB26: 0.703 | BC26: 0.67 | BD26: 0.703 | BE26: 0.67 | BF26: 0.634 | BG26: 0.596 | BH26: 0.634 | BI26: 0.596 | BJ26: 0.576 | BK26: 0.549 | BL26: 0.576 | BM26: 0.549 | BN26: 0.576 | BO26: 0.549 | BP26: 0.576 | BQ26: 0.549 | BR26: 0.576 | BS26: 0.549 | BT26: 0.576 | BU26: 0.549 | BV26: Federal Standard/ASHRAE 90.1-2007
A27: 2010 | B27: 9.562 | C27: 12.5 | D27: 1.25496758 | E27: 0.96 | F27: 9.562 | G27: 12.5 | H27: 1.25496758 | I27: 0.96 | J27: 9.562 | K27: 12.5 | L27: 1.25496758 | M27: 0.96 | N27: 9.562 | O27: 12.5 | P27: 1.25496758 | Q27: 0.96 | R27: 9.562 | S27: 12.5 | T27: 1.25496758 | U27: 0.96 | V27: 9.562 | W27: 12.5 | X27: 1.25496758 | Y27: 0.96 | Z27: 9.562 | AA27: 12.5 | AB27: 1.25496758 | AC27: 0.96 | AD27: 9.562 | AE27: 12.5 | AF27: 1.25496758 | AG27: 0.96 | AH27: 0.78 | AI27: 0.63 | AJ27: 0.8 | AK27: 0.6 | AL27: 0.775 | AM27: 0.615 | AN27: 0.79 | AO27: 0.586 | AP27: 0.68 | AQ27: 0.58 | AR27: 0.718 | AS27: 0.54 | AT27: 0.62 | AU27: 0.54 | AV27: 0.639 | AW27: 0.49 | AX27: 0.62 | AY27: 0.54 | AZ27: 0.639 | BA27: 0.49 | BB27: 0.634 | BC27: 0.596 | BD27: 0.639 | BE27: 0.45 | BF27: 0.634 | BG27: 0.596 | BH27: 0.639 | BI27: 0.45 | BJ27: 0.576 | BK27: 0.549 | BL27: 0.6 | BM27: 0.4 | BN27: 0.576 | BO27: 0.549 | BP27: 0.6 | BQ27: 0.4 | BR27: 0.57 | BS27: 0.539 | BT27: 0.59 | BU27: 0.4 | BV27: Federal Standard/ASHRAE 90.1-2007 (as of 1/1/2010)
A28: 2011 | B28: 9.562 | C28: 12.5 | D28: 1.25496758 | E28: 0.96 | F28: 9.562 | G28: 12.5 | H28: 1.25496758 | I28: 0.96 | J28: 9.562 | K28: 12.5 | L28: 1.25496758 | M28: 0.96 | N28: 9.562 | O28: 12.5 | P28: 1.25496758 | Q28: 0.96 | R28: 9.562 | S28: 12.5 | T28: 1.25496758 | U28: 0.96 | V28: 9.562 | W28: 12.5 | X28: 1.25496758 | Y28: 0.96 | Z28: 9.562 | AA28: 12.5 | AB28: 1.25496758 | AC28: 0.96 | AD28: 9.562 | AE28: 12.5 | AF28: 1.25496758 | AG28: 0.96 | AH28: 0.78 | AI28: 0.63 | AJ28: 0.8 | AK28: 0.6 | AL28: 0.775 | AM28: 0.615 | AN28: 0.79 | AO28: 0.586 | AP28: 0.68 | AQ28: 0.58 | AR28: 0.718 | AS28: 0.54 | AT28: 0.62 | AU28: 0.54 | AV28: 0.639 | AW28: 0.49 | AX28: 0.62 | AY28: 0.54 | AZ28: 0.639 | BA28: 0.49 | BB28: 0.634 | BC28: 0.596 | BD28: 0.639 | BE28: 0.45 | BF28: 0.634 | BG28: 0.596 | BH28: 0.639 | BI28: 0.45 | BJ28: 0.576 | BK28: 0.549 | BL28: 0.6 | BM28: 0.4 | BN28: 0.576 | BO28: 0.549 | BP28: 0.6 | BQ28: 0.4 | BR28: 0.57 | BS28: 0.539 | BT28: 0.59 | BU28: 0.4 | BV28: Federal Standard/ASHRAE 90.1-2007 (as of 1/1/2010)
A29: 2012 | B29: 9.562 | C29: 12.5 | D29: 1.25496758 | E29: 0.96 | F29: 9.562 | G29: 12.5 | H29: 1.25496758 | I29: 0.96 | J29: 9.562 | K29: 12.5 | L29: 1.25496758 | M29: 0.96 | N29: 9.562 | O29: 12.5 | P29: 1.25496758 | Q29: 0.96 | R29: 9.562 | S29: 12.5 | T29: 1.25496758 | U29: 0.96 | V29: 9.562 | W29: 12.5 | X29: 1.25496758 | Y29: 0.96 | Z29: 9.562 | AA29: 12.5 | AB29: 1.25496758 | AC29: 0.96 | AD29: 9.562 | AE29: 12.5 | AF29: 1.25496758 | AG29: 0.96 | AH29: 0.78 | AI29: 1.63 | AJ29: 0.8 | AK29: 0.6 | AL29: 0.775 | AM29: 0.615 | AN29: 0.79 | AO29: 0.586 | AP29: 0.68 | AQ29: 0.58 | AR29: 0.718 | AS29: 0.54 | AT29: 0.62 | AU29: 0.54 | AV29: 0.639 | AW29: 0.49 | AX29: 0.62 | AY29: 0.54 | AZ29: 0.639 | BA29: 0.49 | BB29: 0.634 | BC29: 0.596 | BD29: 0.639 | BE29: 0.45 | BF29: 0.634 | BG29: 0.596 | BH29: 0.639 | BI29: 0.45 | BJ29: 0.576 | BK29: 0.549 | BL29: 0.6 | BM29: 0.4 | BN29: 0.576 | BO29: 0.549 | BP29: 0.6 | BQ29: 0.4 | BR29: 0.57 | BS29: 0.539 | BT29: 0.59 | BU29: 0.4 | BV29: Federal Standard/ASHRAE 90.1-2007 (as of 1/1/2010)
A30: 2013 | B30: 9.562 | C30: 12.5 | D30: 1.25496758 | E30: 0.96 | F30: 9.562 | G30: 12.5 | H30: 1.25496758 | I30: 0.96 | J30: 9.562 | K30: 12.5 | L30: 1.25496758 | M30: 0.96 | N30: 9.562 | O30: 12.5 | P30: 1.25496758 | Q30: 0.96 | R30: 9.562 | S30: 12.5 | T30: 1.25496758 | U30: 0.96 | V30: 9.562 | W30: 12.5 | X30: 1.25496758 | Y30: 0.96 | Z30: 9.562 | AA30: 12.5 | AB30: 1.25496758 | AC30: 0.96 | AD30: 9.562 | AE30: 12.5 | AF30: 1.25496758 | AG30: 0.96 | AH30: 0.78 | AI30: 2.63 | AJ30: 0.8 | AK30: 0.6 | AL30: 0.775 | AM30: 0.615 | AN30: 0.79 | AO30: 0.586 | AP30: 0.68 | AQ30: 0.58 | AR30: 0.718 | AS30: 0.54 | AT30: 0.62 | AU30: 0.54 | AV30: 0.639 | AW30: 0.49 | AX30: 0.62 | AY30: 0.54 | AZ30: 0.639 | BA30: 0.49 | BB30: 0.634 | BC30: 0.596 | BD30: 0.639 | BE30: 0.45 | BF30: 0.634 | BG30: 0.596 | BH30: 0.639 | BI30: 0.45 | BJ30: 0.576 | BK30: 0.549 | BL30: 0.6 | BM30: 0.4 | BN30: 0.576 | BO30: 0.549 | BP30: 0.6 | BQ30: 0.4 | BR30: 0.57 | BS30: 0.539 | BT30: 0.59 | BU30: 0.4
A31: 2014 | B31: 9.562 | C31: 12.5 | D31: 1.25496758 | E31: 0.96 | F31: 9.562 | G31: 12.5 | H31: 1.25496758 | I31: 0.96 | J31: 9.562 | K31: 12.5 | L31: 1.25496758 | M31: 0.96 | N31: 9.562 | O31: 12.5 | P31: 1.25496758 | Q31: 0.96 | R31: 9.562 | S31: 12.5 | T31: 1.25496758 | U31: 0.96 | V31: 9.562 | W31: 12.5 | X31: 1.25496758 | Y31: 0.96 | Z31: 9.562 | AA31: 12.5 | AB31: 1.25496758 | AC31: 0.96 | AD31: 9.562 | AE31: 12.5 | AF31: 1.25496758 | AG31: 0.96 | AH31: 0.78 | AI31: 3.63 | AJ31: 0.8 | AK31: 0.6 | AL31: 0.775 | AM31: 0.615 | AN31: 0.79 | AO31: 0.586 | AP31: 0.68 | AQ31: 0.58 | AR31: 0.718 | AS31: 0.54 | AT31: 0.62 | AU31: 0.54 | AV31: 0.639 | AW31: 0.49 | AX31: 0.62 | AY31: 0.54 | AZ31: 0.639 | BA31: 0.49 | BB31: 0.634 | BC31: 0.596 | BD31: 0.639 | BE31: 0.45 | BF31: 0.634 | BG31: 0.596 | BH31: 0.639 | BI31: 0.45 | BJ31: 0.576 | BK31: 0.549 | BL31: 0.6 | BM31: 0.4 | BN31: 0.576 | BO31: 0.549 | BP31: 0.6 | BQ31: 0.4 | BR31: 0.57 | BS31: 0.539 | BT31: 0.59 | BU31: 0.4
A32: 2015 | B32: 9.562 | C32: 12.5 | D32: 1.25496758 | E32: 0.96 | F32: 9.562 | G32: 12.5 | H32: 1.25496758 | I32: 0.96 | J32: 9.562 | K32: 12.5 | L32: 1.25496758 | M32: 0.96 | N32: 9.562 | O32: 12.5 | P32: 1.25496758 | Q32: 0.96 | R32: 9.562 | S32: 12.5 | T32: 1.25496758 | U32: 0.96 | V32: 9.562 | W32: 12.5 | X32: 1.25496758 | Y32: 0.96 | Z32: 9.562 | AA32: 12.5 | AB32: 1.25496758 | AC32: 0.96 | AD32: 9.562 | AE32: 12.5 | AF32: 1.25496758 | AG32: 0.96 | AH32: 0.78 | AI32: 4.63 | AJ32: 0.8 | AK32: 0.6 | AL32: 0.775 | AM32: 0.615 | AN32: 0.79 | AO32: 0.586 | AP32: 0.68 | AQ32: 0.58 | AR32: 0.718 | AS32: 0.54 | AT32: 0.62 | AU32: 0.54 | AV32: 0.639 | AW32: 0.49 | AX32: 0.62 | AY32: 0.54 | AZ32: 0.639 | BA32: 0.49 | BB32: 0.634 | BC32: 0.596 | BD32: 0.639 | BE32: 0.45 | BF32: 0.634 | BG32: 0.596 | BH32: 0.639 | BI32: 0.45 | BJ32: 0.576 | BK32: 0.549 | BL32: 0.6 | BM32: 0.4 | BN32: 0.576 | BO32: 0.549 | BP32: 0.6 | BQ32: 0.4 | BR32: 0.57 | BS32: 0.539 | BT32: 0.59 | BU32: 0.4
A33: 2016 | B33: 10.1 | C33: 13.7 | D33: 1.188118812 | E33: 0.8759124088 | F33: 9.7 | G33: 15.8 | H33: 1.237113402 | I33: 0.7594936709 | J33: 10.1 | K33: 14 | L33: 1.188118812 | M33: 0.8571428571 | N33: 9.7 | O33: 16.1 | P33: 1.237113402 | Q33: 0.7453416149 | R33: 10.1 | S33: 13.7 | T33: 1.188118812 | U33: 0.8759124088 | V33: 9.7 | W33: 15.8 | X33: 1.237113402 | Y33: 0.7594936709 | Z33: 9.562 | AA33: 12.5 | AB33: 1.25496758 | AC33: 0.96 | AD33: 9.7 | AE33: 16.1 | AF33: 1.237113402 | AG33: 0.7453416149 | AH33: 0.75 | AI33: 0.6 | AJ33: 0.78 | AK33: 0.5 | AL33: 0.72 | AM33: 0.56 | AN33: 0.75 | AO33: 0.49 | AP33: 0.66 | AQ33: 0.54 | AR33: 0.68 | AS33: 0.44 | AT33: 0.61 | AU33: 0.52 | AV33: 0.625 | AW33: 0.41 | AX33: 0.56 | AY33: 0.5 | AZ33: 0.585 | BA33: 0.38 | BB33: 0.61 | BC33: 0.55 | BD33: 0.695 | BE33: 0.44 | BF33: 0.61 | BG33: 0.55 | BH33: 0.635 | BI33: 0.4 | BJ33: 0.56 | BK33: 0.52 | BL33: 0.595 | BM33: 0.39 | BN33: 0.56 | BO33: 0.52 | BP33: 0.595 | BQ33: 0.39 | BR33: 0.56 | BS33: 0.5 | BT33: 0.585 | BU33: 0.38
A34: 2017 | B34: 10.1 | C34: 13.7 | D34: 1.188118812 | E34: 0.8759124088 | F34: 9.7 | G34: 15.8 | H34: 1.237113402 | I34: 0.7594936709 | J34: 10.1 | K34: 14 | L34: 1.188118812 | M34: 0.8571428571 | N34: 9.7 | O34: 16.1 | P34: 1.237113402 | Q34: 0.7453416149 | R34: 10.1 | S34: 13.7 | T34: 1.188118812 | U34: 0.8759124088 | V34: 9.7 | W34: 15.8 | X34: 1.237113402 | Y34: 0.7594936709 | Z34: 9.562 | AA34: 12.5 | AB34: 1.25496758 | AC34: 0.96 | AD34: 9.7 | AE34: 16.1 | AF34: 1.237113402 | AG34: 0.7453416149 | AH34: 0.75 | AI34: 0.6 | AJ34: 0.78 | AK34: 0.5 | AL34: 0.72 | AM34: 0.56 | AN34: 0.75 | AO34: 0.49 | AP34: 0.66 | AQ34: 0.54 | AR34: 0.68 | AS34: 0.44 | AT34: 0.61 | AU34: 0.52 | AV34: 0.625 | AW34: 0.41 | AX34: 0.56 | AY34: 0.5 | AZ34: 0.585 | BA34: 0.38 | BB34: 0.61 | BC34: 0.55 | BD34: 0.695 | BE34: 0.44 | BF34: 0.61 | BG34: 0.55 | BH34: 0.635 | BI34: 0.4 | BJ34: 0.56 | BK34: 0.52 | BL34: 0.595 | BM34: 0.39 | BN34: 0.56 | BO34: 0.52 | BP34: 0.595 | BQ34: 0.39 | BR34: 0.56 | BS34: 0.5 | BT34: 0.585 | BU34: 0.38
A35: 2018 | B35: 10.1 | C35: 13.7 | D35: 1.188118812 | E35: 0.8759124088 | F35: 9.7 | G35: 15.8 | H35: 1.237113402 | I35: 0.7594936709 | J35: 10.1 | K35: 14 | L35: 1.188118812 | M35: 0.8571428571 | N35: 9.7 | O35: 16.1 | P35: 1.237113402 | Q35: 0.7453416149 | R35: 10.1 | S35: 13.7 | T35: 1.188118812 | U35: 0.8759124088 | V35: 9.7 | W35: 15.8 | X35: 1.237113402 | Y35: 0.7594936709 | Z35: 10.1 | AA35: 14 | AB35: 1.188118812 | AC35: 0.8571428571 | AD35: 9.7 | AE35: 16.1 | AF35: 1.237113402 | AG35: 0.7453416149 | AH35: 0.75 | AI35: 0.6 | AJ35: 0.78 | AK35: 0.5 | AL35: 0.72 | AM35: 0.56 | AN35: 0.75 | AO35: 0.49 | AP35: 0.66 | AQ35: 0.54 | AR35: 0.68 | AS35: 0.44 | AT35: 0.61 | AU35: 0.52 | AV35: 0.625 | AW35: 0.41 | AX35: 0.56 | AY35: 0.5 | AZ35: 0.585 | BA35: 0.38 | BB35: 0.61 | BC35: 0.55 | BD35: 0.695 | BE35: 0.44 | BF35: 0.61 | BG35: 0.55 | BH35: 0.635 | BI35: 0.4 | BJ35: 0.56 | BK35: 0.52 | BL35: 0.595 | BM35: 0.39 | BN35: 0.56 | BO35: 0.52 | BP35: 0.595 | BQ35: 0.39 | BR35: 0.56 | BS35: 0.5 | BT35: 0.585 | BU35: 0.38
A36: ARTRM8 | B36: 9.562 | C36: 12.5 | D36: 1.25496758 | E36: 0.96 | F36: 9.562 | G36: 12.5 | H36: 1.25496758 | I36: 0.96 | J36: 9.562 | K36: 12.75 | L36: 1.25496758 | M36: 0.9411764706 | N36: 9.562 | O36: 12.75 | P36: 1.25496758 | Q36: 0.9411764706 | R36: 9.562 | S36: 12.5 | T36: 1.25496758 | U36: 0.96 | V36: 9.562 | W36: 12.5 | X36: 1.25496758 | Y36: 0.96 | Z36: 9.562 | AA36: 12.75 | AB36: 1.25496758 | AC36: 0.9411764706 | AD36: 9.562 | AE36: 12.75 | AF36: 1.25496758 | AG36: 0.9411764706 | AH36: 0.78 | AI36: 0.63 | AJ36: 0.8 | AK36: 0.6 | AL36: 0.775 | AM36: 0.615 | AN36: 0.79 | AO36: 0.586 | AP36: 0.68 | AQ36: 0.58 | AR36: 0.718 | AS36: 0.54 | AT36: 0.62 | AU36: 0.54 | AV36: 0.639 | AW36: 0.49 | AX36: 0.62 | AY36: 0.54 | AZ36: 0.639 | BA36: 0.49 | BB36: 0.634 | BC36: 0.596 | BD36: 0.639 | BE36: 0.45 | BF36: 0.634 | BG36: 0.596 | BH36: 0.639 | BI36: 0.45 | BJ36: 0.576 | BK36: 0.549 | BL36: 0.6 | BM36: 0.4 | BN36: 0.576 | BO36: 0.549 | BP36: 0.6 | BQ36: 0.4 | BR36: 0.57 | BS36: 0.539 | BT36: 0.59 | BU36: 0.4
A37: CPS | B37: 10.1 | C37: 13.7 | D37: 1.188118812 | E37: 0.8759124088 | F37: 9.7 | G37: 15.8 | H37: 1.237113402 | I37: 0.7594936709 | J37: 10.1 | K37: 14 | L37: 1.188118812 | M37: 0.8571428571 | N37: 9.7 | O37: 16.1 | P37: 1.237113402 | Q37: 0.7453416149 | R37: 10.1 | S37: 13.7 | T37: 1.188118812 | U37: 0.8759124088 | V37: 9.7 | W37: 15.8 | X37: 1.237113402 | Y37: 0.7594936709 | Z37: 10.1 | AA37: 14 | AB37: 1.188118812 | AC37: 0.8571428571 | AD37: 9.7 | AE37: 16.1 | AF37: 1.237113402 | AG37: 0.7453416149 | AH37: 0.75 | AI37: 0.6 | AJ37: 0.78 | AK37: 0.5 | AL37: 0.72 | AM37: 0.56 | AN37: 0.75 | AO37: 0.49 | AP37: 0.66 | AQ37: 0.54 | AR37: 0.68 | AS37: 0.44 | AT37: 0.61 | AU37: 0.52 | AV37: 0.625 | AW37: 0.41 | AX37: 0.56 | AY37: 0.5 | AZ37: 0.585 | BA37: 0.38 | BB37: 0.61 | BC37: 0.55 | BD37: 0.695 | BE37: 0.44 | BF37: 0.61 | BG37: 0.55 | BH37: 0.635 | BI37: 0.4 | BJ37: 0.56 | BK37: 0.52 | BL37: 0.595 | BM37: 0.39 | BN37: 0.56 | BO37: 0.5 | BP37: 0.585 | BQ37: 0.38 | BR37: 0.56 | BS37: 0.5 | BT37: 0.585 | BU37: 0.38

Sheet PTAC (hidden)
C1: PackagedTerminalAirConditioner | D1: PackagedTerminalHeatPump | E1: PackagedTerminalHeatPump | F1: PackagedTerminalAirConditioner | G1: PackagedTerminalHeatPump | H1: PackagedTerminalHeatPump
C2: StandardSize | D2: StandardSize | E2: StandardSize | F2: NonStandardSize | G2: NonStandardSize | H2: NonStandardSize
C5: =C1&C2&C3&C4 -> PackagedTerminalAirConditionerStandardSize | D5: =D1&D2&D3&D4 -> PackagedTerminalHeatPumpStandardSize | E5: =E1&E2&E3&E4 -> PackagedTerminalHeatPumpStandardSize | F5: PackagedTerminalAirConditionerNonStandardSize | G5: PackagedTerminalHeatPumpNonStandardSize | H5: PackagedTerminalHeatPumpNonStandardSize
AC6: Standard Size | AL6: Non-Standard Size
K7: Standard Size | Q7: Non-Standard Size
A8: Manuf. Year | C8: Air Conditioners - Cooling Mode | D8: Heat Pumps - Cooling Mode | E8: Heat Pumps - Heating Mode | F8: Air Conditioners - Cooling Mode | G8: Heat Pumps - Cooling Mode | H8: Heat Pumps - Heating Mode | I8: Applicable Standard | K8: PTAC Cooling EER | M8: PTHP Cooling EER | O8: PTHP Heating COP | Q8: PTAC Cooling EER | S8: PTHP Cooling EER | U8: PTHP Heating COP | X8: No. | Y8: Btuh | Z8: Btuh Ajdustment* | AA8: Manuf. Yr | AB8: Row ID | AC8: PTAC Cooling ER | AD8: PTAC Cooling IECC2009 | AE8: PTAC Cooling IECC2015 | AF8: PTHP Cooling ER | AG8: PTHP Cooling IECC2009 | AH8: PTHP Cooling IECC2015 | AI8: PTHP Heating ER | AJ8: PTHP Heating IECC2009 | AK8: PTHP Heating IECC2015 | AL8: PTAC Cooling ER | AM8: PTAC Cooling IECC2009 | AN8: PTAC Cooling IECC2015 | AO8: PTHP Cooling ER | AP8: PTHP Cooling IECC2009 | AQ8: PTHP Cooling IECC2015 | AR8: PTHP Heating ER | AS8: PTHP Heating IECC2009 | AT8: PTHP Heating IECC2015
C9: EER | D9: EER | E9: COP | F9: EER | G9: EER | H9: COP | K9: a | L9: b | M9: a | N9: b | O9: a | P9: b | Q9: a | R9: b | S9: a | T9: b | U9: a | V9: b | AC9: ER | AD9: ARTRM8 | AE9: CPS | AF9: ER | AG9: ARTRM8 | AH9: CPS | AI9: ER | AJ9: ARTRM8 | AK9: CPS | AL9: ER | AM9: ARTRM8 | AN9: CPS | AO9: ER | AP9: ARTRM8 | AQ9: CPS | AR9: ER | AS9: ARTRM8 | AT9: CPS
A10: BASELINE EFFICIENCIES | B10: 1990 | C10: 12.5-(0.213* CAP/1000) | D10: 12.3-(0.213* CAP/1000) | E10: 3.2-(0.026* CAP/1000) | F10: 10.9-(0.213 * CAP/1000) | G10: 10.8-(0.213 * CAP/1000) | H10: 2.9-(0.026* CAP/1000) | I10: ASHRAE 90.1--1989 | K10: 12.5 | L10: 0.213 | M10: 12.3 | N10: 0.213 | O10: 3.2 | P10: 0.026 | Q10: 10.9 | R10: 0.213 | S10: 10.8 | T10: 0.213 | U10: 2.9 | V10: 0.026 | X10: 1 | Y10: =Inventory!BN8*12000 -> 0 | Z10: =IF($Y10<0,0,IF($Y10<(7000),(7000),IF($Y10>(15000),(15000),$Y10))) -> 7000 | AA10: =IF(Inventory!BK8<1990,1990,Inventory!BK8) -> 1990 | AB10: =MATCH($AA10,BaselineRow,0) -> 1 | AC10: =12/ROUND((INDEX(PTACStandardCoolingEER,$AB10,1)-(INDEX(PTACStandardCoolingEER,$AB10,2)*($Z10/1000))),1) -> 1.090909091 | AD10: =12/ROUND((K$39-(L$39*($Z10/1000))),1) -> 1.025641026 | AE10: =12/ROUND((K$40-(L$40*($Z10/1000))),1) -> 1.008403361 | AF10: =12/ROUND((INDEX(PTHPStandardCoolingEER,$AB10,1)-(INDEX(PTHPStandardCoolingEER,$AB10,2)*($Z10/1000))),1) -> 1.111111111 | AG10: =12/ROUND(M$39-(N$39*($Z10/1000)),1) -> 1.008403361 | AH10: =12/ROUND(M$40-(N$40*($Z10/1000)),1) -> 1.008403361 | AI10: =12/3.412/ROUND((INDEX(PTHPStandardHeatingCOP,$AB10,1)-(INDEX(PTHPStandardHeatingCOP,$AB10,2)*($Z10/1000))),1) -> 1.172332943 | AJ10: =12/3.412/(O$39-(P$39*($Z10/1000))) -> 1.054256243 | AK10: =12/3.412/(O$40-(P$40*($Z10/1000))) -> 1.165340897 | AL10: =12/ROUND((INDEX(PTACNonStandardCoolingEER,$AB10,1)-(INDEX(PTACNonStandardCoolingEER,$AB10,2)*($Z10/1000))),1) -> 1.276595745 | AM10: =12/ROUND((Q$39-(R$39*($Z10/1000))),1) -> 1.276595745 | AN10: =12/ROUND((Q$40-(R$40*($Z10/1000))),1) -> 1.276595745 | AO10: =12/ROUND((INDEX(PTHPNonStandardCoolingEER,$AB10,1)-(INDEX(PTHPNonStandardCoolingEER,$AB10,2)*($Z10/1000))),1) -> 1.290322581 | AP10: =12/ROUND(S$39-(T$39*($Z10/1000)),1) -> 1.290322581 | AQ10: =12/ROUND(S$40-(T$40*($Z10/1000)),1) -> 1.290322581 | AR10: =12/3.412/(INDEX(PTHPNonStandardHeatingCOP,$AB10,1)-(INDEX(PTHPNonStandardHeatingCOP,$AB10,2)*($Z10/1000))) -> 1.29396572 | AS10: =12/3.412/(U$39-(V$39*($Z10/1000))) -> 1.29396572 | AT10: =12/3.412/(U$40-(V$40*($Z10/1000))) -> 1.29396572
B11: 1991 | C11: 12.5-(0.213* CAP/1000) | D11: 12.3-(0.213* CAP/1000) | E11: 3.2-(0.026* CAP/1000) | F11: 10.9-(0.213 * CAP/1000) | G11: 10.8-(0.213 * CAP/1000) | H11: 2.9-(0.026* CAP/1000) | I11: ASHRAE 90.1--1989 | K11: 12.5 | L11: 0.213 | M11: 12.3 | N11: 0.213 | O11: 3.2 | P11: 0.026 | Q11: 10.9 | R11: 0.213 | S11: 10.8 | T11: 0.213 | U11: 2.9 | V11: 0.026 | X11: 2 | Y11: =Inventory!BN9*12000 -> 0 | Z11: =IF($Y11<0,0,IF($Y11<(7000),(7000),IF($Y11>(15000),(15000),$Y11))) -> 7000 | AA11: =IF(Inventory!BK9<1990,1990,Inventory!BK9) -> 1990 | AB11: =MATCH($AA11,BaselineRow,0) -> 1 | AC11: 1.090909091 | AD11: 1.025641026 | AE11: 1.008403361 | AF11: 1.111111111 | AG11: 1.008403361 | AH11: 1.008403361 | AI11: =12/3.412/(INDEX(PTHPStandardHeatingCOP,$AB11,1)-(INDEX(PTHPStandardHeatingCOP,$AB11,2)*($Z11/1000))) -> 1.165340897 | AJ11: 1.054256243 | AK11: 1.165340897 | AL11: 1.276595745 | AM11: 1.276595745 | AN11: 1.276595745 | AO11: 1.290322581 | AP11: 1.290322581 | AQ11: 1.290322581 | AR11: 1.29396572 | AS11: 1.29396572 | AT11: 1.29396572
B12: 1992 | C12: 12.5-(0.213* CAP/1000) | D12: 12.3-(0.213* CAP/1000) | E12: 3.2-(0.026* CAP/1000) | F12: 10.9-(0.213 * CAP/1000) | G12: 10.8-(0.213 * CAP/1000) | H12: 2.9-(0.026* CAP/1000) | I12: ASHRAE 90.1--1989 | K12: 12.5 | L12: 0.213 | M12: 12.3 | N12: 0.213 | O12: 3.2 | P12: 0.026 | Q12: 10.9 | R12: 0.213 | S12: 10.8 | T12: 0.213 | U12: 2.9 | V12: 0.026 | X12: 3 | Y12: =Inventory!BN10*12000 -> 0 | Z12: 7000 | AA12: =IF(Inventory!BK10<1990,1990,Inventory!BK10) -> 1990 | AB12: 1 | AC12: 1.090909091 | AD12: 1.025641026 | AE12: 1.008403361 | AF12: 1.111111111 | AG12: 1.008403361 | AH12: 1.008403361 | AI12: 1.165340897 | AJ12: 1.054256243 | AK12: 1.165340897 | AL12: 1.276595745 | AM12: 1.276595745 | AN12: 1.276595745 | AO12: 1.290322581 | AP12: 1.290322581 | AQ12: 1.290322581 | AR12: 1.29396572 | AS12: 1.29396572 | AT12: 1.29396572
B13: 1993 | C13: 12.5-(0.213* CAP/1000) | D13: 12.3-(0.213* CAP/1000) | E13: 3.2-(0.026* CAP/1000) | F13: 10.9-(0.213 * CAP/1000) | G13: 10.8-(0.213 * CAP/1000) | H13: 2.9-(0.026* CAP/1000) | I13: ASHRAE 90.1--1989 | K13: 12.5 | L13: 0.213 | M13: 12.3 | N13: 0.213 | O13: 3.2 | P13: 0.026 | Q13: 10.9 | R13: 0.213 | S13: 10.8 | T13: 0.213 | U13: 2.9 | V13: 0.026 | X13: 4 | Y13: =Inventory!BN11*12000 -> 0 | Z13: 7000 | AA13: =IF(Inventory!BK11<1990,1990,Inventory!BK11) -> 1990 | AB13: 1 | AC13: 1.090909091 | AD13: 1.025641026 | AE13: 1.008403361 | AF13: 1.111111111 | AG13: 1.008403361 | AH13: 1.008403361 | AI13: 1.165340897 | AJ13: 1.054256243 | AK13: 1.165340897 | AL13: 1.276595745 | AM13: 1.276595745 | AN13: 1.276595745 | AO13: 1.290322581 | AP13: 1.290322581 | AQ13: 1.290322581 | AR13: 1.29396572 | AS13: 1.29396572 | AT13: 1.29396572
B14: 1994 | C14: 12.5-(0.213* CAP/1000) | D14: 12.3-(0.213* CAP/1000) | E14: 3.2-(0.026* CAP/1000) | F14: 10.9-(0.213 * CAP/1000) | G14: 10.8-(0.213 * CAP/1000) | H14: 2.9-(0.026* CAP/1000) | I14: ASHRAE 90.1--1989 | K14: 12.5 | L14: 0.213 | M14: 12.3 | N14: 0.213 | O14: 3.2 | P14: 0.026 | Q14: 10.9 | R14: 0.213 | S14: 10.8 | T14: 0.213 | U14: 2.9 | V14: 0.026 | X14: 5 | Y14: =Inventory!BN12*12000 -> 0 | Z14: 7000 | AA14: =IF(Inventory!BK12<1990,1990,Inventory!BK12) -> 1990 | AB14: 1 | AC14: 1.090909091 | AD14: 1.025641026 | AE14: 1.008403361 | AF14: 1.111111111 | AG14: 1.008403361 | AH14: 1.008403361 | AI14: 1.165340897 | AJ14: 1.054256243 | AK14: 1.165340897 | AL14: 1.276595745 | AM14: 1.276595745 | AN14: 1.276595745 | AO14: 1.290322581 | AP14: 1.290322581 | AQ14: 1.290322581 | AR14: 1.29396572 | AS14: 1.29396572 | AT14: 1.29396572
B15: 1995 | C15: 12.5-(0.213* CAP/1000) | D15: 12.3-(0.213* CAP/1000) | E15: 3.2-(0.026* CAP/1000) | F15: 10.9-(0.213 * CAP/1000) | G15: 10.8-(0.213 * CAP/1000) | H15: 2.9-(0.026* CAP/1000) | I15: ASHRAE 90.1--1989 | K15: 12.5 | L15: 0.213 | M15: 12.3 | N15: 0.213 | O15: 3.2 | P15: 0.026 | Q15: 10.9 | R15: 0.213 | S15: 10.8 | T15: 0.213 | U15: 2.9 | V15: 0.026 | X15: 6 | Y15: =Inventory!BN13*12000 -> 0 | Z15: 7000 | AA15: =IF(Inventory!BK13<1990,1990,Inventory!BK13) -> 1990 | AB15: 1 | AC15: 1.090909091 | AD15: 1.025641026 | AE15: 1.008403361 | AF15: 1.111111111 | AG15: 1.008403361 | AH15: 1.008403361 | AI15: 1.165340897 | AJ15: 1.054256243 | AK15: 1.165340897 | AL15: 1.276595745 | AM15: 1.276595745 | AN15: 1.276595745 | AO15: 1.290322581 | AP15: 1.290322581 | AQ15: 1.290322581 | AR15: 1.29396572 | AS15: 1.29396572 | AT15: 1.29396572
B16: 1996 | C16: 12.5-(0.213* CAP/1000) | D16: 12.3-(0.213* CAP/1000) | E16: 3.2-(0.026* CAP/1000) | F16: 10.9-(0.213 * CAP/1000) | G16: 10.8-(0.213 * CAP/1000) | H16: 2.9-(0.026* CAP/1000) | I16: ASHRAE 90.1--1989 | K16: 12.5 | L16: 0.213 | M16: 12.3 | N16: 0.213 | O16: 3.2 | P16: 0.026 | Q16: 10.9 | R16: 0.213 | S16: 10.8 | T16: 0.213 | U16: 2.9 | V16: 0.026 | X16: 7 | Y16: =Inventory!BN14*12000 -> 0 | Z16: 7000 | AA16: =IF(Inventory!BK14<1990,1990,Inventory!BK14) -> 1990 | AB16: 1 | AC16: 1.090909091 | AD16: 1.025641026 | AE16: 1.008403361 | AF16: 1.111111111 | AG16: 1.008403361 | AH16: 1.008403361 | AI16: 1.165340897 | AJ16: 1.054256243 | AK16: 1.165340897 | AL16: 1.276595745 | AM16: 1.276595745 | AN16: 1.276595745 | AO16: 1.290322581 | AP16: 1.290322581 | AQ16: 1.290322581 | AR16: 1.29396572 | AS16: 1.29396572 | AT16: 1.29396572
B17: 1997 | C17: 12.5-(0.213* CAP/1000) | D17: 12.3-(0.213* CAP/1000) | E17: 3.2-(0.026* CAP/1000) | F17: 10.9-(0.213 * CAP/1000) | G17: 10.8-(0.213 * CAP/1000) | H17: 2.9-(0.026* CAP/1000) | I17: ASHRAE 90.1--1989 | K17: 12.5 | L17: 0.213 | M17: 12.3 | N17: 0.213 | O17: 3.2 | P17: 0.026 | Q17: 10.9 | R17: 0.213 | S17: 10.8 | T17: 0.213 | U17: 2.9 | V17: 0.026 | X17: 8 | Y17: =Inventory!BN15*12000 -> 0 | Z17: 7000 | AA17: =IF(Inventory!BK15<1990,1990,Inventory!BK15) -> 1990 | AB17: 1 | AC17: 1.090909091 | AD17: 1.025641026 | AE17: 1.008403361 | AF17: 1.111111111 | AG17: 1.008403361 | AH17: 1.008403361 | AI17: 1.165340897 | AJ17: 1.054256243 | AK17: 1.165340897 | AL17: 1.276595745 | AM17: 1.276595745 | AN17: 1.276595745 | AO17: 1.290322581 | AP17: 1.290322581 | AQ17: 1.290322581 | AR17: 1.29396572 | AS17: 1.29396572 | AT17: 1.29396572
B18: 1998 | C18: 12.5-(0.213* CAP/1000) | D18: 12.3-(0.213* CAP/1000) | E18: 3.2-(0.026* CAP/1000) | F18: 10.9-(0.213 * CAP/1000) | G18: 10.8-(0.213 * CAP/1000) | H18: 2.9-(0.026* CAP/1000) | I18: ASHRAE 90.1--1989 | K18: 12.5 | L18: 0.213 | M18: 12.3 | N18: 0.213 | O18: 3.2 | P18: 0.026 | Q18: 10.9 | R18: 0.213 | S18: 10.8 | T18: 0.213 | U18: 2.9 | V18: 0.026 | X18: 9 | Y18: =Inventory!BN16*12000 -> 0 | Z18: 7000 | AA18: =IF(Inventory!BK16<1990,1990,Inventory!BK16) -> 1990 | AB18: 1 | AC18: 1.090909091 | AD18: 1.025641026 | AE18: 1.008403361 | AF18: 1.111111111 | AG18: 1.008403361 | AH18: 1.008403361 | AI18: 1.165340897 | AJ18: 1.054256243 | AK18: 1.165340897 | AL18: 1.276595745 | AM18: 1.276595745 | AN18: 1.276595745 | AO18: 1.290322581 | AP18: 1.290322581 | AQ18: 1.290322581 | AR18: 1.29396572 | AS18: 1.29396572 | AT18: 1.29396572
B19: 1999 | C19: 12.5-(0.213* CAP/1000) | D19: 12.3-(0.213* CAP/1000) | E19: 3.2-(0.026* CAP/1000) | F19: 10.9-(0.213 * CAP/1000) | G19: 10.8-(0.213 * CAP/1000) | H19: 2.9-(0.026* CAP/1000) | I19: ASHRAE 90.1--1999 | K19: 12.5 | L19: 0.213 | M19: 12.3 | N19: 0.213 | O19: 3.2 | P19: 0.026 | Q19: 10.9 | R19: 0.213 | S19: 10.8 | T19: 0.213 | U19: 2.9 | V19: 0.026 | X19: 10 | Y19: =Inventory!BN17*12000 -> 0 | Z19: 7000 | AA19: =IF(Inventory!BK17<1990,1990,Inventory!BK17) -> 1990 | AB19: 1 | AC19: 1.090909091 | AD19: 1.025641026 | AE19: 1.008403361 | AF19: 1.111111111 | AG19: 1.008403361 | AH19: 1.008403361 | AI19: 1.165340897 | AJ19: 1.054256243 | AK19: 1.165340897 | AL19: 1.276595745 | AM19: 1.276595745 | AN19: 1.276595745 | AO19: 1.290322581 | AP19: 1.290322581 | AQ19: 1.290322581 | AR19: 1.29396572 | AS19: 1.29396572 | AT19: 1.29396572
B20: 2000 | C20: 12.5-(0.213* CAP/1000) | D20: 12.3-(0.213* CAP/1000) | E20: 3.2-(0.026* CAP/1000) | F20: 10.9-(0.213 * CAP/1000) | G20: 10.8-(0.213 * CAP/1000) | H20: 2.9-(0.026* CAP/1000) | I20: ASHRAE 90.1--1999 | K20: 12.5 | L20: 0.213 | M20: 12.3 | N20: 0.213 | O20: 3.2 | P20: 0.026 | Q20: 10.9 | R20: 0.213 | S20: 10.8 | T20: 0.213 | U20: 2.9 | V20: 0.026 | X20: 11 | Y20: =Inventory!BN18*12000 -> 0 | Z20: 7000 | AA20: =IF(Inventory!BK18<1990,1990,Inventory!BK18) -> 1990 | AB20: 1 | AC20: 1.090909091 | AD20: 1.025641026 | AE20: 1.008403361 | AF20: 1.111111111 | AG20: 1.008403361 | AH20: 1.008403361 | AI20: 1.165340897 | AJ20: 1.054256243 | AK20: 1.165340897 | AL20: 1.276595745 | AM20: 1.276595745 | AN20: 1.276595745 | AO20: 1.290322581 | AP20: 1.290322581 | AQ20: 1.290322581 | AR20: 1.29396572 | AS20: 1.29396572 | AT20: 1.29396572
B21: 2001 | C21: 12.5-(0.213* CAP/1000) | D21: 12.3-(0.213* CAP/1000) | E21: 3.2-(0.026* CAP/1000) | F21: 10.9-(0.213 * CAP/1000) | G21: 10.8-(0.213 * CAP/1000) | H21: 2.9-(0.026* CAP/1000) | I21: ASHRAE 90.1--1999 | K21: 12.5 | L21: 0.213 | M21: 12.3 | N21: 0.213 | O21: 3.2 | P21: 0.026 | Q21: 10.9 | R21: 0.213 | S21: 10.8 | T21: 0.213 | U21: 2.9 | V21: 0.026 | X21: 12 | Y21: =Inventory!BN19*12000 -> 0 | Z21: 7000 | AA21: =IF(Inventory!BK19<1990,1990,Inventory!BK19) -> 1990 | AB21: 1 | AC21: 1.090909091 | AD21: 1.025641026 | AE21: 1.008403361 | AF21: 1.111111111 | AG21: 1.008403361 | AH21: 1.008403361 | AI21: 1.165340897 | AJ21: 1.054256243 | AK21: 1.165340897 | AL21: 1.276595745 | AM21: 1.276595745 | AN21: 1.276595745 | AO21: 1.290322581 | AP21: 1.290322581 | AQ21: 1.290322581 | AR21: 1.29396572 | AS21: 1.29396572 | AT21: 1.29396572
B22: 2002 | C22: 12.5-(0.213* CAP/1000) | D22: 12.3-(0.213* CAP/1000) | E22: 3.2-(0.026* CAP/1000) | F22: 10.9-(0.213 * CAP/1000) | G22: 10.8-(0.213 * CAP/1000) | H22: 2.9-(0.026* CAP/1000) | I22: ASHRAE 90.1--1999 (as of 10/29/2001) | K22: 12.5 | L22: 0.213 | M22: 12.3 | N22: 0.213 | O22: 3.2 | P22: 0.026 | Q22: 10.9 | R22: 0.213 | S22: 10.8 | T22: 0.213 | U22: 2.9 | V22: 0.026 | X22: 13 | Y22: =Inventory!BN20*12000 -> 0 | Z22: 7000 | AA22: =IF(Inventory!BK20<1990,1990,Inventory!BK20) -> 1990 | AB22: 1 | AC22: 1.090909091 | AD22: 1.025641026 | AE22: 1.008403361 | AF22: 1.111111111 | AG22: 1.008403361 | AH22: 1.008403361 | AI22: 1.165340897 | AJ22: 1.054256243 | AK22: 1.165340897 | AL22: 1.276595745 | AM22: 1.276595745 | AN22: 1.276595745 | AO22: 1.290322581 | AP22: 1.290322581 | AQ22: 1.290322581 | AR22: 1.29396572 | AS22: 1.29396572 | AT22: 1.29396572
B23: 2003 | C23: 12.5-(0.213* CAP/1000) | D23: 12.3-(0.213* CAP/1000) | E23: 3.2-(0.026* CAP/1000) | F23: 10.9-(0.213 * CAP/1000) | G23: 10.8-(0.213 * CAP/1000) | H23: 2.9-(0.026* CAP/1000) | I23: ASHRAE 90.1--1999 (as of 10/29/2001) | K23: 12.5 | L23: 0.213 | M23: 12.3 | N23: 0.213 | O23: 3.2 | P23: 0.026 | Q23: 10.9 | R23: 0.213 | S23: 10.8 | T23: 0.213 | U23: 2.9 | V23: 0.026 | X23: 14 | Y23: =Inventory!BN21*12000 -> 0 | Z23: 7000 | AA23: =IF(Inventory!BK21<1990,1990,Inventory!BK21) -> 1990 | AB23: 1 | AC23: 1.090909091 | AD23: 1.025641026 | AE23: 1.008403361 | AF23: 1.111111111 | AG23: 1.008403361 | AH23: 1.008403361 | AI23: 1.165340897 | AJ23: 1.054256243 | AK23: 1.165340897 | AL23: 1.276595745 | AM23: 1.276595745 | AN23: 1.276595745 | AO23: 1.290322581 | AP23: 1.290322581 | AQ23: 1.290322581 | AR23: 1.29396572 | AS23: 1.29396572 | AT23: 1.29396572
B24: 2004 | C24: 12.5-(0.213* CAP/1000) | D24: 12.3-(0.213* CAP/1000) | E24: 3.2-(0.026* CAP/1000) | F24: 10.9-(0.213 * CAP/1000) | G24: 10.8-(0.213 * CAP/1000) | H24: 2.9-(0.026* CAP/1000) | I24: ASHRAE 90.1--2004 | K24: 12.5 | L24: 0.213 | M24: 12.3 | N24: 0.213 | O24: 3.2 | P24: 0.026 | Q24: 10.9 | R24: 0.213 | S24: 10.8 | T24: 0.213 | U24: 2.9 | V24: 0.026 | X24: 15 | Y24: =Inventory!BN22*12000 -> 0 | Z24: 7000 | AA24: =IF(Inventory!BK22<1990,1990,Inventory!BK22) -> 1990 | AB24: 1 | AC24: 1.090909091 | AD24: 1.025641026 | AE24: 1.008403361 | AF24: 1.111111111 | AG24: 1.008403361 | AH24: 1.008403361 | AI24: 1.165340897 | AJ24: 1.054256243 | AK24: 1.165340897 | AL24: 1.276595745 | AM24: 1.276595745 | AN24: 1.276595745 | AO24: 1.290322581 | AP24: 1.290322581 | AQ24: 1.290322581 | AR24: 1.29396572 | AS24: 1.29396572 | AT24: 1.29396572
B25: 2005 | C25: 12.5-(0.213* CAP/1000) | D25: 12.3-(0.213* CAP/1000) | E25: 3.2-(0.026* CAP/1000) | F25: 10.9-(0.213 * CAP/1000) | G25: 10.8-(0.213 * CAP/1000) | H25: 2.9-(0.026* CAP/1000) | I25: ASHRAE 90.1--2004 | K25: 12.5 | L25: 0.213 | M25: 12.3 | N25: 0.213 | O25: 3.2 | P25: 0.026 | Q25: 10.9 | R25: 0.213 | S25: 10.8 | T25: 0.213 | U25: 2.9 | V25: 0.026 | X25: 16 | Y25: =Inventory!BN23*12000 -> 0 | Z25: 7000 | AA25: =IF(Inventory!BK23<1990,1990,Inventory!BK23) -> 1990 | AB25: 1 | AC25: 1.090909091 | AD25: 1.025641026 | AE25: 1.008403361 | AF25: 1.111111111 | AG25: 1.008403361 | AH25: 1.008403361 | AI25: 1.165340897 | AJ25: 1.054256243 | AK25: 1.165340897 | AL25: 1.276595745 | AM25: 1.276595745 | AN25: 1.276595745 | AO25: 1.290322581 | AP25: 1.290322581 | AQ25: 1.290322581 | AR25: 1.29396572 | AS25: 1.29396572 | AT25: 1.29396572
B26: 2006 | C26: 12.5-(0.213* CAP/1000) | D26: 12.3-(0.213* CAP/1000) | E26: 3.2-(0.026* CAP/1000) | F26: 10.9-(0.213 * CAP/1000) | G26: 10.8-(0.213 * CAP/1000) | H26: 2.9-(0.026* CAP/1000) | I26: Federal Standard/ASHRAE 90.1--2004 | K26: 12.5 | L26: 0.213 | M26: 12.3 | N26: 0.213 | O26: 3.2 | P26: 0.026 | Q26: 10.9 | R26: 0.213 | S26: 10.8 | T26: 0.213 | U26: 2.9 | V26: 0.026 | X26: 17 | Y26: =Inventory!BN24*12000 -> 0 | Z26: 7000 | AA26: =IF(Inventory!BK24<1990,1990,Inventory!BK24) -> 1990 | AB26: 1 | AC26: 1.090909091 | AD26: 1.025641026 | AE26: 1.008403361 | AF26: 1.111111111 | AG26: 1.008403361 | AH26: 1.008403361 | AI26: 1.165340897 | AJ26: 1.054256243 | AK26: 1.165340897 | AL26: 1.276595745 | AM26: 1.276595745 | AN26: 1.276595745 | AO26: 1.290322581 | AP26: 1.290322581 | AQ26: 1.290322581 | AR26: 1.29396572 | AS26: 1.29396572 | AT26: 1.29396572
B27: 2007 | C27: 12.5-(0.213* CAP/1000) | D27: 12.3-(0.213* CAP/1000) | E27: 3.2-(0.026* CAP/1000) | F27: 10.9-(0.213 * CAP/1000) | G27: 10.8-(0.213 * CAP/1000) | H27: 2.9-(0.026* CAP/1000) | I27: Federal Standard/ASHRAE 90.1-2007 | K27: 12.5 | L27: 0.213 | M27: 12.3 | N27: 0.213 | O27: 3.2 | P27: 0.026 | Q27: 10.9 | R27: 0.213 | S27: 10.8 | T27: 0.213 | U27: 2.9 | V27: 0.026 | X27: 18 | Y27: =Inventory!BN25*12000 -> 0 | Z27: 7000 | AA27: =IF(Inventory!BK25<1990,1990,Inventory!BK25) -> 1990 | AB27: 1 | AC27: 1.090909091 | AD27: 1.025641026 | AE27: 1.008403361 | AF27: 1.111111111 | AG27: 1.008403361 | AH27: 1.008403361 | AI27: 1.165340897 | AJ27: 1.054256243 | AK27: 1.165340897 | AL27: 1.276595745 | AM27: 1.276595745 | AN27: 1.276595745 | AO27: 1.290322581 | AP27: 1.290322581 | AQ27: 1.290322581 | AR27: 1.29396572 | AS27: 1.29396572 | AT27: 1.29396572
B28: 2008 | C28: 12.5-(0.213* CAP/1000) | D28: 12.3-(0.213* CAP/1000) | E28: 3.2-(0.026* CAP/1000) | F28: 10.9-(0.213 * CAP/1000) | G28: 10.8-(0.213 * CAP/1000) | H28: 2.9-(0.026* CAP/1000) | I28: Federal Standard/ASHRAE 90.1-2007 | K28: 12.5 | L28: 0.213 | M28: 12.3 | N28: 0.213 | O28: 3.2 | P28: 0.026 | Q28: 10.9 | R28: 0.213 | S28: 10.8 | T28: 0.213 | U28: 2.9 | V28: 0.026 | X28: 19 | Y28: =Inventory!BN26*12000 -> 0 | Z28: 7000 | AA28: =IF(Inventory!BK26<1990,1990,Inventory!BK26) -> 1990 | AB28: 1 | AC28: 1.090909091 | AD28: 1.025641026 | AE28: 1.008403361 | AF28: 1.111111111 | AG28: 1.008403361 | AH28: 1.008403361 | AI28: 1.165340897 | AJ28: 1.054256243 | AK28: 1.165340897 | AL28: 1.276595745 | AM28: 1.276595745 | AN28: 1.276595745 | AO28: 1.290322581 | AP28: 1.290322581 | AQ28: 1.290322581 | AR28: 1.29396572 | AS28: 1.29396572 | AT28: 1.29396572
B29: 2009 | C29: 12.5-(0.213* CAP/1000) | D29: 12.3-(0.213* CAP/1000) | E29: 3.2-(0.026* CAP/1000) | F29: 10.9-(0.213 * CAP/1000) | G29: 10.8-(0.213 * CAP/1000) | H29: 2.9-(0.026* CAP/1000) | I29: Federal Standard/ASHRAE 90.1-2007 | K29: 12.5 | L29: 0.213 | M29: 12.3 | N29: 0.213 | O29: 3.2 | P29: 0.026 | Q29: 10.9 | R29: 0.213 | S29: 10.8 | T29: 0.213 | U29: 2.9 | V29: 0.026 | X29: 20 | Y29: =Inventory!BN27*12000 -> 0 | Z29: 7000 | AA29: =IF(Inventory!BK27<1990,1990,Inventory!BK27) -> 1990 | AB29: 1 | AC29: 1.090909091 | AD29: 1.025641026 | AE29: 1.008403361 | AF29: 1.111111111 | AG29: 1.008403361 | AH29: 1.008403361 | AI29: 1.165340897 | AJ29: 1.054256243 | AK29: 1.165340897 | AL29: 1.276595745 | AM29: 1.276595745 | AN29: 1.276595745 | AO29: 1.290322581 | AP29: 1.290322581 | AQ29: 1.290322581 | AR29: 1.29396572 | AS29: 1.29396572 | AT29: 1.29396572
B30: 2010 | C30: 12.5-(0.213* CAP/1000) | D30: 12.3-(0.213* CAP/1000) | E30: 3.2-(0.026* CAP/1000) | F30: 10.9-(0.213 * CAP/1000) | G30: 10.8-(0.213 * CAP/1000) | H30: 2.9-(0.026* CAP/1000) | I30: Federal Standard/ASHRAE 90.1-2007 (as of 1/1/2010) | K30: 12.5 | L30: 0.213 | M30: 12.3 | N30: 0.213 | O30: 3.2 | P30: 0.026 | Q30: 10.9 | R30: 0.213 | S30: 10.8 | T30: 0.213 | U30: 2.9 | V30: 0.026 | X30: 21 | Y30: =Inventory!BN28*12000 -> 0 | Z30: 7000 | AA30: =IF(Inventory!BK28<1990,1990,Inventory!BK28) -> 1990 | AB30: 1 | AC30: 1.090909091 | AD30: 1.025641026 | AE30: 1.008403361 | AF30: 1.111111111 | AG30: 1.008403361 | AH30: 1.008403361 | AI30: 1.165340897 | AJ30: 1.054256243 | AK30: 1.165340897 | AL30: 1.276595745 | AM30: 1.276595745 | AN30: 1.276595745 | AO30: 1.290322581 | AP30: 1.290322581 | AQ30: 1.290322581 | AR30: 1.29396572 | AS30: 1.29396572 | AT30: 1.29396572
B31: 2011 | C31: 12.5-(0.213* CAP/1000) | D31: 12.3-(0.213* CAP/1000) | E31: 3.2-(0.026* CAP/1000) | F31: 10.9-(0.213 * CAP/1000) | G31: 10.8-(0.213 * CAP/1000) | H31: 2.9-(0.026* CAP/1000) | I31: Federal Standard/ASHRAE 90.1-2007 (as of 1/1/2010) | K31: 12.5 | L31: 0.213 | M31: 12.3 | N31: 0.213 | O31: 3.2 | P31: 0.026 | Q31: 10.9 | R31: 0.213 | S31: 10.8 | T31: 0.213 | U31: 2.9 | V31: 0.026 | X31: 22 | Y31: =Inventory!BN29*12000 -> 0 | Z31: 7000 | AA31: =IF(Inventory!BK29<1990,1990,Inventory!BK29) -> 1990 | AB31: 1 | AC31: 1.090909091 | AD31: 1.025641026 | AE31: 1.008403361 | AF31: 1.111111111 | AG31: 1.008403361 | AH31: 1.008403361 | AI31: 1.165340897 | AJ31: 1.054256243 | AK31: 1.165340897 | AL31: 1.276595745 | AM31: 1.276595745 | AN31: 1.276595745 | AO31: 1.290322581 | AP31: 1.290322581 | AQ31: 1.290322581 | AR31: 1.29396572 | AS31: 1.29396572 | AT31: 1.29396572
B32: 2012 | C32: 12.5-(0.213* CAP/1000) | D32: 12.3-(0.213* CAP/1000) | E32: 3.2-(0.026* CAP/1000) | F32: 10.9-(0.213 * CAP/1000) | G32: 10.8-(0.213 * CAP/1000) | H32: 2.9-(0.026* CAP/1000) | I32: Federal Standard/ASHRAE 90.1-2007 (as of 1/1/2010) | K32: 12.5 | L32: 0.213 | M32: 12.3 | N32: 0.213 | O32: 3.2 | P32: 0.026 | Q32: 10.9 | R32: 0.213 | S32: 10.8 | T32: 0.213 | U32: 2.9 | V32: 0.026 | X32: 23 | Y32: =Inventory!BN30*12000 -> 0 | Z32: 7000 | AA32: =IF(Inventory!BK30<1990,1990,Inventory!BK30) -> 1990 | AB32: 1 | AC32: 1.090909091 | AD32: 1.025641026 | AE32: 1.008403361 | AF32: 1.111111111 | AG32: 1.008403361 | AH32: 1.008403361 | AI32: 1.165340897 | AJ32: 1.054256243 | AK32: 1.165340897 | AL32: 1.276595745 | AM32: 1.276595745 | AN32: 1.276595745 | AO32: 1.290322581 | AP32: 1.290322581 | AQ32: 1.290322581 | AR32: 1.29396572 | AS32: 1.29396572 | AT32: 1.29396572
B33: 2013 | C33: 12.5-(0.213* CAP/1000) | D33: 12.3-(0.213* CAP/1000) | E33: 3.2-(0.026* CAP/1000) | F33: 10.9-(0.213 * CAP/1000) | G33: 10.8-(0.213 * CAP/1000) | H33: 2.9-(0.026* CAP/1000) | I33: Federal Standard/ASHRAE 90.1-2007 (as of 1/1/2010) | K33: 12.5 | L33: 0.213 | M33: 12.3 | N33: 0.213 | O33: 3.2 | P33: 0.026 | Q33: 10.9 | R33: 0.213 | S33: 10.8 | T33: 0.213 | U33: 2.9 | V33: 0.026 | X33: 24 | Y33: =Inventory!BN31*12000 -> 0 | Z33: 7000 | AA33: =IF(Inventory!BK31<1990,1990,Inventory!BK31) -> 1990 | AB33: 1 | AC33: 1.090909091 | AD33: 1.025641026 | AE33: 1.008403361 | AF33: 1.111111111 | AG33: 1.008403361 | AH33: 1.008403361 | AI33: 1.165340897 | AJ33: 1.054256243 | AK33: 1.165340897 | AL33: 1.276595745 | AM33: 1.276595745 | AN33: 1.276595745 | AO33: 1.290322581 | AP33: 1.290322581 | AQ33: 1.290322581 | AR33: 1.29396572 | AS33: 1.29396572 | AT33: 1.29396572
B34: 2014 | C34: 12.5-(0.213* CAP/1000) | D34: 12.3-(0.213* CAP/1000) | E34: 3.2-(0.026* CAP/1000) | F34: 10.9-(0.213 * CAP/1000) | G34: 10.8-(0.213 * CAP/1000) | H34: 2.9-(0.026* CAP/1000) | I34: Federal Standard/ASHRAE 90.1-2007 (as of 1/1/2010) | K34: 12.5 | L34: 0.213 | M34: 12.3 | N34: 0.213 | O34: 3.2 | P34: 0.026 | Q34: 10.9 | R34: 0.213 | S34: 10.8 | T34: 0.213 | U34: 2.9 | V34: 0.026 | X34: 25 | Y34: =Inventory!BN32*12000 -> 0 | Z34: 7000 | AA34: =IF(Inventory!BK32<1990,1990,Inventory!BK32) -> 1990 | AB34: 1 | AC34: 1.090909091 | AD34: 1.025641026 | AE34: 1.008403361 | AF34: 1.111111111 | AG34: 1.008403361 | AH34: 1.008403361 | AI34: 1.165340897 | AJ34: 1.054256243 | AK34: 1.165340897 | AL34: 1.276595745 | AM34: 1.276595745 | AN34: 1.276595745 | AO34: 1.290322581 | AP34: 1.290322581 | AQ34: 1.290322581 | AR34: 1.29396572 | AS34: 1.29396572 | AT34: 1.29396572
B35: 2015 | C35: 12.5-(0.213* CAP/1000) | D35: 12.3-(0.213* CAP/1000) | E35: 3.2-(0.026* CAP/1000) | F35: 10.9-(0.213 * CAP/1000) | G35: 10.8-(0.213 * CAP/1000) | H35: 2.9-(0.026* CAP/1000) | I35: Federal Standard/ASHRAE 90.1-2007 (as of 1/1/2010) | K35: 12.5 | L35: 0.213 | M35: 12.3 | N35: 0.213 | O35: 3.2 | P35: 0.026 | Q35: 10.9 | R35: 0.213 | S35: 10.8 | T35: 0.213 | U35: 2.9 | V35: 0.026
B36: 2016 | C36: 12.5-(0.213* CAP/1000) | D36: 12.3-(0.213* CAP/1000) | E36: 3.2-(0.026* CAP/1000) | F36: 10.9-(0.213 * CAP/1000) | G36: 10.8-(0.213 * CAP/1000) | H36: 2.9-(0.026* CAP/1000) | I36: Federal Standard/ASHRAE 90.1-2007 (as of 1/1/2010) | K36: 12.5 | L36: 0.213 | M36: 12.3 | N36: 0.213 | O36: 3.2 | P36: 0.026 | Q36: 10.9 | R36: 0.213 | S36: 10.8 | T36: 0.213 | U36: 2.9 | V36: 0.026
B37: 2017 | C37: 12.5-(0.213* CAP/1000) | D37: 12.3-(0.213* CAP/1000) | E37: 3.2-(0.026* CAP/1000) | F37: 10.9-(0.213 * CAP/1000) | G37: 10.8-(0.213 * CAP/1000) | H37: 2.9-(0.026* CAP/1000) | I37: Federal Standard/ASHRAE 90.1-2007 (as of 1/1/2010) | K37: 12.5 | L37: 0.213 | M37: 12.3 | N37: 0.213 | O37: 3.2 | P37: 0.026 | Q37: 10.9 | R37: 0.213 | S37: 10.8 | T37: 0.213 | U37: 2.9 | V37: 0.026 | X37: * CAP = Capacity in Btu/h. If less than 7,000, use 7,000 for calculations. If more than15,000, use 15,000 for calculations.
B38: 2018 | C38: 12.5-(0.213* CAP/1000) | D38: 12.3-(0.213* CAP/1000) | E38: 3.2-(0.026* CAP/1000) | F38: 10.9-(0.213 * CAP/1000) | G38: 10.8-(0.213 * CAP/1000) | H38: 2.9-(0.026* CAP/1000) | I38: Federal Standard/ASHRAE 90.1-2007 (as of 1/1/2010) | K38: 12.5 | L38: 0.213 | M38: 12.3 | N38: 0.213 | O38: 3.2 | P38: 0.026 | Q38: 10.9 | R38: 0.213 | S38: 10.8 | T38: 0.213 | U38: 2.9 | V38: 0.026
